Workbook

Sheet Cover

Sheet So starten Sie
B1: So verwenden Sie diese Datei für Ihr Gemeinwesen
B2: Mit dieser Datei können Sie die meisten Analysen durchführen, die in meinem Buch 'Die Finanzen meines Gemeinwesens verstehen und verwalten' vorgestellt werden. Sie erleichtert die Berechnungen, da Sie nur die Informationen eingeben müssen, die hauptsächlich aus den von Ihrem Gemeinwesen veröffentlichten Rechnungen stammen.
B3: Die Verwendung dieser Datei ist einfach. Da sie aber rund 40 Blätter umfasst, sind einige Erklärungen erforderlich.
B4: Das Blatt Home zeigt Ihnen, wie Sie sich in der Datei zurechtfinden. Jede Zeile entspricht einem Kapitel des Buches. Die Kapitel sind in Spalte B von 1 bis 15 nummeriert. Der Titel des Kapitels steht in Spalte C. Klicken Sie einfach in die Spalten D und folgende, um direkt zu den Tabellen zu gelangen, wie sie in meinem Buch dargestellt sind und wie Sie sie mit den Ergebnissen für Ihre Kommune generieren können.
B5: Wo auch immer Sie sich in der Datei befinden, können Sie zum Blatt Home zurückkehren, indem Sie auf das Symbol ⌂ klicken, das in Zelle A1 jedes Blattes, auch in diesem Blatt, zu finden ist
B6: Um die Ergebnisse für Ihr Gemeinwesen zu erhalten, müssen Sie die wenigen Informationen eingeben, die hauptsächlich aus der Rechnung Ihres Gemeinwesens stammen. Die Zellen, in die Sie die Informationen eingeben können, sind hellgrün markiert, wie diese Zelle hier.
B7: Im Wesentlichen befinden sich die Zellen in den folgenden Blättern:
B8: ER|CHF: Informationen, die Sie in der Erfolgsrechnung finden, in Franken zu erfassen (das Blatt ER|TCHF zeigt anschliessend die Erfolgsrechnung in tausend Franken, wie im Anhang des Buches)
B9: IR|CHF: Informationen aus der Investitionsrechnung in Franken erfassen (das Blatt IR|TCHF zeigt anschliessend die Investitionsrechnung in tausend Franken, wie im Anhang des Buches)
B10: BiCHF: Informationen aus der Bilanz in Franken zu erfassen (das Blatt BiTCHF zeigt anschliessend die Bilanz in tausend Franken, wie im Anhang des Buches)
B11: zusDatCHF: zusätzliche Informationen, um das Kennzahlensystem zu erstellen, Informationen aus der Rechnung, in Franken zu erfassen
B12: Zusätzliche Informationen müssen je nach spezifischen Analysen, die Sie durchführen möchten, eingegeben werden, z. B. …
B13: - Komprimierte Darstellung nach der funktionalen Gliederung… | C13: Erfassung in Funk|CH | E13: Ergebnis in FunkGlied
B14: - Vergleich zwischen linearer und degressiver Abschreibung… | C14: Erfassung in BerAB | E14: Ergebnis in AbG
B15: - Ursprung des Defizits: strukturell oder konjunkturell | C15: Erfassung in BIP | D15: und in k | E15: Ergebnis in KSErg
B16: - Verschuldungsdynamik und Schneeballeffekt | C16: Erfassen in SbE | E16: Ergebnis in RtVerG und SbEG
B17: - Die finanzielle Verfassung am Limit | C17: Erfassen in BerGW | D17: oder in SimGW | E17: Ergebnis in den folgenden Blättern
B19: Sie können das Buch in elektronischer oder gedruckter Form an der folgenden Adresse erhalten: | E19: www.unil.ch/idheap/finances

Sheet Home
B1: Home | Zusammenfassung
B2: Kapitel | C2: Titel | D2: Register mit den Tabellen aus dem Buch Die Finanzen meines Gemeinwesens verstehen und verwalten
C4: Anhang : Datei von MeinGemeinwesen | D4: Erfolgsrechnung in CHF [ER|CHF] | E4: Investitionsrech- nung in CHF [IR|CHF] | F4: Bilanz in CHF [Bi|CHF] | G4: Zusätzliche Daten in CHF [zusDatCHF] | H4: Funktionale Gliederung in CHF [FunkCHF] | I4: Erfolgsrechnung in TCHF [ER|TCHF] | J4: Investitionsrech- nung in TCHF [IR|KCHF] | K4: Bilanz in TCHF [Bi|TCHF] | L4: Geldfluss- rechnung [GFR]
B5: 1 | C5: Einige Hinweise zur Nutzung dieses Buches | D5: Kein Arbeitsblatt für die Analyse
B6: 2 | C6: Die Akteure und Grundlagen der Haushaltführung identifizieren | D6: Kein Arbeitsblatt für die Analyse
B7: =+B6+1 -> 3 | C7: Den Aufbau der Rechnung und der Voranschläge entschlüsseln | D7: Erfolgsrechnung [ER] | E7: Gestufte Erfolgsrechnung [gestER] | F7: Funktionale Gliederung [FunkGlied] | G7: Investitions- rechnung [IR] | H7: Finanzierungs- nachweis [FinNach] | I7: Geldfluss- rechnung [GFR] | J7: Berechnung der Abschreibungen [BerAb] | K7: Unterscheidung linear & degressiv Grafik [AbG] | L7: CH Finanzierungs- rechnung [ChFiRe]
B8: =+B7+1 -> 4 | C8: Interne Verrechnungen nutzen, um die Kosten von Leistungen zu ermitteln | D8: Bedeutung der internen Verrechnungen [BedIV]
B9: 5 | C9: Die Spezialfinanzierungen bestimmter Leistungen verstehen | D9: Bedeutung der Steuern und Beiträge [Steuer]
B10: 6 | C10: Die Mechanismen der Transfers und des Finanzausgleichs kennen | D10: Bedeutung der Transfers [Trans] | E10: Ertrag im Steuerpotential [StPot]
B11: 7 | C11: Investitionen finanzieren und geeignete Kredite identifizieren | D11: Kein Arbeitsblatt für die Analyse
B12: 8 | C12: Die finanzpolitische Taktik erkennen | D12: Kein Arbeitsblatt für die Analyse
B13: 9 | C13: Die finanzielle Verfassung mithilfe von Kennzahlen diagnostizieren | D13: Struktur des Kennzahlensystems [TdB] | E13: Gewichtung der Kennzahlen [TdBGew] | F13: Berechnung der Kennzahlen [KennBer] | G13: Zusammenfassende Übersichtstabelle [TdBZus]
B14: 10 | C14: Die Finanzdaten für einen Vergleich finden | D14: Kein Arbeitsblatt für die Analyse
B15: 11 | C15: Den Ursprung von Defiziten organisieren | D15: Potenzielles BIP [BIP] | E15: Konjunkturfaktor [k] | F15: Konjunkturfaktor Grafik [kG] | G15: Finanzierungsergebnis [FinErg] | H15: Konjunkturelles und strukturelles Ergebnis [KSErg]
B16: 12 | C16: Die Dynamik der Verschuldung analysieren: Teufelskreis oder Erfolgsspirale | D16: Schulden & Verpflichtungen [SchuVer] | E16: Primärsaldo [PriSaldo] | F16: Schneeball-Effekt [SbE] | G16: Verschuldungsquotient Grafik [RtVerG] | H16: Schneeball-Effekt Grafik [SbEG]
B17: 13 | C17: Die finanzielle Verfassung ans Limit projizieren | D17: Berechnung der Grenzwerte [BerGW] | E17: Simulation der Grenzwerte [SimGW] | F17: Grenzwert Netto- verschuldung Grafik [GWNVQG] | G17: Grenzwert Zangeneffekt Grafik [GWZaEfG] | H17: Grenzwert Selbstfinanzierung Grafik [GWSFG] | I17: Grenzwert Netto- verschuldung bei Ungleichgewicht Grafik [GWNVQUngG]
B18: 14 | C18: Die zukünftige Finanzlage verbessern: möglich Ansätze | D18: Kein Arbeitsblatt für die Analyse
B19: 15 | C19: Strategische Tragweite der Finanzen meines Gemeinwesens | D19: Kein Arbeitsblatt für die Analyse

Sheet ER|CHF
B1: Erfolgsrechnung, in CHF
C3: Erfolgsrechnung | E3: Rechnung | | F3: Jahr t | H3: Budget | | I3: =+F3 -> Jahr t | K3: Rechnung | | L3: Jahr t-1
C4: in CHF | E4: Aufwand | F4: Ertrag | H4: =E4 -> Aufwand | I4: =F4 -> Ertrag | K4: =E4 -> Aufwand | L4: =F4 -> Ertrag
C5: 3 | D5: Aufwand | E5: =+E6+E15++E26+E27+E30+E37+E40++E49+E51+E59 -> 14546067.81 | H5: =+H6+H15++H26+H27+H30+H37+H40++H49+H51+H59 -> 14639900 | K5: =+K6+K15++K26+K27+K30+K37+K40++K49+K51+K59 -> 13741519
C6: 30 | D6: Personalaufwand | E6: =SUM(E7:E14) -> 2020354.25 | H6: =SUM(H7:H14) -> 2063500 | K6: =SUM(K7:K14) -> 1985894.1
C7: 300 | D7: Behörden, Kommissionen und Richter | E7: 174782.15 | H7: 183000 | K7: 178251.65
C8: 301 | D8: Löhne des Verwaltungs- und Betriebspersonals | E8: =1524888.75 -> 1524888.75 | H8: =1542200 -> 1542200 | K8: =1506623.7-10000 -> 1496623.7
C9: 302 | D9: Löhne der Lehrpersonen | E9: 0 | H9: 0 | K9: 0
C10: 303 | D10: Temporäre Arbeitskräfte | E10: 0 | H10: 0 | K10: 0
C11: 304 | D11: Zulagen | E11: 0 | H11: 0 | K11: 0
C12: 305 | D12: Arbeitgeberbeiträge | E12: 295329.95 | H12: 306700 | K12: 282945.9
C13: 306 | D13: Arbeitgeberleistungen | E13: 0 | H13: 0 | K13: 0
C14: 309 | D14: Übriger Personalaufwand | E14: 25353.4 | H14: 31600 | K14: 28072.85
C15: 31 | D15: Sach- und übriger Betriebsaufwand | E15: =SUM(E16:E25) -> 4076133.6 | H15: =SUM(H16:H25) -> 4592700 | K15: =SUM(K16:K25) -> 4086745.87
C16: 310 | D16: Material- und Warenaufwand | E16: 1725137.55 | H16: 1799600 | K16: =1745171.25+10000 -> 1755171.25
C17: 311 | D17: Nicht aktivierbare Anlagen | E17: 129694.05 | H17: 167500 | K17: 105269.75
C18: 312 | D18: Ver- und Entsorgung Liegenschaften VV | E18: 190948.55 | H18: 241600 | K18: 232439.2
C19: 313 | D19: Dienstleistungen und Honorare | E19: 975997.18 | H19: 1196000 | K19: 912829.06
C20: 314 | D20: Baulicher und betrieblicher Unterhalt | E20: 698976.85 | H20: 832600 | K20: 715550.35
C21: 315 | D21: Unterhalt Mobilien und immaterielle Anlagen | E21: 123010.5 | H21: 169300 | K21: 154407.65
C22: 316 | D22: Mieten, Leasing, Pachten, Benützungskosten | E22: 56686.8 | H22: 47500 | K22: 49889.15
C23: 317 | D23: Spesenentschädigungen | E23: 58423.5 | H23: 55800 | K23: 56635.35
C24: 318 | D24: Wertberichtigungen auf Forderungen | E24: 95997.75 | H24: 56900 | K24: 79146.16
C25: 319 | D25: Übriger Betriebsaufwand | E25: 21260.87 | H25: 25900 | K25: 25407.95
C26: 32 | D26: Rüstungsaufwand (Konto reserviert für den Bund) | E26: 0 | H26: 0 | K26: 0
C27: 33 | D27: Abschreibungen Verwaltungsvermögen | E27: =SUM(E28:E29) -> 670430.25 | H27: =SUM(H28) -> 708800 | K27: =SUM(K28) -> 676296.35
C28: 330 | D28: Abschreibungen Sachanlagen VV | E28: =680430.25-10000 -> 670430.25 | H28: 708800 | K28: 676296.35
C29: 332 | D29: Abschreibungen immaterielle Anlagen VV | E29: 0 | H29: 0 | K29: 0
C30: 34 | D30: Finanzaufwand | E30: =SUM(E31:E36) -> 125142.08 | H30: =SUM(H31:H36) -> 218900 | K30: =SUM(K31:K36) -> 135180.44
C31: 340 | D31: Zinsaufwand | E31: =54181.13+15000+5127.1 -> 74308.23 | H31: =61300+15000+5000 -> 81300 | K31: =77383.39+15000 -> 92383.39
C32: 341 | D32: Realisierte Verluste Finanzvermögen | E32: 0 | H32: 0 | K32: 0
C33: 342 | D33: Kapitalbeschaffungs- und Verwaltungskosten | E33: 10000 | H33: =60000+5000 -> 65000 | K33: 8931.6
C34: 343 | D34: Liegenschaftenaufwand Finanzvermögen | E34: =45833.8-15000+10000 -> 40833.8 | H34: =77600-15000+10000 -> 72600 | K34: =38865.45-15000+10000 -> 33865.45
C35: 344 | D35: Wertberichtigungen Anlagen des Finanzvermögens | E35: 0 | H35: 0 | K35: 0
C36: 349 | D36: Übriger Finanzaufwand | E36: =25127.15-25127.1 -> 0.05 | H36: =20000-20000 -> 0 | K36: =18931.6-18931.6 -> 0
C37: 35 | D37: Einlagen in Spezialfinanzierungen [SpF] und Fonds | E37: =SUM(E38:E39) -> 0 | H37: =SUM(H38:H39) -> 0 | K37: =SUM(K38:K39) -> 0
C38: 350 | D38: Einlagen in SpF und Fonds des Fremdkapitals | E38: 0 | H38: 0 | K38: 0
C39: 351 | D39: Einlagen in SpF und Fonds des Eigenkapitals | E39: =699300-699300 -> 0 | H39: =705000-705000 -> 0 | K39: =697000-697000 -> 0
C40: 36 | D40: Transferaufwand | E40: =SUM(E42:E48) -> 6392860.1 | H40: =SUM(H42:H48) -> 6186200 | K40: =SUM(K42:K48) -> 5924203.34
C41: 360 | D41: Ertragsanteile an Dritte | E41: 0 | H41: 0 | K41: 0
C42: 361 | D42: Entschädigungen an öffentliche Gemeinwesen | E42: 3904683.1 | H42: 3793300 | K42: 3541388.59
C43: 362 | D43: Finanz- und Lastenausgleich | E43: 563886 | H43: 552000 | K43: 551106
C44: 363 | D44: Beiträge an öffentliche Gemeinwesen und Dritte | E44: 1924291 | H44: 1840900 | K44: 1831708.75
C45: 364 | D45: Wertberichtigungen Darlehen VV | E45: 0 | H45: 0 | K45: 0
C46: 365 | D46: Wertberichtigungen Beteiligungen VV | E46: 0 | H46: 0 | K46: 0
C47: 366 | D47: Abschreibungen Investitionsbeiträge | E47: 0 | H47: 0 | K47: 0
C48: 369 | D48: Übriger Transferaufwand | E48: 0 | H48: 0 | K48: 0
C49: 37 | D49: Durchlaufende Beiträge | E49: =SUM(E50) -> 0 | H49: =SUM(H50) -> 0 | K49: =SUM(K50) -> 0
C50: 370 | D50: Durchlaufende Beiträge | E50: 0 | H50: 0 | K50: 0
C51: 38 | D51: Ausserordentlicher [a.o.] Aufwand | E51: =SUM(E52:E58) -> 991214.53 | H51: =SUM(H52:H58) -> 612600 | K51: =SUM(K52:K58) -> 644887.9
C52: 380 | D52: Ausserordentlicher Personalaufwand | E52: 0 | H52: 0 | K52: 0
C53: 381 | D53: Ausserordentlicher Sach- und Betriebsaufwand | E53: 0 | H53: 0 | K53: 0
C54: 383 | D54: Zusätzliche Abschreibungen [zus. Ab] | E54: 0 | H54: 0 | K54: 0
C55: 384 | D55: Ausserordentlicher Finanzaufwand | E55: 0 | H55: 0 | K55: 0
C56: 386 | D56: Ausserordentlicher Transferaufwand | E56: 0 | H56: 0 | K56: 0
C57: 387 | D57: Zus. Ab auf Darlehen, Beteiligungen und Investitionsbeiträgen | E57: 0 | H57: 0 | K57: 0
C58: 389 | D58: Einlagen in das Eigenkapital | E58: =498037.28+699300-206122.75 -> 991214.53 | H58: =115000-15000+705000-192400 -> 612600 | K58: =197552.5-27552.05+697000-222112.55 -> 644887.9
C59: 39 | D59: Interne Verrechnungen | E59: =SUM(E60:E67) -> 269933 | H59: =SUM(H60:H67) -> 257200 | K59: =SUM(K60:K67) -> 288311
C60: 390 | D60: Material- und Warenbezüge | E60: 0 | H60: 0 | K60: 0
C61: 391 | D61: Dienstleistungen | E61: =139600+4123 -> 143723 | H61: =34200+100000 -> 134200 | K61: =38168+122113 -> 160281
C62: 392 | D62: Pacht, Mieten, Benützungskosten | E62: 0 | H62: 0 | K62: 0
C63: 393 | D63: Betriebs- und Verwaltungskosten | E63: 116410 | H63: =15600+92400 -> 108000 | K63: 118230
C64: 394 | D64: Kalk. Zinsen und Finanzaufwand | E64: 9800 | H64: 15000 | K64: 9800
C65: 395 | D65: Planmässige und ausserplanmässige Abschreibungen | E65: 0 | H65: 0 | K65: 0
C66: 398 | D66: Übertragungen | E66: 0 | H66: 0 | K66: 0
C67: 399 | D67: Übrige interne Verrechnungen | E67: 0 | H67: 0 | K67: 0
C69: Compte de résultats | E69: =+E3 -> Rechnung | | F69: =+F3 -> Jahr t | H69: Budget | | I69: =+F69 -> Jahr t | K69: =+K3 -> Rechnung | | L69: =+L3 -> Jahr t-1
C70: in CHF | E70: =+E4 -> Aufwand | F70: =+F4 -> Ertrag | H70: =+H4 -> Aufwand | I70: =+I4 -> Ertrag | K70: =+K4 -> Aufwand | L70: =+L4 -> Ertrag
C71: 4 | D71: Ertrag | F71: =+F72+F77+F82+F92+F97+F108+F111+F118+F120+F128 -> 14609738.1 | I71: =+I72+I77+I82+I92+I97+I108+I111+I118+I120+I128 -> 14124700 | L71: =+L72+L77+L82+L92+L97+L108+L111+L118+L120+L128 -> 14235754.16
C72: 40 | D72: Fiskalertrag | F72: =SUM(F73:F76) -> 7651667.95 | I72: =SUM(I73:I76) -> 7107200 | L72: =SUM(L73:L76) -> 7537931.28
C73: 400 | D73: Direkte Steuern natürliche Personen | F73: 6231548 | I73: 6160000 | L73: =6424538.73-189234 -> 6235304.73
C74: 401 | D74: Direkte Steuern juristische Personen | F74: 501028.95 | I74: 212000 | L74: 475508.15
C75: 402 | D75: Übrige Direkte Steuern | F75: 897811 | I75: 716000 | L75: 805438.4
C76: 403 | D76: Besitz- und Aufwandsteuern | F76: 21280 | I76: 19200 | L76: 21680
C77: 41 | D77: Regalien und Konzessionen | F77: =SUM(F78:F81) -> 11874 | I77: =SUM(I78:I81) -> 11500 | L77: =SUM(L78:L81) -> 12004
C78: 410 | D78: Regalien | F78: 0 | I78: 0 | L78: 0
C79: 411 | D79: Schweiz. Nationalbank | F79: 0 | I79: 0 | L79: 0
C80: 412 | D80: Konzessionen | F80: 11874 | I80: 11500 | L80: 12004
C81: 413 | D81: Ertragsanteile an Lotterien, Sport-Toto, Wetten | F81: 0 | I81: 0 | L81: 0
C82: 42 | D82: Entgelte | F82: =SUM(F83:F91) -> 5075986.8 | I82: =SUM(I83:I91) -> 5096900 | L82: =SUM(L83:L91) -> 4852397.98
C83: 420 | D83: Ersatzabgaben | F83: 191942.5 | I83: 175000 | L83: 195051.75
C84: 421 | D84: Gebühren für Amtshandlungen | F84: 72528.36 | I84: 61200 | L84: 57281.53
C85: 422 | D85: Spital- und Heimtaxen, Kostgelder | F85: 0 | I85: 0 | L85: 0
C86: 423 | D86: Schul- und Kursgelder | F86: 0 | I86: 0 | L86: 0
C87: 424 | D87: Benützungsgebühren und Dienstleistungen | F87: =4464251.44+187000 -> 4651251.44 | I87: =4529500+187000 -> 4716500 | L87: =4906269.5-500000 -> 4406269.5
C88: 425 | D88: Erlös aus Verkäufen | F88: 92001.55 | I88: 87800 | L88: 95683.25
C89: 426 | D89: Rückerstattungen | F89: 68262.95 | I89: 56400 | L89: 98111.95
C90: 427 | D90: Bussen | F90: 0 | I90: 0 | L90: 0
C91: 429 | D91: Übrige Entgelte | F91: 0 | I91: 0 | L91: 0
C92: 43 | D92: Übrige Erträge | F92: =SUM(F93:F96) -> 16776.15 | I92: =SUM(I93:I96) -> 0 | L92: =SUM(L93:L96) -> 0
C93: 430 | D93: Übrige betriebliche Erträge | F93: 19.3 | I93: 0 | L93: =934967.9-934967.9 -> 0
C94: 431 | D94: Aktivierung Eigenleistungen | F94: 16756.85 | I94: 0 | L94: 0
C95: 432 | D95: Bestandesveränderungen | F95: 0 | I95: 0 | L95: 0
C96: 439 | D96: Übrige Erträge | F96: 0 | I96: 0 | L96: 0
C97: 44 | D97: Finanzertrag | F97: =SUM(F98:F107) -> 166677.4 | I97: =SUM(I98:I107) -> 153600 | L97: =SUM(L98:L107) -> 158618.25
C98: 440 | D98: Zinsertrag | F98: =49594.8-37000 -> 12594.8 | I98: =56600-37000 -> 19600 | L98: =52525.25-37000 -> 15525.25
C99: 441 | D99: Realisierte Gewinne Finanzvermögen | F99: 0 | I99: 0 | L99: 0
C100: 442 | D100: Beteiligungsertrag Finanzvermögen | F100: 0 | I100: 0 | L100: 0
C101: 443 | D101: Liegenschaftenertrag Finanzvermögen | F101: =234597.6-150000+7500 -> 92097.6 | I101: =234600-150000 -> 84600 | L101: =239986.5-150000 -> 89986.5
C102: 444 | D102: Wertberichtigungen Anlagen Finanzvermögen | F102: 8700 | L102: 2790
C103: 445 | D103: Finanzerträge aus Darlehen und Beteiligungen VV | F103: 7530 | I103: 7500 | L103: 7530
C104: 446 | D104: Finanzertrag von öffentlichen Unternehmungen | F104: 0 | I104: 0 | L104: 0
C105: 447 | D105: Liegenschaftenertrag Verwaltungsvermögen | F105: =38255+7500 -> 45755 | I105: =26900+15000 -> 41900 | L105: 42786.5
C106: 448 | D106: Erträge von gemieteten Liegenschaften | F106: 0 | I106: 0 | L106: 0
C107: 449 | D107: Übrige Finanzerträge | F107: 0 | I107: 0 | L107: 0
C108: 45 | D108: Entnahmen aus Spezialfinanzierungen [SpF] und Fonds | F108: =SUM(F109:F110) -> 22673.95 | I108: =SUM(I109:I110) -> 0 | L108: =SUM(L109:L110) -> 3243.9
C109: 450 | D109: Entnahmen aus SpF und Fonds des Fremdkapitals | F109: 22673.95 | I109: 0 | L109: 3243.9
C110: 451 | D110: Entnahmen aus SpF und Fonds des Eigenkapitals | F110: =206122.75-206122.75 -> 0 | I110: =192400-192400 -> 0 | L110: =222112.55-222112.55 -> 0
C111: 46 | D111: Transferertrag | F111: =SUM(F112:F117) -> 1372737.85 | I111: =SUM(I112:I117) -> 1372600 | L111: =SUM(L112:L117) -> 1366186.75
C112: 460 | D112: Ertragsanteile von Dritten | F112: 0 | I112: 0 | L112: 0
C113: 461 | D113: Entschädigungen von öffentlichen Gemeinwesen | F113: 644297.2 | I113: 638600 | L113: 622201.65
C114: 462 | D114: Finanz- und Lastenausgleich | F114: 610019 | I114: 656900 | L114: 663493
C115: 463 | D115: Beiträge von öffentlichen Gemeinwesen und Dritten | F115: 117127.7 | I115: 76000 | L115: 79381.2
C116: 466 | D116: Auflösungen passivierter Investitionsbeiträge | F116: 0 | I116: 0 | L116: 0
C117: 469 | D117: Übriger Transferertrag | F117: 1293.95 | I117: 1100 | L117: 1110.9
C118: 47 | D118: Durchlaufende Beiträge | F118: =SUM(F119) -> 0 | I118: =SUM(I119) -> 0 | L118: =SUM(L119) -> 0
C119: 470 | D119: Durchlaufende Beiträge | F119: 0 | I119: 0 | L119: 0
C120: 48 | D120: Ausserordentliche [a.o.] Erträge | F120: =SUM(F121:F127) -> 21411 | I120: =SUM(I121:I127) -> 125700 | L120: =SUM(L121:L127) -> 17061
C121: 481 | D121: Ausserordentliche Erträge von Regalien, Konzessionen | F121: 0 | I121: 0 | L121: 0
C122: 482 | D122: Ausserordentliche Entgelte | F122: 0 | I122: 0 | L122: 0
C123: 483 | D123: Ausserordentliche verschiedene Erträge | F123: 0 | I123: 0 | L123: 0
C124: 484 | D124: Ausserordentliche Finanzerträge | F124: 0 | I124: 0 | L124: 0
C125: 486 | D125: Ausserordentliche Transfererträge | F125: 0 | I125: 0 | L125: 0
C126: 487 | D126: Zusätzliche Auflösungen passivierter Investitionsbeiträge | F126: 0 | I126: 0 | L126: 0
C127: 489 | D127: Entnahmen aus dem Eigenkapital | F127: =21411 -> 21411 | I127: =125700 -> 125700 | L127: =17061 -> 17061
C128: 49 | D128: Interne Verrechnungen | F128: =SUM(F129:F136) -> 269933 | I128: =SUM(I129:I136) -> 257200 | L128: =SUM(L129:L136) -> 288311
C129: 490 | D129: =+D60 -> Material- und Warenbezüge | F129: =+E60 -> 0 | I129: =+H60 -> 0 | L129: =+K60 -> 0
C130: 491 | D130: =+D61 -> Dienstleistungen | F130: =+E61 -> 143723 | I130: =+H61 -> 134200 | L130: =+K61 -> 160281
C131: 492 | D131: Pacht, Mieten, Benützungskosten | F131: 0 | I131: 0 | L131: 0
C132: 493 | D132: Betriebs- und Verwaltungskosten | F132: 116410 | I132: 108000 | L132: 118230
C133: 494 | D133: Kalk. Zinsen und Finanzaufwand | F133: 9800 | I133: 15000 | L133: 9800
C134: 495 | D134: Planmässige und ausserplanmässige Abschreibungen | F134: 0 | I134: 0 | L134: 0
C135: 498 | D135: Übertragungen | F135: 0 | I135: 0 | L135: 0
C136: 499 | D136: Übrige interne Verrechnungen | F136: 0 | I136: 0 | L136: 0
D138: ERGEBNIS | F138: =+F71-E5 -> 63670.29 | I138: =+I71-H5 -> -515200 | L138: =+L71-K5 -> 494235.16

Sheet IR|CHF
B1: Investitionsrechnung, in CHF
C3: Investitionsrechnung | E3: =+'ER|CHF'!E3 -> Rechnung | | F3: =+'ER|CHF'!F3 -> Jahr t | H3: =+'ER|CHF'!H3 -> Budget | | I3: =+F3 -> Jahr t | K3: =+E3 -> Rechnung | | L3: =+'ER|CHF'!L3 -> Jahr t-1
C4: in CHF | E4: Ausgaben | F4: Einnahmen | H4: =E4 -> Ausgaben | I4: =F4 -> Einnahmen | K4: =E4 -> Ausgaben | L4: =F4 -> Einnahmen
C5: 5 | D5: Investitionsausgaben | E5: =+E6+E15+E24+E28+E38+E48+E58+E68 -> 1971454.9 | H5: =+H6+H15+H24+H28+H38+H48+H58+H68 -> 2403000 | K5: =+K6+K15+K24+K28+K38+K48+K58+K68 -> 1774837.85
C6: 50 | D6: Sachanlagen | E6: =SUM(E7:E14) -> 1971454.9 | H6: =SUM(H7:H14) -> 2359000 | K6: =SUM(K7:K14) -> 1774837.85
C7: 500 | D7: Grundstücke | E7: 0 | H7: 0 | K7: 0
C8: 501 | D8: Strassen und Verkehrswege | E8: 183614.35 | H8: 308000 | K8: 309763.8
C9: 502 | D9: Wasserbau | E9: 0 | H9: 0 | K9: 0
C10: 503 | D10: Übriger Tiefbau | E10: =1293100.8-400000 -> 893100.8 | H10: =3341000-2400000 -> 941000 | K10: 1115559.5
C11: 504 | D11: Hochbauten | E11: 894739.75 | H11: 1060000 | K11: 273922.4
C12: 505 | D12: Waldungen | E12: 0 | H12: 0 | K12: 0
C13: 506 | D13: Mobilien | E13: 0 | H13: 50000 | K13: 75592.15
C14: 509 | D14: Übrige Sachanlagen | E14: 0 | H14: 0 | K14: 0
C15: 51 | D15: Investitionen auf Rechnung Dritter | E15: =SUM(E16:E23) -> 0 | H15: =SUM(H16:H23) -> 0 | K15: =SUM(K16:K23) -> 0
C16: 510 | D16: =+D7 -> Grundstücke | E16: 0 | H16: 0 | K16: 0
C17: 511 | D17: Strassen und Verkehrswege | E17: 0 | H17: 0 | K17: 0
C18: 512 | D18: Wasserbau | E18: 0 | H18: 0 | K18: 0
C19: 513 | D19: Übriger Tiefbau | E19: 0 | H19: 0 | K19: 0
C20: 514 | D20: Hochbauten | E20: 0 | H20: 0 | K20: 0
C21: 515 | D21: Waldungen | E21: 0 | H21: 0 | K21: 0
C22: 516 | D22: Mobilien | E22: 0 | H22: 0 | K22: 0
C23: 519 | D23: Übrige Sachanlagen | E23: 0 | H23: 0 | K23: 0
C24: 52 | D24: Immaterielle Anlagen | E24: =SUM(E25:E27) -> 0 | H24: =SUM(H25:H27) -> 0 | K24: =SUM(K25:K27) -> 0
C25: 520 | D25: Software | E25: 0 | H25: 0 | K25: 0
C26: 521 | D26: Lizenzen, Nutzungsrechte, Markenrechte | E26: 0 | H26: 0 | K26: 0
C27: 529 | D27: Übrige immaterielle Anlagen | E27: 0 | H27: 0 | K27: 0
C28: 54 | D28: Darlehen | E28: =SUM(E29:E37) -> 0 | H28: =SUM(H29:H37) -> 0 | K28: =SUM(K29:K37) -> 0
C29: 540 | D29: Bund | E29: 0 | H29: 0 | K29: 0
C30: 541 | D30: Kantone und Konkordate | E30: 0 | H30: 0 | K30: 0
C31: 542 | D31: Gemeinden und Gemeindezweckverbände | E31: 0 | H31: 0 | K31: 0
C32: 543 | D32: Öffentliche Sozialversicherungen | E32: 0 | H32: 0 | K32: 0
C33: 544 | D33: Öffentliche Unternehmungen | E33: 0 | H33: 0 | K33: 0
C34: 545 | D34: Private Unternehmungen | E34: 0 | H34: 0 | K34: 0
C35: 546 | D35: Private Organisationen ohne Erwerbszweck | E35: 0 | H35: 0 | K35: 0
C36: 547 | D36: Private Haushalte | E36: 0 | H36: 0 | K36: 0
C37: 548 | D37: Ausland | E37: 0 | H37: 0 | K37: 0
C38: 55 | D38: Beteiligungen und Grundkapitalien | E38: =SUM(E39:E47) -> 0 | H38: =SUM(H39:H47) -> 0 | K38: =SUM(K39:K47) -> 0
C39: 550 | D39: =+$D$29 -> Bund | E39: 0 | H39: 0 | K39: 0
C40: 551 | D40: =+$D$30 -> Kantone und Konkordate | E40: 0 | H40: 0 | K40: 0
C41: 552 | D41: =+$D$31 -> Gemeinden und Gemeindezweckverbände | E41: 0 | H41: 0 | K41: 0
C42: 553 | D42: =+$D$32 -> Öffentliche Sozialversicherungen | E42: 0 | H42: 0 | K42: 0
C43: 554 | D43: =+$D$33 -> Öffentliche Unternehmungen | E43: 0 | H43: 0 | K43: 0
C44: 555 | D44: =+$D$34 -> Private Unternehmungen | E44: 0 | H44: 0 | K44: 0
C45: 556 | D45: =+$D$35 -> Private Organisationen ohne Erwerbszweck | E45: 0 | H45: 0 | K45: 0
C46: 557 | D46: =+$D$36 -> Private Haushalte | E46: 0 | H46: 0 | K46: 0
C47: 558 | D47: =+$D$37 -> Ausland | E47: 0 | H47: 0 | K47: 0
C48: 56 | D48: Eigene Investitionsbeiträge | E48: =SUM(E49:E57) -> 0 | H48: =SUM(H49:H57) -> 44000 | K48: =SUM(K49:K57) -> 0
C49: 560 | D49: =+$D$29 -> Bund | E49: 0 | H49: 0 | K49: 0
C50: 561 | D50: =+$D$30 -> Kantone und Konkordate | E50: 0 | H50: 0 | K50: 0
C51: 562 | D51: =+$D$31 -> Gemeinden und Gemeindezweckverbände | E51: 0 | H51: 44000 | K51: 0
C52: 563 | D52: =+$D$32 -> Öffentliche Sozialversicherungen | E52: 0 | H52: 0 | K52: 0
C53: 564 | D53: =+$D$33 -> Öffentliche Unternehmungen | E53: 0 | H53: 0 | K53: 0
C54: 565 | D54: =+$D$34 -> Private Unternehmungen | E54: 0 | H54: 0 | K54: 0
C55: 566 | D55: =+$D$35 -> Private Organisationen ohne Erwerbszweck | E55: 0 | H55: 0 | K55: 0
C56: 567 | D56: =+$D$36 -> Private Haushalte | E56: 0 | H56: 0 | K56: 0
C57: 568 | D57: =+$D$37 -> Ausland | E57: 0 | H57: 0 | K57: 0
C58: 57 | D58: Durchlaufende Investitionsbeiträge | E58: =SUM(E59:E67) -> 0 | H58: =SUM(H59:H67) -> 0 | K58: =SUM(K59:K67) -> 0
C59: 570 | D59: =+$D$29 -> Bund | E59: 0 | H59: 0 | K59: 0
C60: 571 | D60: =+$D$30 -> Kantone und Konkordate | E60: 0 | H60: 0 | K60: 0
C61: 572 | D61: =+$D$31 -> Gemeinden und Gemeindezweckverbände | E61: 0 | H61: 0 | K61: 0
C62: 573 | D62: =+$D$32 -> Öffentliche Sozialversicherungen | E62: 0 | H62: 0 | K62: 0
C63: 574 | D63: =+$D$33 -> Öffentliche Unternehmungen | E63: 0 | H63: 0 | K63: 0
C64: 575 | D64: =+$D$34 -> Private Unternehmungen | E64: 0 | H64: 0 | K64: 0
C65: 576 | D65: =+$D$35 -> Private Organisationen ohne Erwerbszweck | E65: 0 | H65: 0 | K65: 0
C66: 577 | D66: =+$D$36 -> Private Haushalte | E66: 0 | H66: 0 | K66: 0
C67: 578 | D67: =+$D$37 -> Ausland | E67: 0 | H67: 0 | K67: 0
C68: 58 | D68: Ausserordentliche [a.o.] Investitionsausgaben | E68: =SUM(E69:E74) -> 0 | H68: =SUM(H69:H74) -> 0 | K68: =SUM(K69:K74) -> 0
C69: 580 | D69: Ausserordentliche Investitionen für Sachanlagen | E69: 0 | H69: 0 | K69: 0
C70: 582 | D70: Ausserordentliche Investitionen für immaterielle Anlagen | E70: 0 | H70: 0 | K70: 0
C71: 584 | D71: Ausserordentliche Investitionen für Darlehen | E71: 0 | H71: 0 | K71: 0
C72: 585 | D72: A.o. Investitionen für Beteiligungen und Grundkapitalien | E72: 0 | H72: 0 | K72: 0
C73: 586 | D73: Ausserordentliche Investitionsbeiträge | E73: 0 | H73: 0 | K73: 0
C74: 589 | D74: Übrige ausserordentliche Investitionen | E74: 0 | H74: 0 | K74: 0
C76: =C3 -> Investitionsrechnung | E76: =E3 -> Rechnung | | F76: =+F3 -> Jahr t | H76: =H3 -> Budget | | I76: =+I3 -> Jahr t | K76: =K3 -> Rechnung | | L76: =+L3 -> Jahr t-1
C77: =C4 -> in CHF | E77: =E4 -> Ausgaben | F77: =F4 -> Einnahmen | H77: =H4 -> Ausgaben | I77: =I4 -> Einnahmen | K77: =K4 -> Ausgaben | L77: =L4 -> Einnahmen
C78: 6 | D78: Investitionseinnahmen | F78: =+F79+F88+F97+F101+F111+F121+F131+F141+F151 -> 43461 | I78: =+I79+I88+I97+I101+I111+I121+I131+I141+I151 -> 500000 | L78: =+L79+L88+L97+L101+L111+L121+L131+L141+L151 -> 10000
C79: 60 | D79: Übertragungen von Sachanlagen in das Finanzvermögen | F79: =SUM(F80:F87) -> 0 | I79: =SUM(I80:I87) -> 0 | L79: =SUM(L80:L87) -> 0
C80: 600 | D80: Übertragungen von Grundstücken | F80: 0 | I80: 0 | L80: 0
C81: 601 | D81: Übertragungen von Strassen und Verkehrswegen | F81: 0 | I81: 0 | L81: 0
C82: 602 | D82: Übertragungen von Wasserbauten | F82: 0 | I82: 0 | L82: 0
C83: 603 | D83: Übertragungen von übrigen Tiefbauten | F83: 0 | I83: 0 | L83: 0
C84: 604 | D84: Übertragungen von Hochbauten | F84: 0 | I84: 0 | L84: 0
C85: 605 | D85: Übertragungen von Waldungen | F85: 0 | I85: 0 | L85: 0
C86: 606 | D86: Übertragungen von Mobilien | F86: 0 | I86: 0 | L86: 0
C87: 609 | D87: Übertragungen von übrigen Sachanlagen | F87: 0 | I87: 0 | L87: 0
C88: 61 | D88: Rückerstattungen | F88: =SUM(F89:F96) -> 0 | I88: =SUM(I89:I96) -> 0 | L88: =SUM(L89:L96) -> 0
C89: 610 | D89: =+D7 -> Grundstücke | F89: 0 | I89: 0 | L89: 0
C90: 611 | D90: =+D8 -> Strassen und Verkehrswege | F90: 0 | I90: 0 | L90: 0
C91: 612 | D91: Wasserbau | F91: 0 | I91: 0 | L91: 0
C92: 613 | D92: Übriger Tiefbau | F92: 0 | I92: 0 | L92: 0
C93: 614 | D93: Hochbauten | F93: 0 | I93: 0 | L93: 0
C94: 615 | D94: Waldungen | F94: 0 | I94: 0 | L94: 0
C95: 616 | D95: Mobilien | F95: 0 | I95: 0 | L95: 0
C96: 619 | D96: Übrige Sachanlagen | F96: 0 | I96: 0 | L96: 0
C97: 62 | D97: Übertragung immaterielle Anlagen in das Finanzvermögen | F97: =SUM(F98:F100) -> 0 | I97: =SUM(I98:I100) -> 0 | L97: =SUM(L98:L100) -> 0
C98: 620 | D98: =+D25 -> Software | F98: 0 | I98: 0 | L98: 0
C99: 621 | D99: =+D26 -> Lizenzen, Nutzungsrechte, Markenrechte | F99: 0 | I99: 0 | L99: 0
C100: 629 | D100: =+D27 -> Übrige immaterielle Anlagen | F100: 0 | I100: 0 | L100: 0
C101: 63 | D101: Investitionsbeiträge für eigene Rechnung | F101: =SUM(F102:F110) -> 43461 | I101: =SUM(I102:I110) -> 500000 | L101: =SUM(L102:L110) -> 10000
C102: 630 | D102: =+$D$29 -> Bund | F102: 0 | I102: 0 | L102: 0
C103: 631 | D103: =+$D$30 -> Kantone und Konkordate | F103: 0 | I103: 100000 | L103: 0
C104: 632 | D104: =+$D$31 -> Gemeinden und Gemeindezweckverbände | F104: 0 | I104: 0 | L104: 0
C105: 633 | D105: =+$D$32 -> Öffentliche Sozialversicherungen | F105: 0 | I105: 0 | L105: 0
C106: 634 | D106: =+$D$33 -> Öffentliche Unternehmungen | F106: 3231 | I106: 0 | L106: =200000-190000 -> 10000
C107: 635 | D107: =+$D$34 -> Private Unternehmungen | F107: 40230 | I107: =900000-500000 -> 400000 | L107: 0
C108: 636 | D108: =+$D$35 -> Private Organisationen ohne Erwerbszweck | F108: 0 | I108: 0 | L108: 0
C109: 637 | D109: =+$D$36 -> Private Haushalte | F109: 0 | I109: 0 | L109: 0
C110: 638 | D110: =+$D$37 -> Ausland | F110: 0 | I110: 0 | L110: 0
C111: 64 | D111: Rückzahlung von Darlehen | F111: =SUM(F112:F120) -> 0 | I111: =SUM(I112:I120) -> 0 | L111: =SUM(L112:L120) -> 0
C112: 640 | D112: =+$D$29 -> Bund | F112: 0 | I112: 0 | L112: 0
C113: 641 | D113: =+$D$30 -> Kantone und Konkordate | F113: 0 | I113: 0 | L113: 0
C114: 642 | D114: =+$D$31 -> Gemeinden und Gemeindezweckverbände | F114: 0 | I114: 0 | L114: 0
C115: 643 | D115: =+$D$32 -> Öffentliche Sozialversicherungen | F115: 0 | I115: 0 | L115: 0
C116: 644 | D116: =+$D$33 -> Öffentliche Unternehmungen | F116: 0 | I116: 0 | L116: 0
C117: 645 | D117: =+$D$34 -> Private Unternehmungen | F117: 0 | I117: 0 | L117: 0
C118: 646 | D118: =+$D$35 -> Private Organisationen ohne Erwerbszweck | F118: 0 | I118: 0 | L118: 0
C119: 647 | D119: =+$D$36 -> Private Haushalte | F119: 0 | I119: 0 | L119: 0
C120: 648 | D120: =+$D$37 -> Ausland | F120: 0 | I120: 0 | L120: 0
C121: 65 | D121: Übertragung von Beteiligungen in das Finanzvermögen | F121: =SUM(F122:F130) -> 0 | I121: =SUM(I122:I130) -> 0 | L121: =SUM(L122:L130) -> 0
C122: 650 | D122: =+$D$29 -> Bund | F122: 0 | I122: 0 | L122: 0
C123: 651 | D123: =+$D$30 -> Kantone und Konkordate | F123: 0 | I123: 0 | L123: 0
C124: 652 | D124: =+$D$31 -> Gemeinden und Gemeindezweckverbände | F124: 0 | I124: 0 | L124: 0
C125: 653 | D125: =+$D$32 -> Öffentliche Sozialversicherungen | F125: 0 | I125: 0 | L125: 0
C126: 654 | D126: =+$D$33 -> Öffentliche Unternehmungen | F126: 0 | I126: 0 | L126: 0
C127: 655 | D127: =+$D$34 -> Private Unternehmungen | F127: 0 | I127: 0 | L127: 0
C128: 656 | D128: =+$D$35 -> Private Organisationen ohne Erwerbszweck | F128: 0 | I128: 0 | L128: 0
C129: 657 | D129: =+$D$36 -> Private Haushalte | F129: 0 | I129: 0 | L129: 0
C130: 658 | D130: =+$D$37 -> Ausland | F130: 0 | I130: 0 | L130: 0
C131: 66 | D131: Rückzahlung eigener Investitionsbeiträge | F131: =SUM(F132:F140) -> 0 | I131: =SUM(I132:I140) -> 0 | L131: =SUM(L132:L140) -> 0
C132: 660 | D132: =+$D$29 -> Bund | F132: 0 | I132: 0 | L132: 0
C133: 661 | D133: =+$D$30 -> Kantone und Konkordate | F133: 0 | I133: 0 | L133: 0
C134: 662 | D134: =+$D$31 -> Gemeinden und Gemeindezweckverbände | F134: 0 | I134: 0 | L134: 0
C135: 663 | D135: =+$D$32 -> Öffentliche Sozialversicherungen | F135: 0 | I135: 0 | L135: 0
C136: 664 | D136: =+$D$33 -> Öffentliche Unternehmungen | F136: 0 | I136: 0 | L136: 0
C137: 665 | D137: =+$D$34 -> Private Unternehmungen | F137: 0 | I137: 0 | L137: 0
C138: 666 | D138: =+$D$35 -> Private Organisationen ohne Erwerbszweck | F138: 0 | I138: 0 | L138: 0
C139: 667 | D139: =+$D$36 -> Private Haushalte | F139: 0 | I139: 0 | L139: 0
C140: 668 | D140: =+$D$37 -> Ausland | F140: 0 | I140: 0 | L140: 0
C141: 67 | D141: Durchlaufende Investitionsbeiträge | F141: =SUM(F142:F150) -> 0 | I141: =SUM(I142:I150) -> 0 | L141: =SUM(L142:L150) -> 0
C142: 670 | D142: =+$D$29 -> Bund | F142: 0 | I142: 0 | L142: 0
C143: 671 | D143: =+$D$30 -> Kantone und Konkordate | F143: 0 | I143: 0 | L143: 0
C144: 672 | D144: =+$D$31 -> Gemeinden und Gemeindezweckverbände | F144: 0 | I144: 0 | L144: 0
C145: 673 | D145: =+$D$32 -> Öffentliche Sozialversicherungen | F145: 0 | I145: 0 | L145: 0
C146: 674 | D146: =+$D$33 -> Öffentliche Unternehmungen | F146: 0 | I146: 0 | L146: 0
C147: 675 | D147: =+$D$34 -> Private Unternehmungen | F147: 0 | I147: 0 | L147: 0
C148: 676 | D148: =+$D$35 -> Private Organisationen ohne Erwerbszweck | F148: 0 | I148: 0 | L148: 0
C149: 677 | D149: =+$D$36 -> Private Haushalte | F149: 0 | I149: 0 | L149: 0
C150: 678 | D150: =+$D$37 -> Ausland | F150: 0 | I150: 0 | L150: 0
C151: 68 | D151: Ausserordentliche [a.o.] Investitionseinnahmen | F151: =SUM(F152:F158) -> 0 | I151: =SUM(I152:I158) -> 0 | L151: =SUM(L152:L158) -> 0
C152: 680 | D152: Ausserordentliche Investitionseinnahmen für Sachanlagen | F152: 0 | I152: 0 | L152: 0
C153: 682 | D153: Ausserordentliche Investitionseinnahmen für immaterielle Anlagen | F153: 0 | I153: 0 | L153: 0
C154: 683 | D154: Ausserordentliche Investitionsbeiträge für eigene Rechnung | F154: 0 | I154: 0 | L154: 0
C155: 684 | D155: Ausserordentliche Rückzahlung von Darlehen | F155: 0 | I155: 0 | L155: 0
C156: 685 | D156: Ausserordentliche Übertragungen von Beteiligungen | F156: 0 | I156: 0 | L156: 0
C157: 686 | D157: Ausserordentliche Rückzahlungen eigener Investitionsbeiträge | F157: 0 | I157: 0 | L157: 0
C158: 689 | D158: Übrige ausserordentliche Investitionseinnahmen | F158: 0 | I158: 0 | L158: 0

Sheet Bi|CHF
B1: Bilanz, in CHF | I1: 1
C3: Bilanz | E3: 01.01.Jahr t | G3: Veränderung | J3: 31.12.Jahr t
C4: in CHF | G4: Zunahme | H4: Abnahme
C5: 1 | D5: Aktiven | E5: =+E6+E15 -> 13275178.03 | G5: =+G6+G15 -> 41302882.7 | H5: =+H6+H15 -> 40901149.78 | J5: =+J6+J15 -> 13676910.95
C6: 10 | D6: Finanzvermögen [FV] | E6: =SUM(E7:E14) -> 5540151.33 | G6: =SUM(G7:G14) -> 39331427.8 | H6: =SUM(H7:H14) -> 40187258.53 | J6: =SUM(J7:J14) -> 4684320.6
C7: 100 | D7: Flüssige Mittel und kurzfristige Geldanlagen | E7: =3105376.58-1500000 -> 1605376.58 | G7: 16094043.68 | H7: 16916367.33 | J7: =+E7+G7-H7 -> 783052.93
C8: 101 | D8: Forderungen | E8: =6232564.45-4500000 -> 1732564.45 | G8: 23063571.7 | H8: 23174594.9 | J8: =+E8+G8-H8 -> 1621541.25
C9: 102 | D9: Kurzfristige Finanzanlagen | E9: 0 | G9: 0 | H9: 0 | J9: 0
C10: 104 | D10: Aktive Rechnungsabgrenzungen | E10: 96296.3 | G10: 165112.42 | H10: 96296.3 | J10: =+E10+G10-H10 -> 165112.42
C11: 106 | D11: Vorräte und angefangene Arbeiten | E11: 0 | G11: 0 | H11: 0 | J11: 0
C12: 107 | D12: Langfristige Finanzanlagen | E12: 91592 | G12: 8700 | J12: =+E12+G12-H12 -> 100292
C13: 108 | D13: Sachanlagen FV | E13: =6014322-4000000 -> 2014322 | G13: 0 | H13: 0 | J13: =+E13+G13-H13 -> 2014322
C14: 109 | D14: Forderungen gegenüber SpF und Fonds im FK | E14: 0 | G14: 0 | H14: 0 | J14: 0
C15: 14 | D15: Verwaltungsvermögen [VV] | E15: =SUM(E16:E21) -> 7735026.7 | G15: =SUM(G16:G21) -> 1971454.9 | H15: =SUM(H16:H21) -> 713891.25 | J15: =SUM(J16:J21) -> 8992590.35
C16: 140 | D16: Sachanlagen VV | E16: =7418541.5 -> 7418541.5 | G16: =+'IR|CHF'!E5 -> 1971454.9 | H16: =+'IR|CHF'!F78+'ER|CHF'!E27 -> 713891.25 | J16: =+E16+G16-H16 -> 8676105.15
C17: 142 | D17: Immaterielle Anlagen VV | E17: 0 | G17: 0 | H17: 0 | J17: 0
C18: 144 | D18: Darlehen VV | E18: 0 | G18: 0 | H18: 0 | J18: 0
C19: 145 | D19: Beteiligungen, Grundkapitalien VV | E19: 316485.2 | G19: 0 | H19: 0 | J19: =+E19+G19-H19 -> 316485.2
C20: 146 | D20: Investitionsbeiträge | E20: 0 | G20: 0 | H20: 0 | J20: 0
C21: 148 | D21: Kumulierte zusätzliche Abschreibungen | E21: 0 | G21: 0 | H21: 0 | J21: 0
C23: 2 | D23: Passiven | E23: =+E24+E32 -> 13275178.03 | G23: =+G24+G32 -> 19795296.94 | H23: =+H24+H32 -> 19393564.02 | J23: =+J24+J32 -> 13676910.95
C24: 20 | D24: Fremdkapital [FK] | E24: =SUM(E25:E31) -> 7618997.05 | G24: =SUM(G25:G31) -> 16834385.15 | H24: =SUM(H25:H31) -> 17466126.05 | J24: =SUM(J25:J31) -> 6987256.15
C25: 200 | D25: Laufende Verbindlichkeiten | E25: 1460758 | G25: 15631511.7 | H25: 15370873.45 | J25: =+E25+G25-H25 -> 1721396.25
C26: 201 | D26: Kurzfristige Finanzverbindlichkeiten | E26: 0 | G26: 500000 | H26: 500000 | J26: =+E26+G26-H26 -> 0
C27: 204 | D27: Passive Rechnungsabgrenzungen | E27: 33321.65 | G27: 21006.25 | H27: 33321.65 | J27: =+E27+G27-H27 -> 21006.25
C28: 205 | D28: Kurzfristige Rückstellungen | E28: 276900 | G28: 81500 | H28: 35600 | J28: =+E28+G28-H28 -> 322800
C29: 206 | D29: Langfristige Finanzverbindlichkeiten | E29: 5500000 | G29: =1000000-400000 -> 600000 | H29: 1500000 | J29: =+E29+G29-H29 -> 4600000
C30: 208 | D30: Langfristige Rückstellungen | E30: 0 | G30: 0 | H30: 0 | J30: 0
C31: 209 | D31: Verbindlichkeiten gegenüber SpF und Fonds im FK | E31: 348017.4 | G31: 367.2 | H31: 26330.95 | J31: =+E31+G31-H31 -> 322053.65
C32: 29 | D32: Eigenkapital [EK] | E32: =SUM(E33:E41) -> 5656180.98 | G32: =SUM(G33:G41) -> 2960911.79 | H32: =SUM(H33:H41) -> 1927437.97 | J32: =SUM(J33:J41) -> 6689654.8
C33: 290 | D33: Spezialfinanzierungen im Eigenkapital | E33: =4670392.41-3000000 -> 1670392.41 | G33: 129795.19 | H33: 76124.9 | J33: =+E33+G33-H33 -> 1724062.7
C34: 291 | D34: Fonds im Eigenkapital | E34: 0 | G34: 0 | H34: 0 | J34: 0
C35: 292 | D35: Rücklagen der Globalbudgetbereiche | E35: 0 | G35: 0 | H35: 0 | J35: 0
C36: 293 | D36: Vorfinanzierungen | E36: =4126283.95-3000000 -> 1126283.95 | G36: =+'ER|CHF'!E58-G37 -> 991214.53 | H36: =+'ER|CHF'!F127 -> 21411 | J36: =+E36+G36-H36 -> 2096087.48
C37: 294 | D37: Finanzpolitische Reserven | E37: 119981.5 | G37: 0 | H37: 0 | J37: =+E37+G37-H37 -> 119981.5
C38: 295 | D38: Aufwertungsreserve VV (Einführung HRM2) | E38: 0 | G38: 0 | H38: 0 | J38: 0
C39: 296 | D39: Neubewertungsreserven FV | E39: =1716207.4-1000000 -> 716207.4 | G39: 0 | H39: 0 | J39: =+E39+G39-H39 -> 716207.4
C40: 298 | D40: Übriges Eigenkapital | E40: 0 | G40: 0 | H40: 0 | J40: 0
C41: 299 | D41: Bilanzüberschuss/-fehlbetrag | E41: =5023315.72-3000000 -> 2023315.72 | G41: =1829902.07+10000 -> 1839902.07 | H41: 1829902.07 | J41: =+E41+G41-H41 -> 2033315.72

Sheet zusDatCHF
C1: Zusätzliche Daten für das Kennzahlensystem, in CHF
E3: Rechnung | Jahr t | F3: Rechnung | Jahr t-1 | G3: Rechnung | Jahr t-2
C4: Einwohnerzahl | E4: 3113 | F4: 3097 | G4: nicht erfassen
C5: =+'ER|CHF'!C3:D3 -> Erfolgsrechnung
C6: =+'ER|CHF'!D5 -> Aufwand
C7: 3180 | D7: Wertberichtigungen auf Forderungen | E7: 7700 | F7: 12000 | G7: =+$G$4 -> nicht erfassen
C8: 3401 | D8: Verzinsung Finanzverbindlichkeiten | E8: =40182.45+15000+156.53+5127.1 -> 60466.08 | F8: =+$G$4 -> nicht erfassen | G8: =+$G$4 -> nicht erfassen
C9: 3840 | D9: Geldwirksamer ausserordentlicher Finanzaufwand | E9: 0 | F9: =+$G$4 -> nicht erfassen | G9: =+$G$4 -> nicht erfassen
C10: =+'ER|CHF'!D71 -> Ertrag
C11: 4021 | D11: Grundsteuern | E11: 535671.75 | F11: =+$G$4 -> nicht erfassen | G11: nicht erfassen
C12: 4022 | D12: Vermögensgewinnsteuern | E12: 307262.9 | F12: nicht erfassen | G12: nicht erfassen
C13: 4023 | D13: Vermögensverkehrssteuern | E13: 0 | F13: nicht erfassen | G13: nicht erfassen
C14: 4420 | D14: Dividenden | E14: 0 | F14: nicht erfassen | G14: nicht erfassen
C15: 4490 | D15: Aufwertungen VV | E15: 0 | F15: nicht erfassen | G15: nicht erfassen
C16: 4895 | D16: Entnahmen aus Aufwertungsreserve | E16: 0 | F16: nicht erfassen | G16: nicht erfassen
C17: =+'IR|CHF'!C3:D3 -> Investitionsrechnung
C18: =+'IR|CHF'!D5 -> Investitionsausgaben
C19: 50 | D19: ='IR|CHF'!D6 -> Sachanlagen | E19: =+$G$4 -> nicht erfassen | F19: nicht erfassen | G19: 1873146.375
C20: 51 | D20: =+'IR|CHF'!D15 -> Investitionen auf Rechnung Dritter | E20: nicht erfassen | F20: nicht erfassen | G20: 0
C21: 52 | D21: =+'IR|CHF'!D24 -> Immaterielle Anlagen | E21: nicht erfassen | F21: nicht erfassen | G21: 0
C22: 54 | D22: =+'IR|CHF'!D28 -> Darlehen | E22: nicht erfassen | F22: nicht erfassen | G22: 0
C23: 55 | D23: =+'IR|CHF'!D38 -> Beteiligungen und Grundkapitalien | E23: nicht erfassen | F23: nicht erfassen | G23: 0
C24: 56 | D24: =+'IR|CHF'!D48 -> Eigene Investitionsbeiträge | E24: nicht erfassen | F24: nicht erfassen | G24: 0
C25: 57 | D25: =+'IR|CHF'!D58 -> Durchlaufende Investitionsbeiträge | E25: nicht erfassen | F25: nicht erfassen | G25: 0
C26: 58 | D26: =+'IR|CHF'!D68 -> Ausserordentliche [a.o.] Investitionsausgaben | E26: nicht erfassen | F26: nicht erfassen | G26: 0
C27: =+'IR|CHF'!D78 -> Investitionseinnahmen
C28: 60 | D28: =+'IR|CHF'!D79 -> Übertragungen von Sachanlagen in das Finanzvermögen | E28: =+$G$4 -> nicht erfassen | F28: nicht erfassen | G28: 0
C29: 61 | D29: =+'IR|CHF'!D88 -> Rückerstattungen | E29: nicht erfassen | F29: nicht erfassen | G29: 0
C30: 62 | D30: =+'IR|CHF'!D97 -> Übertragung immaterielle Anlagen in das Finanzvermögen | E30: nicht erfassen | F30: nicht erfassen | G30: 0
C31: 63 | D31: =+'IR|CHF'!D101 -> Investitionsbeiträge für eigene Rechnung | E31: nicht erfassen | F31: nicht erfassen | G31: 26730.5
C32: 64 | D32: =+'IR|CHF'!D111 -> Rückzahlung von Darlehen | E32: nicht erfassen | F32: nicht erfassen | G32: 0
C33: 65 | D33: =+'IR|CHF'!D121 -> Übertragung von Beteiligungen in das Finanzvermögen | E33: nicht erfassen | F33: nicht erfassen | G33: 0
C34: 66 | D34: =+'IR|CHF'!D131 -> Rückzahlung eigener Investitionsbeiträge | E34: nicht erfassen | F34: nicht erfassen | G34: 0
C35: 67 | D35: =+'IR|CHF'!D141 -> Durchlaufende Investitionsbeiträge | E35: nicht erfassen | F35: nicht erfassen | G35: 0
C36: 68 | D36: =+'IR|CHF'!D151 -> Ausserordentliche [a.o.] Investitionseinnahmen | E36: nicht erfassen | F36: nicht erfassen | G36: 0
C37: =+'Bi|CHF'!C3 -> Bilanz
C38: =+'Bi|CHF'!D23 -> Passiven
C39: 2016 | D39: Kurzfristige derivative Finanzinstrumente | E39: 0 | F39: 0 | G39: =+$G$4 -> nicht erfassen
C40: 2066 | D40: Lanfristige derivative Finanzinstrumente | E40: 0 | F40: 0 | G40: =+$G$4 -> nicht erfassen
C41: 2068 | D41: Passivierte Investitionsbeiträge | E41: 0 | F41: 0 | G41: =+$G$4 -> nicht erfassen

Sheet Funk|CHF
B1: Funktionale Gliederung, in CHF
C3: =+'ER|CHF'!C3:D3 -> Erfolgsrechnung | D3: Rechnung | Jahr t | G3: Budget | Jahr t | J3: Rechnung | Jahr t-1
C4: =+'ER|CHF'!C4:D4 -> in CHF | D4: =+'ER|CHF'!E4 -> Aufwand | E4: =+'ER|CHF'!F4 -> Ertrag | G4: =+D4 -> Aufwand | H4: =+E4 -> Ertrag | J4: =+G4 -> Aufwand | K4: =+H4 -> Ertrag
C5: Total | D5: =SUM(D6:D25) -> 14675862.75 | E5: =+E6+E8+E10+E12+E14+E16+E18+E20+E23+E25 -> 14685862.75 | G5: =SUM(G6:G25) -> 14714100 | H5: =+H6+H8+H10+H12+H14+H16+H18+H20+H23+H25 -> 14729100 | J5: =SUM(J6:J25) -> 16856006.09 | K5: =+K6+K8+K10+K12+K14+K16+K18+K20+K23+K25 -> 16137977.99
B6: 0 | C6: Allgemeine Verwaltung | D6: 1169785.43 | E6: 175849.3 | G6: 1262600 | H6: 182600 | J6: 1165617.26 | K6: 179055.55
C7: Nettoaufwand | E7: =+D6-E6 -> 993936.13 | H7: =+G6-H6 -> 1080000 | K7: =+J6-K6 -> 986561.71
B8: 1 | C8: Öffentliche Ordnung und Sicherheit, Verteidigung | D8: 350134.3 | E8: 288446.96 | G8: 323500 | H8: 242700 | J8: 289911.65 | K8: 245233.23
C9: =+$C$7 -> Nettoaufwand | E9: =+D8-E8 -> 61687.34 | H9: =+G8-H8 -> 80800 | K9: =+J8-K8 -> 44678.42
B10: 2 | C10: Bildung | D10: 2661998.5 | E10: 164556.5 | G10: 2673800 | H10: 111600 | J10: 2370247.85 | K10: 128316.85
C11: =+$C$7 -> Nettoaufwand | E11: =+D10-E10 -> 2497442 | H11: =+G10-H10 -> 2562200 | K11: =+J10-K10 -> 2241931
B12: 3 | C12: Kultur, Sport und Freizeit, Kirche | D12: 326094.32 | E12: 222180.9 | G12: 336700 | H12: 233500 | J12: 367720.95 | K12: 256375.75
C13: =+$C$7 -> Nettoaufwand | E13: =+D12-E12 -> 103913.42 | H13: =+G12-H12 -> 103200 | K13: =+J12-K12 -> 111345.2
B14: 4 | C14: Gesundheit | D14: 11344.55 | G14: 10800 | J14: 7821.6
C15: =+$C$7 -> Nettoaufwand | E15: =+D14-E14 -> 11344.55 | H15: =+G14-H14 -> 10800 | K15: =+J14-K14 -> 7821.6
B16: 5 | C16: Soziale Sicherheit | D16: 2447291.45 | E16: 26322.45 | G16: 2443500 | H16: 16500 | J16: 2348436.94 | K16: 20713.6
C17: =+$C$7 -> Nettoaufwand | E17: =+D16-E16 -> 2420969 | H17: =+G16-H16 -> 2427000 | K17: =+J16-K16 -> 2327723.34
B18: 6 | C18: Verkehr und Nachrichtenübermittlung | D18: 1111452.6 | E18: 142212.9 | G18: 1107200 | H18: 132200 | J18: 1050417.6 | K18: 148391.35
C19: =+$C$7 -> Nettoaufwand | E19: =+D18-E18 -> 969239.7 | H19: =+G18-H18 -> 975000 | K19: =+J18-K18 -> 902026.25
B20: 7 | C20: Umweltschutz und Raumordnung | D20: 2292980.39 | E20: 2084413.44 | G20: 2389600 | H20: 2205500 | J20: 2652153.37 | K20: 3397733.52
C21: =+$C$7 -> Nettoaufwand | E21: =+D20-E20 -> 208566.95 | H21: =+G20-H20 -> 184100
C22: Nettoertrag | J22: =+K20-J20 -> 745580.15
B23: 8 | C23: Volkswirtschaft | D23: 2552561.9 | E23: 2541945.55 | G23: 2789200 | H23: 2777100 | J23: 2632376.56 | K23: 2617265.71
C24: =+$C$7 -> Nettoaufwand | E24: =+D23-E23 -> 10616.35 | H24: =+G23-H23 -> 12100 | K24: 15110.85
B25: 9 | C25: Finanzen und Steuern | D25: =1762219.31-10000 -> 1752219.31 | E25: 9039934.75 | G25: =1392200-15000 -> 1377200 | H25: 8827400 | J25: =3253274.21-27552.05 -> 3225722.16 | K25: 9144892.43
C26: =+C22 -> Nettoertrag | D26: =+E25-D25 -> 7287715.44 | G26: =+H25-G25 -> 7450200 | J26: =+K25-J25 -> 5919170.27
C28: =+'IR|CHF'!C3:D3 -> Investitionsrechnung | D28: =+D3 -> Rechnung | Jahr t | G28: =+G3 -> Budget | Jahr t | J28: =+J3 -> Rechnung | Jahr t-1
D29: Ausgaben | E29: Einnahmen | G29: =+E29 -> Einnahmen | H29: =+G29 -> Einnahmen | J29: =+H29 -> Einnahmen | K29: =+J29 -> Einnahmen
C30: Total | D30: =SUM(D31:D43) -> 1971454.9 | E30: =+E31+E33+E35+E37+E39+E41+E43 -> 43461 | G30: =SUM(G31:G43) -> 4803000 | H30: =+H31+H33+H35+H37+H39+H41+H43 -> 1000000 | J30: =+J31+J33+J35+J37+J39+J41+J43 -> 1774837.85 | K30: =+K31+K33+K35+K37+K39+K41+K43 -> 200000
B31: 0 | C31: =+C6 -> Allgemeine Verwaltung | G31: 180000
C32: Nettoausgaben | E32: =+D31-E31 -> 0 | H32: =+G31-H31 -> 180000 | K32: =+J31-K31 -> 0
B33: 2 | C33: =+C10 -> Bildung | D33: =814580.75-100000 -> 714580.75 | G33: 880000 | J33: 212656.65
C34: =+$C$32 -> Nettoausgaben | E34: =+D33-E33 -> 714580.75 | H34: =+G33-H33 -> 880000 | K34: =+J33-K33 -> 212656.65
B35: 3 | C35: =+C12 -> Kultur, Sport und Freizeit, Kirche | D35: =814233.15-300000 -> 514233.15 | E35: 40230 | G35: 1550000 | H35: 900000 | J35: 55814
C36: =+$C$32 -> Nettoausgaben | E36: =+D35-E35 -> 474003.15 | H36: =+G35-H35 -> 650000 | K36: =+J35-K35 -> 55814
B37: 6 | C37: =+C18 -> Verkehr und Nachrichtenübermittlung | D37: 183614.35 | G37: 358000 | J37: 385355.95
C38: =+$C$32 -> Nettoausgaben | E38: =+D37-E37 -> 183614.35 | H38: =+G37-H37 -> 358000 | K38: =+J37-K37 -> 385355.95
B39: 7 | C39: =+C20 -> Umweltschutz und Raumordnung | D39: 354480.3 | G39: 857000 | J39: 802618
C40: =+$C$32 -> Nettoausgaben | E40: =+D39-E39 -> 354480.3 | H40: =+G39-H39 -> 857000 | K40: =+J39-K39 -> 802618
B41: 8 | C41: =+C23 -> Volkswirtschaft | D41: 204546.35 | E41: 3231 | G41: 978000 | H41: 100000 | J41: 318393.25 | K41: 200000
C42: =+$C$32 -> Nettoausgaben | E42: =+D41-E41 -> 201315.35 | H42: =+G41-H41 -> 878000 | K42: =+J41-K41 -> 118393.25
B43: 9 | C43: =+C25 -> Finanzen und Steuern
C44: Nettoeinnahmen | E44: =+D43-E43 -> 0 | H44: =+G43-H43 -> 0 | K44: =+J43-K43 -> 0

Sheet ER|TCHF
B1: Erfolgsrechnung, in TCHF
C3: Erfolgsrechnung | Aufwand | E3: Jahr t | H3: Jahr t-1
C4: in TCHF | E4: Rechnung | F4: Budget | H4: =E4 -> Rechnung
C5: 3 | D5: =+'ER|CHF'!D5 -> Aufwand | E5: =+E6+E15++E26+E27+E30+E37+E40++E54+E56+E64 -> 14546 | F5: =+F6+F15++F26+F27+F30+F37+F40++F54+F56+F64 -> 14643 | H5: =+H6+H15++H26+H27+H30+H37+H40++H54+H56+H64 -> 13741
C6: 30 | D6: =+'ER|CHF'!D6 -> Personalaufwand | E6: =SUM(E7:E14) -> 2020 | F6: =SUM(F7:F14) -> 2064 | H6: =SUM(H7:H14) -> 1986
C7: 300 | D7: =+'ER|CHF'!D7 -> Behörden, Kommissionen und Richter | E7: =ROUND('ER|CHF'!E7/1000,0) -> 175 | F7: =ROUND('ER|CHF'!H7/1000,0) -> 183 | H7: =ROUND('ER|CHF'!K7/1000,0) -> 178
C8: 301 | D8: =+'ER|CHF'!D8 -> Löhne des Verwaltungs- und Betriebspersonals | E8: =ROUND('ER|CHF'!E8/1000,0) -> 1525 | F8: =ROUND('ER|CHF'!H8/1000,0) -> 1542 | H8: =ROUND('ER|CHF'!K8/1000,0) -> 1497
C9: 302 | D9: =+'ER|CHF'!D9 -> Löhne der Lehrpersonen | E9: =ROUND('ER|CHF'!E9/1000,0) -> 0 | F9: =ROUND('ER|CHF'!H9/1000,0) -> 0 | H9: =ROUND('ER|CHF'!K9/1000,0) -> 0
C10: 303 | D10: =+'ER|CHF'!D10 -> Temporäre Arbeitskräfte | E10: =ROUND('ER|CHF'!E10/1000,0) -> 0 | F10: =ROUND('ER|CHF'!H10/1000,0) -> 0 | H10: =ROUND('ER|CHF'!K10/1000,0) -> 0
C11: 304 | D11: =+'ER|CHF'!D11 -> Zulagen | E11: =ROUND('ER|CHF'!E11/1000,0) -> 0 | F11: =ROUND('ER|CHF'!H11/1000,0) -> 0 | H11: =ROUND('ER|CHF'!K11/1000,0) -> 0
C12: 305 | D12: =+'ER|CHF'!D12 -> Arbeitgeberbeiträge | E12: =ROUND('ER|CHF'!E12/1000,0) -> 295 | F12: =ROUND('ER|CHF'!H12/1000,0) -> 307 | H12: =ROUND('ER|CHF'!K12/1000,0) -> 283
C13: 306 | D13: =+'ER|CHF'!D13 -> Arbeitgeberleistungen | E13: =ROUND('ER|CHF'!E13/1000,0) -> 0 | F13: =ROUND('ER|CHF'!H13/1000,0) -> 0 | H13: =ROUND('ER|CHF'!K13/1000,0) -> 0
C14: 309 | D14: =+'ER|CHF'!D14 -> Übriger Personalaufwand | E14: =ROUND('ER|CHF'!E14/1000,0) -> 25 | F14: =ROUND('ER|CHF'!H14/1000,0) -> 32 | H14: =ROUND('ER|CHF'!K14/1000,0) -> 28
C15: 31 | D15: =+'ER|CHF'!D15 -> Sach- und übriger Betriebsaufwand | E15: =SUM(E16:E25) -> 4076 | F15: =SUM(F16:F25) -> 4595 | H15: =SUM(H16:H25) -> 4086
C16: 310 | D16: =+'ER|CHF'!D16 -> Material- und Warenaufwand | E16: =ROUND('ER|CHF'!E16/1000,0) -> 1725 | F16: =ROUND('ER|CHF'!H16/1000,0) -> 1800 | H16: =ROUND('ER|CHF'!K16/1000,0) -> 1755
C17: 311 | D17: =+'ER|CHF'!D17 -> Nicht aktivierbare Anlagen | E17: =ROUND('ER|CHF'!E17/1000,0) -> 130 | F17: =ROUND('ER|CHF'!H17/1000,0) -> 168 | H17: =ROUND('ER|CHF'!K17/1000,0) -> 105
C18: 312 | D18: =+'ER|CHF'!D18 -> Ver- und Entsorgung Liegenschaften VV | E18: =ROUND('ER|CHF'!E18/1000,0) -> 191 | F18: =ROUND('ER|CHF'!H18/1000,0) -> 242 | H18: =ROUND('ER|CHF'!K18/1000,0) -> 232
C19: 313 | D19: =+'ER|CHF'!D19 -> Dienstleistungen und Honorare | E19: =ROUND('ER|CHF'!E19/1000,0) -> 976 | F19: =ROUND('ER|CHF'!H19/1000,0) -> 1196 | H19: =ROUND('ER|CHF'!K19/1000,0) -> 913
C20: 314 | D20: =+'ER|CHF'!D20 -> Baulicher und betrieblicher Unterhalt | E20: =ROUND('ER|CHF'!E20/1000,0) -> 699 | F20: =ROUND('ER|CHF'!H20/1000,0) -> 833 | H20: =ROUND('ER|CHF'!K20/1000,0) -> 716
C21: 315 | D21: =+'ER|CHF'!D21 -> Unterhalt Mobilien und immaterielle Anlagen | E21: =ROUND('ER|CHF'!E21/1000,0) -> 123 | F21: =ROUND('ER|CHF'!H21/1000,0) -> 169 | H21: =ROUND('ER|CHF'!K21/1000,0) -> 154
C22: 316 | D22: =+'ER|CHF'!D22 -> Mieten, Leasing, Pachten, Benützungskosten | E22: =ROUND('ER|CHF'!E22/1000,0) -> 57 | F22: =ROUND('ER|CHF'!H22/1000,0) -> 48 | H22: =ROUND('ER|CHF'!K22/1000,0) -> 50
C23: 317 | D23: =+'ER|CHF'!D23 -> Spesenentschädigungen | E23: =ROUND('ER|CHF'!E23/1000,0) -> 58 | F23: =ROUND('ER|CHF'!H23/1000,0) -> 56 | H23: =ROUND('ER|CHF'!K23/1000,0) -> 57
C24: 318 | D24: =+'ER|CHF'!D24 -> Wertberichtigungen auf Forderungen | E24: =ROUND('ER|CHF'!E24/1000,0) -> 96 | F24: =ROUND('ER|CHF'!H24/1000,0) -> 57 | H24: =ROUND('ER|CHF'!K24/1000,0) -> 79
C25: 319 | D25: =+'ER|CHF'!D25 -> Übriger Betriebsaufwand | E25: =ROUND('ER|CHF'!E25/1000,0) -> 21 | F25: =ROUND('ER|CHF'!H25/1000,0) -> 26 | H25: =ROUND('ER|CHF'!K25/1000,0) -> 25
C26: 32 | D26: =+'ER|CHF'!D26 -> Rüstungsaufwand (Konto reserviert für den Bund) | E26: 0 | F26: 0 | H26: 0
C27: 33 | D27: =+'ER|CHF'!D27 -> Abschreibungen Verwaltungsvermögen | E27: =SUM(E28:E29) -> 671 | F27: =SUM(F28) -> 709 | H27: =SUM(H28) -> 677
C28: 330 | D28: =+'ER|CHF'!D28 -> Abschreibungen Sachanlagen VV | E28: =ROUNDUP('ER|CHF'!E28/1000,0) -> 671 | F28: =ROUNDUP('ER|CHF'!H28/1000,0) -> 709 | H28: =ROUNDUP('ER|CHF'!K28/1000,0) -> 677
C29: 332 | D29: =+'ER|CHF'!D29 -> Abschreibungen immaterielle Anlagen VV | E29: =ROUND('ER|CHF'!E29/1000,0) -> 0 | F29: =ROUND('ER|CHF'!H29/1000,0) -> 0 | H29: =ROUND('ER|CHF'!K29/1000,0) -> 0
C30: 34 | D30: =+'ER|CHF'!D30 -> Finanzaufwand | E30: =SUM(E31:E36) -> 125 | F30: =SUM(F31:F36) -> 219 | H30: =SUM(H31:H36) -> 135
C31: 340 | D31: =+'ER|CHF'!D31 -> Zinsaufwand | E31: =ROUND('ER|CHF'!E31/1000,0) -> 74 | F31: =ROUND('ER|CHF'!H31/1000,0) -> 81 | H31: =ROUND('ER|CHF'!K31/1000,0) -> 92
C32: 341 | D32: =+'ER|CHF'!D32 -> Realisierte Verluste Finanzvermögen | E32: =ROUND('ER|CHF'!E32/1000,0) -> 0 | F32: =ROUND('ER|CHF'!H32/1000,0) -> 0 | H32: =ROUND('ER|CHF'!K32/1000,0) -> 0
C33: 342 | D33: =+'ER|CHF'!D33 -> Kapitalbeschaffungs- und Verwaltungskosten | E33: =ROUND('ER|CHF'!E33/1000,0) -> 10 | F33: =ROUND('ER|CHF'!H33/1000,0) -> 65 | H33: =ROUND('ER|CHF'!K33/1000,0) -> 9
C34: 343 | D34: =+'ER|CHF'!D34 -> Liegenschaftenaufwand Finanzvermögen | E34: =ROUND('ER|CHF'!E34/1000,0) -> 41 | F34: =ROUND('ER|CHF'!H34/1000,0) -> 73 | H34: =ROUND('ER|CHF'!K34/1000,0) -> 34
C35: 344 | D35: =+'ER|CHF'!D35 -> Wertberichtigungen Anlagen des Finanzvermögens | E35: =ROUND('ER|CHF'!E35/1000,0) -> 0 | F35: =ROUND('ER|CHF'!H35/1000,0) -> 0 | H35: =ROUND('ER|CHF'!K35/1000,0) -> 0
C36: 349 | D36: =+'ER|CHF'!D36 -> Übriger Finanzaufwand | E36: =ROUND('ER|CHF'!E36/1000,0) -> 0 | F36: =ROUND('ER|CHF'!H36/1000,0) -> 0 | H36: =ROUND('ER|CHF'!K36/1000,0) -> 0
C37: 35 | D37: =+'ER|CHF'!D37 -> Einlagen in Spezialfinanzierungen [SpF] und Fonds | E37: =SUM(E38:E39) -> 0 | F37: =SUM(F38:F39) -> 0 | H37: =SUM(H38:H39) -> 0
C38: 350 | D38: =+'ER|CHF'!D38 -> Einlagen in SpF und Fonds des Fremdkapitals | E38: =ROUND('ER|CHF'!E38/1000,0) -> 0 | F38: =ROUND('ER|CHF'!H38/1000,0) -> 0 | H38: =ROUND('ER|CHF'!K38/1000,0) -> 0
C39: 351 | D39: =+'ER|CHF'!D39 -> Einlagen in SpF und Fonds des Eigenkapitals | E39: =ROUND('ER|CHF'!E39/1000,0) -> 0 | F39: =ROUND('ER|CHF'!H39/1000,0) -> 0 | H39: =ROUND('ER|CHF'!K39/1000,0) -> 0
C40: 36 | D40: =+'ER|CHF'!D40 -> Transferaufwand | E40: =SUM(E42:E48) -> 6393 | F40: =SUM(F42:F48) -> 6186 | H40: =SUM(H42:H48) -> 5924
C41: 360 | D41: =+'ER|CHF'!D41 -> Ertragsanteile an Dritte | E41: =ROUND('ER|CHF'!E41/1000,0) -> 0 | F41: =ROUND('ER|CHF'!H41/1000,0) -> 0 | H41: =ROUND('ER|CHF'!K41/1000,0) -> 0
C42: 361 | D42: =+'ER|CHF'!D42 -> Entschädigungen an öffentliche Gemeinwesen | E42: =ROUND('ER|CHF'!E42/1000,0) -> 3905 | F42: =ROUND('ER|CHF'!H42/1000,0) -> 3793 | H42: =ROUND('ER|CHF'!K42/1000,0) -> 3541
C43: 362 | D43: =+'ER|CHF'!D43 -> Finanz- und Lastenausgleich | E43: =ROUND('ER|CHF'!E43/1000,0) -> 564 | F43: =ROUND('ER|CHF'!H43/1000,0) -> 552 | H43: =ROUND('ER|CHF'!K43/1000,0) -> 551
C44: 363 | D44: =+'ER|CHF'!D44 -> Beiträge an öffentliche Gemeinwesen und Dritte | E44: =ROUND('ER|CHF'!E44/1000,0) -> 1924 | F44: =ROUND('ER|CHF'!H44/1000,0) -> 1841 | H44: =ROUND('ER|CHF'!K44/1000,0) -> 1832
C45: 364 | D45: =+'ER|CHF'!D45 -> Wertberichtigungen Darlehen VV | E45: =ROUND('ER|CHF'!E45/1000,0) -> 0 | F45: =ROUND('ER|CHF'!H45/1000,0) -> 0 | H45: =ROUND('ER|CHF'!K45/1000,0) -> 0
C46: 365 | D46: =+'ER|CHF'!D46 -> Wertberichtigungen Beteiligungen VV | E46: =ROUND('ER|CHF'!E46/1000,0) -> 0 | F46: =ROUND('ER|CHF'!H46/1000,0) -> 0 | H46: =ROUND('ER|CHF'!K46/1000,0) -> 0
C47: 366 | D47: =+'ER|CHF'!D47 -> Abschreibungen Investitionsbeiträge | E47: =ROUND('ER|CHF'!E47/1000,0) -> 0 | F47: =ROUND('ER|CHF'!H47/1000,0) -> 0 | H47: =ROUND('ER|CHF'!K47/1000,0) -> 0
C48: 369 | D48: =+'ER|CHF'!D48 -> Übriger Transferaufwand | E48: =ROUND('ER|CHF'!E48/1000,0) -> 0 | F48: =ROUND('ER|CHF'!H48/1000,0) -> 0 | H48: =ROUND('ER|CHF'!K48/1000,0) -> 0
C49: […]
C51: Erfolgsrechnung | Aufwand [Fortsetzung] | E51: =+E3 -> Jahr t | H51: =H3 -> Jahr t-1
C52: =C4 -> in TCHF | E52: =+E4 -> Rechnung | F52: =+F4 -> Budget | H52: =+H4 -> Rechnung
C53: […]
C54: 37 | D54: =+'ER|CHF'!D49 -> Durchlaufende Beiträge | E54: =SUM(E55) -> 0 | F54: =SUM(F55) -> 0 | H54: =SUM(H55) -> 0
C55: 370 | D55: =+'ER|CHF'!D50 -> Durchlaufende Beiträge | E55: =ROUND('ER|CHF'!E50/1000,0) -> 0 | F55: =ROUND('ER|CHF'!H50/1000,0) -> 0 | H55: =ROUND('ER|CHF'!K50/1000,0) -> 0
C56: 38 | D56: =+'ER|CHF'!D51 -> Ausserordentlicher [a.o.] Aufwand | E56: =SUM(E57:E63) -> 991 | F56: =SUM(F57:F63) -> 613 | H56: =SUM(H57:H63) -> 645
C57: 380 | D57: =+'ER|CHF'!D52 -> Ausserordentlicher Personalaufwand | E57: =ROUND('ER|CHF'!E52/1000,0) -> 0 | F57: =ROUND('ER|CHF'!H52/1000,0) -> 0 | H57: =ROUND('ER|CHF'!K52/1000,0) -> 0
C58: 381 | D58: =+'ER|CHF'!D53 -> Ausserordentlicher Sach- und Betriebsaufwand | E58: =ROUND('ER|CHF'!E53/1000,0) -> 0 | F58: =ROUND('ER|CHF'!H53/1000,0) -> 0 | H58: =ROUND('ER|CHF'!K53/1000,0) -> 0
C59: 383 | D59: =+'ER|CHF'!D54 -> Zusätzliche Abschreibungen [zus. Ab] | E59: =ROUND('ER|CHF'!E54/1000,0) -> 0 | F59: =ROUND('ER|CHF'!H54/1000,0) -> 0 | H59: =ROUND('ER|CHF'!K54/1000,0) -> 0
C60: 384 | D60: =+'ER|CHF'!D55 -> Ausserordentlicher Finanzaufwand | E60: =ROUND('ER|CHF'!E55/1000,0) -> 0 | F60: =ROUND('ER|CHF'!H55/1000,0) -> 0 | H60: =ROUND('ER|CHF'!K55/1000,0) -> 0
C61: 386 | D61: =+'ER|CHF'!D56 -> Ausserordentlicher Transferaufwand | E61: =ROUND('ER|CHF'!E56/1000,0) -> 0 | F61: =ROUND('ER|CHF'!H56/1000,0) -> 0 | H61: =ROUND('ER|CHF'!K56/1000,0) -> 0
C62: 387 | D62: =+'ER|CHF'!D57 -> Zus. Ab auf Darlehen, Beteiligungen und Investitionsbeiträgen | E62: =ROUND('ER|CHF'!E57/1000,0) -> 0 | F62: =ROUND('ER|CHF'!H57/1000,0) -> 0 | H62: =ROUND('ER|CHF'!K57/1000,0) -> 0
C63: 389 | D63: =+'ER|CHF'!D58 -> Einlagen in das Eigenkapital | E63: =ROUND('ER|CHF'!E58/1000,0) -> 991 | F63: =ROUND('ER|CHF'!H58/1000,0) -> 613 | H63: =ROUND('ER|CHF'!K58/1000,0) -> 645
C64: 39 | D64: =+'ER|CHF'!D59 -> Interne Verrechnungen | E64: =SUM(E65:E72) -> 270 | F64: =SUM(F65:F72) -> 257 | H64: =SUM(H65:H72) -> 288
C65: 390 | D65: =+'ER|CHF'!D60 -> Material- und Warenbezüge | E65: =ROUND('ER|CHF'!E60/1000,0) -> 0 | F65: =ROUND('ER|CHF'!H60/1000,0) -> 0 | H65: =ROUND('ER|CHF'!K60/1000,0) -> 0
C66: 391 | D66: =+'ER|CHF'!D61 -> Dienstleistungen | E66: =ROUND('ER|CHF'!E61/1000,0) -> 144 | F66: =ROUND('ER|CHF'!H61/1000,0) -> 134 | H66: =ROUND('ER|CHF'!K61/1000,0) -> 160
C67: 392 | D67: =+'ER|CHF'!D62 -> Pacht, Mieten, Benützungskosten | E67: =ROUND('ER|CHF'!E62/1000,0) -> 0 | F67: =ROUND('ER|CHF'!H62/1000,0) -> 0 | H67: =ROUND('ER|CHF'!K62/1000,0) -> 0
C68: 393 | D68: =+'ER|CHF'!D63 -> Betriebs- und Verwaltungskosten | E68: =ROUND('ER|CHF'!E63/1000,0) -> 116 | F68: =ROUND('ER|CHF'!H63/1000,0) -> 108 | H68: =ROUND('ER|CHF'!K63/1000,0) -> 118
C69: 394 | D69: =+'ER|CHF'!D64 -> Kalk. Zinsen und Finanzaufwand | E69: =ROUND('ER|CHF'!E64/1000,0) -> 10 | F69: =ROUND('ER|CHF'!H64/1000,0) -> 15 | H69: =ROUND('ER|CHF'!K64/1000,0) -> 10
C70: 395 | D70: =+'ER|CHF'!D65 -> Planmässige und ausserplanmässige Abschreibungen | E70: =ROUND('ER|CHF'!E65/1000,0) -> 0 | F70: =ROUND('ER|CHF'!H65/1000,0) -> 0 | H70: =ROUND('ER|CHF'!K65/1000,0) -> 0
C71: 398 | D71: =+'ER|CHF'!D66 -> Übertragungen | E71: =ROUND('ER|CHF'!E66/1000,0) -> 0 | F71: =ROUND('ER|CHF'!H66/1000,0) -> 0 | H71: =ROUND('ER|CHF'!K66/1000,0) -> 0
C72: 399 | D72: =+'ER|CHF'!D67 -> Übrige interne Verrechnungen | E72: =ROUND('ER|CHF'!E67/1000,0) -> 0 | F72: =ROUND('ER|CHF'!H67/1000,0) -> 0 | H72: =ROUND('ER|CHF'!K67/1000,0) -> 0
C74: Erfolgsrechnung | Ertrag | E74: =+E51 -> Jahr t | H74: =+H3 -> Jahr t-1
C75: =C4 -> in TCHF | E75: =+E52 -> Rechnung | F75: =+F52 -> Budget | H75: =+H52 -> Rechnung
C76: 4 | D76: =+'ER|CHF'!D71 -> Ertrag | E76: =+E77+E82+E87+E97+E102+E113+E121+E128+E130+E138 -> 14610 | F76: =+F77+F82+F87+F97+F102+F113+F121+F128+F130+F138 -> 14127 | H76: =+H77+H82+H87+H97+H102+H113+H121+H128+H130+H138 -> 14236
C77: 40 | D77: =+'ER|CHF'!D72 -> Fiskalertrag | E77: =SUM(E78:E81) -> 7651 | F77: =SUM(F78:F81) -> 7107 | H77: =SUM(H78:H81) -> 7538
C78: 400 | D78: =+'ER|CHF'!D73 -> Direkte Steuern natürliche Personen | E78: =ROUNDDOWN('ER|CHF'!F73/1000,0) -> 6231 | F78: =ROUND('ER|CHF'!I73/1000,0) -> 6160 | H78: =ROUND('ER|CHF'!L73/1000,0) -> 6235
C79: 401 | D79: =+'ER|CHF'!D74 -> Direkte Steuern juristische Personen | E79: =ROUND('ER|CHF'!F74/1000,0) -> 501 | F79: =ROUND('ER|CHF'!I74/1000,0) -> 212 | H79: =ROUND('ER|CHF'!L74/1000,0) -> 476
C80: 402 | D80: =+'ER|CHF'!D75 -> Übrige Direkte Steuern | E80: =ROUND('ER|CHF'!F75/1000,0) -> 898 | F80: =ROUND('ER|CHF'!I75/1000,0) -> 716 | H80: =ROUND('ER|CHF'!L75/1000,0) -> 805
C81: 403 | D81: =+'ER|CHF'!D76 -> Besitz- und Aufwandsteuern | E81: =ROUND('ER|CHF'!F76/1000,0) -> 21 | F81: =ROUND('ER|CHF'!I76/1000,0) -> 19 | H81: =ROUND('ER|CHF'!L76/1000,0) -> 22
C82: 41 | D82: =+'ER|CHF'!D77 -> Regalien und Konzessionen | E82: =SUM(E83:E86) -> 12 | F82: =SUM(F83:F86) -> 12 | H82: =SUM(H83:H86) -> 12
C83: 410 | D83: =+'ER|CHF'!D78 -> Regalien | E83: =ROUND('ER|CHF'!F78/1000,0) -> 0 | F83: =ROUND('ER|CHF'!I78/1000,0) -> 0 | H83: =ROUND('ER|CHF'!L78/1000,0) -> 0
C84: 411 | D84: =+'ER|CHF'!D79 -> Schweiz. Nationalbank | E84: =ROUND('ER|CHF'!F79/1000,0) -> 0 | F84: =ROUND('ER|CHF'!I79/1000,0) -> 0 | H84: =ROUND('ER|CHF'!L79/1000,0) -> 0
C85: 412 | D85: =+'ER|CHF'!D80 -> Konzessionen | E85: =ROUND('ER|CHF'!F80/1000,0) -> 12 | F85: =ROUND('ER|CHF'!I80/1000,0) -> 12 | H85: =ROUND('ER|CHF'!L80/1000,0) -> 12
C86: 413 | D86: =+'ER|CHF'!D81 -> Ertragsanteile an Lotterien, Sport-Toto, Wetten | E86: =ROUND('ER|CHF'!F81/1000,0) -> 0 | F86: =ROUND('ER|CHF'!I81/1000,0) -> 0 | H86: =ROUND('ER|CHF'!L81/1000,0) -> 0
C87: 42 | D87: =+'ER|CHF'!D82 -> Entgelte | E87: =SUM(E88:E96) -> 5076 | F87: =SUM(F88:F96) -> 5097 | H87: =SUM(H88:H96) -> 4852
C88: 420 | D88: =+'ER|CHF'!D83 -> Ersatzabgaben | E88: =ROUND('ER|CHF'!F83/1000,0) -> 192 | F88: =ROUND('ER|CHF'!I83/1000,0) -> 175 | H88: =ROUND('ER|CHF'!L83/1000,0) -> 195
C89: 421 | D89: =+'ER|CHF'!D84 -> Gebühren für Amtshandlungen | E89: =ROUND('ER|CHF'!F84/1000,0) -> 73 | F89: =ROUND('ER|CHF'!I84/1000,0) -> 61 | H89: =ROUND('ER|CHF'!L84/1000,0) -> 57
C90: 422 | D90: =+'ER|CHF'!D85 -> Spital- und Heimtaxen, Kostgelder | E90: =ROUND('ER|CHF'!F85/1000,0) -> 0 | F90: =ROUND('ER|CHF'!I85/1000,0) -> 0 | H90: =ROUND('ER|CHF'!L85/1000,0) -> 0
C91: 423 | D91: =+'ER|CHF'!D86 -> Schul- und Kursgelder | E91: =ROUND('ER|CHF'!F86/1000,0) -> 0 | F91: =ROUND('ER|CHF'!I86/1000,0) -> 0 | H91: =ROUND('ER|CHF'!L86/1000,0) -> 0
C92: 424 | D92: =+'ER|CHF'!D87 -> Benützungsgebühren und Dienstleistungen | E92: =ROUND('ER|CHF'!F87/1000,0) -> 4651 | F92: =ROUND('ER|CHF'!I87/1000,0) -> 4717 | H92: =ROUND('ER|CHF'!L87/1000,0) -> 4406
C93: 425 | D93: =+'ER|CHF'!D88 -> Erlös aus Verkäufen | E93: =ROUND('ER|CHF'!F88/1000,0) -> 92 | F93: =ROUND('ER|CHF'!I88/1000,0) -> 88 | H93: =ROUND('ER|CHF'!L88/1000,0) -> 96
C94: 426 | D94: =+'ER|CHF'!D89 -> Rückerstattungen | E94: =ROUND('ER|CHF'!F89/1000,0) -> 68 | F94: =ROUND('ER|CHF'!I89/1000,0) -> 56 | H94: =ROUND('ER|CHF'!L89/1000,0) -> 98
C95: 427 | D95: =+'ER|CHF'!D90 -> Bussen | E95: =ROUND('ER|CHF'!F90/1000,0) -> 0 | F95: =ROUND('ER|CHF'!I90/1000,0) -> 0 | H95: =ROUND('ER|CHF'!L90/1000,0) -> 0
C96: 429 | D96: =+'ER|CHF'!D91 -> Übrige Entgelte | E96: =ROUND('ER|CHF'!F91/1000,0) -> 0 | F96: =ROUND('ER|CHF'!I91/1000,0) -> 0 | H96: =ROUND('ER|CHF'!L91/1000,0) -> 0
C97: 43 | D97: =+'ER|CHF'!D92 -> Übrige Erträge | E97: =SUM(E98:E101) -> 17 | F97: =SUM(F98:F101) -> 0 | H97: =SUM(H98:H101) -> 0
C98: 430 | D98: =+'ER|CHF'!D93 -> Übrige betriebliche Erträge | E98: =ROUND('ER|CHF'!F93/1000,0) -> 0 | F98: =ROUND('ER|CHF'!I93/1000,0) -> 0 | H98: =ROUND('ER|CHF'!L93/1000,0) -> 0
C99: 431 | D99: =+'ER|CHF'!D94 -> Aktivierung Eigenleistungen | E99: =ROUND('ER|CHF'!F94/1000,0) -> 17 | F99: =ROUND('ER|CHF'!I94/1000,0) -> 0 | H99: =ROUND('ER|CHF'!L94/1000,0) -> 0
C100: 432 | D100: =+'ER|CHF'!D95 -> Bestandesveränderungen | E100: =ROUND('ER|CHF'!F95/1000,0) -> 0 | F100: =ROUND('ER|CHF'!I95/1000,0) -> 0 | H100: =ROUND('ER|CHF'!L95/1000,0) -> 0
C101: 439 | D101: =+'ER|CHF'!D96 -> Übrige Erträge | E101: =ROUND('ER|CHF'!F96/1000,0) -> 0 | F101: =ROUND('ER|CHF'!I96/1000,0) -> 0 | H101: =ROUND('ER|CHF'!L96/1000,0) -> 0
C102: 44 | D102: =+'ER|CHF'!D97 -> Finanzertrag | E102: =SUM(E103:E112) -> 167 | F102: =SUM(F103:F112) -> 155 | H102: =SUM(H103:H112) -> 160
C103: 440 | D103: =+'ER|CHF'!D98 -> Zinsertrag | E103: =ROUNDDOWN('ER|CHF'!F98/1000,0) -> 12 | F103: =ROUND('ER|CHF'!I98/1000,0) -> 20 | H103: =ROUND('ER|CHF'!L98/1000,0) -> 16
C104: 441 | D104: =+'ER|CHF'!D99 -> Realisierte Gewinne Finanzvermögen | E104: =ROUND('ER|CHF'!F99/1000,0) -> 0 | F104: =ROUND('ER|CHF'!I99/1000,0) -> 0 | H104: =ROUND('ER|CHF'!L99/1000,0) -> 0
C105: 442 | D105: =+'ER|CHF'!D100 -> Beteiligungsertrag Finanzvermögen | E105: =ROUND('ER|CHF'!F100/1000,0) -> 0 | F105: =ROUND('ER|CHF'!I100/1000,0) -> 0 | H105: =ROUND('ER|CHF'!L100/1000,0) -> 0
C106: 443 | D106: =+'ER|CHF'!D101 -> Liegenschaftenertrag Finanzvermögen | E106: =ROUNDDOWN('ER|CHF'!F101/1000,0) -> 92 | F106: =ROUND('ER|CHF'!I101/1000,0) -> 85 | H106: =ROUND('ER|CHF'!L101/1000,0) -> 90
C107: 444 | D107: =+'ER|CHF'!D102 -> Wertberichtigungen Anlagen Finanzvermögen | E107: =ROUND('ER|CHF'!F102/1000,0) -> 9 | F107: =ROUND('ER|CHF'!I102/1000,0) -> 0 | H107: =ROUND('ER|CHF'!L102/1000,0) -> 3
C108: 445 | D108: =+'ER|CHF'!D103 -> Finanzerträge aus Darlehen und Beteiligungen VV | E108: =ROUND('ER|CHF'!F103/1000,0) -> 8 | F108: =ROUND('ER|CHF'!I103/1000,0) -> 8 | H108: =ROUND('ER|CHF'!L103/1000,0) -> 8
C109: 446 | D109: =+'ER|CHF'!D104 -> Finanzertrag von öffentlichen Unternehmungen | E109: =ROUND('ER|CHF'!F104/1000,0) -> 0 | F109: =ROUND('ER|CHF'!I104/1000,0) -> 0 | H109: =ROUND('ER|CHF'!L104/1000,0) -> 0
C110: 447 | D110: =+'ER|CHF'!D105 -> Liegenschaftenertrag Verwaltungsvermögen | E110: =ROUND('ER|CHF'!F105/1000,0) -> 46 | F110: =ROUND('ER|CHF'!I105/1000,0) -> 42 | H110: =ROUND('ER|CHF'!L105/1000,0) -> 43
C111: 448 | D111: =+'ER|CHF'!D106 -> Erträge von gemieteten Liegenschaften | E111: =ROUND('ER|CHF'!F106/1000,0) -> 0 | F111: =ROUND('ER|CHF'!I106/1000,0) -> 0 | H111: =ROUND('ER|CHF'!L106/1000,0) -> 0
C112: 449 | D112: =+'ER|CHF'!D107 -> Übrige Finanzerträge | E112: =ROUND('ER|CHF'!F107/1000,0) -> 0 | F112: =ROUND('ER|CHF'!I107/1000,0) -> 0 | H112: =ROUND('ER|CHF'!L107/1000,0) -> 0
C113: 45 | D113: =+'ER|CHF'!D108 -> Entnahmen aus Spezialfinanzierungen [SpF] und Fonds | E113: =SUM(E114:E115) -> 23 | F113: =SUM(F114:F115) -> 0 | H113: =SUM(H114:H115) -> 3
C114: 450 | D114: =+'ER|CHF'!D109 -> Entnahmen aus SpF und Fonds des Fremdkapitals | E114: =ROUND('ER|CHF'!F109/1000,0) -> 23 | F114: =ROUND('ER|CHF'!I109/1000,0) -> 0 | H114: =ROUND('ER|CHF'!L109/1000,0) -> 3
C115: 451 | D115: =+'ER|CHF'!D110 -> Entnahmen aus SpF und Fonds des Eigenkapitals | E115: =ROUND('ER|CHF'!F110/1000,0) -> 0 | F115: =ROUND('ER|CHF'!I110/1000,0) -> 0 | H115: =ROUND('ER|CHF'!L110/1000,0) -> 0
C116: […]
C118: Erfolgsrechnung | Ertrag [Fortsetzung] | E118: =+E74 -> Jahr t | H118: =+H74 -> Jahr t-1
C119: =C4 -> in TCHF | E119: =+E75 -> Rechnung | F119: =+F75 -> Budget | H119: =+H75 -> Rechnung
C120: […]
C121: 46 | D121: =+'ER|CHF'!D111 -> Transferertrag | E121: =SUM(E122:E127) -> 1373 | F121: =SUM(F122:F127) -> 1373 | H121: =SUM(H122:H127) -> 1366
C122: 460 | D122: =+'ER|CHF'!D112 -> Ertragsanteile von Dritten | E122: =ROUND('ER|CHF'!F112/1000,0) -> 0 | F122: =ROUND('ER|CHF'!I112/1000,0) -> 0 | H122: =ROUND('ER|CHF'!L112/1000,0) -> 0
C123: 461 | D123: =+'ER|CHF'!D113 -> Entschädigungen von öffentlichen Gemeinwesen | E123: =ROUNDUP('ER|CHF'!F113/1000,0) -> 645 | F123: =ROUNDUP('ER|CHF'!I113/1000,0) -> 639 | H123: =ROUNDUP('ER|CHF'!L113/1000,0) -> 623
C124: 462 | D124: =+'ER|CHF'!D114 -> Finanz- und Lastenausgleich | E124: =ROUND('ER|CHF'!F114/1000,0) -> 610 | F124: =ROUND('ER|CHF'!I114/1000,0) -> 657 | H124: =ROUND('ER|CHF'!L114/1000,0) -> 663
C125: 463 | D125: =+'ER|CHF'!D115 -> Beiträge von öffentlichen Gemeinwesen und Dritten | E125: =ROUND('ER|CHF'!F115/1000,0) -> 117 | F125: =ROUND('ER|CHF'!I115/1000,0) -> 76 | H125: =ROUND('ER|CHF'!L115/1000,0) -> 79
C126: 466 | D126: =+'ER|CHF'!D116 -> Auflösungen passivierter Investitionsbeiträge | E126: =ROUND('ER|CHF'!F116/1000,0) -> 0 | F126: =ROUND('ER|CHF'!I116/1000,0) -> 0 | H126: =ROUND('ER|CHF'!L116/1000,0) -> 0
C127: 469 | D127: =+'ER|CHF'!D117 -> Übriger Transferertrag | E127: =ROUND('ER|CHF'!F117/1000,0) -> 1 | F127: =ROUND('ER|CHF'!I117/1000,0) -> 1 | H127: =ROUND('ER|CHF'!L117/1000,0) -> 1
C128: 47 | D128: =+'ER|CHF'!D118 -> Durchlaufende Beiträge | E128: =SUM(E129) -> 0 | F128: =SUM(F129) -> 0 | H128: =SUM(H129) -> 0
C129: 470 | D129: =+'ER|CHF'!D119 -> Durchlaufende Beiträge | E129: =ROUND('ER|CHF'!F119/1000,0) -> 0 | F129: =ROUND('ER|CHF'!I119/1000,0) -> 0 | H129: =ROUND('ER|CHF'!L119/1000,0) -> 0
C130: 48 | D130: =+'ER|CHF'!D120 -> Ausserordentliche [a.o.] Erträge | E130: =SUM(E131:E137) -> 21 | F130: =SUM(F131:F137) -> 126 | H130: =SUM(H131:H137) -> 17
C131: 481 | D131: =+'ER|CHF'!D121 -> Ausserordentliche Erträge von Regalien, Konzessionen | E131: =ROUND('ER|CHF'!F121/1000,0) -> 0 | F131: =ROUND('ER|CHF'!I121/1000,0) -> 0 | H131: =ROUND('ER|CHF'!L121/1000,0) -> 0
C132: 482 | D132: =+'ER|CHF'!D122 -> Ausserordentliche Entgelte | E132: =ROUND('ER|CHF'!F122/1000,0) -> 0 | F132: =ROUND('ER|CHF'!I122/1000,0) -> 0 | H132: =ROUND('ER|CHF'!L122/1000,0) -> 0
C133: 483 | D133: =+'ER|CHF'!D123 -> Ausserordentliche verschiedene Erträge | E133: =ROUND('ER|CHF'!F123/1000,0) -> 0 | F133: =ROUND('ER|CHF'!I123/1000,0) -> 0 | H133: =ROUND('ER|CHF'!L123/1000,0) -> 0
C134: 484 | D134: =+'ER|CHF'!D124 -> Ausserordentliche Finanzerträge | E134: =ROUND('ER|CHF'!F124/1000,0) -> 0 | F134: =ROUND('ER|CHF'!I124/1000,0) -> 0 | H134: =ROUND('ER|CHF'!L124/1000,0) -> 0
C135: 486 | D135: =+'ER|CHF'!D125 -> Ausserordentliche Transfererträge | E135: =ROUND('ER|CHF'!F125/1000,0) -> 0 | F135: =ROUND('ER|CHF'!I125/1000,0) -> 0 | H135: =ROUND('ER|CHF'!L125/1000,0) -> 0
C136: 487 | D136: =+'ER|CHF'!D126 -> Zusätzliche Auflösungen passivierter Investitionsbeiträge | E136: =ROUND('ER|CHF'!F126/1000,0) -> 0 | F136: =ROUND('ER|CHF'!I126/1000,0) -> 0 | H136: =ROUND('ER|CHF'!L126/1000,0) -> 0
C137: 489 | D137: =+'ER|CHF'!D127 -> Entnahmen aus dem Eigenkapital | E137: =ROUNDDOWN('ER|CHF'!F127/1000,0) -> 21 | F137: =ROUND('ER|CHF'!I127/1000,0) -> 126 | H137: =ROUND('ER|CHF'!L127/1000,0) -> 17
C138: 49 | D138: =+'ER|CHF'!D128 -> Interne Verrechnungen | E138: =SUM(E139:E146) -> 270 | F138: =SUM(F139:F146) -> 257 | H138: =SUM(H139:H146) -> 288
C139: 490 | D139: =+'ER|CHF'!D129 -> Material- und Warenbezüge | E139: =ROUND('ER|CHF'!F129/1000,0) -> 0 | F139: =ROUND('ER|CHF'!I129/1000,0) -> 0 | H139: =ROUND('ER|CHF'!L129/1000,0) -> 0
C140: 491 | D140: =+'ER|CHF'!D130 -> Dienstleistungen | E140: =ROUND('ER|CHF'!F130/1000,0) -> 144 | F140: =ROUND('ER|CHF'!I130/1000,0) -> 134 | H140: =ROUND('ER|CHF'!L130/1000,0) -> 160
C141: 492 | D141: =+'ER|CHF'!D131 -> Pacht, Mieten, Benützungskosten | E141: =ROUND('ER|CHF'!F131/1000,0) -> 0 | F141: =ROUND('ER|CHF'!I131/1000,0) -> 0 | H141: =ROUND('ER|CHF'!L131/1000,0) -> 0
C142: 493 | D142: =+'ER|CHF'!D132 -> Betriebs- und Verwaltungskosten | E142: =ROUND('ER|CHF'!F132/1000,0) -> 116 | F142: =ROUND('ER|CHF'!I132/1000,0) -> 108 | H142: =ROUND('ER|CHF'!L132/1000,0) -> 118
C143: 494 | D143: =+'ER|CHF'!D133 -> Kalk. Zinsen und Finanzaufwand | E143: =ROUND('ER|CHF'!F133/1000,0) -> 10 | F143: =ROUND('ER|CHF'!I133/1000,0) -> 15 | H143: =ROUND('ER|CHF'!L133/1000,0) -> 10
C144: 495 | D144: =+'ER|CHF'!D134 -> Planmässige und ausserplanmässige Abschreibungen | E144: =ROUND('ER|CHF'!F134/1000,0) -> 0 | F144: =ROUND('ER|CHF'!I134/1000,0) -> 0 | H144: =ROUND('ER|CHF'!L134/1000,0) -> 0
C145: 498 | D145: =+'ER|CHF'!D135 -> Übertragungen | E145: =ROUND('ER|CHF'!F135/1000,0) -> 0 | F145: =ROUND('ER|CHF'!I135/1000,0) -> 0 | H145: =ROUND('ER|CHF'!L135/1000,0) -> 0
C146: 499 | D146: =+'ER|CHF'!D136 -> Übrige interne Verrechnungen | E146: =ROUND('ER|CHF'!F136/1000,0) -> 0 | F146: =ROUND('ER|CHF'!I136/1000,0) -> 0 | H146: =ROUND('ER|CHF'!L136/1000,0) -> 0
C148: 4-3 | D148: Resultat der Erfolgsrechnung | E148: =+E76-E5 -> 64 | F148: =+F76-F5 -> -516 | H148: =+H76-H5 -> 495

Sheet IR|TCHF
B1: Investitionsrechnung, in TCHF
C3: Investitionsrechnung | Ausgaben | E3: ='ER|TCHF'!E3:F3 -> Jahr t | H3: ='ER|TCHF'!H3 -> Jahr t-1
C4: in TCHF | E4: ='ER|TCHF'!E4 -> Rechnung | F4: ='ER|TCHF'!F4 -> Budget | H4: ='ER|TCHF'!H4 -> Rechnung
C5: 5 | D5: =+'IR|CHF'!D5 -> Investitionsausgaben | E5: =+E6+E15+E24+E28+E38+E53+E63+E73 -> 1971 | F5: =+F6+F15+F24+F28+F38+F53+F63+F73 -> 2403 | H5: =+H6+H15+H24+H28+H38+H53+H63+H73 -> 1775
C6: 50 | D6: =+'IR|CHF'!D6 -> Sachanlagen | E6: =SUM(E7:E14) -> 1971 | F6: =SUM(F7:F14) -> 2359 | H6: =SUM(H7:H14) -> 1775
C7: 500 | D7: =+'IR|CHF'!D7 -> Grundstücke | E7: =ROUND('IR|CHF'!E7/1000,0) -> 0 | F7: =ROUND('IR|CHF'!H7/1000,0) -> 0 | H7: =ROUND('IR|CHF'!K7/1000,0) -> 0
C8: 501 | D8: =+'IR|CHF'!D8 -> Strassen und Verkehrswege | E8: =ROUNDDOWN('IR|CHF'!E8/1000,0) -> 183 | F8: =ROUNDDOWN('IR|CHF'!H8/1000,0) -> 308 | H8: =ROUNDDOWN('IR|CHF'!K8/1000,0) -> 309
C9: 502 | D9: =+'IR|CHF'!D9 -> Wasserbau | E9: =ROUND('IR|CHF'!E9/1000,0) -> 0 | F9: =ROUND('IR|CHF'!H9/1000,0) -> 0 | H9: =ROUND('IR|CHF'!K9/1000,0) -> 0
C10: 503 | D10: =+'IR|CHF'!D10 -> Übriger Tiefbau | E10: =ROUND('IR|CHF'!E10/1000,0) -> 893 | F10: =ROUND('IR|CHF'!H10/1000,0) -> 941 | H10: =ROUND('IR|CHF'!K10/1000,0) -> 1116
C11: 504 | D11: =+'IR|CHF'!D11 -> Hochbauten | E11: =ROUND('IR|CHF'!E11/1000,0) -> 895 | F11: =ROUND('IR|CHF'!H11/1000,0) -> 1060 | H11: =ROUND('IR|CHF'!K11/1000,0) -> 274
C12: 505 | D12: =+'IR|CHF'!D12 -> Waldungen | E12: =ROUND('IR|CHF'!E12/1000,0) -> 0 | F12: =ROUND('IR|CHF'!H12/1000,0) -> 0 | H12: =ROUND('IR|CHF'!K12/1000,0) -> 0
C13: 506 | D13: =+'IR|CHF'!D13 -> Mobilien | E13: =ROUND('IR|CHF'!E13/1000,0) -> 0 | F13: =ROUND('IR|CHF'!H13/1000,0) -> 50 | H13: =ROUND('IR|CHF'!K13/1000,0) -> 76
C14: 509 | D14: =+'IR|CHF'!D14 -> Übrige Sachanlagen | E14: =ROUND('IR|CHF'!E14/1000,0) -> 0 | F14: =ROUND('IR|CHF'!H14/1000,0) -> 0 | H14: =ROUND('IR|CHF'!K14/1000,0) -> 0
C15: 51 | D15: =+'IR|CHF'!D15 -> Investitionen auf Rechnung Dritter | E15: =SUM(E16:E23) -> 0 | F15: =SUM(F16:F23) -> 0 | H15: =SUM(H16:H23) -> 0
C16: 510 | D16: =+'IR|CHF'!D16 -> Grundstücke | E16: =ROUND('IR|CHF'!E16/1000,0) -> 0 | F16: =ROUND('IR|CHF'!H16/1000,0) -> 0 | H16: =ROUND('IR|CHF'!K16/1000,0) -> 0
C17: 511 | D17: =+'IR|CHF'!D17 -> Strassen und Verkehrswege | E17: =ROUND('IR|CHF'!E17/1000,0) -> 0 | F17: =ROUND('IR|CHF'!H17/1000,0) -> 0 | H17: =ROUND('IR|CHF'!K17/1000,0) -> 0
C18: 512 | D18: =+'IR|CHF'!D18 -> Wasserbau | E18: =ROUND('IR|CHF'!E18/1000,0) -> 0 | F18: =ROUND('IR|CHF'!H18/1000,0) -> 0 | H18: =ROUND('IR|CHF'!K18/1000,0) -> 0
C19: 513 | D19: =+'IR|CHF'!D19 -> Übriger Tiefbau | E19: =ROUND('IR|CHF'!E19/1000,0) -> 0 | F19: =ROUND('IR|CHF'!H19/1000,0) -> 0 | H19: =ROUND('IR|CHF'!K19/1000,0) -> 0
C20: 514 | D20: =+'IR|CHF'!D20 -> Hochbauten | E20: =ROUND('IR|CHF'!E20/1000,0) -> 0 | F20: =ROUND('IR|CHF'!H20/1000,0) -> 0 | H20: =ROUND('IR|CHF'!K20/1000,0) -> 0
C21: 515 | D21: =+'IR|CHF'!D21 -> Waldungen | E21: =ROUND('IR|CHF'!E21/1000,0) -> 0 | F21: =ROUND('IR|CHF'!H21/1000,0) -> 0 | H21: =ROUND('IR|CHF'!K21/1000,0) -> 0
C22: 516 | D22: =+'IR|CHF'!D22 -> Mobilien | E22: =ROUND('IR|CHF'!E22/1000,0) -> 0 | F22: =ROUND('IR|CHF'!H22/1000,0) -> 0 | H22: =ROUND('IR|CHF'!K22/1000,0) -> 0
C23: 519 | D23: =+'IR|CHF'!D23 -> Übrige Sachanlagen | E23: =ROUND('IR|CHF'!E23/1000,0) -> 0 | F23: =ROUND('IR|CHF'!H23/1000,0) -> 0 | H23: =ROUND('IR|CHF'!K23/1000,0) -> 0
C24: 52 | D24: =+'IR|CHF'!D24 -> Immaterielle Anlagen | E24: =SUM(E25:E27) -> 0 | F24: =SUM(F25:F27) -> 0 | H24: =SUM(H25:H27) -> 0
C25: 520 | D25: =+'IR|CHF'!D25 -> Software | E25: =ROUND('IR|CHF'!E25/1000,0) -> 0 | F25: =ROUND('IR|CHF'!H25/1000,0) -> 0 | H25: =ROUND('IR|CHF'!K25/1000,0) -> 0
C26: 521 | D26: =+'IR|CHF'!D26 -> Lizenzen, Nutzungsrechte, Markenrechte | E26: =ROUND('IR|CHF'!E26/1000,0) -> 0 | F26: =ROUND('IR|CHF'!H26/1000,0) -> 0 | H26: =ROUND('IR|CHF'!K26/1000,0) -> 0
C27: 529 | D27: =+'IR|CHF'!D27 -> Übrige immaterielle Anlagen | E27: =ROUND('IR|CHF'!E27/1000,0) -> 0 | F27: =ROUND('IR|CHF'!H27/1000,0) -> 0 | H27: =ROUND('IR|CHF'!K27/1000,0) -> 0
C28: 54 | D28: =+'IR|CHF'!D28 -> Darlehen | E28: =SUM(E29:E37) -> 0 | F28: =SUM(F29:F37) -> 0 | H28: =SUM(H29:H37) -> 0
C29: 540 | D29: =+'IR|CHF'!D29 -> Bund | E29: 0 | F29: =ROUND('IR|CHF'!H29/1000,0) -> 0 | H29: =ROUND('IR|CHF'!K29/1000,0) -> 0
C30: 541 | D30: =+'IR|CHF'!D30 -> Kantone und Konkordate | E30: =ROUND('IR|CHF'!E30/1000,0) -> 0 | F30: =ROUND('IR|CHF'!H30/1000,0) -> 0 | H30: =ROUND('IR|CHF'!K30/1000,0) -> 0
C31: 542 | D31: =+'IR|CHF'!D31 -> Gemeinden und Gemeindezweckverbände | E31: =ROUND('IR|CHF'!E31/1000,0) -> 0 | F31: =ROUND('IR|CHF'!H31/1000,0) -> 0 | H31: =ROUND('IR|CHF'!K31/1000,0) -> 0
C32: 543 | D32: =+'IR|CHF'!D32 -> Öffentliche Sozialversicherungen | E32: =ROUND('IR|CHF'!E32/1000,0) -> 0 | F32: =ROUND('IR|CHF'!H32/1000,0) -> 0 | H32: =ROUND('IR|CHF'!K32/1000,0) -> 0
C33: 544 | D33: =+'IR|CHF'!D33 -> Öffentliche Unternehmungen | E33: =ROUND('IR|CHF'!E33/1000,0) -> 0 | F33: =ROUND('IR|CHF'!H33/1000,0) -> 0 | H33: =ROUND('IR|CHF'!K33/1000,0) -> 0
C34: 545 | D34: =+'IR|CHF'!D34 -> Private Unternehmungen | E34: =ROUND('IR|CHF'!E34/1000,0) -> 0 | F34: =ROUND('IR|CHF'!H34/1000,0) -> 0 | H34: =ROUND('IR|CHF'!K34/1000,0) -> 0
C35: 546 | D35: =+'IR|CHF'!D35 -> Private Organisationen ohne Erwerbszweck | E35: =ROUND('IR|CHF'!E35/1000,0) -> 0 | F35: =ROUND('IR|CHF'!H35/1000,0) -> 0 | H35: =ROUND('IR|CHF'!K35/1000,0) -> 0
C36: 547 | D36: =+'IR|CHF'!D36 -> Private Haushalte | E36: =ROUND('IR|CHF'!E36/1000,0) -> 0 | F36: =ROUND('IR|CHF'!H36/1000,0) -> 0 | H36: =ROUND('IR|CHF'!K36/1000,0) -> 0
C37: 548 | D37: =+'IR|CHF'!D37 -> Ausland | E37: =ROUND('IR|CHF'!E37/1000,0) -> 0 | F37: =ROUND('IR|CHF'!H37/1000,0) -> 0 | H37: =ROUND('IR|CHF'!K37/1000,0) -> 0
C38: 55 | D38: =+'IR|CHF'!D38 -> Beteiligungen und Grundkapitalien | E38: =SUM(E39:E47) -> 0 | F38: =SUM(F39:F47) -> 0 | H38: =SUM(H39:H47) -> 0
C39: 550 | D39: =+'IR|CHF'!D39 -> Bund | E39: =ROUND('IR|CHF'!E39/1000,0) -> 0 | F39: =ROUND('IR|CHF'!H39/1000,0) -> 0 | H39: =ROUND('IR|CHF'!K39/1000,0) -> 0
C40: 551 | D40: =+'IR|CHF'!D40 -> Kantone und Konkordate | E40: =ROUND('IR|CHF'!E40/1000,0) -> 0 | F40: =ROUND('IR|CHF'!H40/1000,0) -> 0 | H40: =ROUND('IR|CHF'!K40/1000,0) -> 0
C41: 552 | D41: =+'IR|CHF'!D41 -> Gemeinden und Gemeindezweckverbände | E41: =ROUND('IR|CHF'!E41/1000,0) -> 0 | F41: =ROUND('IR|CHF'!H41/1000,0) -> 0 | H41: =ROUND('IR|CHF'!K41/1000,0) -> 0
C42: 553 | D42: =+'IR|CHF'!D42 -> Öffentliche Sozialversicherungen | E42: =ROUND('IR|CHF'!E42/1000,0) -> 0 | F42: =ROUND('IR|CHF'!H42/1000,0) -> 0 | H42: =ROUND('IR|CHF'!K42/1000,0) -> 0
C43: 554 | D43: =+'IR|CHF'!D43 -> Öffentliche Unternehmungen | E43: =ROUND('IR|CHF'!E43/1000,0) -> 0 | F43: =ROUND('IR|CHF'!H43/1000,0) -> 0 | H43: =ROUND('IR|CHF'!K43/1000,0) -> 0
C44: 555 | D44: =+'IR|CHF'!D44 -> Private Unternehmungen | E44: =ROUND('IR|CHF'!E44/1000,0) -> 0 | F44: =ROUND('IR|CHF'!H44/1000,0) -> 0 | H44: =ROUND('IR|CHF'!K44/1000,0) -> 0
C45: 556 | D45: =+'IR|CHF'!D45 -> Private Organisationen ohne Erwerbszweck | E45: =ROUND('IR|CHF'!E45/1000,0) -> 0 | F45: =ROUND('IR|CHF'!H45/1000,0) -> 0 | H45: =ROUND('IR|CHF'!K45/1000,0) -> 0
C46: 557 | D46: =+'IR|CHF'!D46 -> Private Haushalte | E46: =ROUND('IR|CHF'!E46/1000,0) -> 0 | F46: =ROUND('IR|CHF'!H46/1000,0) -> 0 | H46: =ROUND('IR|CHF'!K46/1000,0) -> 0
C47: 558 | D47: =+'IR|CHF'!D47 -> Ausland | E47: =ROUND('IR|CHF'!E47/1000,0) -> 0 | F47: =ROUND('IR|CHF'!H47/1000,0) -> 0 | H47: =ROUND('IR|CHF'!K47/1000,0) -> 0
C48: […]
C50: Investitionsrechnung | Ausgaben (Fortsetzung) | E50: =+E3 -> Jahr t | H50: =H3 -> Jahr t-1
C51: =C4 -> in TCHF | E51: =E4 -> Rechnung | F51: =F4 -> Budget | H51: =H4 -> Rechnung
C52: […]
C53: 56 | D53: =+'IR|CHF'!D48 -> Eigene Investitionsbeiträge | E53: =SUM(E54:E62) -> 0 | F53: =SUM(F54:F62) -> 44 | H53: =SUM(H54:H62) -> 0
C54: 560 | D54: =+'IR|CHF'!D49 -> Bund | E54: =ROUND('IR|CHF'!E49/1000,0) -> 0 | F54: =ROUND('IR|CHF'!H49/1000,0) -> 0 | H54: =ROUND('IR|CHF'!K49/1000,0) -> 0
C55: 561 | D55: =+'IR|CHF'!D50 -> Kantone und Konkordate | E55: =ROUND('IR|CHF'!E50/1000,0) -> 0 | F55: =ROUND('IR|CHF'!H50/1000,0) -> 0 | H55: =ROUND('IR|CHF'!K50/1000,0) -> 0
C56: 562 | D56: =+'IR|CHF'!D51 -> Gemeinden und Gemeindezweckverbände | E56: =ROUND('IR|CHF'!E51/1000,0) -> 0 | F56: =ROUND('IR|CHF'!H51/1000,0) -> 44 | H56: =ROUND('IR|CHF'!K51/1000,0) -> 0
C57: 563 | D57: =+'IR|CHF'!D52 -> Öffentliche Sozialversicherungen | E57: =ROUND('IR|CHF'!E52/1000,0) -> 0 | F57: =ROUND('IR|CHF'!H52/1000,0) -> 0 | H57: =ROUND('IR|CHF'!K52/1000,0) -> 0
C58: 564 | D58: =+'IR|CHF'!D53 -> Öffentliche Unternehmungen | E58: =ROUND('IR|CHF'!E53/1000,0) -> 0 | F58: =ROUND('IR|CHF'!H53/1000,0) -> 0 | H58: =ROUND('IR|CHF'!K53/1000,0) -> 0
C59: 565 | D59: =+'IR|CHF'!D54 -> Private Unternehmungen | E59: =ROUND('IR|CHF'!E54/1000,0) -> 0 | F59: =ROUND('IR|CHF'!H54/1000,0) -> 0 | H59: =ROUND('IR|CHF'!K54/1000,0) -> 0
C60: 566 | D60: =+'IR|CHF'!D55 -> Private Organisationen ohne Erwerbszweck | E60: =ROUND('IR|CHF'!E55/1000,0) -> 0 | F60: =ROUND('IR|CHF'!H55/1000,0) -> 0 | H60: =ROUND('IR|CHF'!K55/1000,0) -> 0
C61: 567 | D61: =+'IR|CHF'!D56 -> Private Haushalte | E61: =ROUND('IR|CHF'!E56/1000,0) -> 0 | F61: =ROUND('IR|CHF'!H56/1000,0) -> 0 | H61: =ROUND('IR|CHF'!K56/1000,0) -> 0
C62: 568 | D62: =+'IR|CHF'!D57 -> Ausland | E62: =ROUND('IR|CHF'!E57/1000,0) -> 0 | F62: =ROUND('IR|CHF'!H57/1000,0) -> 0 | H62: =ROUND('IR|CHF'!K57/1000,0) -> 0
C63: 57 | D63: =+'IR|CHF'!D58 -> Durchlaufende Investitionsbeiträge | E63: =SUM(E64:E72) -> 0 | F63: =SUM(F64:F72) -> 0 | H63: =SUM(H64:H72) -> 0
C64: 570 | D64: =+'IR|CHF'!D59 -> Bund | E64: =ROUND('IR|CHF'!E59/1000,0) -> 0 | F64: =ROUND('IR|CHF'!H59/1000,0) -> 0 | H64: =ROUND('IR|CHF'!K59/1000,0) -> 0
C65: 571 | D65: =+'IR|CHF'!D60 -> Kantone und Konkordate | E65: =ROUND('IR|CHF'!E60/1000,0) -> 0 | F65: =ROUND('IR|CHF'!H60/1000,0) -> 0 | H65: =ROUND('IR|CHF'!K60/1000,0) -> 0
C66: 572 | D66: =+'IR|CHF'!D61 -> Gemeinden und Gemeindezweckverbände | E66: =ROUND('IR|CHF'!E61/1000,0) -> 0 | F66: =ROUND('IR|CHF'!H61/1000,0) -> 0 | H66: =ROUND('IR|CHF'!K61/1000,0) -> 0
C67: 573 | D67: =+'IR|CHF'!D62 -> Öffentliche Sozialversicherungen | E67: =ROUND('IR|CHF'!E62/1000,0) -> 0 | F67: =ROUND('IR|CHF'!H62/1000,0) -> 0 | H67: =ROUND('IR|CHF'!K62/1000,0) -> 0
C68: 574 | D68: =+'IR|CHF'!D63 -> Öffentliche Unternehmungen | E68: =ROUND('IR|CHF'!E63/1000,0) -> 0 | F68: =ROUND('IR|CHF'!H63/1000,0) -> 0 | H68: =ROUND('IR|CHF'!K63/1000,0) -> 0
C69: 575 | D69: =+'IR|CHF'!D64 -> Private Unternehmungen | E69: =ROUND('IR|CHF'!E64/1000,0) -> 0 | F69: =ROUND('IR|CHF'!H64/1000,0) -> 0 | H69: =ROUND('IR|CHF'!K64/1000,0) -> 0
C70: 576 | D70: =+'IR|CHF'!D65 -> Private Organisationen ohne Erwerbszweck | E70: =ROUND('IR|CHF'!E65/1000,0) -> 0 | F70: =ROUND('IR|CHF'!H65/1000,0) -> 0 | H70: =ROUND('IR|CHF'!K65/1000,0) -> 0
C71: 577 | D71: =+'IR|CHF'!D66 -> Private Haushalte | E71: =ROUND('IR|CHF'!E66/1000,0) -> 0 | F71: =ROUND('IR|CHF'!H66/1000,0) -> 0 | H71: =ROUND('IR|CHF'!K66/1000,0) -> 0
C72: 578 | D72: =+'IR|CHF'!D67 -> Ausland | E72: =ROUND('IR|CHF'!E67/1000,0) -> 0 | F72: =ROUND('IR|CHF'!H67/1000,0) -> 0 | H72: =ROUND('IR|CHF'!K67/1000,0) -> 0
C73: 58 | D73: =+'IR|CHF'!D68 -> Ausserordentliche [a.o.] Investitionsausgaben | E73: =SUM(E74:E79) -> 0 | F73: =SUM(F74:F79) -> 0 | H73: =SUM(H74:H79) -> 0
C74: 580 | D74: =+'IR|CHF'!D69 -> Ausserordentliche Investitionen für Sachanlagen | E74: =ROUND('IR|CHF'!E69/1000,0) -> 0 | F74: =ROUND('IR|CHF'!H69/1000,0) -> 0 | H74: =ROUND('IR|CHF'!K69/1000,0) -> 0
C75: 582 | D75: =+'IR|CHF'!D70 -> Ausserordentliche Investitionen für immaterielle Anlagen | E75: =ROUND('IR|CHF'!E70/1000,0) -> 0 | F75: =ROUND('IR|CHF'!H70/1000,0) -> 0 | H75: =ROUND('IR|CHF'!K70/1000,0) -> 0
C76: 584 | D76: =+'IR|CHF'!D71 -> Ausserordentliche Investitionen für Darlehen | E76: =ROUND('IR|CHF'!E71/1000,0) -> 0 | F76: =ROUND('IR|CHF'!H71/1000,0) -> 0 | H76: =ROUND('IR|CHF'!K71/1000,0) -> 0
C77: 585 | D77: =+'IR|CHF'!D72 -> A.o. Investitionen für Beteiligungen und Grundkapitalien | E77: =ROUND('IR|CHF'!E72/1000,0) -> 0 | F77: =ROUND('IR|CHF'!H72/1000,0) -> 0 | H77: =ROUND('IR|CHF'!K72/1000,0) -> 0
C78: 586 | D78: =+'IR|CHF'!D73 -> Ausserordentliche Investitionsbeiträge | E78: =ROUND('IR|CHF'!E73/1000,0) -> 0 | F78: =ROUND('IR|CHF'!H73/1000,0) -> 0 | H78: =ROUND('IR|CHF'!K73/1000,0) -> 0
C79: 589 | D79: =+'IR|CHF'!D74 -> Übrige ausserordentliche Investitionen | E79: =ROUND('IR|CHF'!E74/1000,0) -> 0 | F79: =ROUND('IR|CHF'!H74/1000,0) -> 0 | H79: =ROUND('IR|CHF'!K74/1000,0) -> 0
C81: Investitionsrechnung | Einnahmen | E81: =+E3 -> Jahr t | H81: =+H3 -> Jahr t-1
C82: =C4 -> in TCHF | E82: =+E4 -> Rechnung | F82: =+F4 -> Budget | H82: =+H4 -> Rechnung
C83: 6 | D83: =+'IR|CHF'!D78 -> Investitionseinnahmen | E83: =+E84+E93+E102+E106+E116+E131+E141+E151+E161 -> 43 | F83: =+F84+F93+F102+F106+F116+F131+F141+F151+F161 -> 500 | H83: =+H84+H93+H102+H106+H116+H131+H141+H151+H161 -> 10
C84: 60 | D84: =+'IR|CHF'!D79 -> Übertragungen von Sachanlagen in das Finanzvermögen | E84: =SUM(E85:E92) -> 0 | F84: =SUM(F85:F92) -> 0 | H84: =SUM(H85:H92) -> 0
C85: 600 | D85: =+'IR|CHF'!D80 -> Übertragungen von Grundstücken | E85: =ROUND('IR|CHF'!F80/1000,0) -> 0 | F85: =ROUND('IR|CHF'!I80/1000,0) -> 0 | H85: =ROUND('IR|CHF'!L80/1000,0) -> 0
C86: 601 | D86: =+'IR|CHF'!D81 -> Übertragungen von Strassen und Verkehrswegen | E86: =ROUND('IR|CHF'!F81/1000,0) -> 0 | F86: =ROUND('IR|CHF'!I81/1000,0) -> 0 | H86: =ROUND('IR|CHF'!L81/1000,0) -> 0
C87: 602 | D87: =+'IR|CHF'!D82 -> Übertragungen von Wasserbauten | E87: =ROUND('IR|CHF'!F82/1000,0) -> 0 | F87: =ROUND('IR|CHF'!I82/1000,0) -> 0 | H87: =ROUND('IR|CHF'!L82/1000,0) -> 0
C88: 603 | D88: =+'IR|CHF'!D83 -> Übertragungen von übrigen Tiefbauten | E88: =ROUND('IR|CHF'!F83/1000,0) -> 0 | F88: =ROUND('IR|CHF'!I83/1000,0) -> 0 | H88: =ROUND('IR|CHF'!L83/1000,0) -> 0
C89: 604 | D89: =+'IR|CHF'!D84 -> Übertragungen von Hochbauten | E89: =ROUND('IR|CHF'!F84/1000,0) -> 0 | F89: =ROUND('IR|CHF'!I84/1000,0) -> 0 | H89: =ROUND('IR|CHF'!L84/1000,0) -> 0
C90: 605 | D90: =+'IR|CHF'!D85 -> Übertragungen von Waldungen | E90: =ROUND('IR|CHF'!F85/1000,0) -> 0 | F90: =ROUND('IR|CHF'!I85/1000,0) -> 0 | H90: =ROUND('IR|CHF'!L85/1000,0) -> 0
C91: 606 | D91: =+'IR|CHF'!D86 -> Übertragungen von Mobilien | E91: =ROUND('IR|CHF'!F86/1000,0) -> 0 | F91: =ROUND('IR|CHF'!I86/1000,0) -> 0 | H91: =ROUND('IR|CHF'!L86/1000,0) -> 0
C92: 609 | D92: =+'IR|CHF'!D87 -> Übertragungen von übrigen Sachanlagen | E92: =ROUND('IR|CHF'!F87/1000,0) -> 0 | F92: =ROUND('IR|CHF'!I87/1000,0) -> 0 | H92: =ROUND('IR|CHF'!L87/1000,0) -> 0
C93: 61 | D93: =+'IR|CHF'!D88 -> Rückerstattungen | E93: =SUM(E94:E101) -> 0 | F93: =SUM(F94:F101) -> 0 | H93: =SUM(H94:H101) -> 0
C94: 610 | D94: =+'IR|CHF'!D89 -> Grundstücke | E94: =ROUND('IR|CHF'!F89/1000,0) -> 0 | F94: =ROUND('IR|CHF'!I89/1000,0) -> 0 | H94: =ROUND('IR|CHF'!L89/1000,0) -> 0
C95: 611 | D95: =+'IR|CHF'!D90 -> Strassen und Verkehrswege | E95: =ROUND('IR|CHF'!F90/1000,0) -> 0 | F95: =ROUND('IR|CHF'!I90/1000,0) -> 0 | H95: =ROUND('IR|CHF'!L90/1000,0) -> 0
C96: 612 | D96: =+'IR|CHF'!D91 -> Wasserbau | E96: =ROUND('IR|CHF'!F91/1000,0) -> 0 | F96: =ROUND('IR|CHF'!I91/1000,0) -> 0 | H96: =ROUND('IR|CHF'!L91/1000,0) -> 0
C97: 613 | D97: =+'IR|CHF'!D92 -> Übriger Tiefbau | E97: =ROUND('IR|CHF'!F92/1000,0) -> 0 | F97: =ROUND('IR|CHF'!I92/1000,0) -> 0 | H97: =ROUND('IR|CHF'!L92/1000,0) -> 0
C98: 614 | D98: =+'IR|CHF'!D93 -> Hochbauten | E98: =ROUND('IR|CHF'!F93/1000,0) -> 0 | F98: =ROUND('IR|CHF'!I93/1000,0) -> 0 | H98: =ROUND('IR|CHF'!L93/1000,0) -> 0
C99: 615 | D99: =+'IR|CHF'!D94 -> Waldungen | E99: =ROUND('IR|CHF'!F94/1000,0) -> 0 | F99: =ROUND('IR|CHF'!I94/1000,0) -> 0 | H99: =ROUND('IR|CHF'!L94/1000,0) -> 0
C100: 616 | D100: =+'IR|CHF'!D95 -> Mobilien | E100: =ROUND('IR|CHF'!F95/1000,0) -> 0 | F100: =ROUND('IR|CHF'!I95/1000,0) -> 0 | H100: =ROUND('IR|CHF'!L95/1000,0) -> 0
C101: 619 | D101: =+'IR|CHF'!D96 -> Übrige Sachanlagen | E101: =ROUND('IR|CHF'!F96/1000,0) -> 0 | F101: =ROUND('IR|CHF'!I96/1000,0) -> 0 | H101: =ROUND('IR|CHF'!L96/1000,0) -> 0
C102: 62 | D102: =+'IR|CHF'!D97 -> Übertragung immaterielle Anlagen in das Finanzvermögen | E102: =SUM(E103:E105) -> 0 | F102: =SUM(F103:F105) -> 0 | H102: =SUM(H103:H105) -> 0
C103: 620 | D103: =+'IR|CHF'!D98 -> Software | E103: =ROUND('IR|CHF'!F98/1000,0) -> 0 | F103: =ROUND('IR|CHF'!I98/1000,0) -> 0 | H103: =ROUND('IR|CHF'!L98/1000,0) -> 0
C104: 621 | D104: =+'IR|CHF'!D99 -> Lizenzen, Nutzungsrechte, Markenrechte | E104: =ROUND('IR|CHF'!F99/1000,0) -> 0 | F104: =ROUND('IR|CHF'!I99/1000,0) -> 0 | H104: =ROUND('IR|CHF'!L99/1000,0) -> 0
C105: 629 | D105: =+'IR|CHF'!D100 -> Übrige immaterielle Anlagen | E105: =ROUND('IR|CHF'!F100/1000,0) -> 0 | F105: =ROUND('IR|CHF'!I100/1000,0) -> 0 | H105: =ROUND('IR|CHF'!L100/1000,0) -> 0
C106: 63 | D106: =+'IR|CHF'!D101 -> Investitionsbeiträge für eigene Rechnung | E106: =SUM(E107:E115) -> 43 | F106: =SUM(F107:F115) -> 500 | H106: =SUM(H107:H115) -> 10
C107: 630 | D107: =+'IR|CHF'!D102 -> Bund | E107: =ROUND('IR|CHF'!F102/1000,0) -> 0 | F107: =ROUND('IR|CHF'!I102/1000,0) -> 0 | H107: =ROUND('IR|CHF'!L102/1000,0) -> 0
C108: 631 | D108: =+'IR|CHF'!D103 -> Kantone und Konkordate | E108: =ROUND('IR|CHF'!F103/1000,0) -> 0 | F108: =ROUND('IR|CHF'!I103/1000,0) -> 100 | H108: =ROUND('IR|CHF'!L103/1000,0) -> 0
C109: 632 | D109: =+'IR|CHF'!D104 -> Gemeinden und Gemeindezweckverbände | E109: =ROUND('IR|CHF'!F104/1000,0) -> 0 | F109: =ROUND('IR|CHF'!I104/1000,0) -> 0 | H109: =ROUND('IR|CHF'!L104/1000,0) -> 0
C110: 633 | D110: =+'IR|CHF'!D105 -> Öffentliche Sozialversicherungen | E110: =ROUND('IR|CHF'!F105/1000,0) -> 0 | F110: =ROUND('IR|CHF'!I105/1000,0) -> 0 | H110: =ROUND('IR|CHF'!L105/1000,0) -> 0
C111: 634 | D111: =+'IR|CHF'!D106 -> Öffentliche Unternehmungen | E111: =ROUND('IR|CHF'!F106/1000,0) -> 3 | F111: =ROUND('IR|CHF'!I106/1000,0) -> 0 | H111: =ROUND('IR|CHF'!L106/1000,0) -> 10
C112: 635 | D112: =+'IR|CHF'!D107 -> Private Unternehmungen | E112: =ROUND('IR|CHF'!F107/1000,0) -> 40 | F112: =ROUND('IR|CHF'!I107/1000,0) -> 400 | H112: =ROUND('IR|CHF'!L107/1000,0) -> 0
C113: 636 | D113: =+'IR|CHF'!D108 -> Private Organisationen ohne Erwerbszweck | E113: =ROUND('IR|CHF'!F108/1000,0) -> 0 | F113: =ROUND('IR|CHF'!I108/1000,0) -> 0 | H113: =ROUND('IR|CHF'!L108/1000,0) -> 0
C114: 637 | D114: =+'IR|CHF'!D109 -> Private Haushalte | E114: =ROUND('IR|CHF'!F109/1000,0) -> 0 | F114: =ROUND('IR|CHF'!I109/1000,0) -> 0 | H114: =ROUND('IR|CHF'!L109/1000,0) -> 0
C115: 638 | D115: =+'IR|CHF'!D110 -> Ausland | E115: =ROUND('IR|CHF'!F110/1000,0) -> 0 | F115: =ROUND('IR|CHF'!I110/1000,0) -> 0 | H115: =ROUND('IR|CHF'!L110/1000,0) -> 0
C116: 64 | D116: =+'IR|CHF'!D111 -> Rückzahlung von Darlehen | E116: =SUM(E117:E125) -> 0 | F116: =SUM(F117:F125) -> 0 | H116: =SUM(H117:H125) -> 0
C117: 640 | D117: =+'IR|CHF'!D112 -> Bund | E117: =ROUND('IR|CHF'!F112/1000,0) -> 0 | F117: =ROUND('IR|CHF'!I112/1000,0) -> 0 | H117: =ROUND('IR|CHF'!L112/1000,0) -> 0
C118: 641 | D118: =+'IR|CHF'!D113 -> Kantone und Konkordate | E118: =ROUND('IR|CHF'!F113/1000,0) -> 0 | F118: =ROUND('IR|CHF'!I113/1000,0) -> 0 | H118: =ROUND('IR|CHF'!L113/1000,0) -> 0
C119: 642 | D119: =+'IR|CHF'!D114 -> Gemeinden und Gemeindezweckverbände | E119: =ROUND('IR|CHF'!F114/1000,0) -> 0 | F119: =ROUND('IR|CHF'!I114/1000,0) -> 0 | H119: =ROUND('IR|CHF'!L114/1000,0) -> 0
C120: 643 | D120: =+'IR|CHF'!D115 -> Öffentliche Sozialversicherungen | E120: =ROUND('IR|CHF'!F115/1000,0) -> 0 | F120: =ROUND('IR|CHF'!I115/1000,0) -> 0 | H120: =ROUND('IR|CHF'!L115/1000,0) -> 0
C121: 644 | D121: =+'IR|CHF'!D116 -> Öffentliche Unternehmungen | E121: =ROUND('IR|CHF'!F116/1000,0) -> 0 | F121: =ROUND('IR|CHF'!I116/1000,0) -> 0 | H121: =ROUND('IR|CHF'!L116/1000,0) -> 0
C122: 645 | D122: =+'IR|CHF'!D117 -> Private Unternehmungen | E122: =ROUND('IR|CHF'!F117/1000,0) -> 0 | F122: =ROUND('IR|CHF'!I117/1000,0) -> 0 | H122: =ROUND('IR|CHF'!L117/1000,0) -> 0
C123: 646 | D123: =+'IR|CHF'!D118 -> Private Organisationen ohne Erwerbszweck | E123: =ROUND('IR|CHF'!F118/1000,0) -> 0 | F123: =ROUND('IR|CHF'!I118/1000,0) -> 0 | H123: =ROUND('IR|CHF'!L118/1000,0) -> 0
C124: 647 | D124: =+'IR|CHF'!D119 -> Private Haushalte | E124: =ROUND('IR|CHF'!F119/1000,0) -> 0 | F124: =ROUND('IR|CHF'!I119/1000,0) -> 0 | H124: =ROUND('IR|CHF'!L119/1000,0) -> 0
C125: 648 | D125: =+'IR|CHF'!D120 -> Ausland | E125: =ROUND('IR|CHF'!F120/1000,0) -> 0 | F125: =ROUND('IR|CHF'!I120/1000,0) -> 0 | H125: =ROUND('IR|CHF'!L120/1000,0) -> 0
C126: […]
C128: Investitionsrechnung | Einnahmen (Fortsetzung) | E128: =+E3 -> Jahr t | H128: =+H3 -> Jahr t-1
C129: =+C4 -> in TCHF | E129: =+E4 -> Rechnung | F129: =+F4 -> Budget | H129: =+H4 -> Rechnung
C130: […]
C131: 65 | D131: =+'IR|CHF'!D121 -> Übertragung von Beteiligungen in das Finanzvermögen | E131: =SUM(E132:E140) -> 0 | F131: =SUM(F132:F140) -> 0 | H131: =SUM(H132:H140) -> 0
C132: 650 | D132: =+'IR|CHF'!D122 -> Bund | E132: =ROUND('IR|CHF'!F122/1000,0) -> 0 | F132: =ROUND('IR|CHF'!I122/1000,0) -> 0 | H132: =ROUND('IR|CHF'!L122/1000,0) -> 0
C133: 651 | D133: =+'IR|CHF'!D123 -> Kantone und Konkordate | E133: =ROUND('IR|CHF'!F123/1000,0) -> 0 | F133: =ROUND('IR|CHF'!I123/1000,0) -> 0 | H133: =ROUND('IR|CHF'!L123/1000,0) -> 0
C134: 652 | D134: =+'IR|CHF'!D124 -> Gemeinden und Gemeindezweckverbände | E134: =ROUND('IR|CHF'!F124/1000,0) -> 0 | F134: =ROUND('IR|CHF'!I124/1000,0) -> 0 | H134: =ROUND('IR|CHF'!L124/1000,0) -> 0
C135: 653 | D135: =+'IR|CHF'!D125 -> Öffentliche Sozialversicherungen | E135: =ROUND('IR|CHF'!F125/1000,0) -> 0 | F135: =ROUND('IR|CHF'!I125/1000,0) -> 0 | H135: =ROUND('IR|CHF'!L125/1000,0) -> 0
C136: 654 | D136: =+'IR|CHF'!D126 -> Öffentliche Unternehmungen | E136: =ROUND('IR|CHF'!F126/1000,0) -> 0 | F136: =ROUND('IR|CHF'!I126/1000,0) -> 0 | H136: =ROUND('IR|CHF'!L126/1000,0) -> 0
C137: 655 | D137: =+'IR|CHF'!D127 -> Private Unternehmungen | E137: =ROUND('IR|CHF'!F127/1000,0) -> 0 | F137: =ROUND('IR|CHF'!I127/1000,0) -> 0 | H137: =ROUND('IR|CHF'!L127/1000,0) -> 0
C138: 656 | D138: =+'IR|CHF'!D128 -> Private Organisationen ohne Erwerbszweck | E138: =ROUND('IR|CHF'!F128/1000,0) -> 0 | F138: =ROUND('IR|CHF'!I128/1000,0) -> 0 | H138: =ROUND('IR|CHF'!L128/1000,0) -> 0
C139: 657 | D139: =+'IR|CHF'!D129 -> Private Haushalte | E139: =ROUND('IR|CHF'!F129/1000,0) -> 0 | F139: =ROUND('IR|CHF'!I129/1000,0) -> 0 | H139: =ROUND('IR|CHF'!L129/1000,0) -> 0
C140: 658 | D140: =+'IR|CHF'!D130 -> Ausland | E140: =ROUND('IR|CHF'!F130/1000,0) -> 0 | F140: =ROUND('IR|CHF'!I130/1000,0) -> 0 | H140: =ROUND('IR|CHF'!L130/1000,0) -> 0
C141: 66 | D141: =+'IR|CHF'!D131 -> Rückzahlung eigener Investitionsbeiträge | E141: =SUM(E142:E150) -> 0 | F141: =SUM(F142:F150) -> 0 | H141: =SUM(H142:H150) -> 0
C142: 660 | D142: =+'IR|CHF'!D132 -> Bund | E142: =ROUND('IR|CHF'!F132/1000,0) -> 0 | F142: =ROUND('IR|CHF'!I132/1000,0) -> 0 | H142: =ROUND('IR|CHF'!L132/1000,0) -> 0
C143: 661 | D143: =+'IR|CHF'!D133 -> Kantone und Konkordate | E143: =ROUND('IR|CHF'!F133/1000,0) -> 0 | F143: =ROUND('IR|CHF'!I133/1000,0) -> 0 | H143: =ROUND('IR|CHF'!L133/1000,0) -> 0
C144: 662 | D144: =+'IR|CHF'!D134 -> Gemeinden und Gemeindezweckverbände | E144: =ROUND('IR|CHF'!F134/1000,0) -> 0 | F144: =ROUND('IR|CHF'!I134/1000,0) -> 0 | H144: =ROUND('IR|CHF'!L134/1000,0) -> 0
C145: 663 | D145: =+'IR|CHF'!D135 -> Öffentliche Sozialversicherungen | E145: =ROUND('IR|CHF'!F135/1000,0) -> 0 | F145: =ROUND('IR|CHF'!I135/1000,0) -> 0 | H145: =ROUND('IR|CHF'!L135/1000,0) -> 0
C146: 664 | D146: =+'IR|CHF'!D136 -> Öffentliche Unternehmungen | E146: =ROUND('IR|CHF'!F136/1000,0) -> 0 | F146: =ROUND('IR|CHF'!I136/1000,0) -> 0 | H146: =ROUND('IR|CHF'!L136/1000,0) -> 0
C147: 665 | D147: =+'IR|CHF'!D137 -> Private Unternehmungen | E147: =ROUND('IR|CHF'!F137/1000,0) -> 0 | F147: =ROUND('IR|CHF'!I137/1000,0) -> 0 | H147: =ROUND('IR|CHF'!L137/1000,0) -> 0
C148: 666 | D148: =+'IR|CHF'!D138 -> Private Organisationen ohne Erwerbszweck | E148: =ROUND('IR|CHF'!F138/1000,0) -> 0 | F148: =ROUND('IR|CHF'!I138/1000,0) -> 0 | H148: =ROUND('IR|CHF'!L138/1000,0) -> 0
C149: 667 | D149: =+'IR|CHF'!D139 -> Private Haushalte | E149: =ROUND('IR|CHF'!F139/1000,0) -> 0 | F149: =ROUND('IR|CHF'!I139/1000,0) -> 0 | H149: =ROUND('IR|CHF'!L139/1000,0) -> 0
C150: 668 | D150: =+'IR|CHF'!D140 -> Ausland | E150: =ROUND('IR|CHF'!F140/1000,0) -> 0 | F150: =ROUND('IR|CHF'!I140/1000,0) -> 0 | H150: =ROUND('IR|CHF'!L140/1000,0) -> 0
C151: 67 | D151: =+'IR|CHF'!D141 -> Durchlaufende Investitionsbeiträge | E151: =SUM(E152:E160) -> 0 | F151: =SUM(F152:F160) -> 0 | H151: =SUM(H152:H160) -> 0
C152: 670 | D152: =+'IR|CHF'!D142 -> Bund | E152: =ROUND('IR|CHF'!F142/1000,0) -> 0 | F152: =ROUND('IR|CHF'!I142/1000,0) -> 0 | H152: =ROUND('IR|CHF'!L142/1000,0) -> 0
C153: 671 | D153: =+'IR|CHF'!D143 -> Kantone und Konkordate | E153: =ROUND('IR|CHF'!F143/1000,0) -> 0 | F153: =ROUND('IR|CHF'!I143/1000,0) -> 0 | H153: =ROUND('IR|CHF'!L143/1000,0) -> 0
C154: 672 | D154: =+'IR|CHF'!D144 -> Gemeinden und Gemeindezweckverbände | E154: =ROUND('IR|CHF'!F144/1000,0) -> 0 | F154: =ROUND('IR|CHF'!I144/1000,0) -> 0 | H154: =ROUND('IR|CHF'!L144/1000,0) -> 0
C155: 673 | D155: =+'IR|CHF'!D145 -> Öffentliche Sozialversicherungen | E155: =ROUND('IR|CHF'!F145/1000,0) -> 0 | F155: =ROUND('IR|CHF'!I145/1000,0) -> 0 | H155: =ROUND('IR|CHF'!L145/1000,0) -> 0
C156: 674 | D156: =+'IR|CHF'!D146 -> Öffentliche Unternehmungen | E156: =ROUND('IR|CHF'!F146/1000,0) -> 0 | F156: =ROUND('IR|CHF'!I146/1000,0) -> 0 | H156: =ROUND('IR|CHF'!L146/1000,0) -> 0
C157: 675 | D157: =+'IR|CHF'!D147 -> Private Unternehmungen | E157: =ROUND('IR|CHF'!F147/1000,0) -> 0 | F157: =ROUND('IR|CHF'!I147/1000,0) -> 0 | H157: =ROUND('IR|CHF'!L147/1000,0) -> 0
C158: 676 | D158: =+'IR|CHF'!D148 -> Private Organisationen ohne Erwerbszweck | E158: =ROUND('IR|CHF'!F148/1000,0) -> 0 | F158: =ROUND('IR|CHF'!I148/1000,0) -> 0 | H158: =ROUND('IR|CHF'!L148/1000,0) -> 0
C159: 677 | D159: =+'IR|CHF'!D149 -> Private Haushalte | E159: =ROUND('IR|CHF'!F149/1000,0) -> 0 | F159: =ROUND('IR|CHF'!I149/1000,0) -> 0 | H159: =ROUND('IR|CHF'!L149/1000,0) -> 0
C160: 678 | D160: =+'IR|CHF'!D150 -> Ausland | E160: =ROUND('IR|CHF'!F150/1000,0) -> 0 | F160: =ROUND('IR|CHF'!I150/1000,0) -> 0 | H160: =ROUND('IR|CHF'!L150/1000,0) -> 0
C161: 68 | D161: =+'IR|CHF'!D151 -> Ausserordentliche [a.o.] Investitionseinnahmen | E161: =SUM(E162:E168) -> 0 | F161: =SUM(F162:F168) -> 0 | H161: =SUM(H162:H168) -> 0
C162: 680 | D162: =+'IR|CHF'!D152 -> Ausserordentliche Investitionseinnahmen für Sachanlagen | E162: =ROUND('IR|CHF'!F152/1000,0) -> 0 | F162: =ROUND('IR|CHF'!I152/1000,0) -> 0 | H162: =ROUND('IR|CHF'!L152/1000,0) -> 0
C163: 682 | D163: =+'IR|CHF'!D153 -> Ausserordentliche Investitionseinnahmen für immaterielle Anlagen | E163: =ROUND('IR|CHF'!F153/1000,0) -> 0 | F163: =ROUND('IR|CHF'!I153/1000,0) -> 0 | H163: =ROUND('IR|CHF'!L153/1000,0) -> 0
C164: 683 | D164: =+'IR|CHF'!D154 -> Ausserordentliche Investitionsbeiträge für eigene Rechnung | E164: =ROUND('IR|CHF'!F154/1000,0) -> 0 | F164: =ROUND('IR|CHF'!I154/1000,0) -> 0 | H164: =ROUND('IR|CHF'!L154/1000,0) -> 0
C165: 684 | D165: =+'IR|CHF'!D155 -> Ausserordentliche Rückzahlung von Darlehen | E165: =ROUND('IR|CHF'!F155/1000,0) -> 0 | F165: =ROUND('IR|CHF'!I155/1000,0) -> 0 | H165: =ROUND('IR|CHF'!L155/1000,0) -> 0
C166: 685 | D166: =+'IR|CHF'!D156 -> Ausserordentliche Übertragungen von Beteiligungen | E166: =ROUND('IR|CHF'!F156/1000,0) -> 0 | F166: =ROUND('IR|CHF'!I156/1000,0) -> 0 | H166: =ROUND('IR|CHF'!L156/1000,0) -> 0
C167: 686 | D167: =+'IR|CHF'!D157 -> Ausserordentliche Rückzahlungen eigener Investitionsbeiträge | E167: =ROUND('IR|CHF'!F157/1000,0) -> 0 | F167: =ROUND('IR|CHF'!I157/1000,0) -> 0 | H167: =ROUND('IR|CHF'!L157/1000,0) -> 0
C168: 689 | D168: =+'IR|CHF'!D158 -> Übrige ausserordentliche Investitionseinnahmen | E168: =ROUND('IR|CHF'!F158/1000,0) -> 0 | F168: =ROUND('IR|CHF'!I158/1000,0) -> 0 | H168: =ROUND('IR|CHF'!L158/1000,0) -> 0
C170: 5-6 | D170: Nettoinvestitionen | E170: =+E5-E83 -> 1928 | F170: =+F5-F83 -> 1903 | H170: =+H5-H83 -> 1765

Sheet Bi|TCHF
B1: Bilanz, in TCHF
C3: Bilanz | Aktiven | E3: 01.01 | F3: =+'Bi|CHF'!G3 -> Veränderung | H3: 31.12 | K3: Contrôle des arrondis en KCHF
C4: in TCHF | E4: Jahr t | F4: =+'Bi|CHF'!G4 -> Zunahme | G4: =+'Bi|CHF'!H4 -> Abnahme | H4: Jahr t
C5: 1 | D5: =+'Bi|CHF'!D5 -> Aktiven | E5: =+E6+E15 -> 13274 | F5: =+F6+F15 -> 41303 | G5: =+G6+G15 -> 40901 | H5: =+H6+H15 -> 13676 | K5: =+E5+F5-G5 -> 13676 | L5: =+H5-K5 -> 0
C6: 10 | D6: =+'Bi|CHF'!D6 -> Finanzvermögen [FV] | E6: =SUM(E7:E14) -> 5539 | F6: =SUM(F7:F14) -> 39332 | G6: =SUM(G7:G14) -> 40187 | H6: =SUM(H7:H14) -> 4684 | K6: 4684 | L6: =+H6-K6 -> 0
C7: 100 | D7: =+'Bi|CHF'!D7 -> Flüssige Mittel und kurzfristige Geldanlagen | E7: =ROUND('Bi|CHF'!E7/1000,0) -> 1605 | F7: =ROUND('Bi|CHF'!G7/1000,0) -> 16094 | G7: =ROUND('Bi|CHF'!H7/1000,0) -> 16916 | H7: =ROUND('Bi|CHF'!J7/1000,0) -> 783 | K7: 783 | L7: =+H7-K7 -> 0
C8: 101 | D8: =+'Bi|CHF'!D8 -> Forderungen | E8: =ROUND('Bi|CHF'!E8/1000,0) -> 1733 | F8: =ROUND('Bi|CHF'!G8/1000,0) -> 23064 | G8: =ROUND('Bi|CHF'!H8/1000,0) -> 23175 | H8: =ROUND('Bi|CHF'!J8/1000,0) -> 1622 | K8: 1622 | L8: =+H8-K8 -> 0
C9: 102 | D9: =+'Bi|CHF'!D9 -> Kurzfristige Finanzanlagen | E9: =ROUND('Bi|CHF'!E9/1000,0) -> 0 | F9: =ROUND('Bi|CHF'!G9/1000,0) -> 0 | G9: =ROUND('Bi|CHF'!H9/1000,0) -> 0 | H9: =ROUND('Bi|CHF'!J9/1000,0) -> 0 | K9: 0 | L9: 0
C10: 104 | D10: =+'Bi|CHF'!D10 -> Aktive Rechnungsabgrenzungen | E10: =ROUND('Bi|CHF'!E10/1000,0) -> 96 | F10: =ROUND('Bi|CHF'!G10/1000,0) -> 165 | G10: =ROUND('Bi|CHF'!H10/1000,0) -> 96 | H10: =ROUND('Bi|CHF'!J10/1000,0) -> 165 | K10: 165 | L10: 0
C11: 106 | D11: =+'Bi|CHF'!D11 -> Vorräte und angefangene Arbeiten | E11: =ROUND('Bi|CHF'!E11/1000,0) -> 0 | F11: =ROUND('Bi|CHF'!G11/1000,0) -> 0 | G11: =ROUND('Bi|CHF'!H11/1000,0) -> 0 | H11: =ROUND('Bi|CHF'!J11/1000,0) -> 0 | K11: 0 | L11: 0
C12: 107 | D12: =+'Bi|CHF'!D12 -> Langfristige Finanzanlagen | E12: =ROUNDDOWN('Bi|CHF'!E12/1000,0) -> 91 | F12: =ROUND('Bi|CHF'!G12/1000,0) -> 9 | G12: =ROUND('Bi|CHF'!H12/1000,0) -> 0 | H12: =ROUND('Bi|CHF'!J12/1000,0) -> 100 | K12: 100 | L12: 0
C13: 108 | D13: =+'Bi|CHF'!D13 -> Sachanlagen FV | E13: =ROUND('Bi|CHF'!E13/1000,0) -> 2014 | F13: =ROUND('Bi|CHF'!G13/1000,0) -> 0 | G13: =ROUND('Bi|CHF'!H13/1000,0) -> 0 | H13: =ROUND('Bi|CHF'!J13/1000,0) -> 2014 | K13: 2014 | L13: 0
C14: 109 | D14: =+'Bi|CHF'!D14 -> Forderungen gegenüber SpF und Fonds im FK | E14: =ROUND('Bi|CHF'!E14/1000,0) -> 0 | F14: =ROUND('Bi|CHF'!G14/1000,0) -> 0 | G14: =ROUND('Bi|CHF'!H14/1000,0) -> 0 | H14: =ROUND('Bi|CHF'!J14/1000,0) -> 0 | K14: 0 | L14: 0
C15: 14 | D15: =+'Bi|CHF'!D15 -> Verwaltungsvermögen [VV] | E15: =SUM(E16:E21) -> 7735 | F15: =SUM(F16:F21) -> 1971 | G15: =SUM(G16:G21) -> 714 | H15: =SUM(H16:H21) -> 8992 | K15: 8992 | L15: 0
C16: 140 | D16: =+'Bi|CHF'!D16 -> Sachanlagen VV | E16: =ROUNDUP('Bi|CHF'!E16/1000,0) -> 7419 | F16: =ROUND('Bi|CHF'!G16/1000,0) -> 1971 | G16: =ROUND('Bi|CHF'!H16/1000,0) -> 714 | H16: =ROUND('Bi|CHF'!J16/1000,0) -> 8676 | K16: 8676 | L16: 0
C17: 142 | D17: =+'Bi|CHF'!D17 -> Immaterielle Anlagen VV | E17: =ROUND('Bi|CHF'!E17/1000,0) -> 0 | F17: =ROUND('Bi|CHF'!G17/1000,0) -> 0 | G17: =ROUND('Bi|CHF'!H17/1000,0) -> 0 | H17: =ROUND('Bi|CHF'!J17/1000,0) -> 0 | K17: 0 | L17: 0
C18: 144 | D18: =+'Bi|CHF'!D18 -> Darlehen VV | E18: =ROUND('Bi|CHF'!E18/1000,0) -> 0 | F18: =ROUND('Bi|CHF'!G18/1000,0) -> 0 | G18: =ROUND('Bi|CHF'!H18/1000,0) -> 0 | H18: =ROUND('Bi|CHF'!J18/1000,0) -> 0 | K18: 0 | L18: 0
C19: 145 | D19: =+'Bi|CHF'!D19 -> Beteiligungen, Grundkapitalien VV | E19: =ROUND('Bi|CHF'!E19/1000,0) -> 316 | F19: =ROUND('Bi|CHF'!G19/1000,0) -> 0 | G19: =ROUND('Bi|CHF'!H19/1000,0) -> 0 | H19: =ROUND('Bi|CHF'!J19/1000,0) -> 316 | K19: 316 | L19: 0
C20: 146 | D20: =+'Bi|CHF'!D20 -> Investitionsbeiträge | E20: =ROUND('Bi|CHF'!E20/1000,0) -> 0 | F20: =ROUND('Bi|CHF'!G20/1000,0) -> 0 | G20: =ROUND('Bi|CHF'!H20/1000,0) -> 0 | H20: =ROUND('Bi|CHF'!J20/1000,0) -> 0 | K20: 0 | L20: 0
C21: 148 | D21: =+'Bi|CHF'!D21 -> Kumulierte zusätzliche Abschreibungen | E21: =ROUND('Bi|CHF'!E21/1000,0) -> 0 | F21: =ROUND('Bi|CHF'!G21/1000,0) -> 0 | G21: =ROUND('Bi|CHF'!H21/1000,0) -> 0 | H21: =ROUND('Bi|CHF'!J21/1000,0) -> 0 | K21: 0 | L21: 0
C23: Bilanz | Passiven | E23: 01.01 | F23: =+F3 -> Veränderung | H23: 31.12 | K23: Contrôle des arrondis en KCHF
C24: =+C4 -> in TCHF | E24: =+E4 -> Jahr t | F24: =+F4 -> Zunahme | G24: =+G4 -> Abnahme | H24: =+H4 -> Jahr t
C25: 2 | D25: =+'Bi|CHF'!D23 -> Passiven | E25: =+E26+E34 -> 13274 | F25: =+F26+F34 -> 19795 | G25: =+G26+G34 -> 19393 | H25: =+H26+H34 -> 13676 | K25: =+E25+F25-G25 -> 13676 | L25: 0
C26: 20 | D26: =+'Bi|CHF'!D24 -> Fremdkapital [FK] | E26: =SUM(E27:E33) -> 7619 | F26: =SUM(F27:F33) -> 16834 | G26: =SUM(G27:G33) -> 17466 | H26: =SUM(H27:H33) -> 6987 | K26: 6987 | L26: 0
C27: 200 | D27: =+'Bi|CHF'!D25 -> Laufende Verbindlichkeiten | E27: =ROUND('Bi|CHF'!E25/1000,0) -> 1461 | F27: =ROUNDDOWN('Bi|CHF'!G25/1000,0) -> 15631 | G27: =ROUND('Bi|CHF'!H25/1000,0) -> 15371 | H27: =ROUND('Bi|CHF'!J25/1000,0) -> 1721 | K27: 1721 | L27: 0
C28: 201 | D28: =+'Bi|CHF'!D26 -> Kurzfristige Finanzverbindlichkeiten | E28: =ROUND('Bi|CHF'!E26/1000,0) -> 0 | F28: =ROUND('Bi|CHF'!G26/1000,0) -> 500 | G28: =ROUND('Bi|CHF'!H26/1000,0) -> 500 | H28: =ROUND('Bi|CHF'!J26/1000,0) -> 0 | K28: 0 | L28: 0
C29: 204 | D29: =+'Bi|CHF'!D27 -> Passive Rechnungsabgrenzungen | E29: =ROUND('Bi|CHF'!E27/1000,0) -> 33 | F29: =ROUND('Bi|CHF'!G27/1000,0) -> 21 | G29: =ROUND('Bi|CHF'!H27/1000,0) -> 33 | H29: =ROUND('Bi|CHF'!J27/1000,0) -> 21 | K29: 21 | L29: 0
C30: 205 | D30: =+'Bi|CHF'!D28 -> Kurzfristige Rückstellungen | E30: =ROUND('Bi|CHF'!E28/1000,0) -> 277 | F30: =ROUND('Bi|CHF'!G28/1000,0) -> 82 | G30: =ROUND('Bi|CHF'!H28/1000,0) -> 36 | H30: =ROUND('Bi|CHF'!J28/1000,0) -> 323 | K30: 323 | L30: 0
C31: 206 | D31: =+'Bi|CHF'!D29 -> Langfristige Finanzverbindlichkeiten | E31: =ROUND('Bi|CHF'!E29/1000,0) -> 5500 | F31: =ROUND('Bi|CHF'!G29/1000,0) -> 600 | G31: =ROUND('Bi|CHF'!H29/1000,0) -> 1500 | H31: =ROUND('Bi|CHF'!J29/1000,0) -> 4600 | K31: 4600 | L31: 0
C32: 208 | D32: =+'Bi|CHF'!D30 -> Langfristige Rückstellungen | E32: =ROUND('Bi|CHF'!E30/1000,0) -> 0 | F32: =ROUND('Bi|CHF'!G30/1000,0) -> 0 | G32: =ROUND('Bi|CHF'!H30/1000,0) -> 0 | H32: =ROUND('Bi|CHF'!J30/1000,0) -> 0 | K32: 0 | L32: 0
C33: 209 | D33: =+'Bi|CHF'!D31 -> Verbindlichkeiten gegenüber SpF und Fonds im FK | E33: =ROUND('Bi|CHF'!E31/1000,0) -> 348 | F33: =ROUND('Bi|CHF'!G31/1000,0) -> 0 | G33: =ROUND('Bi|CHF'!H31/1000,0) -> 26 | H33: =ROUND('Bi|CHF'!J31/1000,0) -> 322 | K33: 322 | L33: 0
C34: 29 | D34: =+'Bi|CHF'!D32 -> Eigenkapital [EK] | E34: =SUM(E35:E43) -> 5655 | F34: =SUM(F35:F43) -> 2961 | G34: =SUM(G35:G43) -> 1927 | H34: =SUM(H35:H43) -> 6689 | K34: 6689 | L34: 0
C35: 290 | D35: =+'Bi|CHF'!D33 -> Spezialfinanzierungen im Eigenkapital | E35: =ROUND('Bi|CHF'!E33/1000,0) -> 1670 | F35: =ROUND('Bi|CHF'!G33/1000,0) -> 130 | G35: =ROUND('Bi|CHF'!H33/1000,0) -> 76 | H35: =ROUND('Bi|CHF'!J33/1000,0) -> 1724 | K35: 1724 | L35: 0 | N35: =+H35-E35 -> 54
C36: 291 | D36: =+'Bi|CHF'!D34 -> Fonds im Eigenkapital | E36: =ROUND('Bi|CHF'!E34/1000,0) -> 0 | F36: =ROUND('Bi|CHF'!G34/1000,0) -> 0 | G36: =ROUND('Bi|CHF'!H34/1000,0) -> 0 | H36: =ROUND('Bi|CHF'!J34/1000,0) -> 0 | K36: 0 | L36: 0
C37: 292 | D37: =+'Bi|CHF'!D35 -> Rücklagen der Globalbudgetbereiche | E37: =ROUND('Bi|CHF'!E35/1000,0) -> 0 | F37: =ROUND('Bi|CHF'!G35/1000,0) -> 0 | G37: =ROUND('Bi|CHF'!H35/1000,0) -> 0 | H37: =ROUND('Bi|CHF'!J35/1000,0) -> 0 | K37: 0 | L37: 0
C38: 293 | D38: =+'Bi|CHF'!D36 -> Vorfinanzierungen | E38: =ROUNDDOWN('Bi|CHF'!E36/1000,0) -> 1126 | F38: =ROUND('Bi|CHF'!G36/1000,0) -> 991 | G38: =ROUNDDOWN('Bi|CHF'!H36/1000,0) -> 21 | H38: =ROUND('Bi|CHF'!J36/1000,0) -> 2096 | K38: 2096 | L38: 0
C39: 294 | D39: =+'Bi|CHF'!D37 -> Finanzpolitische Reserven | E39: =ROUND('Bi|CHF'!E37/1000,0) -> 120 | F39: =ROUND('Bi|CHF'!G37/1000,0) -> 0 | G39: =ROUND('Bi|CHF'!H37/1000,0) -> 0 | H39: =ROUND('Bi|CHF'!J37/1000,0) -> 120 | K39: 120 | L39: 0
C40: 295 | D40: =+'Bi|CHF'!D38 -> Aufwertungsreserve VV (Einführung HRM2) | E40: =ROUND('Bi|CHF'!E38/1000,0) -> 0 | F40: =ROUND('Bi|CHF'!G38/1000,0) -> 0 | G40: =ROUND('Bi|CHF'!H38/1000,0) -> 0 | H40: =ROUND('Bi|CHF'!J38/1000,0) -> 0 | K40: 0 | L40: 0
C41: 296 | D41: =+'Bi|CHF'!D39 -> Neubewertungsreserven FV | E41: 0 | F41: 0 | G41: =ROUND('Bi|CHF'!H39/1000,0) -> 0 | H41: 0 | K41: 0 | L41: 0
C42: 298 | D42: =+'Bi|CHF'!D40 -> Übriges Eigenkapital | E42: =ROUND('Bi|CHF'!E40/1000,0) -> 0 | F42: =ROUND('Bi|CHF'!G40/1000,0) -> 0 | G42: =ROUND('Bi|CHF'!H40/1000,0) -> 0 | H42: =ROUND('Bi|CHF'!J40/1000,0) -> 0 | K42: 0 | L42: 0
C43: 299 | D43: =+'Bi|CHF'!D41 -> Bilanzüberschuss/-fehlbetrag | E43: =ROUND('Bi|CHF'!E41/1000,0)+ROUND('Bi|CHF'!E39/1000,0) -> 2739 | F43: =ROUND('Bi|CHF'!G41/1000,0)+ROUND('Bi|CHF'!G39/1000,0) -> 1840 | G43: =ROUND('Bi|CHF'!H41/1000,0)+ROUND('Bi|CHF'!H39/1000,0) -> 1830 | H43: =ROUND('Bi|CHF'!J41/1000,0)+ROUND('Bi|CHF'!J39/1000,0) -> 2749 | K43: 2749 | L43: 0

Sheet ER
B1: Rubriken der Erfolgsrechnung nach der Artengliederung | J1: 11
B3: Nr. | C3: Bezeichnung | D3: TCHF | E3: =+B3 -> Nr. | F3: =+C3 -> Bezeichnung | G3: =+D3 -> TCHF
B4: 3 | C4: =+'ER|CHF'!D5 -> Aufwand | D4: =SUM(D5:D14) -> 14546 | E4: 4 | F4: =+'ER|CHF'!D71 -> Ertrag | G4: =SUM(G5:G14) -> 14610
B5: 30 | C5: ='ER|TCHF'!D6 -> Personalaufwand | D5: ='ER|TCHF'!E6 -> 2020 | E5: 40 | F5: ='ER|TCHF'!D77 -> Fiskalertrag | G5: ='ER|TCHF'!E77 -> 7651
B6: 31 | C6: ='ER|TCHF'!D15 -> Sach- und übriger Betriebsaufwand | D6: ='ER|TCHF'!E15 -> 4076 | E6: 41 | F6: =+'ER|TCHF'!D82 -> Regalien und Konzessionen | G6: =+'ER|TCHF'!E82 -> 12
B7: 32 | C7: Rüstungsaufwand (nur Bund) | E7: 42 | F7: =+'ER|TCHF'!D87 -> Entgelte | G7: =+'ER|TCHF'!E87 -> 5076
B8: 33 | C8: ='ER|TCHF'!D27 -> Abschreibungen Verwaltungsvermögen | D8: ='ER|TCHF'!E27 -> 671 | E8: 43 | F8: ='ER|TCHF'!D97 -> Übrige Erträge | G8: ='ER|TCHF'!E97 -> 17
B9: 34 | C9: ='ER|TCHF'!D30 -> Finanzaufwand | D9: ='ER|TCHF'!E30 -> 125 | E9: 44 | F9: ='ER|TCHF'!D102 -> Finanzertrag | G9: ='ER|TCHF'!E102 -> 167
B10: 35 | C10: ='ER|TCHF'!D37 -> Einlagen in Spezialfinanzierungen [SpF] und Fonds | D10: ='ER|TCHF'!E37 -> 0 | E10: 45 | F10: ='ER|TCHF'!D113 -> Entnahmen aus Spezialfinanzierungen [SpF] und Fonds | G10: ='ER|TCHF'!E113 -> 23
B11: 36 | C11: =+'ER|TCHF'!D40 -> Transferaufwand | D11: =+'ER|TCHF'!E40 -> 6393 | E11: 46 | F11: ='ER|TCHF'!D121 -> Transferertrag | G11: ='ER|TCHF'!E121 -> 1373
B12: 37 | C12: =+'ER|TCHF'!D54 -> Durchlaufende Beiträge | D12: =+'ER|TCHF'!E54 -> 0 | E12: 47 | F12: ='ER|TCHF'!D128 -> Durchlaufende Beiträge | G12: ='ER|TCHF'!E128 -> 0
B13: 38 | C13: =+'ER|TCHF'!D56 -> Ausserordentlicher [a.o.] Aufwand | D13: =+'ER|TCHF'!E56 -> 991 | E13: 48 | F13: ='ER|TCHF'!D130 -> Ausserordentliche [a.o.] Erträge | G13: ='ER|TCHF'!E130 -> 21
B14: 39 | C14: =+'ER|TCHF'!D64 -> Interne Verrechnungen | D14: =+'ER|TCHF'!E64 -> 270 | E14: 49 | F14: ='ER|TCHF'!D138 -> Interne Verrechnungen | G14: ='ER|TCHF'!E138 -> 270
B16: Gesamtergebnis | D16: =+G4-D4 -> 64
AC18: 14297
AC19: =+FinNach!#REF!+FinNach!#REF!+AC18+64 -> 

Sheet gestER
B1: Darstellung der gestuften Erfolgsrechnung | J1: 11
B3: =+ER!B3 -> Nr. | C3: =+ER!C3 -> Bezeichnung | D3: Soll | E3: Haben | F3: Saldo
B4: 30 | C4: =+'ER|CHF'!D6 -> Personalaufwand | D4: ='ER|TCHF'!E6 -> 2020
B5: 31 | C5: =+'ER|CHF'!D15 -> Sach- und übriger Betriebsaufwand | D5: =+'ER|TCHF'!E15 -> 4076
B6: 33 | C6: =+'ER|CHF'!D27 -> Abschreibungen Verwaltungsvermögen | D6: ='ER|TCHF'!E27 -> 671
B7: 35 | C7: ='ER|CHF'!D37 -> Einlagen in Spezialfinanzierungen [SpF] und Fonds | D7: ='ER|TCHF'!E37 -> 0
B8: 36 | C8: =+'ER|CHF'!D40 -> Transferaufwand | D8: ='ER|TCHF'!E40 -> 6393
B9: 37 | C9: =+'ER|CHF'!D49 -> Durchlaufende Beiträge | D9: =+'ER|TCHF'!E54 -> 0
B10: Betrieblicher Aufwand | D10: =SUM(D4:D9) -> 13160
B11: 40 | C11: =+'ER|CHF'!D72 -> Fiskalertrag | E11: ='ER|TCHF'!E77 -> 7651
B12: 41 | C12: =+'ER|CHF'!D77 -> Regalien und Konzessionen | E12: =+'ER|TCHF'!E82 -> 12
B13: 42 | C13: =+'ER|CHF'!D82 -> Entgelte | E13: ='ER|TCHF'!E87 -> 5076
B14: 43 | C14: =+'ER|CHF'!D92 -> Übrige Erträge | E14: ='ER|TCHF'!E97 -> 17
B15: 45 | C15: =+'ER|CHF'!D108 -> Entnahmen aus Spezialfinanzierungen [SpF] und Fonds | E15: ='ER|TCHF'!E113 -> 23
B16: 46 | C16: =+'ER|CHF'!D111 -> Transferertrag | E16: ='ER|TCHF'!E121 -> 1373
B17: 47 | C17: =+'ER|CHF'!D118 -> Durchlaufende Beiträge | E17: =+'ER|TCHF'!E128 -> 0
B18: Betrieblicher Ertrag | C18: Revenus d'exploitation | E18: =SUM(E11:E17) -> 14152
B19: Ergebnis aus betrieblicher Tätigkeit (Ertragsüberschuss) | F19: =+E18-D10 -> 992
B21: 34 | C21: =+'ER|CHF'!D30 -> Finanzaufwand | D21: ='ER|TCHF'!E30 -> 125
B22: 44 | C22: =+'ER|CHF'!D97 -> Finanzertrag | E22: ='ER|TCHF'!E102 -> 167
B23: Ergebnis aus Finanzierung (Ertragsüberschuss) | F23: =+E22-D21 -> 42
B25: Operativer Aufwand | D25: =D21+D10 -> 13285
B26: Operativer Ertrag | E26: =E22+E18 -> 14319
B27: Operatives Ergebnis (Ertragsüberschuss) | F27: =+E26-D25 -> 1034
B29: 38 | C29: =+'ER|CHF'!D51 -> Ausserordentlicher [a.o.] Aufwand | D29: ='ER|TCHF'!E56 -> 991
B30: 48 | C30: =+'ER|CHF'!D120 -> Ausserordentliche [a.o.] Erträge | E30: ='ER|TCHF'!E130 -> 21
B31: Ausserordentliches Ergebnis (Aufwandüberschuss) | F31: =+E30-D29 -> -970
B33: Gesamtaufwand (ohne interne Verrechnungen) | D33: =+D29+D25 -> 14276
B34: Gesamtertrag (ohne interne Verrechnungen) | E34: =+E30+E26 -> 14340
B35: Gesamtresultat (Ertragsüberschuss) | F35: =+E34-D33 -> 64

Sheet FunkGlied
B1: Erfolgsrechnung und Investitionsrechnung nach der funktionalen Gliederung | J1: 11
B3: Nr. | C3: Bezeichnung der Funktion | D3: TCHF | E3: =+D3 -> TCHF | F3: =+E3 -> TCHF
B4: Erfolgsrechnung | D4: =+'ER|CHF'!E4 -> Aufwand | E4: =+'ER|CHF'!F4 -> Ertrag | F4: Nettoresultat
B5: 0 | C5: =+'Funk|CHF'!C6 -> Allgemeine Verwaltung | D5: =ROUND('Funk|CHF'!D6/1000,0) -> 1170 | E5: =ROUND('Funk|CHF'!E6/1000,0) -> 176 | F5: =+E5-D5 -> -994
B6: 1 | C6: =+'Funk|CHF'!C8 -> Öffentliche Ordnung und Sicherheit, Verteidigung | D6: =ROUND('Funk|CHF'!D8/1000,0) -> 350 | E6: =ROUNDUP('Funk|CHF'!E8/1000,0) -> 289 | F6: -61
B7: 2 | C7: =+'Funk|CHF'!C10 -> Bildung | D7: =ROUND('Funk|CHF'!D10/1000,0) -> 2662 | E7: =ROUND('Funk|CHF'!E10/1000,0) -> 165 | F7: -2497
B8: 3 | C8: =+'Funk|CHF'!C12 -> Kultur, Sport und Freizeit, Kirche | D8: =ROUND('Funk|CHF'!D12/1000,0) -> 326 | E8: =ROUND('Funk|CHF'!E12/1000,0) -> 222 | F8: -104
B9: 4 | C9: =+'Funk|CHF'!C14 -> Gesundheit | D9: =ROUND('Funk|CHF'!D14/1000,0) -> 11 | E9: =ROUND('Funk|CHF'!E14/1000,0) -> 0 | F9: -11
B10: 5 | C10: =+'Funk|CHF'!C16 -> Soziale Sicherheit | D10: =ROUND('Funk|CHF'!D16/1000,0) -> 2447 | E10: =ROUND('Funk|CHF'!E16/1000,0) -> 26 | F10: -2421
B11: 6 | C11: =+'Funk|CHF'!C18 -> Verkehr und Nachrichtenübermittlung | D11: =ROUNDUP('Funk|CHF'!D18/1000,0) -> 1112 | E11: =ROUND('Funk|CHF'!E18/1000,0) -> 142 | F11: -970
B12: 7 | C12: =+'Funk|CHF'!C20 -> Umweltschutz und Raumordnung | D12: =ROUND('Funk|CHF'!D20/1000,0) -> 2293 | E12: =ROUND('Funk|CHF'!E20/1000,0) -> 2084 | F12: -209
B13: 8 | C13: =+'Funk|CHF'!C23 -> Volkswirtschaft | D13: =ROUND('Funk|CHF'!D23/1000,0) -> 2553 | E13: =ROUND('Funk|CHF'!E23/1000,0) -> 2542 | F13: -11
B14: 9 | C14: =+'Funk|CHF'!C25 -> Finanzen und Steuern | D14: =ROUND('Funk|CHF'!D25/1000-130,0) -> 1622 | E14: =ROUND('Funk|CHF'!E25/1000-76,0) -> 8964 | F14: 7342
C15: Total | D15: =SUM(D5:D14) -> 14546 | E15: =SUM(E5:E14) -> 14610 | F15: =SUM(F5:F14) -> 64
B16: Investitionsrechnung | D16: =+'IR|CHF'!E4 -> Ausgaben | E16: =+'IR|CHF'!F4 -> Einnahmen | F16: =+F4 -> Nettoresultat
B17: 0 | C17: =+C5 -> Allgemeine Verwaltung | D17: 0 | E17: 0 | F17: =+E17-D17 -> 0
B18: 1 | C18: =+C6 -> Öffentliche Ordnung und Sicherheit, Verteidigung | D18: 0 | E18: 0 | F18: 0
B19: 2 | C19: Bildung | D19: =ROUND('Funk|CHF'!D33/1000,0) -> 715 | E19: =ROUND('Funk|CHF'!E33/1000,0) -> 0 | F19: =+E19-D19 -> -715
B20: 3 | C20: Kultur, Sport und Freizeit, Kirche | D20: =ROUND('Funk|CHF'!D35/1000,0) -> 514 | E20: =ROUND('Funk|CHF'!E35/1000,0) -> 40 | F20: -474
B21: 4 | C21: Gesundheit | D21: 0 | E21: 0 | F21: 0
B22: 5 | C22: Soziale Sicherheit | D22: 0 | E22: 0 | F22: 0
B23: 6 | C23: Verkehr und Nachrichtenübermittlung | D23: =ROUND('Funk|CHF'!D37/1000,0) -> 184 | E23: =ROUND('Funk|CHF'!E37/1000,0) -> 0 | F23: -184
B24: 7 | C24: Umweltschutz und Raumordnung | D24: =ROUND('Funk|CHF'!D39/1000,0) -> 354 | E24: =ROUND('Funk|CHF'!E39/1000,0) -> 0 | F24: -354
B25: 8 | C25: Volkswirtschaft | D25: =ROUNDDOWN('Funk|CHF'!D41/1000,0) -> 204 | E25: =ROUND('Funk|CHF'!E41/1000,0) -> 3 | F25: -201
B26: 9 | C26: Finanzen und Steuern | D26: 0 | E26: 0 | F26: 0
C27: Total | D27: =SUM(D17:D26) -> 1971 | E27: =SUM(E17:E26) -> 43 | F27: =SUM(F17:F26) -> -1928

Sheet IR
B1: Rubriken der Investitionsrechnung nach der Artengliederung | J1: 11
B3: =+ER!B3 -> Nr. | C3: =+ER!C3 -> Bezeichnung | D3: TCHF | E3: =+B3 -> Nr. | F3: =+C3 -> Bezeichnung | G3: =+D3 -> TCHF
B4: 5 | C4: =+'IR|CHF'!D5 -> Investitionsausgaben | D4: =SUM(D5:D13) -> 1971 | E4: 6 | F4: =+'IR|CHF'!D78 -> Investitionseinnahmen | G4: =SUM(G5:G13) -> 43
B5: 50 | C5: =+'IR|TCHF'!D6 -> Sachanlagen | D5: =+'IR|TCHF'!E6 -> 1971 | E5: 60 | F5: =+'IR|TCHF'!D84 -> Übertragungen von Sachanlagen in das Finanzvermögen | G5: =+'IR|TCHF'!E84 -> 0
B6: 51 | C6: =+'IR|TCHF'!D15 -> Investitionen auf Rechnung Dritter | D6: =+'IR|TCHF'!E15 -> 0 | E6: 61 | F6: =+'IR|TCHF'!D93 -> Rückerstattungen | G6: =+'IR|TCHF'!E93 -> 0
B7: 52 | C7: =+'IR|TCHF'!D24 -> Immaterielle Anlagen | D7: =+'IR|TCHF'!E24 -> 0 | E7: 62 | F7: =+'IR|TCHF'!D102 -> Übertragung immaterielle Anlagen in das Finanzvermögen | G7: =+'IR|TCHF'!E102 -> 0
E8: 63 | F8: =+'IR|TCHF'!D106 -> Investitionsbeiträge für eigene Rechnung | G8: =+'IR|TCHF'!E106 -> 43
B9: 54 | C9: =+'IR|TCHF'!D28 -> Darlehen | D9: =+'IR|TCHF'!E28 -> 0 | E9: 64 | F9: =+'IR|TCHF'!D116 -> Rückzahlung von Darlehen | G9: =+'IR|TCHF'!E116 -> 0
B10: 55 | C10: =+'IR|TCHF'!D38 -> Beteiligungen und Grundkapitalien | D10: =+'IR|TCHF'!E38 -> 0 | E10: 65 | F10: =+'IR|TCHF'!D131 -> Übertragung von Beteiligungen in das Finanzvermögen | G10: =+'IR|TCHF'!E131 -> 0
B11: 56 | C11: =+'IR|TCHF'!D53 -> Eigene Investitionsbeiträge | D11: =+'IR|TCHF'!E53 -> 0 | E11: 66 | F11: =+'IR|TCHF'!D141 -> Rückzahlung eigener Investitionsbeiträge | G11: =+'IR|TCHF'!E141 -> 0
B12: 57 | C12: =+'IR|TCHF'!D63 -> Durchlaufende Investitionsbeiträge | D12: =+'IR|TCHF'!E63 -> 0 | E12: 67 | F12: =+'IR|TCHF'!D151 -> Durchlaufende Investitionsbeiträge | G12: =+'IR|TCHF'!E151 -> 0
B13: 58 | C13: =+'IR|TCHF'!D73 -> Ausserordentliche [a.o.] Investitionsausgaben | D13: =+'IR|TCHF'!E73 -> 0 | E13: 68 | F13: =+'IR|TCHF'!D161 -> Ausserordentliche [a.o.] Investitionseinnahmen | G13: =+'IR|TCHF'!E161 -> 0

Sheet FinNach
B1: Finanzierungsausweis gemäss HRM1
B3: =+ER!C3 -> Bezeichnung | C3: TCHF | D3: =+B3 -> Bezeichnung | E3: =C3 -> TCHF
B4: Geldflusswirksamer Aufwand | C4: =SUM(C5:C12) -> 12614 | D4: Geldflusswirksamer Ertrag | E4: =SUM(E5:E12) -> 14279
B5: =+ER!C5 -> Personalaufwand | C5: =ROUND(ER!D5,0) -> 2020 | D5: =+ER!F5 -> Fiskalertrag | E5: =ROUND(ER!G5,0) -> 7651
B6: =+ER!C6 -> Sach- und übriger Betriebsaufwand | C6: =ROUND(ER!D6,0) -> 4076 | D6: =+ER!F6 -> Regalien und Konzessionen | E6: =ROUND(ER!G6,0) -> 12
B7: =+ER!C7 -> Rüstungsaufwand (nur Bund) | D7: =+ER!F7 -> Entgelte | E7: =ROUND(ER!G7,0) -> 5076
D8: =+ER!F8 -> Übrige Erträge | E8: 0
B9: =+ER!C9 -> Finanzaufwand | C9: =ROUND(ER!D9,0) -> 125 | D9: =+ER!F9 -> Finanzertrag | E9: =ROUND(ER!G9,0) -> 167
B11: =+ER!C11 -> Transferaufwand | C11: =ROUND(ER!D11,0) -> 6393 | D11: =+ER!F11 -> Transferertrag | E11: =ROUND(ER!G11,0) -> 1373
B12: =+ER!C12 -> Durchlaufende Beiträge | C12: =+ER!D12 -> 0 | D12: =+ER!F12 -> Durchlaufende Beiträge | E12: =+ER!G12 -> 0
B13: Geldflusswirksames Resultat | E13: =+E4-C4 -> 1665
B15: Abschreibungen | E15: =SUM(E16:E16) -> 671
B16: =+ER!C8 -> Abschreibungen Verwaltungsvermögen | E16: =+ER!D8 -> 671
B18: Nicht geldwirksamer Aufwand | C18: =SUM(C19:C22) -> 1261 | D18: Nicht geldwirksamer Ertrag | E18: =SUM(E19:E22) -> 331
B19: =+ER!C10 -> Einlagen in Spezialfinanzierungen [SpF] und Fonds | C19: =+ER!D10 -> 0 | D19: =+ER!F10 -> Entnahmen aus Spezialfinanzierungen [SpF] und Fonds | E19: =+ER!G10 -> 23
D20: =+'ER|TCHF'!D99 -> Aktivierung Eigenleistungen | E20: =+'ER|TCHF'!E99 -> 17
B21: ='ER|CHF'!D51 -> Ausserordentlicher [a.o.] Aufwand | C21: =+ER!D13 -> 991 | D21: =+ER!F13 -> Ausserordentliche [a.o.] Erträge | E21: =+ER!G13 -> 21
B22: =+ER!C14 -> Interne Verrechnungen | C22: =+ER!D14 -> 270 | D22: =+ER!F14 -> Interne Verrechnungen | E22: =+ER!G14 -> 270
B23: Nicht geldwirksamer Aufwand - nicht geldwirksamer Ertrag | E23: =+C18-E18 -> 930
B24: Ertragsüberschuss (Gewinn) | E24: =+gestER!F35 -> 64
B25: Überschuss und übrige nicht geldwirksame Vorgänge | E25: =+C18+E24-E18 -> 994
B27: Selbstfinanzierung | E27: =+E15+E25 -> 1665
B29: Bruttoinvestitionen | C29: =ROUND(IR!D4,0) -> 1971
B30: =+IR!F4 -> Investitionseinnahmen | D30: =ROUND(IR!G4,0) -> 43
B31: Nettoinvestitionen | E31: =+C29-D30 -> 1928
B32: Darlehen | E32: =+E31-E27 -> 263
B34: Veränderung des Verwaltungsvermögens | E34: =+E31-E15 -> 1257
B35: Veränderung des Eigenkapitals | E35: =+E25 -> 994

Sheet GFR
B1: Vom HRM2 empfohlene Geldflussrechnung
C3: TCHF
B4: + Ertragsüberschuss der Erfolgsrechnung | C4: =ER!D16 -> 64
B5: + Abschreibungen des Verwaltungsvermögens | C5: =+ER!D8 -> 671
B6: + Einlagen in die Eigenkapitalkonten | C6: =+'ER|TCHF'!E63+'ER|TCHF'!E39 -> 991
B7: – Entnahmen aus den Eigenkapitalkonten | C7: =-'ER|TCHF'!E115-'ER|TCHF'!E137 -> -21
B8: – Aktivierung von Eigenleistungen | C8: =-'ER|TCHF'!E99 -> -17
B9: – Wertberichtigungen von Anlagen | C9: =-'ER|TCHF'!E107 -> -9
B10: + Abnahme der Forderungen | C10: =+'Bi|TCHF'!E8-'Bi|TCHF'!H8 -> 111
B11: – Zunahme der aktiven Rechnungsabgrenzungen | C11: ='Bi|TCHF'!E10-'Bi|TCHF'!H10 -> -69
B12: + Zunahme der laufenden Verbindlichkeiten | C12: =+'Bi|TCHF'!H27-'Bi|TCHF'!E27 -> 260
B13: + Zunahme der kurzfristigen Rückstellungen | C13: =+'Bi|TCHF'!H30-'Bi|TCHF'!E30 -> 46
B14: – Abnahme der passiven Rechnungsabgrenzungen | C14: =+'Bi|TCHF'!H29-'Bi|TCHF'!E29 -> -12
B15: – Abnahme der Spezialfinanzierungen und Fonds im Fremdkapital | C15: =-'Bi|TCHF'!E33+'Bi|TCHF'!H33 -> -26
B16: Geldfluss aus operativer Tätigkeit [GFO] | C16: =SUM(C4:C15) -> 1989
B18: – Ausgaben für liquiditätswirksame Nettoinvestitionen | C18: =-'IR|TCHF'!E170+'ER|TCHF'!E99 -> -1911
B19: Geldfluss aus Investitionstätigkeit [GFI] | C19: =+C18 -> -1911
B20: Geldfluss aus Anlagentätigkeit [GFA] | C20: 0
B21: Geldfluss aus Investitions- und Anlagentätigkeit [GFI+A] | C21: =+C19+C20 -> -1911
B23: + Zunahme der kurzfristigen Finanzverbindlichkeiten | C23: =+'Bi|TCHF'!F28 -> 500
B24: – Rückzahlung von kurzfristigen Finanzverbindlichkeiten | C24: =-'Bi|TCHF'!G28 -> -500
B25: + Zunahme der kurzfristigen Finanzverbindlichkeiten | C25: =+'Bi|TCHF'!F31 -> 600
B26: – Rückzahlung von langfristigen Finanzverbindlichkeiten | C26: =-'Bi|TCHF'!G31 -> -1500
B27: Geldfluss aus Finanzierungstätigkeit [GFF] | C27: =SUM(C23:C26) -> -900
B29: Veränderung der flüssigen Mittel und kurzfristigen Geldanlagen [GFO]+[GFI+A]+[GFF] | C29: =+C16+C21+C27 -> -822
B31: Flüssige Mittel und kurzfristige Geldanlagen am 01.01.Jahr t (Konto 100) | C31: =+'Bi|TCHF'!E7 -> 1605
B32: Flüssige Mittel und kurzfristige Geldanlagen am 31.12.Jahr t (Konto 100) | C32: =+'Bi|TCHF'!H7 -> 783
B34: Kontrolle mit der Veränderung der flüssigen Mittel und kurzfristigen Geldanlagen in der Bilanz | C34: =+C32-C31 -> -822

Sheet BerAb
B1: Berechnung für den Vergleich einer linearen und degressiven Abschreibung
B3: Nutzungsdauer | D3: 10 | E3: 10
B4: Abschreibungsmethode | D4: linear | E4: degressiv
B5: Abschreibungssatz (%) | D5: 10 | E5: 35
B6: Jahre
B7: 0 | C7: t | D7: 10 | E7: =+D7 -> 10
B8: 1 | C8: t+1 | D8: =+D$7-(D$5/10*$B8) -> 9 | E8: =+E7-(E$5/100*E7) -> 6.5
B9: =+B8+1 -> 2 | C9: t+2 | D9: =+D$7-(D$5/10*$B9) -> 8 | E9: =+E8-(E$5/100*E8) -> 4.225
B10: =+B9+1 -> 3 | C10: t+3 | D10: 7 | E10: 2.74625
B11: 4 | C11: t+4 | D11: 6 | E11: 1.7850625
B12: 5 | C12: t+5 | D12: 5 | E12: 1.160290625
B13: 6 | C13: t+6 | D13: 4 | E13: 0.7541889063
B14: 7 | C14: t+7 | D14: 3 | E14: 0.4902227891
B15: 8 | C15: t+8 | D15: 2 | E15: 0.3186448129
B16: 9 | C16: t+9 | D16: 1 | E16: 0.2071191284
B17: 10 | C17: t+10 | D17: 0 | E17: 0.1346274334

Sheet ChFiRe
B1: Finanzierungsrechnung des Bundes, 2018
B3: =+gestER!C3 -> Bezeichnung | C3: =+gestER!D3 -> Soll | D3: =+gestER!E3 -> Haben | E3: =+gestER!F3 -> Saldo
B4: Fiskaleinnahmen | C4: 68121
B5: Regalien und Konzessionen | C5: 1212
B6: Finanzeinnahmen | C6: 1121
B7: Verschiedene laufende Einnahmen | C7: 1789
B8: Investitionseinnahmen | C8: 1270
B9: Ordentliche Einnahmen | C9: =SUM(C4:C8) -> 73513
B10: Eigenausgaben | D10: 10252
B11: Transferausgaben | D11: 48120
B12: Finanzausgaben | D12: 1203
B13: Investitionsausgaben | D13: 11000
B14: Ordentliche Ausgaben | D14: =SUM(D10:D13) -> 70575
B15: Ordentlicher Finanzierungssaldo (Überschuss) | E15: =+C9-D14 -> 2938
B17: Ausserordentliche Einnahmen | D17: 90
B18: Ausserordentliche Ausgaben | C18: 0
B19: Gesamter Finanzierungssaldo | E19: =+E15+D17-C18 -> 3028

Sheet BedIV
B1: Umfang der internen Verrechnungen im Total des Aufwands und Ertrags
B3: =+ER!B3 -> Nr. | C3: =+ER!C3 -> Bezeichnung | D3: TCHF | E3: =+B3 -> Nr. | F3: =+C3 -> Bezeichnung | G3: =D3 -> TCHF
B4: 3 | C4: =+ER!C4 -> Aufwand | D4: =+'ER|TCHF'!E5 -> 14546 | E4: 4 | F4: =+ER!F4 -> Ertrag | G4: =+'ER|TCHF'!E76 -> 14610
B5: … | C5: davon… | E5: … | F5: =+C5 -> davon…
B6: =+'ER|CHF'!C59 -> 39 | C6: =+ER!C14 -> Interne Verrechnungen | D6: =+'ER|TCHF'!E64 -> 270 | E6: =+'ER|CHF'!C128 -> 49 | F6: =+C6 -> Interne Verrechnungen | G6: =+'ER|TCHF'!E138 -> 270
B7: =+'ER|CHF'!C60 -> 390 | C7: =+'ER|CHF'!D60 -> Material- und Warenbezüge | D7: =+'ER|TCHF'!E65 -> 0 | E7: =+B7+100 -> 490 | F7: =+C7 -> Material- und Warenbezüge | G7: =+D7 -> 0
B8: =+B7+1 -> 391 | C8: =+'ER|CHF'!D61 -> Dienstleistungen | D8: =+'ER|TCHF'!E66 -> 144 | E8: =+B8+100 -> 491 | F8: =+C8 -> Dienstleistungen | G8: =+D8 -> 144
B9: =+B8+1 -> 392 | C9: =+'ER|CHF'!D62 -> Pacht, Mieten, Benützungskosten | D9: =+'ER|TCHF'!E67 -> 0 | E9: 492 | F9: Pacht, Mieten, Benützungskosten | G9: =+D9 -> 0
B10: =+B9+1 -> 393 | C10: =+'ER|CHF'!D63 -> Betriebs- und Verwaltungskosten | D10: =+'ER|TCHF'!E68 -> 116 | E10: 493 | F10: Betriebs- und Verwaltungskosten | G10: 116
B11: =+B10+1 -> 394 | C11: =+'ER|CHF'!D64 -> Kalk. Zinsen und Finanzaufwand | D11: =+'ER|TCHF'!E69 -> 10 | E11: 494 | F11: Kalk. Zinsen und Finanzaufwand | G11: 10
B12: =+B11+1 -> 395 | C12: =+'ER|CHF'!D65 -> Planmässige und ausserplanmässige Abschreibungen | D12: =+'ER|TCHF'!E70 -> 0 | E12: 495 | F12: Planmässige und ausserplanmässige Abschreibungen | G12: 0
B13: 398 | C13: =+'ER|CHF'!D66 -> Übertragungen | D13: =+'ER|TCHF'!E71 -> 0 | E13: 498 | F13: =+C13 -> Übertragungen | G13: 0
B14: =+B13+1 -> 399 | C14: =+'ER|CHF'!D67 -> Übrige interne Verrechnungen | D14: =+'ER|TCHF'!E72 -> 0 | E14: 499 | F14: Übrige interne Verrechnungen | G14: 0
B16: Verrechnungen in % des Gesamtaufwands | D16: =+D6/D4*100 -> 1.856180393 | E16: Verrechnungen in % des Gesamtertrags | G16: =+G6/G4*100 -> 1.848049281
X18: =+#REF!+#REF!+X17+64 -> 

Sheet Steuer
B1: Bedeutung der Steuern und Kausalabgaben im Gesamtertrag
B3: Nr. | C3: Bezeichnung | D3: TCHF
B4: 4 | C4: =+'ER|TCHF'!D76 -> Ertrag | D4: =+'ER|TCHF'!E76 -> 14610
B5: … | C5: davon…
B6: =+'ER|TCHF'!C77 -> 40 | C6: =+'ER|TCHF'!D77 -> Fiskalertrag | D6: =+'ER|TCHF'!E77 -> 7651
B7: =+'ER|TCHF'!C78 -> 400 | C7: =+'ER|TCHF'!D78 -> Direkte Steuern natürliche Personen | D7: =+'ER|TCHF'!E78 -> 6231
B8: =+'ER|TCHF'!C79 -> 401 | C8: =+'ER|TCHF'!D79 -> Direkte Steuern juristische Personen | D8: =+'ER|TCHF'!E79 -> 501
B9: =+'ER|TCHF'!C80 -> 402 | C9: =+'ER|TCHF'!D80 -> Übrige Direkte Steuern | D9: =+'ER|TCHF'!E80 -> 898
B10: =+'ER|TCHF'!C81 -> 403 | C10: =+'ER|TCHF'!D81 -> Besitz- und Aufwandsteuern | D10: =+'ER|TCHF'!E81 -> 21
B11: […]
B12: =+'ER|TCHF'!C87 -> 42 | C12: =+'ER|TCHF'!D87 -> Entgelte | D12: =+'ER|TCHF'!E87 -> 5076
B13: =+'ER|TCHF'!C88 -> 420 | C13: =+'ER|TCHF'!D88 -> Ersatzabgaben | D13: =+'ER|TCHF'!E88 -> 192
B14: =+'ER|TCHF'!C89 -> 421 | C14: =+'ER|TCHF'!D89 -> Gebühren für Amtshandlungen | D14: =+'ER|TCHF'!E89 -> 73
B15: =+'ER|TCHF'!C90 -> 422 | C15: =+'ER|TCHF'!D90 -> Spital- und Heimtaxen, Kostgelder | D15: =+'ER|TCHF'!E90 -> 0
B16: =+'ER|TCHF'!C91 -> 423 | C16: =+'ER|TCHF'!D91 -> Schul- und Kursgelder | D16: =+'ER|TCHF'!E91 -> 0
B17: =+'ER|TCHF'!C92 -> 424 | C17: =+'ER|TCHF'!D92 -> Benützungsgebühren und Dienstleistungen | D17: =+'ER|TCHF'!E92 -> 4651
B18: =+'ER|TCHF'!C93 -> 425 | C18: =+'ER|TCHF'!D93 -> Erlös aus Verkäufen | D18: =+'ER|TCHF'!E93 -> 92
B19: =+'ER|TCHF'!C94 -> 426 | C19: =+'ER|TCHF'!D94 -> Rückerstattungen | D19: =+'ER|TCHF'!E94 -> 68
B20: =+'ER|TCHF'!C95 -> 427 | C20: =+'ER|TCHF'!D95 -> Bussen | D20: =+'ER|TCHF'!E95 -> 0
B21: =+'ER|TCHF'!C96 -> 429 | C21: =+'ER|TCHF'!D96 -> Übrige Entgelte | D21: =+'ER|TCHF'!E96 -> 0
B23: Fiskalertrag in % des Gesamtertrags | D23: =+D6/$D$4*100 -> 52.36824093
B24: Entgelte in % des Gesamtertrags | D24: =+D12/$D$4*100 -> 34.74332649
B25: Total | D25: =SUM(D23:D24) -> 87.11156742 | X25: =+#REF!+#REF!+X24+64 -> 

Sheet Trans
B1: Umfang der Transferzahlungen am Total des Aufwands und Ertrags
B3: =+ER!B3 -> Nr. | C3: =+ER!C3 -> Bezeichnung | D3: TCHF | E3: =+B3 -> Nr. | F3: =+C3 -> Bezeichnung | G3: =D3 -> TCHF
B4: =+ER!B4 -> 3 | C4: =+ER!C4 -> Aufwand | D4: =+'ER|TCHF'!E5 -> 14546 | E4: =+ER!E4 -> 4 | F4: =+ER!F4 -> Ertrag | G4: =+'ER|TCHF'!E76 -> 14610
B5: … | C5: =+BedIV!C5 -> davon… | E5: … | F5: =+C5 -> davon…
B6: =+ER!B11 -> 36 | C6: =+'ER|CHF'!D40 -> Transferaufwand | D6: =+'ER|TCHF'!E40 -> 6393 | E6: =+ER!E11 -> 46 | F6: =+'ER|TCHF'!D121 -> Transferertrag | G6: =+'ER|TCHF'!E121 -> 1373
B7: 360 | C7: =+'ER|TCHF'!D41 -> Ertragsanteile an Dritte | D7: =+'ER|TCHF'!E41 -> 0 | E7: 460 | F7: =+'ER|TCHF'!D122 -> Ertragsanteile von Dritten | G7: =+'ER|TCHF'!E122 -> 0
B8: 361 | C8: =+'ER|TCHF'!D42 -> Entschädigungen an öffentliche Gemeinwesen | D8: =+'ER|TCHF'!E42 -> 3905 | E8: 461 | F8: =+'ER|TCHF'!D123 -> Entschädigungen von öffentlichen Gemeinwesen | G8: =+'ER|TCHF'!E123 -> 645
B9: =+B8+1 -> 362 | C9: =+'ER|TCHF'!D43 -> Finanz- und Lastenausgleich | D9: =+'ER|TCHF'!E43 -> 564 | E9: =+E8+1 -> 462 | F9: =+'ER|TCHF'!D124 -> Finanz- und Lastenausgleich | G9: =+'ER|TCHF'!E124 -> 610
B10: =+B9+1 -> 363 | C10: =+'ER|TCHF'!D44 -> Beiträge an öffentliche Gemeinwesen und Dritte | D10: =+'ER|TCHF'!E44 -> 1924 | E10: =+E9+1 -> 463 | F10: =+'ER|TCHF'!D125 -> Beiträge von öffentlichen Gemeinwesen und Dritten | G10: =+'ER|TCHF'!E125 -> 117
B11: [...] * | E11: 469 | F11: =+'ER|TCHF'!D127 -> Übriger Transferertrag | G11: =+'ER|TCHF'!E127 -> 1
B13: Transfers in % des Gesamtaufwands | D13: =+D6/D4*100 -> 43.95022687 | E13: Transfers in % des Gesamtertrags | G13: =+G6/G4*100 -> 9.397672827
X15: =+#REF!+#REF!+X14+64 -> 

Sheet StPot
B1: Erträge, die in die Schätzung des Steuerpotenzials einzubeziehen sind
B3: =+ER!E3 -> Nr. | C3: =+ER!F3 -> Bezeichnung | D3: TCHF
B4: 4 | C4: =+'ER|CHF'!D71 -> Ertrag | D4: =+'ER|TCHF'!E76 -> 14610
B5: … | C5: =+BedIV!C5 -> davon…
B6: 40 | C6: =+'ER|CHF'!D72 -> Fiskalertrag | D6: ='ER|TCHF'!E77 -> 7651
B7: 400 | C7: =+'ER|CHF'!D73 -> Direkte Steuern natürliche Personen | D7: ='ER|TCHF'!E78 -> 6231
B8: 401 | C8: =+'ER|CHF'!D74 -> Direkte Steuern juristische Personen | D8: ='ER|TCHF'!E79 -> 501
B9: 402 | C9: =+'ER|CHF'!D75 -> Übrige Direkte Steuern | D9: ='ER|TCHF'!E80 -> 898
B10: 403 | C10: =+'ER|CHF'!D76 -> Besitz- und Aufwandsteuern | D10: ='ER|TCHF'!E81 -> 21
B11: 41 | C11: =+'ER|CHF'!D77 -> Regalien und Konzessionen | D11: =+'ER|TCHF'!E82 -> 12
B12: 410 | C12: =+'ER|CHF'!D78 -> Regalien | D12: =+'ER|TCHF'!E83 -> 0
B13: 411 | C13: =+'ER|CHF'!D79 -> Schweiz. Nationalbank | D13: =+'ER|TCHF'!E84 -> 0
B14: 412 | C14: =+'ER|CHF'!D80 -> Konzessionen | D14: =+'ER|TCHF'!E85 -> 12
B15: 413 | C15: =+'ER|CHF'!D81 -> Ertragsanteile an Lotterien, Sport-Toto, Wetten | D15: =+'ER|TCHF'!E86 -> 0
Q19: 14297
Q20: =+#REF!+#REF!+Q19+64 -> 

Sheet TdB
B1: Struktur des Kennzahlensystems
B3: Gruppen | C3: Kennzahlen in der Übersicht | E3: Kennzahlen HRM2
E4: 1. Priorität | F4: 2. Priorität
B5: Haushalt- | C5: Deckung des Aufwands | D5: K1
B6: gleichgewicht | C6: Selbstfinanzierung der Nettoinvestitionen | D6: K2 | E6: #1
C7: Zusätzliche Nettoverpflichtungen | D7: K3
C8: Nettoinsbelastung | D8: K4
B9: Qualität der | C9: Beherrschung der laufenden Ausgaben/Einw. | D9: K5
B10: Haushaltführung | C10: Investitionsanstrengung | D10: K6
C11: Genauigkeit der Steuerprognose | D11: K7
C12: Durchschnittliche Schuldzinsen | D12: K8
B13: Ausmass der | C13: Nettoverschuldungsquotient | D13: K9 | E13: #
B14: Verschuldung | C14: Bruttoverschuldungsanteil | D14: K10 | F14: ##
B15: Hilfskennzahlen | C15: Selbstfinanzierungsanteil | D15: K11 | F15: ##
C16: Zinsbelastungsanteil | D16: K12 | E16: #2
C17: Kapitaldienstanteil | D17: K13 | F17: ##
C18: Investitionsanteil | D18: K14 | F18: ##3
C19: Nettoschulden pro Einwohner | D19: K15 | F19: ##
B21: 1 Kennzahl HRM2 heisst "Selbstfinanzierungsgrad".
B22: 2 Kennzahl analog zur Kennzahl der Nettozinsbelastung.
B23: 3 Kennzahl analog zur Kennzahl der Investitionsanstrengung.

Sheet TdBGew
B1: Gewichtung der Kennzahlen
B3: =+TdB!B3 -> Gruppen | C3: =+TdB!C3 -> Kennzahlen in der Übersicht | E3: Gewichtung
E4: Kennzahlen | F4: =+B3 -> Gruppen
B5: =+TdB!B5 -> Haushalt- | C5: =+TdB!C5 -> Deckung des Aufwands | D5: =+TdB!D5 -> K1 | E5: 2 | F5: 2
B6: =+TdB!B6 -> gleichgewicht | C6: =+TdB!C6 -> Selbstfinanzierung der Nettoinvestitionen | D6: K2# | E6: 2
C7: =+TdB!C7 -> Zusätzliche Nettoverpflichtungen | D7: =+TdB!D7 -> K3 | E7: 2
C8: =+TdB!C8 -> Nettoinsbelastung | D8: =+TdB!D8 -> K4 | E8: 1
B9: =+TdB!B9 -> Qualität der | C9: =+TdB!C9 -> Beherrschung der laufenden Ausgaben/Einw. | D9: =+TdB!D9 -> K5 | E9: 2 | F9: 2
B10: =+TdB!B10 -> Haushaltführung | C10: =+TdB!C10 -> Investitionsanstrengung | D10: =+TdB!D10 -> K6 | E10: 2
C11: =+TdB!C11 -> Genauigkeit der Steuerprognose | D11: =+TdB!D11 -> K7 | E11: 1
C12: =+TdB!C12 -> Durchschnittliche Schuldzinsen | D12: =+TdB!D12 -> K8 | E12: 1
B13: =+TdB!B13 -> Ausmass der | C13: =+TdB!C13 -> Nettoverschuldungsquotient | D13: K9# | E13: 2 | F13: 1
B14: =+TdB!B14 -> Verschuldung | C14: =+TdB!C14 -> Bruttoverschuldungsanteil | D14: K10## | E14: 1
B16: # Kennzahl HRM2 der 1. Priorität
B17: ## Kennzahl HRM2 der 2. Priorität

Sheet KennBer
B1: Berechnung und Benotung der Kennzahlen
B3: =+TdB!B3 -> Gruppen | C3: Kennzahlen
D4: Nummer | E4: Formel | G4: Zahl | H4: Wert | I4: Note
B5: =+TdB!B5 -> Haushalt- | C5: =+TdB!C5 -> Deckung des Aufwands | D5: =+TdB!D5 -> K1 | H5: =+G6/G7*100 -> 107.7832142 | I5: =(IF(H5<90,1,IF(H5<93,2-(93-H5)*(1/3),IF(H5<95.5,3-(95.5-H5)*(1/2.5),IF(H5<97.5,4-(97.5-H5)*(1/2),IF(H5<99,5-(99-H5)*(1/1.5),IF(H5<100,6-(100-H5)*(1/1),IF(H5<103,6,IF(H5<110,6-(H5-103)*(1/7),IF(H5<120,5-(H5-110)*(1/10),4)))))))))) -> 5.316683693
B6: =+TdB!B6 -> gleichgewicht | E6: Zähler | F6: Laufender Ertrag | G6: =+'ER|TCHF'!E77+'ER|TCHF'!E82+'ER|TCHF'!E87+'ER|TCHF'!E97+'ER|TCHF'!E102+'ER|TCHF'!E113+'ER|TCHF'!E121+'ER|TCHF'!E130+-'ER|TCHF'!E136-'ER|TCHF'!E137+zusDatCHF!E16/1000 -> 14319 | H6: in %
E7: Nenner | F7: Laufender Aufwand | G7: =+'ER|TCHF'!E6+'ER|TCHF'!E15+'ER|TCHF'!E26+'ER|TCHF'!E27+'ER|TCHF'!E30+'ER|TCHF'!E37+'ER|TCHF'!E40+'ER|TCHF'!E57+'ER|TCHF'!E58+'ER|TCHF'!E60+'ER|TCHF'!E61 -> 13285
C8: =+TdB!C6 -> Selbstfinanzierung der Nettoinvestitionen | D8: K2# | H8: =+G9/G10*100 -> 91.09263709 | I8: =IF(H8<25,1,IF(H8<100,6-(100-H8)*(5/75),6)) -> 5.406175806
E9: =+E6 -> Zähler | F9: Selbstfinanzierung | G9: =+'ER|TCHF'!E76-'ER|TCHF'!E5+'ER|TCHF'!E27+'ER|TCHF'!E37-'ER|TCHF'!E113+'ER|TCHF'!E45+'ER|TCHF'!E46+'ER|TCHF'!E47-'ER|TCHF'!E126+'ER|TCHF'!E59+'ER|TCHF'!E62-'ER|TCHF'!E136+'ER|TCHF'!E63-'ER|TCHF'!E137-zusDatCHF!E15/1000 -> 1682 | H9: =+H6 -> in %
E10: =+E7 -> Nenner | F10: Nettoinvestitionen (3-Jahres-Durchschnitt) | G10: =('IR|TCHF'!E5+'IR|TCHF'!H5+SUM(zusDatCHF!G19:G26)/1000-'IR|TCHF'!E83-'IR|TCHF'!H83-SUM(zusDatCHF!G28:G36)/1000)/3 -> 1846.471958
C11: =+TdB!C7 -> Zusätzliche Nettoverpflichtungen | D11: =+TdB!D7 -> K3 | H11: =+G12/G13*100 -> 1.768956791 | I11: =(IF(H11<0,6,IF(H11<5,6-(H11-0)*(5/5),1))) -> 4.231043209
E12: =+E9 -> Zähler | F12: Veränderung der Nettoverpflichtungen zwischen dem 1.1 und dem 31.12 | G12: =('Bi|TCHF'!H26-zusDatCHF!E41/1000-'Bi|TCHF'!H6)-('Bi|TCHF'!E26-zusDatCHF!F41/1000-'Bi|TCHF'!E6) -> 223 | H12: =+H9 -> in %
E13: =+E10 -> Nenner | F13: Laufende Ausgaben | G13: =+PriSaldo!E21 -> 12606.3
C14: =+TdB!C8 -> Nettoinsbelastung | D14: =+TdB!D8 -> K4 | H14: =+G15/G16*100 -> -0.4356473227 | I14: =(IF(H14<0,6,IF(H14<4,6-(H14-0)*(1/4),IF(H14<7,5-(H14-4)*(1/3),IF(H14<13,4-(H14-7)*(3/6),1))))) -> 6
E15: =+E12 -> Zähler | F15: Nettozinsen | G15: =+'ER|TCHF'!E31+'ER|TCHF'!E33+'ER|TCHF'!E34-'ER|TCHF'!E103-zusDatCHF!E14/1000-'ER|TCHF'!E106-'ER|TCHF'!E108-'ER|TCHF'!E110-'ER|TCHF'!E111 -> -33 | H15: =+H12 -> in %
E16: =+E13 -> Nenner | F16: Grundsätzliche Steuererträge | G16: =+'ER|TCHF'!E78+'ER|TCHF'!E79+zusDatCHF!E11/1000+zusDatCHF!E12/1000+zusDatCHF!E13/1000 -> 7574.93465
B17: =+TdB!B9 -> Qualität der | C17: =+TdB!C9 -> Beherrschung der laufenden Ausgaben/Einw. | D17: =+TdB!D9 -> K5 | H17: =+G18/G19*100 -> 3.486318497 | I17: =IF(H17<1,6,IF(H17<6,6-(H17-1)*(5/5),1)) -> 3.513681503
B18: =+TdB!B10 -> Haushaltführung | E18: =+E15 -> Zähler | F18: Veränderung der laufenden Ausgaben im Vergleich zum Vorjahr | G18: =(PriSaldo!E21/zusDatCHF!E4-PriSaldo!N21/zusDatCHF!F4)*1000 -> 136.4245846 | H18: =+H15 -> in %
E19: =+E16 -> Nenner | F19: Laufende Ausgaben pro Einwohner des Vorjahres | G19: =+PriSaldo!N21/zusDatCHF!F4*1000 -> 3913.14175
C20: =+TdB!C10 -> Investitionsanstrengung | D20: =+TdB!D10 -> K6 | H20: =+G21/G22*100 -> 14.64721574 | I20: =(IF(H20<0,1,IF(H20<3,4-(3-H20)*(1/1),IF(H20<7,6-(7-H20)*(1/2),IF(H20<10,6,IF(H20<14,6-(H20-10)*(1/2),IF(H20<17,4-(H20-14)*(1/1),1))))))) -> 3.352784256
E21: =+E18 -> Zähler | F21: =+F10 -> Nettoinvestitionen (3-Jahres-Durchschnitt) | G21: =+G10 -> 1846.471958 | H21: =+H18 -> in %
E22: =+E19 -> Nenner | F22: =+F13 -> Laufende Ausgaben | G22: =+G13 -> 12606.3
C23: =+TdB!C11 -> Genauigkeit der Steuerprognose | D23: =+TdB!D11 -> K7 | H23: =+G24/G25*100 -> -5.347593583 | I23: =(IF(H23<-10,4,IF(H23<-1,6-(-1-H23)*(2/9),IF(H23<1,6,IF(H23<5,6-(H23-1)*(5/4),1))))) -> 5.033868093
E24: =+E21 -> Zähler | F24: Differenz zwischen den budgetierten und den tatsächlichen grundsätzlichen Steuererträgen | G24: =+'ER|TCHF'!F78+'ER|TCHF'!F79-'ER|TCHF'!E78-'ER|TCHF'!E79 -> -360 | H24: =+H21 -> in %
E25: =+E22 -> Nenner | F25: Grundsätzliche effektive Steuererträge | G25: =+'ER|TCHF'!E78+'ER|TCHF'!E79 -> 6732
C26: =+TdB!C12 -> Durchschnittliche Schuldzinsen | D26: =+TdB!D12 -> K8 | H26: =+G27/G28*100 -> 1.197348119 | I26: =IF(H26<2.5,6,IF(H26>7.5,1,6-(H26-2.5)*(5/5))) -> 6
E27: =+E24 -> Zähler | F27: Passivzinsen | G27: =zusDatCHF!E8/1000 -> 60.46608 | H27: =+H24 -> in %
E28: =+E25 -> Nenner | F28: Durchschnittliche Bruttoschuld zwischen dem 1.1 und dem 31.12 | G28: =('Bi|TCHF'!E28+'Bi|TCHF'!H28+'Bi|TCHF'!H31+'Bi|TCHF'!E31-zusDatCHF!E39-zusDatCHF!F39-zusDatCHF!E40-zusDatCHF!F40-zusDatCHF!E41-zusDatCHF!F41)/2 -> 5050
B29: =+TdB!B13 -> Ausmass der | C29: =+TdB!C13 -> Nettoverschuldungsquotient | D29: K9# | H29: =+G30/G31*100 -> 30.10064044 | I29: =IF(H29<=50,6,IF(H29<=100,6-(H29-50)*(1/50),IF(H29<200,5-(H29-100)*(4/100),1))) -> 6
B30: =+TdB!B14 -> Verschuldung | E30: =+E27 -> Zähler | F30: Nettoschulden | G30: =+'Bi|TCHF'!H26-'Bi|TCHF'!H6-zusDatCHF!E41 -> 2303 | H30: =+H27 -> in %
E31: =+E28 -> Nenner | F31: Steuererträge | G31: =+'ER|TCHF'!E77 -> 7651
C32: =+TdB!C14 -> Bruttoverschuldungsanteil | D32: K10## | H32: =+G33/G34*100 -> 44.14414414 | I32: =IF(H32<25,6,IF(H32<125,6-(H32-25)*(2/100),IF(H32<200,4-(H32-125)*(3/75),1))) -> 5.617117117
E33: =+E30 -> Zähler | F33: Bruttoschulden | G33: =+'Bi|TCHF'!H27+'Bi|TCHF'!H28-zusDatCHF!E39/1000+'Bi|TCHF'!H31-zusDatCHF!E40/1000-zusDatCHF!E41/1000 -> 6321 | H33: =+H30 -> in %
E34: =+E31 -> Nenner | F34: =+F6 -> Laufender Ertrag | G34: =+'ER|TCHF'!E77+'ER|TCHF'!E82+'ER|TCHF'!E87+'ER|TCHF'!E97+'ER|TCHF'!E102+'ER|TCHF'!E113+'ER|TCHF'!E121+'ER|TCHF'!E130-'ER|TCHF'!E136-'ER|TCHF'!E137+zusDatCHF!E16 -> 14319
B35: =+TdB!B15 -> Hilfskennzahlen | C35: =+TdB!C15 -> Selbstfinanzierungsanteil | D35: K11## | H35: =+G36/G37*100 -> 11.74663035 | I35: =IF(H35>=8,6,IF(H35>=4,6-(8-H35)*(2/4),IF(H35>=1,4-(4-H35)*(3/3),1))) -> 6
E36: =+E33 -> Zähler | F36: =+F9 -> Selbstfinanzierung | G36: =+G9 -> 1682 | H36: =+H33 -> in %
E37: =+E34 -> Nenner | F37: =+F34 -> Laufender Ertrag | G37: =+G34 -> 14319
C38: =+TdB!C16 -> Zinsbelastungsanteil | D38: K12# | H38: =+G39/G40*100 -> 0.4329911307 | I38: =IF(H38<=0,6,IF(H38<4,6-(H38-0)*(1/2),IF(H38<7,6-(H38-2)*(1/1),1))) -> 5.783504435
E39: =+E36 -> Zähler | F39: Nettozinsaufwand | G39: =+'ER|TCHF'!E31-'ER|TCHF'!E103 -> 62 | H39: =+H36 -> in %
E40: =+E37 -> Nenner | F40: =+F37 -> Laufender Ertrag | G40: =+G34 -> 14319
C41: =+TdB!C17 -> Kapitaldienstanteil | D41: K13## | H41: =+G42/G43*100 -> 5.119072561 | I41: =IF(H41<=2.5,6,IF(H41<15,6-(H41-2.5)*(1/2.5),1)) -> 4.952370976
E42: =+E39 -> Zähler | F42: Kapitaldienst | G42: =+'ER|TCHF'!E31-'ER|TCHF'!E103+'ER|TCHF'!E27+'ER|TCHF'!E45+'ER|TCHF'!E46+'ER|TCHF'!E47-'ER|TCHF'!E126 -> 733 | H42: =+H39 -> in %
E43: =+E40 -> Nenner | F43: =+F40 -> Laufender Ertrag | G43: =+G40 -> 14319
C44: =+TdB!C18 -> Investitionsanteil | D44: K14## | H44: =+G45/G46*100 -> 13.52102241 | I44: =(IF(H44<0,1,IF(H44<3,4-(3-H44)*(1/1),IF(H44<7,6-(7-H44)*(1/2),IF(H44<10,6,IF(H44<14,6-(H44-10)*(1/2),IF(H44<17,4-(H44-14)*(1/1),1))))))) -> 4.239488794
E45: =+E42 -> Zähler | F45: Bruttoinvestitionen | G45: =+'IR|TCHF'!E5-'IR|TCHF'!E63 -> 1971 | H45: =+H42 -> in %
E46: =+E43 -> Nenner | F46: Gesamtausgaben | G46: =+PriSaldo!E31 -> 14577.3
C47: =+TdB!C19 -> Nettoschulden pro Einwohner | D47: K15## | H47: =+G48/G49*1000 -> 739.8008352 | I47: =IF(H47<=0,6,IF(H47<4000,6-(H47-0)*(2/4000),IF(H47<7000,4-(H47-4000)*(3/3000),1))) -> 5.630099582
E48: =+E45 -> Zähler | F48: =+F30 -> Nettoschulden | G48: =+G30 -> 2303 | H48: in CHF
E49: =+E46 -> Nenner | F49: Ständige Wohnbevölkerung | G49: =+zusDatCHF!E4 -> 3113

Sheet TdBZus
B1: Zusammenfassende Übersichtstabelle
B4: =+TdB!B3 -> Gruppen | C4: Kennzahlen des Kennzahlensystems | D4: Kennzahlen | I4: Gruppen | K4: Gesamtnote
D5: Nummer | E5: Wert | F5: Note | G5: Gewichtung | I5: Gesamtnote | J5: Gewichtung | K5: total
B6: =+TdB!B5 -> Haushalt- | C6: Deckung des Aufwands | D6: =+TdBGew!D5 -> K1 | E6: =+KennBer!H5 -> 107.7832142 | F6: =+KennBer!I5 -> 5.316683693 | G6: 2 | I6: =(F6*G6+F7*G7+F8*G8+F9*G9)/SUM(G6:G9) -> 5.129686488 | J6: 2 | K6: =+(J6*I6+J10*I10+J14*I14)/SUM(J6:J15) -> 4.877469044
B7: =+TdB!B6 -> gleichgewicht | C7: Selbstfinanzierung der Nettoinvestitionen | D7: K2# | E7: =+KennBer!H8 -> 91.09263709 | F7: =+KennBer!I8 -> 5.406175806 | G7: 2
C8: Zusätzliche Nettoverpflichtungen | D8: =+TdBGew!D7 -> K3 | E8: =+KennBer!H11 -> 1.768956791 | F8: =+KennBer!I11 -> 4.231043209 | G8: 2
C9: Nettozinsbelastung | D9: =+TdBGew!D8 -> K4 | E9: =+KennBer!H14 -> -0.4356473227 | F9: =+KennBer!I14 -> 6 | G9: 1
B10: =+TdB!B9 -> Qualität der | C10: Beherrschung der laufenden Ausgaben | D10: =+TdBGew!D9 -> K5 | E10: =+KennBer!H17 -> 3.486318497 | F10: =+KennBer!I17 -> 3.513681503 | G10: 2 | I10: =(F10*G10+F11*G11+F12*G12+F13*G13)/SUM(G10:G13) -> 4.127799935 | J10: 2
B11: =+TdB!B10 -> Haushaltführung | C11: Investitionsanstrengung | D11: =+TdBGew!D10 -> K6 | E11: =+KennBer!H20 -> 14.64721574 | F11: =+KennBer!I20 -> 3.352784256 | G11: 2
C12: Genauigkeit der Steuerprognose | D12: =+TdBGew!D11 -> K7 | E12: =+KennBer!H23 -> -5.347593583 | F12: =+KennBer!I23 -> 5.033868093 | G12: 1
C13: Durchschnittliche Schuldzinsen | D13: =+TdBGew!D12 -> K8 | E13: =+KennBer!H26 -> 1.197348119 | F13: =+KennBer!I26 -> 6 | G13: 1
B14: =+TdB!B13 -> Ausmass der | C14: Nettoverschuldungsquotient | D14: K9# | E14: =+KennBer!H29 -> 30.10064044 | F14: =+KennBer!I29 -> 6 | G14: 2 | I14: =(F14*G14+F15*G15)/SUM(G14:G15) -> 5.872372372 | J14: 1
B15: =+TdB!B14 -> Verschuldung | C15: Bruttoverschuldungsanteil | D15: K10## | E15: =+KennBer!H32 -> 44.14414414 | F15: =+KennBer!I32 -> 5.617117117 | G15: 1
B16: Hilfskennzahlen | C16: Taux d'autofinancement | D16: I11## | E16: =+KennBer!H35 -> 11.74663035 | F16: =+KennBer!I35 -> 6
C17: Part des charges d'intérêts | D17: I12# | E17: =+KennBer!H38 -> 0.4329911307 | F17: =+KennBer!I38 -> 5.783504435
C18: Part du service de la dette | D18: I13## | E18: =+KennBer!H41 -> 5.119072561 | F18: =+KennBer!I41 -> 4.952370976
C19: Proportion des investissements | D19: I14## | E19: =+KennBer!H44 -> 13.52102241 | F19: =+KennBer!I44 -> 4.239488794
C20: Dette nette par habitant | D20: I15## | E20: =+KennBer!H47 -> 739.8008352 | F20: =+KennBer!I47 -> 5.630099582
B21: # Kennzahl HRM2 der 1. Priorität
B22: ## Kennzahl HRM2 der 2. Priorität

Sheet BIP
B1: Schätzung des potenziellen BIP und der Produktionslücke, und des k-Faktors
B3: Jahr | C3: 2015 | D3: =+C3+1 -> 2016 | E3: =+D3+1 -> 2017 | F3: =+E3+1 -> 2018 | G3: =+F3+1 -> 2019 | I3: Quellen
C4: t-2 | D4: t-1 | E4: t | F4: t+1 | G4: t+2
B5: Effektives nationales BIP (CHF Mio) | C5: 661248.6907 | D5: 671836.7605 | E5: 682698.2927 | I5: https://www.seco.admin.ch/seco/de/home/wirtschaftslage---wirtschaftspolitik/Wirtschaftslage/bip-quartalsschaetzungen-/daten.html | P5: nach Produktionsansatz, Rohdaten
B6: Schweizer Bevölkerung | C6: 8327126 | D6: 8419550 | E6: 8484130 | I6: https://www.bfs.admin.ch/bfs/de/home/statistiken/bevoelkerung.html | P6: Ständige Wohnbevölkerung, am Jahresende
B7: Effektives nationales BIP, pro Einwohner (CHF) | C7: =+C5/C6*1000000 -> 79408.99305 | D7: =+D5/D6*1000000 -> 79794.85371 | E7: =+E5/E6*1000000 -> 80467.68409
B8: Bevölkerung von MeinGemeinwesen | C8: 3002 | D8: 3097 | E8: 3113
B9: Geschätztes effektives BIP für MeinGemeinwesen (CHF Mio) | C9: =+C7*C8/1000000 -> 238.3857971 | D9: =+D7*D8/1000000 -> 247.1246619 | E9: =+E7*E8/1000000 -> 250.4959006
B10: Wachstumsprognose des BIP für die kommenden Jahre | F10: 0.024 | G10: 0.02 | I10: https://www.seco.admin.ch/seco/de/home/wirtschaftslage---wirtschaftspolitik/Wirtschaftslage/konjunkturprognosen.html | P10: Expertengruppe Konjunkturprognosen des Bundes, voraussichtlicher Konjunkturtrend im Frühjahr 2018
B11: Effektives prognostiziertes BIP für MeinGemeinwesen (CHF Mio) | F11: =+E9*(1+F10) -> 256.5078022 | G11: =+F11*(1+G10) -> 261.6379582
B12: Potenzielles BIP für MeinGemeinwesen im Jahr t (CHF Mio) | E12: =AVERAGE(C9:E9,F11:G11) -> 250.830424
B13: Produktionslücke (CHF Mio) | E13: =+E9-E12 -> -0.3345234347
B14: Produktionslücke in % im Vergleich zum potenziellen BIP | E14: =+E13/E12 -> -0.001333663713
B16: Jahr | C16: =+E3 -> 2017
C17: t
B18: =+B12 -> Potenzielles BIP für MeinGemeinwesen im Jahr t (CHF Mio) | C18: =+E12 -> 250.830424
B19: =+B9 -> Geschätztes effektives BIP für MeinGemeinwesen (CHF Mio) | C19: =+E9 -> 250.4959006
B20: Geschätzter k-Faktor für das Jahr t | C20: =+C18/C19 -> 1.001335445

Sheet k
B1: Konjunkturfaktor k für die Anwendung der Schuldenbremse des Bundes
D3: Pot. BIP im Vergleich zum effektiven (k) | E3: Pot. BIP auf 1.00 genormt | F3: Höchstwert der Grafik
C4: t-14 | E4: 1 | F4: 1.05
B5: 03 | C5: t-14 | D5: 1.018 | E5: 1 | F5: 1.05
B6: 04 | C6: t-13 | D6: 1.009 | E6: 1 | F6: 1.05
B7: 04 | C7: t-12 | D7: 0.998 | E7: 1 | F7: 1.05
B8: 05 | C8: t-11 | D8: 0.986 | E8: 1 | F8: 1.05
B9: 07 | C9: t-10 | D9: 0.974 | E9: 1 | F9: 1.05
B10: 08 | C10: t-9 | D10: 0.983 | E10: 1 | F10: 1.05
B11: 09 | C11: t-8 | D11: 1.018 | E11: 1 | F11: 1.05
B12: =+B11+1 -> 10 | C12: t-7 | D12: 1.013 | E12: 1 | F12: 1.05
B13: 11 | C13: t-6 | D13: 1.007 | E13: 1 | F13: 1.05
B14: 12 | C14: t-5 | D14: 1.012 | E14: 1 | F14: 1.05
B15: 13 | C15: t-4 | D15: 1.008 | E15: 1 | F15: 1.05
B16: 14 | C16: t-3 | D16: 1.006 | E16: 1 | F16: 1.05
B17: 15 | C17: t-2 | D17: 1.011 | E17: 1 | F17: 1.05
B18: 16 | C18: t-1 | D18: 1.011 | E18: 1 | F18: 1.05
B19: =+B18+1 -> 17 | C19: t | D19: 1.009 | E19: 1 | F19: 1.05
B20: 18 | C20: t+1 | D20: 0.995 | E20: 1 | F20: 1.05
B21: B19 | C21: t+2 | D21: 0.996 | E21: 1 | F21: 1.05
C22: t+3 | E22: 1 | F22: 1.05

Sheet FinErg
B1: Finanzierungssaldo
B3: Jahr t (2017)
C5: =+ER!B3 -> Nr. | D5: =+ER!C3 -> Bezeichnung | E5: TCHF | G5: =+C5 -> Nr. | H5: =+D5 -> Bezeichnung | I5: =E5 -> TCHF
B6: + | C6: 30 | D6: =+'ER|CHF'!D6 -> Personalaufwand | E6: ='ER|TCHF'!E6 -> 2020 | F6: + | G6: 40 | H6: =+'ER|CHF'!D72 -> Fiskalertrag | I6: ='ER|TCHF'!E77 -> 7651
B7: + | C7: 31 | D7: =+'ER|CHF'!D15 -> Sach- und übriger Betriebsaufwand | E7: ='ER|TCHF'!E15 -> 4076 | F7: + | G7: 41 | H7: =+'ER|CHF'!D77 -> Regalien und Konzessionen | I7: ='ER|TCHF'!E82 -> 12
B8: ― | C8: 3180 | D8: Wertberichtigungen auf Forderungen | E8: =-zusDatCHF!E7/1000 -> -7.7 | F8: + | G8: 42 | H8: =+'ER|CHF'!D82 -> Entgelte | I8: ='ER|TCHF'!E87 -> 5076
B9: + | C9: 34 | D9: =+'ER|CHF'!D30 -> Finanzaufwand | E9: ='ER|TCHF'!E30 -> 125 | F9: + | G9: 430 | H9: =+'ER|CHF'!D93 -> Übrige betriebliche Erträge | I9: ='ER|TCHF'!E98 -> 0
B10: ― | C10: 344 | D10: ='ER|CHF'!D35 -> Wertberichtigungen Anlagen des Finanzvermögens | E10: ='ER|TCHF'!E35 -> 0 | F10: + | G10: 439 | H10: Übriger Ertrag (geldwirksam) | I10: =+'ER|TCHF'!E101 -> 0
B11: + | C11: 36 | D11: ='ER|CHF'!D40 -> Transferaufwand | E11: ='ER|TCHF'!E40 -> 6393 | F11: + | G11: 44 | H11: =+'ER|CHF'!D97 -> Finanzertrag | I11: ='ER|TCHF'!E102 -> 167
B12: ― | C12: 364 | D12: ='ER|CHF'!D45 -> Wertberichtigungen Darlehen VV | E12: =-'ER|TCHF'!E45 -> 0 | F12: ― | G12: 444 | H12: =+'ER|CHF'!D102 -> Wertberichtigungen Anlagen Finanzvermögen | I12: =-'ER|TCHF'!E107 -> -9
B13: ― | C13: 365 | D13: ='ER|CHF'!D46 -> Wertberichtigungen Beteiligungen VV | E13: =-'ER|TCHF'!E46 -> 0 | F13: ― | G13: 4490 | H13: Aufwertungen Verwaltungsvermögen | I13: =-'ER|TCHF'!E112 -> 0
B14: ― | C14: 366 | D14: ='ER|CHF'!D47 -> Abschreibungen Investitionsbeiträge | E14: =-'ER|TCHF'!E47 -> 0 | F14: + | G14: 46 | H14: =+'ER|CHF'!D111 -> Transferertrag | I14: ='ER|TCHF'!E121 -> 1373
B15: + | C15: 380 | D15: =+'ER|CHF'!D52 -> Ausserordentlicher Personalaufwand | E15: =+'ER|TCHF'!E57 -> 0 | F15: ― | G15: 466 | H15: =+'ER|CHF'!D116 -> Auflösungen passivierter Investitionsbeiträge | I15: =-'ER|TCHF'!E126 -> 0
B16: + | C16: 381 | D16: =+'ER|CHF'!D53 -> Ausserordentlicher Sach- und Betriebsaufwand | E16: =+'ER|TCHF'!E58 -> 0 | F16: + | G16: 481 | H16: =+'ER|CHF'!D121 -> Ausserordentliche Erträge von Regalien, Konzessionen | I16: =+'ER|TCHF'!E131 -> 0
B17: + | C17: 3840 | D17: Geldwirksamer ausserordentlicher Finanzaufwand | E17: =+zusDatCHF!E9 -> 0 | F17: + | G17: 482 | H17: =+'ER|CHF'!D122 -> Ausserordentliche Entgelte | I17: =+'ER|TCHF'!E132 -> 0
B18: + | C18: 386 | D18: =+'ER|CHF'!D56 -> Ausserordentlicher Transferaufwand | E18: =+'ER|TCHF'!E61 -> 0 | F18: + | G18: 483 | H18: =+'ER|CHF'!D123 -> Ausserordentliche verschiedene Erträge | I18: =+'ER|TCHF'!E133 -> 0
F19: + | G19: 484 | H19: =+'ER|CHF'!D124 -> Ausserordentliche Finanzerträge | I19: =+'ER|TCHF'!E134 -> 0
F20: + | G20: 486 | H20: =+'ER|CHF'!D125 -> Ausserordentliche Transfererträge | I20: =+'ER|TCHF'!E135 -> 0
B21: Laufende Ausgaben | E21: =SUM(E6:E20) -> 12606.3 | F21: Laufende Einnahmen | I21: =SUM(I6:I20) -> 14270
B22: + | C22: 50 | D22: =+'IR|CHF'!D6 -> Sachanlagen | E22: =+'IR|TCHF'!E6 -> 1971 | F22: + | G22: 60 | H22: =+'IR|TCHF'!D84 -> Übertragungen von Sachanlagen in das Finanzvermögen | I22: =+'IR|TCHF'!E84 -> 0
B23: + | C23: 51 | D23: =+'IR|CHF'!D15 -> Investitionen auf Rechnung Dritter | E23: =+'IR|TCHF'!E15 -> 0 | F23: + | G23: 61 | H23: =+'IR|CHF'!D88 -> Rückerstattungen | I23: =+'IR|TCHF'!E93 -> 0
B24: + | C24: 52 | D24: =+'IR|TCHF'!D24 -> Immaterielle Anlagen | E24: =+'IR|TCHF'!E24 -> 0 | F24: + | G24: 62 | H24: =+'IR|CHF'!D97 -> Übertragung immaterielle Anlagen in das Finanzvermögen | I24: =+'IR|TCHF'!E102 -> 0
F25: + | G25: 63 | H25: =+'IR|CHF'!D101 -> Investitionsbeiträge für eigene Rechnung | I25: =+'IR|TCHF'!E106 -> 43
B26: + | C26: 54 | D26: =+'IR|CHF'!D28 -> Darlehen | E26: =+'IR|TCHF'!E28 -> 0 | F26: + | G26: 64 | H26: =+'IR|CHF'!D111 -> Rückzahlung von Darlehen | I26: =+'IR|TCHF'!E116 -> 0
B27: + | C27: 55 | D27: =+'IR|CHF'!D38 -> Beteiligungen und Grundkapitalien | E27: =+'IR|TCHF'!E38 -> 0 | F27: + | G27: 65 | H27: =+'IR|CHF'!D121 -> Übertragung von Beteiligungen in das Finanzvermögen | I27: =+'IR|TCHF'!E131 -> 0
B28: + | C28: 56 | D28: =+'IR|CHF'!D48 -> Eigene Investitionsbeiträge | E28: =+'IR|TCHF'!E53 -> 0 | F28: + | G28: 66 | H28: =+'IR|CHF'!D131 -> Rückzahlung eigener Investitionsbeiträge | I28: =+'IR|TCHF'!E141 -> 0
B29: + | C29: 58 | D29: =+'IR|CHF'!D68 -> Ausserordentliche [a.o.] Investitionsausgaben | E29: =+'IR|TCHF'!E73 -> 0 | F29: + | G29: 68 | H29: =+'IR|CHF'!D151 -> Ausserordentliche [a.o.] Investitionseinnahmen | I29: =+'IR|TCHF'!E161 -> 0
B30: =+'IR|TCHF'!D5 -> Investitionsausgaben | E30: =SUM(E22:E29) -> 1971 | F30: =+'IR|TCHF'!D83 -> Investitionseinnahmen | I30: =SUM(I22:I29) -> 43
B31: Gesamtausgaben | E31: =+E21+E30 -> 14577.3 | F31: Gesamteinnahmen | I31: =+I21+I30 -> 14313
B32: Finanzierungssaldo (– Gesamtausgaben + Gesamteinnahmen), hier Finanzierungsdefizit | I32: =-E31+I31 -> -264.3

Sheet KSErg
B1: Schätzung des konjunkturellen | K1: und des strukturellen Saldos
C3: Steuern der … Personen
C4: … natürlichen … | F4: ... juristischen ... | K4: Produktionslücke in % des potenziellen BIP | M4: 0.1
B5: k-Faktor | C5: 1.009 | D5: 1.0013 | F5: =+C5 -> 1.009 | G5: =+D5 -> 1.0013 | K5: =+B5 -> k-Faktor | M5: =1/(M4+1) -> 0.9090909091
B6: Effektive Einnahmen (TCHF) | C6: =+'ER|TCHF'!E78 -> 6231 | F6: =+'ER|TCHF'!E79 -> 501 | K6: Steuern der natürlichen Personen
B7: Elastizität α | C7: 1.93 | F7: 1.8 | L7: =+B6 -> Effektive Einnahmen (TCHF) | M7: =+C6 -> 6231
B8: kα | C8: =+C5^C7 -> 1.017442678 | D8: =+D5^C7 -> 1.002510517 | F8: =+F5^F7 -> 1.016258285 | G8: =+G5^F7 -> 1.002341217 | L8: =+B7 -> Elastizität α | M8: =+C7 -> 1.93
B9: 1 – kα | C9: =1-C8 -> -0.01744267822 | D9: =1-D8 -> -0.002510516645 | F9: =1-F8 -> -0.0162582851 | G9: =1-G8 -> -0.002341216695 | L9: 1 – kα | M9: =1-(M5^M8) -> 0.1680214727
B10: Konjunkturelle Einnahmen (TCHF) | C10: =+C9*$C$6 -> -108.685328 | D10: =+D9*$C$6 -> -15.64302921 | F10: =+F9*$F$6 -> -8.145400836 | G10: =+G9*$F$6 -> -1.172949564 | L10: =+B10 -> Konjunkturelle Einnahmen (TCHF) | M10: =+M7*M9 -> 1046.941796
K11: Steuern der juristischen Personen
B12: =+B5 -> k-Faktor | C12: =+C5 -> 1.009 | D12: =+D5 -> 1.0013 | L12: =+L7 -> Effektive Einnahmen (TCHF) | M12: =+F6 -> 501
B13: Effektive Ausgaben (TCHF) | C13: =+gestER!D25-gestER!D6-gestER!D7 -> 12614 | L13: =+B7 -> Elastizität α | M13: =+F7 -> 1.8
B14: Elastizität β | C14: -0.13 | L14: 1 – kα | M14: =1-M5^M13 -> 0.1576488624
B15: kβ | C15: =+C12^C14 -> 0.9988359117 | D15: =+D12^C14 -> 0.999831124 | L15: =+L10 -> Konjunkturelle Einnahmen (TCHF) | M15: =+M12*M14 -> 78.98208006
B16: 1 – kβ | C16: =1-C15 -> 0.001164088301 | D16: =1-D15 -> 0.000168875984 | K16: Ausgaben
B17: Konjunkturelle Ausgaben (TCHF) | C17: =+C16*$C$13 -> 14.68380983 | D17: =+D16*$C$13 -> 2.130201662 | L17: =+B13 -> Effektive Ausgaben (TCHF) | M17: =+C13 -> 12614
L18: =+B14 -> Elastizität β | M18: =+C14 -> -0.13
B19: =+B5 -> k-Faktor | C19: =+C12 -> 1.009 | D19: =+D12 -> 1.0013 | L19: 1 – kβ | M19: =1-M5^M18 -> -0.01246740144
B20: =+B10 -> Konjunkturelle Einnahmen (TCHF) | C20: =+C10+F10 -> -116.8307288 | D20: =+D10+G10 -> -16.81597878 | L20: =+B17 -> Konjunkturelle Ausgaben (TCHF) | M20: =+M17*M19 -> -157.2638018
B21: =+B17 -> Konjunkturelle Ausgaben (TCHF) | C21: =+C17 -> 14.68380983 | D21: =+D17 -> 2.130201662 | K21: =+B22 -> Konjunktureller Saldo (TCHF) | M21: =+M10+M15-M20 -> 1283.187678
B22: Konjunktureller Saldo (TCHF) | C22: =+C20-C21 -> -131.5145387 | D22: =+D20-D21 -> -18.94618044 | K22: =+B25 -> Effektiver operativer Saldo (TCHF) | M22: =+C25 -> 1034
K23: =+B27 -> Struktureller operativer Saldo (TCHF) | M23: =+M22-M21 -> -249.1876782
B24: =+B5 -> k-Faktor | C24: =+C19 -> 1.009 | D24: =+D19 -> 1.0013
B25: Effektiver operativer Saldo (TCHF) | C25: =gestER!F27 -> 1034
B26: =+B22 -> Konjunktureller Saldo (TCHF) | C26: =+C22 -> -131.5145387 | D26: =+D22 -> -18.94618044
B27: Struktureller operativer Saldo (TCHF) | C27: =+C25-C26 -> 1165.514539 | D27: =+C25-D26 -> 1052.94618
B29: =+B5 -> k-Faktor | C29: =+C24 -> 1.009 | D29: =+D24 -> 1.0013
B30: Effektiver Finanzierungssaldo (TCHF) | C30: =ROUND(FinErg!I32,0) -> -264
B31: =+B26 -> Konjunktureller Saldo (TCHF) | C31: =ROUND(C26,0) -> -132 | D31: =ROUND(D26,0) -> -19
B32: Struktureller Finanzierungssaldo (TCHF) | C32: =+C30-C31 -> -132 | D32: =+C30-D31 -> -245

Sheet SchuVer
B1: Schulden und Verpflichtungen (brutto und netto) am 31.12. der Jahre t und t-1
B3: =+FinErg!B3 -> Jahr t (2017) | K3: Jahr t-1 (2016)
B5: =+FinErg!C5 -> Nr. | C5: =+FinErg!D5 -> Bezeichnung | D5: TCHF | E5: =+B5 -> Nr. | F5: =+C5 -> Bezeichnung | G5: =D5 -> TCHF | H5: =+F5 -> Bezeichnung | I5: =D5 -> TCHF | K5: =+B5 -> Nr. | L5: =+C5 -> Bezeichnung | M5: =D5 -> TCHF | N5: =+K5 -> Nr. | O5: =+L5 -> Bezeichnung | P5: =D5 -> TCHF | Q5: =+O5 -> Bezeichnung | R5: =D5 -> TCHF
B6: 100 | C6: =+'Bi|CHF'!D7 -> Flüssige Mittel und kurzfristige Geldanlagen | D6: ='Bi|TCHF'!H7 -> 783 | E6: 200 | F6: ='Bi|CHF'!D25 -> Laufende Verbindlichkeiten | G6: ='Bi|TCHF'!H27 -> 1721 | K6: 100 | L6: =+C6 -> Flüssige Mittel und kurzfristige Geldanlagen | M6: ='Bi|TCHF'!E7 -> 1605 | N6: 200 | O6: =+F6 -> Laufende Verbindlichkeiten | P6: ='Bi|TCHF'!E27 -> 1461
B7: 101 | C7: =+'Bi|CHF'!D8 -> Forderungen | D7: ='Bi|TCHF'!H8 -> 1622 | E7: 201 | F7: ='Bi|CHF'!D26 -> Kurzfristige Finanzverbindlichkeiten | G7: ='Bi|TCHF'!H28 -> 0 | K7: 101 | L7: Forderungen | M7: ='Bi|TCHF'!E8 -> 1733 | N7: 201 | O7: =+F7 -> Kurzfristige Finanzverbindlichkeiten | P7: ='Bi|TCHF'!E28 -> 0
B8: 102 | C8: ='Bi|CHF'!D9 -> Kurzfristige Finanzanlagen | D8: ='Bi|TCHF'!H9 -> 0 | K8: 102 | L8: Kurzfristige Finanzanlagen | M8: ='Bi|TCHF'!E9 -> 0
B9: 106 | C9: =+'Bi|CHF'!D11 -> Vorräte und angefangene Arbeiten | D9: ='Bi|TCHF'!H11 -> 0 | E9: 206 | F9: ='Bi|CHF'!D29 -> Langfristige Finanzverbindlichkeiten | G9: ='Bi|TCHF'!H31 -> 4600 | K9: 106 | L9: Vorräte und angefangene Arbeiten | M9: ='Bi|TCHF'!E11 -> 0 | N9: 206 | O9: =+F9 -> Langfristige Finanzverbindlichkeiten | P9: ='Bi|TCHF'!E31 -> 5500
B10: 107 | C10: ='Bi|CHF'!D12 -> Langfristige Finanzanlagen | D10: ='Bi|TCHF'!H12 -> 100 | K10: 107 | L10: Langfristige Finanzanlagen | M10: ='Bi|TCHF'!E12 -> 91
B11: 108 | C11: =+'Bi|CHF'!D13 -> Sachanlagen FV | D11: ='Bi|TCHF'!H13 -> 2014 | K11: 108 | L11: Sachanlagen FV | M11: ='Bi|TCHF'!E13 -> 2014
C12: «verfügbares» Finanzvermögen | D12: =SUM(D6:D11) -> 4519 | F12: Bruttoschulden * | G12: =SUM(G6:G11)-zusDatCHF!E39-zusDatCHF!E40-zusDatCHF!E41 -> 6321 | H12: Nettoschulden | I12: =+G12-D12 -> 1802 | L12: «verfügbares» Finanzvermögen | M12: =SUM(M6:M11) -> 5443 | O12: =+F12 -> Bruttoschulden * | P12: =SUM(P6:P11) -> 6961 | Q12: =+H12 -> Nettoschulden | R12: =+P12-M12 -> 1518
B13: 104 | C13: ='Bi|CHF'!D10 -> Aktive Rechnungsabgrenzungen | D13: ='Bi|TCHF'!H10 -> 165 | E13: 204 | F13: ='Bi|CHF'!D27 -> Passive Rechnungsabgrenzungen | G13: ='Bi|TCHF'!H29 -> 21 | K13: 104 | L13: Aktive Rechnungsabgrenzungen | M13: ='Bi|TCHF'!E10 -> 96 | N13: 204 | O13: Passive Rechnungsabgrenzungen | P13: ='Bi|TCHF'!E29 -> 33
E14: 205 | F14: ='Bi|CHF'!D28 -> Kurzfristige Rückstellungen | G14: ='Bi|TCHF'!H30 -> 323 | N14: 205 | O14: Kurzfristige Rückstellungen | P14: ='Bi|TCHF'!E30 -> 277
E15: 208 | F15: ='Bi|CHF'!D30 -> Langfristige Rückstellungen | G15: ='Bi|TCHF'!H32 -> 0 | N15: 208 | O15: Langfristige Rückstellungen | P15: ='Bi|TCHF'!E32 -> 0
B16: 109 | C16: ='Bi|CHF'!D14 -> Forderungen gegenüber SpF und Fonds im FK | D16: ='Bi|TCHF'!H14 -> 0 | E16: 209 | F16: ='Bi|CHF'!D31 -> Verbindlichkeiten gegenüber SpF und Fonds im FK | G16: ='Bi|TCHF'!H33 -> 322 | K16: 109 | L16: =+C16 -> Forderungen gegenüber SpF und Fonds im FK | M16: ='Bi|TCHF'!E14 -> 0 | N16: 209 | O16: Verbindlichkeiten gegenüber SpF und Fonds im FK | P16: ='Bi|TCHF'!E33 -> 348
B17: 10 | C17: ='Bi|CHF'!D6 -> Finanzvermögen [FV] | D17: =SUM(D12:D16) -> 4684 | E17: 20 | F17: Fremdkapital (= Bruttoverpflichtungen) | G17: =SUM(G12:G16) -> 6987 | H17: Netto- verpflichtungen | I17: =+G17-D17 -> 2303 | K17: 10 | L17: =+C17 -> Finanzvermögen [FV] | M17: =SUM(M12:M16) -> 5539 | N17: 20 | O17: Fremdkapital (= Bruttoverpflichtungen) | P17: =SUM(P12:P16) -> 7619 | Q17: =+H17 -> Netto- verpflichtungen | R17: =+P17-M17 -> 2080
B18: * Um ganz genau zu sein, entsprechen die Bruttoschulden den Rubriken 200+201+206, von denen - falls existent - die kurzfristigen (2016) und langfristigen derivativen Finanzinstrumente (2066) sowie die passivierten Investitionsbeiträge (2068) abgezogen werden müssen.

Sheet PriSaldo
B1: Primärsaldo der Jahre t und t-1
B3: =+SchuVer!B3 -> Jahr t (2017) | K3: =+SchuVer!K3 -> Jahr t-1 (2016)
C5: =+SchuVer!B5 -> Nr. | D5: =+SchuVer!C5 -> Bezeichnung | E5: =+SchuVer!D5 -> TCHF | G5: =+C5 -> Nr. | H5: =+D5 -> Bezeichnung | I5: =+E5 -> TCHF | L5: =+C5 -> Nr. | M5: =+D5 -> Bezeichnung | N5: =+E5 -> TCHF | P5: =+L5 -> Nr. | Q5: =+M5 -> Bezeichnung | R5: =+N5 -> TCHF
B6: + | C6: 30 | D6: =+'ER|CHF'!D6 -> Personalaufwand | E6: ='ER|TCHF'!E6 -> 2020 | F6: + | G6: 40 | H6: =+'ER|CHF'!D72 -> Fiskalertrag | I6: ='ER|TCHF'!E77 -> 7651 | K6: + | L6: 30 | M6: =+D6 -> Personalaufwand | N6: ='ER|TCHF'!H6 -> 1986 | O6: + | P6: 40 | Q6: =+H6 -> Fiskalertrag | R6: ='ER|TCHF'!H77 -> 7538
B7: + | C7: 31 | D7: =+'ER|CHF'!D15 -> Sach- und übriger Betriebsaufwand | E7: ='ER|TCHF'!E15 -> 4076 | F7: + | G7: 41 | H7: =+'ER|CHF'!D77 -> Regalien und Konzessionen | I7: ='ER|TCHF'!E82 -> 12 | K7: + | L7: 31 | M7: =+D7 -> Sach- und übriger Betriebsaufwand | N7: ='ER|TCHF'!H15 -> 4086 | O7: + | P7: 41 | Q7: =+H7 -> Regalien und Konzessionen | R7: ='ER|TCHF'!H82 -> 12
B8: ― | C8: 3180 | D8: =+zusDatCHF!D7 -> Wertberichtigungen auf Forderungen | E8: =-zusDatCHF!E7/1000 -> -7.7 | F8: + | G8: 42 | H8: =+'ER|CHF'!D82 -> Entgelte | I8: ='ER|TCHF'!E87 -> 5076 | K8: ― | L8: 3180 | M8: =+D8 -> Wertberichtigungen auf Forderungen | N8: =-zusDatCHF!F7/1000 -> -12 | O8: + | P8: 42 | Q8: =+H8 -> Entgelte | R8: ='ER|TCHF'!H87 -> 4852
B9: + | C9: 34 | D9: =+'ER|CHF'!D30 -> Finanzaufwand | E9: ='ER|TCHF'!E30 -> 125 | F9: + | G9: 430 | H9: =+'ER|CHF'!D93 -> Übrige betriebliche Erträge | I9: ='ER|TCHF'!E98 -> 0 | K9: + | L9: 34 | M9: Finanzaufwand | N9: ='ER|TCHF'!H30 -> 135 | O9: + | P9: 430 | Q9: Übrige betriebliche Erträge | R9: ='ER|TCHF'!H98 -> 0
B10: ― | C10: 344 | D10: ='ER|CHF'!D35 -> Wertberichtigungen Anlagen des Finanzvermögens | E10: ='ER|TCHF'!E35 -> 0 | F10: + | G10: 439 | H10: Übrige geldwirksame Erträge | I10: =+'ER|TCHF'!E101 -> 0 | K10: ― | L10: 344 | M10: Wertberichtigungen Anlagen des Finanzvermögens | N10: ='ER|TCHF'!H35 -> 0 | O10: + | P10: 439 | Q10: Übrige geldwirksame Erträge | R10: =+'ER|TCHF'!H101 -> 0
B11: + | C11: 36 | D11: ='ER|CHF'!D40 -> Transferaufwand | E11: ='ER|TCHF'!E40 -> 6393 | F11: + | G11: 44 | H11: =+'ER|CHF'!D97 -> Finanzertrag | I11: ='ER|TCHF'!E102 -> 167 | K11: + | L11: 36 | M11: Transferaufwand | N11: ='ER|TCHF'!H40 -> 5924 | O11: + | P11: 44 | Q11: =+H11 -> Finanzertrag | R11: ='ER|TCHF'!H102 -> 160
B12: ― | C12: 364 | D12: ='ER|CHF'!D45 -> Wertberichtigungen Darlehen VV | E12: =-'ER|TCHF'!E45 -> 0 | F12: ― | G12: 444 | H12: =+'ER|CHF'!D102 -> Wertberichtigungen Anlagen Finanzvermögen | I12: =-'ER|TCHF'!E107 -> -9 | K12: ― | L12: 364 | M12: Wertberichtigungen Darlehen VV | N12: =-'ER|TCHF'!H45 -> 0 | O12: ― | P12: 444 | Q12: Wertberichtigungen Anlagen Finanzvermögen | R12: =-'ER|TCHF'!H107 -> -3
B13: ― | C13: 365 | D13: ='ER|CHF'!D46 -> Wertberichtigungen Beteiligungen VV | E13: =-'ER|TCHF'!E46 -> 0 | F13: ― | G13: 4490 | H13: =+zusDatCHF!D15 -> Aufwertungen VV | I13: =-'ER|TCHF'!E112 -> 0 | K13: ― | L13: 365 | M13: Wertberichtigungen Beteiligungen VV | N13: =-'ER|TCHF'!H46 -> 0 | O13: ― | P13: 4490 | Q13: =+H13 -> Aufwertungen VV | R13: =-'ER|TCHF'!H112 -> 0
B14: ― | C14: 366 | D14: ='ER|CHF'!D47 -> Abschreibungen Investitionsbeiträge | E14: =-'ER|TCHF'!E47 -> 0 | F14: + | G14: 46 | H14: =+'ER|CHF'!D111 -> Transferertrag | I14: ='ER|TCHF'!E121 -> 1373 | K14: ― | L14: 366 | M14: Abschreibungen Investitionsbeiträge | N14: =-'ER|TCHF'!H47 -> 0 | O14: + | P14: 46 | Q14: Transferertrag | R14: ='ER|TCHF'!H121 -> 1366
B15: + | C15: 380 | D15: =+'ER|CHF'!D52 -> Ausserordentlicher Personalaufwand | E15: =+'ER|TCHF'!E57 -> 0 | F15: ― | G15: 466 | H15: =+'ER|CHF'!D116 -> Auflösungen passivierter Investitionsbeiträge | I15: =-'ER|TCHF'!E126 -> 0 | K15: + | L15: 380 | M15: Ausserordentlicher Personalaufwand | N15: =+'ER|TCHF'!H57 -> 0 | O15: ― | P15: 466 | Q15: =+H15 -> Auflösungen passivierter Investitionsbeiträge | R15: =-'ER|TCHF'!H126 -> 0
B16: + | C16: 381 | D16: =+'ER|CHF'!D53 -> Ausserordentlicher Sach- und Betriebsaufwand | E16: =+'ER|TCHF'!E58 -> 0 | F16: + | G16: 481 | H16: =+'ER|CHF'!D121 -> Ausserordentliche Erträge von Regalien, Konzessionen | I16: =+'ER|TCHF'!E131 -> 0 | K16: + | L16: 381 | M16: Ausserordentlicher Sach- und Betriebsaufwand | N16: =+'ER|TCHF'!H58 -> 0 | O16: + | P16: 481 | Q16: Ausserordentliche Erträge von Regalien, Konzessionen | R16: =+'ER|TCHF'!H131 -> 0
B17: + | C17: 3840 | D17: =+zusDatCHF!D9 -> Geldwirksamer ausserordentlicher Finanzaufwand | E17: =+zusDatCHF!E9 -> 0 | F17: + | G17: 482 | H17: =+'ER|CHF'!D122 -> Ausserordentliche Entgelte | I17: =+'ER|TCHF'!E132 -> 0 | K17: + | L17: 3840 | M17: Geldwirksamer ausserordentlicher Finanzaufwand | N17: =+'ER|TCHF'!H60 -> 0 | O17: + | P17: 482 | Q17: Ausserordentliche Entgelte | R17: =+'ER|TCHF'!H132 -> 0
B18: + | C18: 386 | D18: =+'ER|CHF'!D56 -> Ausserordentlicher Transferaufwand | E18: =+'ER|TCHF'!E61 -> 0 | F18: + | G18: 483 | H18: =+'ER|CHF'!D123 -> Ausserordentliche verschiedene Erträge | I18: =+'ER|TCHF'!E133 -> 0 | K18: + | L18: 386 | M18: Ausserordentlicher Transferaufwand | N18: =+'ER|TCHF'!H61 -> 0 | O18: + | P18: 483 | Q18: Ausserordentliche verschiedene Erträge | R18: =+'ER|TCHF'!H133 -> 0
F19: + | G19: 484 | H19: =+'ER|CHF'!D124 -> Ausserordentliche Finanzerträge | I19: =+'ER|TCHF'!E134 -> 0 | O19: + | P19: 484 | Q19: =+H19 -> Ausserordentliche Finanzerträge | R19: =+'ER|TCHF'!H134 -> 0
F20: + | G20: 486 | H20: =+'ER|CHF'!D125 -> Ausserordentliche Transfererträge | I20: =+'ER|TCHF'!E135 -> 0 | O20: + | P20: 486 | Q20: Ausserordentliche Transfererträge | R20: =+'ER|TCHF'!H135 -> 0
B21: Laufende Ausgaben | E21: =SUM(E6:E20) -> 12606.3 | F21: Laufende Einnahmen | I21: =SUM(I6:I20) -> 14270 | K21: =+B21 -> Laufende Ausgaben | N21: =SUM(N6:N20) -> 12119 | O21: =+F21 -> Laufende Einnahmen | R21: =SUM(R6:R20) -> 13925
B22: + | C22: 50 | D22: =+'IR|CHF'!D6 -> Sachanlagen | E22: =+'IR|TCHF'!E6 -> 1971 | F22: + | G22: 60 | H22: =+'IR|TCHF'!D84 -> Übertragungen von Sachanlagen in das Finanzvermögen | I22: =+'IR|TCHF'!E84 -> 0 | K22: + | L22: 50 | M22: =+D22 -> Sachanlagen | N22: =+'IR|TCHF'!H6 -> 1775 | O22: + | P22: 60 | Q22: =+H22 -> Übertragungen von Sachanlagen in das Finanzvermögen | R22: =+'IR|TCHF'!H84 -> 0
B23: + | C23: 51 | D23: =+'IR|CHF'!D15 -> Investitionen auf Rechnung Dritter | E23: =+'IR|TCHF'!E15 -> 0 | F23: + | G23: 61 | H23: =+'IR|CHF'!D88 -> Rückerstattungen | I23: =+'IR|TCHF'!E93 -> 0 | K23: + | L23: 51 | M23: =+D23 -> Investitionen auf Rechnung Dritter | N23: =+'IR|TCHF'!H15 -> 0 | O23: + | P23: 61 | Q23: =+H23 -> Rückerstattungen | R23: =+'IR|TCHF'!H93 -> 0
B24: + | C24: 52 | D24: =+'IR|TCHF'!D24 -> Immaterielle Anlagen | E24: =+'IR|TCHF'!E24 -> 0 | F24: + | G24: 62 | H24: =+'IR|CHF'!D97 -> Übertragung immaterielle Anlagen in das Finanzvermögen | I24: =+'IR|TCHF'!E102 -> 0 | K24: + | L24: 52 | M24: =+D24 -> Immaterielle Anlagen | N24: =+'IR|TCHF'!H24 -> 0 | O24: + | P24: 62 | Q24: Übertragung immaterielle Anlagen in das Finanzvermögen | R24: =+'IR|TCHF'!H102 -> 0
F25: + | G25: 63 | H25: =+'IR|CHF'!D101 -> Investitionsbeiträge für eigene Rechnung | I25: =+'IR|TCHF'!E106 -> 43 | O25: + | P25: 63 | Q25: Investitionsbeiträge für eigene Rechnung | R25: =+'IR|TCHF'!H106 -> 10
B26: + | C26: 54 | D26: =+'IR|CHF'!D28 -> Darlehen | E26: =+'IR|TCHF'!E28 -> 0 | F26: + | G26: 64 | H26: =+'IR|CHF'!D111 -> Rückzahlung von Darlehen | I26: =+'IR|TCHF'!E116 -> 0 | K26: + | L26: 54 | M26: =+D26 -> Darlehen | N26: =+'IR|TCHF'!H28 -> 0 | O26: + | P26: 64 | Q26: Rückzahlung von Darlehen | R26: =+'IR|TCHF'!H116 -> 0
B27: + | C27: 55 | D27: =+'IR|CHF'!D38 -> Beteiligungen und Grundkapitalien | E27: =+'IR|TCHF'!E38 -> 0 | F27: + | G27: 65 | H27: =+'IR|CHF'!D121 -> Übertragung von Beteiligungen in das Finanzvermögen | I27: =+'IR|TCHF'!E131 -> 0 | K27: + | L27: 55 | M27: =+D27 -> Beteiligungen und Grundkapitalien | N27: =+'IR|TCHF'!H38 -> 0 | O27: + | P27: 65 | Q27: Übertragung von Beteiligungen in das Finanzvermögen | R27: =+'IR|TCHF'!H131 -> 0
B28: + | C28: 56 | D28: =+'IR|CHF'!D48 -> Eigene Investitionsbeiträge | E28: =+'IR|TCHF'!E53 -> 0 | F28: + | G28: 66 | H28: =+'IR|CHF'!D131 -> Rückzahlung eigener Investitionsbeiträge | I28: =+'IR|TCHF'!E141 -> 0 | K28: + | L28: 56 | M28: =+D28 -> Eigene Investitionsbeiträge | N28: =+'IR|TCHF'!H53 -> 0 | O28: + | P28: 66 | Q28: Rückzahlung eigener Investitionsbeiträge | R28: =+'IR|TCHF'!H141 -> 0
B29: + | C29: 58 | D29: =+'IR|CHF'!D68 -> Ausserordentliche [a.o.] Investitionsausgaben | E29: =+'IR|TCHF'!E73 -> 0 | F29: + | G29: 68 | H29: =+'IR|CHF'!D151 -> Ausserordentliche [a.o.] Investitionseinnahmen | I29: =+'IR|TCHF'!E161 -> 0 | K29: + | L29: 58 | M29: =+D29 -> Ausserordentliche [a.o.] Investitionsausgaben | N29: =+'IR|TCHF'!H73 -> 0 | O29: + | P29: 68 | Q29: =+H29 -> Ausserordentliche [a.o.] Investitionseinnahmen | R29: =+'IR|TCHF'!H161 -> 0
B30: =+'IR|CHF'!D5 -> Investitionsausgaben | E30: =SUM(E22:E29) -> 1971 | F30: =+'IR|CHF'!D78 -> Investitionseinnahmen | I30: =SUM(I22:I29) -> 43 | K30: =+B30 -> Investitionsausgaben | N30: =SUM(N22:N29) -> 1775 | O30: =+F30 -> Investitionseinnahmen | R30: =SUM(R22:R29) -> 10
B31: Gesamtausgaben | E31: =+E21+E30 -> 14577.3 | F31: Gesamteinnahmen | I31: =+I21+I30 -> 14313 | K31: =+B31 -> Gesamtausgaben | N31: =+N21+N30 -> 13894 | O31: =+F31 -> Gesamteinnahmen | R31: =+R21+R30 -> 13935 | U31: =+R31-N31 -> 41
B32: da von | C32: 340 | D32: =+'ER|CHF'!D31 -> Zinsaufwand | E32: =+'ER|TCHF'!E31 -> 74 | F32: =+$B$32 -> da von | G32: 440 | H32: =+'ER|CHF'!D98 -> Zinsertrag | I32: ='ER|TCHF'!E103 -> 12 | K32: =+$B$32 -> da von | L32: 340 | M32: =+D32 -> Zinsaufwand | N32: =+'ER|TCHF'!H31 -> 92 | O32: =+$B$32 -> da von | P32: 440 | Q32: =+H32 -> Zinsertrag | R32: ='ER|TCHF'!H103 -> 16
C33: 342 | D33: =+'ER|CHF'!D33 -> Kapitalbeschaffungs- und Verwaltungskosten | E33: =+'ER|TCHF'!E33 -> 10 | G33: 442 | H33: =+'ER|CHF'!D100 -> Beteiligungsertrag Finanzvermögen | I33: =+'ER|TCHF'!E105 -> 0 | L33: 342 | M33: =+D33 -> Kapitalbeschaffungs- und Verwaltungskosten | N33: =+'ER|TCHF'!H33 -> 9 | P33: 442 | Q33: =+H33 -> Beteiligungsertrag Finanzvermögen | R33: =+'ER|TCHF'!H105 -> 0
C34: 343 | D34: =+'ER|CHF'!D34 -> Liegenschaftenaufwand Finanzvermögen | E34: =+'ER|TCHF'!E34 -> 41 | G34: 443 | H34: =+'ER|CHF'!D101 -> Liegenschaftenertrag Finanzvermögen | I34: =+'ER|TCHF'!E106 -> 92 | L34: 343 | M34: =+D34 -> Liegenschaftenaufwand Finanzvermögen | N34: =+'ER|TCHF'!H34 -> 34 | P34: 443 | Q34: =+H34 -> Liegenschaftenertrag Finanzvermögen | R34: =+'ER|TCHF'!H106 -> 90
D35: Total «Zins»-Ausgaben | E35: =SUM(E32:E34) -> 125 | H35: Total «Zins»-Einnahmen | I35: =SUM(I32:I34) -> 104 | M35: =+D35 -> Total «Zins»-Ausgaben | N35: =SUM(N32:N34) -> 135 | Q35: =+H35 -> Total «Zins»-Einnahmen | R35: =SUM(R32:R34) -> 106
B36: Gesamter Finanzierungssaldo (– Gesamtausgaben + Gesamteinnahmen), hier Finanzierungsdefizit | I36: =-E31+I31 -> -264.3 | K36: =+B36 -> Gesamter Finanzierungssaldo (– Gesamtausgaben + Gesamteinnahmen), hier Finanzierungsdefizit | R36: =-N31+R31 -> 41
B37: – Nettozinsen (– Total «Zins»-Ausgaben + Total «Zins»-Einnahmen) | I37: =-E35+I35 -> -21 | K37: =+B37 -> – Nettozinsen (– Total «Zins»-Ausgaben + Total «Zins»-Einnahmen) | R37: =-N35+R35 -> -29
B38: Primärsaldo bzw. primärer Finanzierungssaldo (Finanzierungssaldo – Nettozinsen), hier Primärdefizit | I38: =+I36-I37 -> -243.3 | K38: =+B38 -> Primärsaldo bzw. primärer Finanzierungssaldo (Finanzierungssaldo – Nettozinsen), hier Primärdefizit | R38: =+R36-R37 -> 70
E40: =+E31+$I37 -> 14556.3 | M40: §

Sheet SbE
B1: Daten zum Schneeballeffekt für die Jahre t-20 bis t
D3: rt | E3: Yt | F3: Rt | G3: Gt | H3: Dt | I3: it | J3: rt-it | K3: (rt-it)Dt-1 | L3: It = it*Dt-1 | M3: St = Rt - Gt | N3: SFt = Rt - Gt - It | O3: Bt = (rt-it)Dt-1 + + St | P3: (Dt/Yt*100) | Q3: (1+ Dt/Dt-1)*100)
D4: Wirtschafts-wachstums-rate | E4: Steuer- erträge | F4: Gesamt- ein-nahmen | G4: Ausgaben ohne Zinsen | H4: Nettover- bindlich-keiten | I4: Zinssatz | J4: Hebelwir-kung der Zinssätze… | K4: … auf den Schulden | L4: Netto- zinsen | M4: Primär- saldo | N4: Finanzierungs- saldo | O4: Existenz (-), Fehlen (+) eines Schneeballeffekts | P4: Nettover- schuldungs- quotient | Q4: Veränderung der Nettoverbindlich-keiten
D5: % | E5: TCHF | F5: =+E5 -> TCHF | G5: =+E5 -> TCHF | H5: =+E5 -> TCHF | I5: % | J5: % | K5: =+E5 -> TCHF | L5: =+E5 -> TCHF | M5: =+E5 -> TCHF | N5: =+E5 -> TCHF | O5: =+E5 -> TCHF | P5: % | Q5: % | S5: Bezeichnung der Grafik-Achsen in Bezug auf die Dynamik der Verschuldung
B6: 1996 | C6: t-21 | D6: 0.4944142695 | E6: =+E7*100/(100+D6) -> 4928.238825 | F6: =+F7/(1+D7/100) -> 8871.213196 | G6: 9000 | H6: =+(H7+F7-G7)/(1+I7/100) -> 3631.652908 | I6: 4 | J6: =D6-I6 -> -3.505585731 | M6: =+F6-G6 -> -128.7868038 | P6: =+H6/E6*100 -> 73.69068418 | T6: RtVerG | U6: Writschaftswachstumsrate und Veränderungsrate der Verschuldung, in %
B7: 1997 | C7: t-20 | D7: -0.9616941111 | E7: 4952.604741 | F7: 8785.899261 | G7: 8850 | H7: 3826.129986 | I7: 3.59 | J7: -4.551694111 | K7: =J7*H6/100 -> -165.3017315 | L7: =I7*H6/100 -> 130.3763394 | M7: -64.1007387 | N7: =+M7-L7 -> -194.4770781 | O7: =K7+M7 -> -229.4024702 | P7: 77.25490295 | Q7: =(H7/H6-1)*100 -> 5.355056858 | U7: Veränderung der Nettoverpflichtungen
B8: 1998 | C8: t-19 | D8: 2.490311727 | E8: 4904.975833 | F8: 9004.695541 | G8: 9200 | H8: 4155.348995 | I8: 3.5 | J8: -1.009688273 | K8: -38.6319858 | L8: 133.9145495 | M8: -195.3044591 | N8: -329.2190086 | O8: -233.9364449 | P8: 84.71701261 | Q8: 8.604490956 | U8: Nettoverschuldungsquotient (Skala rechts)
B9: 1999 | C9: t-18 | D9: 5.313408776 | E9: 5027.125021 | F9: 9483.151824 | G9: 9700 | H9: 4522.92711 | I9: 3.62737135 | J9: 1.686037425 | K9: 70.06073919 | L9: 150.7299389 | M9: -216.848176 | N9: -367.578115 | O9: -146.7874368 | P9: 89.97045211 | Q9: 8.845902364
B10: 2000 | C10: t-17 | D10: 4.290469221 | E10: 5294.236723 | F10: 9890.023534 | G10: 10000 | H10: 4828.875546 | I10: 4.332857143 | J10: -0.04238792211 | K10: -1.91717482 | L10: 195.9719703 | M10: -109.9764659 | N10: -305.9484362 | O10: -111.8936407 | P10: 91.21004213 | Q10: 6.764390157 | T10: SbEG | U10: Nettoverschuldungsquotient in % der Steuererträge
B11: 2001 | C11: t-16 | D11: 4.9 | E11: 5521.38432 | F11: 10374.63469 | G11: 10400 | H11: 5058.042401 | I11: 4.22047619 | J11: 0.6795238095 | K11: 32.81335907 | L11: 203.8015427 | M11: -25.36531269 | N11: -229.1668554 | O11: 7.448046377 | P11: 91.60822916 | Q11: 4.745760233 | U11: Primärsaldo, Hebelwirkung Zinssätze, positive oder negative Wechselwirkungen, in TCHF
B12: 2002 | C12: t-15 | D12: 0.89891399 | E12: 5791.932152 | F12: 10467.89373 | G12: 10700 | H12: 5481.703963 | I12: 3.787142857 | J12: -2.888228867 | K12: -146.0878407 | L12: 191.5552915 | M12: -232.1062701 | N12: -423.6615616 | O12: -378.1941108 | P12: 94.64378758 | Q12: 8.375998617 | U12: Primärer Finanzierungssaldo
B13: 2003 | C13: t-14 | D13: -2.515267077 | E13: 5843.99664 | F13: 10204.59825 | G13: 10250 | H13: 5720.140007 | I13: 3.521428571 | J13: -6.036695648 | K13: -330.9137846 | L13: 193.0342895 | M13: -45.40175471 | N13: -238.4360443 | O13: -376.3155393 | P13: 97.88061765 | Q13: 4.34967021 | U13: Hebelwirkung von r-i auf die Verschuldung
B14: 2004 | C14: t-13 | D14: 0.8090627459 | E14: 5697.004517 | F14: 10287.15985 | G14: 9700 | H14: 5330.270512 | I14: 3.449047619 | J14: -2.639984873 | K14: -151.0108309 | L14: 197.2903527 | M14: 587.1598481 | N14: 389.8694953 | O14: 436.1490172 | P14: 93.56268713 | Q14: -6.815733441 | U14: Spielraum: neg. (-) oder pos. (+) Wechselwirkung
B15: 2005 | C15: t-12 | D15: 1.007069987 | E15: 5743.096858 | F15: 10390.75875 | G15: 10000 | H15: 5123.533008 | I15: 3.452380952 | J15: -2.445310966 | K15: -130.3416893 | L15: 184.0212439 | M15: 390.7587474 | N15: 206.7375035 | O15: 260.417058 | P15: 89.21202506 | Q15: -3.878555564
B16: 2006 | C16: t-11 | D16: 4.952675384 | E16: 5800.933863 | F16: 10905.3793 | G16: 10200 | H16: 4587.401084 | I16: 3.303333333 | J16: 1.649342051 | K16: 84.50458439 | L16: 169.2473737 | M16: 705.3792981 | N16: 536.1319244 | O16: 789.8838825 | P16: 79.08038933 | Q16: -10.46410599
B17: 2007 | C17: t-10 | D17: 6.289317851 | E17: 6088.235286 | F17: 11591.25327 | G17: 10950 | H17: 4095.63156 | I17: 3.258571429 | J17: 3.030746423 | K17: 139.0324942 | L17: 149.483741 | M17: 641.253265 | N17: 491.769524 | O17: 780.2857593 | P17: 67.2712431 | Q17: -10.72000279
B18: 2008 | C18: t-9 | D18: 3.431539328 | E18: 6471.143755 | F18: 11989.01168 | G18: 11300 | H18: 3494.745003 | I18: 2.15168579 | J18: 1.279853538 | K18: 52.41808542 | L18: 88.12512229 | M18: 689.0116794 | N18: 600.8865571 | O18: 741.4297649 | P18: 54.005059 | Q18: -14.67140167 | S18: Datenquelle in der Tabelle
B19: 2009 | C19: t-8 | D19: 1.104215569 | E19: 6693.203598 | F19: 12121.39621 | G19: 11700 | H19: 3143.169534 | I19: 1.997878088 | J19: -0.8936625194 | K19: -31.23122624 | L19: 69.82074464 | M19: 421.3962129 | N19: 351.5754683 | O19: 390.1649867 | P19: 46.96061443 | Q19: -10.06011792 | T19: MeinGemeinwesen
B20: 2010 | C20: t-7 | D20: -0.7 | E20: 6767.110994 | F20: 12036.54644 | G20: 11952 | H20: 3119.924532 | I20: 1.950306404 | J20: -2.650306404 | K20: -83.30362345 | L20: 61.30143671 | M20: 84.54643942 | N20: 23.24500271 | O20: 1.242815972 | P20: 46.10423169 | Q20: -0.7395402144 | T20: Gesamtheit der Schweizer Gemeinden
B21: 2011 | C21: t-6 | D21: 2.851456184 | E21: 6719.741217 | F21: 12379.76329 | G21: 12000 | H21: 2795.774434 | I21: 1.782517137 | J21: 1.068939047 | K21: 33.35009156 | L21: 55.61318944 | M21: 379.7632872 | N21: 324.1500978 | O21: 413.1133788 | P21: 41.60538842 | Q21: -10.38967752 | T21: Bund
B22: 2012 | C22: t-5 | D22: 0.6438467746 | E22: 6911.351694 | F22: 12459.46999 | G22: 12100 | H22: 2481.667893 | I22: 1.62257199 | J22: -0.9787252158 | K22: -27.36294936 | L22: 45.36345288 | M22: 359.4699939 | N22: 314.106541 | O22: 332.1070445 | P22: 35.90712791 | Q22: -11.2350459
B23: 2013 | C23: t-4 | D23: 2.543064043 | E23: 6955.850209 | F23: 12776.3223 | G23: 12500 | H23: 2240.284775 | I23: 1.407890928 | J23: 1.135173115 | K23: 28.17122673 | L23: 34.93917712 | M23: 276.3222952 | N23: 241.3831181 | O23: 304.4935219 | P23: 32.20720268 | Q23: -9.726648709
B24: 2014 | C24: t-3 | D24: 2.836804531 | E24: 7132.741934 | F24: 13138.76158 | G24: 13100 | H24: 2231.427376 | I24: 1.334838621 | J24: 1.50196591 | K24: 33.64831361 | L24: 29.9041864 | M24: 38.76158499 | N24: 8.85739859 | O24: 72.4098986 | P24: 31.28428586 | Q24: -0.395369316
B25: 2015 | C25: t-2 | D25: 2.766377629 | E25: 7335.08388 | F25: 13502.22935 | G25: 13300 | H25: 2057.208018 | I25: 1.255249806 | J25: 1.511127823 | K25: 33.71971993 | L25: 28.00998781 | M25: 202.2293462 | N25: 174.2193584 | O25: 235.9490661 | P25: 28.04614169 | Q25: -7.807529845
B26: 2016 | C26: t-1 | D26: 3.205179254 | E26: =+'ER|TCHF'!H77 -> 7538 | F26: =+PriSaldo!R31 -> 13935 | G26: =+PriSaldo!N31-PriSaldo!R37 -> 13923 | H26: =+SchuVer!R17 -> 2080 | I26: 1.69122334 | J26: 1.513955914 | K26: 31.14522245 | L26: =PriSaldo!R37 -> -29 | M26: =+PriSaldo!R36 -> 41 | N26: 70 | O26: 72.14522245 | P26: 27.59352613 | Q26: 1.107908483
B27: 2017 | C27: t | D27: 1.5 | E27: =+'ER|TCHF'!E77 -> 7651 | F27: =+PriSaldo!I31 -> 14313 | G27: =+PriSaldo!E31+PriSaldo!I37 -> 14556.3 | H27: =+SchuVer!I17 -> 2303 | I27: =+KennBer!H26 -> 1.197348119 | J27: =D27-I27 -> 0.3026518812 | K27: =J27*H26/100 -> 6.295159129 | L27: =-PriSaldo!I37 -> 21 | M27: =+PriSaldo!I38 -> -243.3 | N27: -264.3 | O27: -237.0048409 | P27: 30.10064044 | Q27: 10.72115385

Sheet BerGW
B1: Berechnung der Grenzwerte
B3: Kenngrössen zur Berechnung der Grenzwerte | C3: Abkürzungen | D3: Werte | G3: Mit strukturellem Gleichgewicht | AA3: Avec déséquilibre structurel
B4: Zinssatz | C4: i=I8 | D4: =ROUND((KennBer!H26),1) -> 1.2 | E4: % | G4: Jahre | H4: Ertrag | I4: Steuer- | J4: Nettoin- | K4: Abschrei- | L4: Verwaltungs- | M4: Nettoverbind- | N4: Zinsen | P4: Q | Q4: Limite | R4: I9# | S4: Limite | T4: Correction | U4: I13# | V4: Limite | W4: Correction | X4: I2# | Y4: Limite | AA4: Résultat | AB4: =+K4 -> Abschrei- | AC4: Auto- financt | AD4: Besoin | AE4: Engagements | AF4: Q | AG4: Limite | AH4: I9# | AI4: Limite
B5: Wachstumsrate des laufenden Ertrags | C5: r | D5: 1.5 | E5: % | H5: laufender | I5: ertrag | J5: vestitionen | K5: bungen | L5: vermögen | M5: lichkeiten | Q5: de Q | S5: de I9# | T5: pour | V5: de I13# | W5: pour | Y5: de I2# | AA5: c/de résult. | AB5: bungen | AC5: financt | AD5: emprunt | AE5: nets | AG5: de Q | AI5: de I9#
B6: Abschreibungssatz | C6: kA | D6: =ROUND((K7/'Bi|TCHF'!E15*100),1) -> 8.7 | E6: % | H6: TCHF | I6: =+H6 -> TCHF | J6: =+I6 -> TCHF | K6: TCHF | L6: TCHF | M6: TCHF | N6: TCHF | P6: % | Q6: =+P6 -> % | R6: =+Q6 -> % | S6: =+R6 -> % | T6: I13# | U6: =+S6 -> % | V6: =+U6 -> % | W6: I12# | X6: =+Q6 -> % | Y6: =+X6 -> % | AA6: =+N6 -> TCHF | AB6: TCHF | AC6: =+L6 -> TCHF | AD6: =+M6 -> TCHF | AE6: =+AA6 -> TCHF | AF6: % | AG6: =+AF6 -> % | AH6: =+AG6 -> % | AI6: =+AH6 -> %
B7: Netto-Investitionsanstrengung | C7: kI=I6 | D7: =ROUND((KennBer!H20),1) -> 14.6 | E7: % | G7: t | H7: =+'ER|TCHF'!E76 -> 14610 | I7: =+H7*$D$8/100 -> 7655.64 | J7: =+'IR|TCHF'!E5-'IR|TCHF'!E83 -> 1928 | K7: =+'ER|TCHF'!E27 -> 671 | L7: =+'Bi|TCHF'!H15 -> 8992 | M7: =+SchuVer!I17 -> 2303 | N7: =-PriSaldo!I37 -> 21 | P7: =+M7/$H7*100 -> 15.76317591 | Q7: =+$D$12*100 -> 145.3 | R7: =+M7/$I7*100 -> 30.08239677 | S7: =+BerGW!$D$14*100 -> 277.3 | U7: =+(N7+K7)/H7*100+T7 -> 4.736481862 | V7: =+$D$18*100 -> 14.2 | W7: -1.8 | X7: =+K7/J7*100+W7 -> 33.00290456 | Y7: =+$D$16*100 -> 85.3 | AA7: =+$D$9*H7/100 -> 292.2 | AB7: 671 | AC7: =+AA7+AB7 -> 963.2 | AD7: =+J7-AC7 -> 964.8 | AE7: =+SchuVer!I17 -> 2303 | AF7: =+AE7/$H7*100 -> 15.76317591 | AG7: =+$D$22*100 -> 10 | AH7: =+AE7/$I7*100 -> 30.08239677 | AI7: =+$D$24*100 -> 19
B8: Anteil des Steuerertrags am laufenden Ertrag | C8: kF | D8: =ROUND(('ER|TCHF'!E77/'ER|TCHF'!E76*100),1) -> 52.4 | E8: % | G8: t+1 | H8: =H7*(1+BerGW!$D$5/100) -> 14829.15 | I8: =+H8*$D$8/100 -> 7770.4746 | J8: =+H8*BerGW!$D$7/100 -> 2165.0559 | K8: =+L7*BerGW!$D$6/100 -> 782.304 | L8: =+L7+J8-K8 -> 10374.7519 | M8: =+M7+J8-K8 -> 3685.7519 | N8: =+M7*$D$4/100 -> 27.636 | P8: =+M8/H8*100 -> 24.85477522 | Q8: 145.3 | R8: =+M8/I8*100 -> 47.43277714 | S8: =+BerGW!$D$14*100 -> 277.3 | T8: 0.15 | U8: 5.611810016 | V8: 14.2 | W8: 1 | X8: =+K8/J8*100+W8 -> 37.13320099 | Y8: 85.3 | AA8: =+$D$9*H8/100 -> 296.583 | AB8: 782.304 | AC8: =+AA8+AB8 -> 1078.887 | AD8: 1086.1689 | AE8: =+AE7+J8-K8-AA8 -> 3389.1689 | AF8: =+AE8/$H8*100 -> 22.85477522 | AG8: 10 | AH8: =+AE8/$I8*100 -> 43.61598325 | AI8: 19
B9: Rate des strukturellen Ungleichgewichts | C9: kD=(I1-100%) | D9: 2 | E9: % | G9: t+2 | H9: =H8*(1+BerGW!$D$5/100) -> 15051.58725 | I9: 7887.031719 | J9: =+H9*BerGW!$D$7/100 -> 2197.531738 | K9: =+L8*BerGW!$D$6/100 -> 902.6034153 | L9: =+L8+J9-K9 -> 11669.68022 | M9: =+M8+J9-K9 -> 4980.680223 | N9: =+M8*$D$4/100 -> 44.2290228 | P9: 33.09073083 | Q9: 145.3 | R9: 63.15024968 | S9: =+BerGW!$D$14*100 -> 277.3 | U9: 6.290581999 | V9: 14.2 | W9: 0.2 | X9: 41.27350986 | Y9: 85.3 | AA9: 301.031745 | AB9: 902.6034153 | AC9: 1203.63516 | AD9: 993.8965782 | AE9: 4383.065478 | AF9: 29.12028748 | AG9: 10 | AH9: 55.57306772 | AI9: 19
G10: t+3 | H10: =H9*(1+BerGW!$D$5/100) -> 15277.36106 | I10: 8005.337195 | J10: =+H10*BerGW!$D$7/100 -> 2230.494715 | K10: =+L9*BerGW!$D$6/100 -> 1015.262179 | L10: 12884.91276 | M10: 6195.912758 | N10: 59.76816268 | P10: =+M10/H10*100 -> 40.55617154 | Q10: 145.3 | R10: 77.39727394 | S10: =+BerGW!$D$14*100 -> 277.3 | U10: 7.036754175 | V10: 14.2 | X10: 45.51735419 | Y10: 85.3 | AA10: 305.5472212 | AB10: 1015.262179 | AC10: 1320.809401 | AD10: 909.685314 | AE10: 5292.750792 | AF10: 34.6444047 | AG10: 10 | AH10: 66.11527614 | AI10: 19
B11: Strukturelles Gleichgewicht: berechnete Grenzwerte | C11: =+C3 -> Abkürzungen | D11: =+D3 -> Werte | G11: t+4 | H11: =H10*(1+BerGW!$D$5/100) -> 15506.52147 | I11: 8125.417253 | J11: =+H11*BerGW!$D$7/100 -> 2263.952135 | K11: =+L10*BerGW!$D$6/100 -> 1120.98741 | L11: 14027.87748 | M11: 7338.877484 | N11: 74.3509531 | P11: =+M11/H11*100 -> 47.327684 | Q11: 145.3 | R11: 90.32000764 | S11: =+BerGW!$D$14*100 -> 277.3 | U11: 7.708617081 | V11: 14.2 | X11: 49.514625 | Y11: 85.3 | AA11: 310.1304295 | AB11: 1120.98741 | AC11: 1431.117839 | AD11: 832.8342958 | AE11: 6125.585088 | AF11: 39.50328317 | AG11: 10 | AH11: 75.38794498 | AI11: 19
B12: Grenzwert des Verschuldungsquotienten | C12: Q | D12: =ROUND((($D$7/100)*(1+($D$5/100))/(($D$5/100)+($D$6/100))),3) -> 1.453 | G12: t+5 | H12: =H11*(1+BerGW!$D$5/100) -> 15739.1193 | I12: 8247.298511 | J12: =+H12*BerGW!$D$7/100 -> 2297.911417 | K12: =+L11*BerGW!$D$6/100 -> 1220.425341 | L12: 15105.36356 | M12: 8416.36356 | N12: 88.0665298 | P12: 53.47417096 | Q12: 145.3 | R12: 102.0499446 | S12: =+BerGW!$D$14*100 -> 277.3 | U12: 8.313628267 | V12: 14.2 | X12: 53.11019963 | Y12: 85.3 | AA12: 314.7823859 | AB12: 1220.425341 | AC12: 1535.207727 | AD12: 762.7036903 | AE12: 6888.288778 | AF12: 43.76540166 | AG12: 10 | AH12: 83.5217589 | AI12: 19
B13: (= Nettoverbindlichkeiten im Verhältnis zu den laufenden Einnahmen) | G13: t+6 | H13: =H12*(1+BerGW!$D$5/100) -> 15975.20609 | I13: 8371.007989 | J13: =+H13*BerGW!$D$7/100 -> 2332.380089 | K13: =+L12*BerGW!$D$6/100 -> 1314.16663 | L13: 16123.57702 | M13: 9434.577019 | N13: 100.9963627 | P13: 59.05762322 | Q13: 145.3 | R13: 112.7053878 | S13: =+BerGW!$D$14*100 -> 277.3 | U13: 8.858496002 | V13: 14.2 | X13: 56.34444558 | Y13: 85.3 | AA13: 319.5041217 | AB13: 1314.16663 | AC13: 1633.670751 | AD13: 698.7093371 | AE13: 7586.998115 | AF13: 47.49233327 | AG13: 10 | AH13: 90.6342238 | AI13: 19
B14: Grenzwert des Nettoverschuldungsquotienten | C14: Grenzwert von I9# | D14: =ROUND((($D$7/100)*(1+($D$5/100))/(($D$5/100)+($D$6/100))*(1/(D8/100))),3) -> 2.773 | G14: t+7 | H14: =H13*(1+BerGW!$D$5/100) -> 16214.83418 | I14: 8496.573109 | J14: =+H14*BerGW!$D$7/100 -> 2367.36579 | K14: =+L13*BerGW!$D$6/100 -> 1402.751201 | L14: 17088.19161 | M14: 10399.19161 | N14: 113.2149242 | P14: 64.1338141 | Q14: 145.3 | R14: 122.392775 | S14: =+BerGW!$D$14*100 -> 277.3 | U14: 9.349254567 | V14: 14.2 | X14: 59.25367371 | Y14: 85.3 | AA14: 324.2966835 | AB14: 1402.751201 | AC14: 1727.047884 | AD14: 640.3179057 | AE14: 8227.316021 | AF14: 50.73943977 | AG14: 10 | AH14: 96.83099193 | AI14: 19
B15: (= Nettoverbindlichkeiten im Verhältnis zum Steuerertrag) | G15: t+8 | H15: =H14*(1+BerGW!$D$5/100) -> 16458.05669 | I15: 8624.021706 | J15: =+H15*BerGW!$D$7/100 -> 2402.876277 | K15: =+L14*BerGW!$D$6/100 -> 1486.67267 | L15: 18004.39521 | M15: 11315.39521 | N15: 124.7902993 | P15: 68.75292404 | Q15: 145.3 | R15: 131.2078703 | S15: =+BerGW!$D$14*100 -> 277.3 | U15: 9.791331987 | V15: 14.2 | X15: 61.87054591 | Y15: 85.3 | AA15: 329.1611338 | AB15: 1486.67267 | AC15: 1815.833804 | AD15: 587.0424731 | AE15: 8814.358494 | AF15: 53.55649613 | AG15: 10 | AH15: 102.2070537 | AI15: 19
B16: Grenzwert des Selbstfinanzierungsgrads | C16: Grenzwert von I2# | D16: =ROUND(($D$6/100)/(($D$5/100)+($D$6/100)),3) -> 0.853 | G16: t+9 | H16: =H15*(1+BerGW!$D$5/100) -> 16704.92754 | I16: 8753.382031 | J16: =+H16*BerGW!$D$7/100 -> 2438.919421 | K16: =+L15*BerGW!$D$6/100 -> 1566.382384 | L16: 18876.93225 | M16: 12187.93225 | N16: 135.7847426 | P16: 72.96010248 | Q16: 145.3 | R16: 139.2368368 | S16: =+BerGW!$D$14*100 -> 277.3 | U16: 10.18961095 | V16: 14.2 | X16: 64.22444179 | Y16: 85.3 | AA16: 334.0985508 | AB16: 1566.382384 | AC16: 1900.480935 | AD16: 538.4384864 | AE16: 9352.796981 | AF16: 55.98825232 | AG16: 10 | AH16: 106.8478098 | AI16: 19
B17: (= Selbstfinanzierung im Verhältnis zu den Nettoinvestitionen) | G17: t+10 | H17: =H16*(1+BerGW!$D$5/100) -> 16955.50145 | I17: 8884.682762 | J17: =+H17*BerGW!$D$7/100 -> 2475.503212 | K17: =+L16*BerGW!$D$6/100 -> 1642.293106 | L17: 19710.14236 | M17: 13021.14236 | N17: 146.255187 | P17: 76.79597324 | Q17: 145.3 | R17: 146.5572008 | S17: =+BerGW!$D$14*100 -> 277.3 | U17: 10.54848362 | V17: 14.2 | X17: 66.34178852 | Y17: 85.3 | AA17: 339.1100291 | AB17: 1642.293106 | AC17: 1981.403135 | AD17: 494.1000772 | AE17: 9846.897058 | AF17: 58.0749386 | AG17: 10 | AH17: 110.8300355 | AI17: 19
B18: Grenzwert des Zangeneffekt (des "Kapitaldienstes") | C18: Grenzwert von I13## | D18: =ROUND((($D$7/100)*(($D$4/100)+($D$6/100))/(($D$5/100)+($D$6/100))),3) -> 0.142 | G18: t+11 | H18: =H17*(1+BerGW!$D$5/100) -> 17209.83398 | I18: 9017.953003 | J18: =+H18*BerGW!$D$7/100 -> 2512.63576 | K18: =+L17*BerGW!$D$6/100 -> 1714.782385 | L18: 20507.99573 | M18: 13818.99573 | N18: 156.2537083 | P18: 80.29708917 | Q18: 145.3 | R18: 153.2387198 | S18: =+BerGW!$D$14*100 -> 277.3 | U18: 10.87190089 | V18: 14.2 | X18: 68.24635756 | Y18: 85.3 | AA18: 344.1966795 | AB18: 1714.782385 | AC18: 2058.979065 | AD18: 453.6566957 | AE18: 10300.55375 | AF18: 59.85272007 | AG18: 10 | AH18: 114.2227482 | AI18: 19
B19: (= Zinsen und Abschreibungen im Verhältnis zum laufenden Ertrag) | G19: t+12 | H19: =H18*(1+BerGW!$D$5/100) -> 17467.98149 | I19: 9153.222298 | J19: =+H19*BerGW!$D$7/100 -> 2550.325297 | K19: =+L18*BerGW!$D$6/100 -> 1784.195629 | L19: 21274.1254 | M19: 14585.1254 | N19: 165.8279488 | P19: 83.49634109 | Q19: 145.3 | R19: 159.3441624 | S19: =+BerGW!$D$14*100 -> 277.3 | U19: 11.16341679 | V19: 14.2 | X19: 69.95953148 | Y19: 85.3 | AA19: 349.3596297 | AB19: 1784.195629 | AC19: 2133.555259 | AD19: 416.7700383 | AE19: 10717.32379 | AF19: 61.35410552 | AG19: 10 | AH19: 117.0879876 | AI19: 19
G20: t+13 | H20: =H19*(1+BerGW!$D$5/100) -> 17730.00121 | I20: 9290.520633 | J20: =+H20*BerGW!$D$7/100 -> 2588.580176 | K20: =+L19*BerGW!$D$6/100 -> 1850.84891 | L20: 22011.85667 | M20: 15322.85667 | N20: 175.0215048 | P20: 86.42332558 | Q20: 145.3 | R20: 164.9300106 | S20: =+BerGW!$D$14*100 -> 277.3 | U20: 11.4262283 | V20: 14.2 | X20: 71.50054408 | Y20: 85.3 | AA20: 354.6000241 | AB20: 1850.84891 | AC20: 2205.448934 | AD20: 383.1312422 | AE20: 11100.45503 | AF20: 62.60831516 | AG20: 10 | AH20: 119.4815175 | AI20: 19
B21: Strukturelles Ungleichgewicht: berechnete Grenzwerte | C21: =+C3 -> Abkürzungen | D21: =+D3 -> Werte | G21: t+14 | H21: =H20*(1+BerGW!$D$5/100) -> 17995.95123 | I21: 9429.878442 | J21: =+H21*BerGW!$D$7/100 -> 2627.408879 | K21: =+L20*BerGW!$D$6/100 -> 1915.03153 | L21: 22724.23402 | M21: 16035.23402 | N21: 183.87428 | P21: 89.10467591 | Q21: 145.3 | R21: 170.0470914 | S21: =+BerGW!$D$14*100 -> 277.3 | U21: 11.66321126 | V21: 14.2 | X21: 72.8866963 | Y21: 85.3 | AA21: 359.9190245 | AB21: 1915.03153 | AC21: 2274.950555 | AD21: 352.4583243 | AE21: 11452.91336 | AF21: 63.64161147 | AG21: 10 | AH21: 121.453457 | AI21: 19
B22: Grenzwert des Verschuldungsquotienten bei strukturellem Ungleichgewicht | C22: Q | D22: =ROUND((((($D$7/100*(1+$D$5/100)/($D$5/100+$D$6/100))-($D$9/100*(1+$D$5/100)/($D$5/100))))),3) -> 0.1 | G22: t+15 | H22: =H21*(1+BerGW!$D$5/100) -> 18265.89049 | I22: 9571.326619 | J22: =+H22*BerGW!$D$7/100 -> 2666.820012 | K22: =+L21*BerGW!$D$6/100 -> 1977.008359 | L22: 23414.04567 | M22: 16725.04567 | N22: 192.4228082 | P22: 91.56435967 | Q22: 145.3 | R22: 174.7411444 | S22: =+BerGW!$D$14*100 -> 277.3 | U22: 11.87695266 | V22: 14.2 | X22: 74.13355046 | Y22: 85.3 | AA22: 365.3178099 | AB22: 1977.008359 | AC22: 2342.326169 | AD22: 324.4938428 | AE22: 11777.4072 | AF22: 64.47759667 | AG22: 10 | AH22: 123.0488486 | AI22: 19
B23: =+B13 -> (= Nettoverbindlichkeiten im Verhältnis zu den laufenden Einnahmen) | G23: t+16 | H23: =H22*(1+BerGW!$D$5/100) -> 18539.87885 | I23: 9714.896518 | J23: =+H23*BerGW!$D$7/100 -> 2706.822312 | K23: =+L22*BerGW!$D$6/100 -> 2037.021973 | L23: 24083.84601 | M23: 17394.84601 | N23: 200.700548 | P23: 93.82394647 | Q23: 145.3 | R23: 179.053333 | S23: =+BerGW!$D$14*100 -> 277.3 | U23: 12.06977963 | V23: 14.2 | X23: 75.255105 | Y23: 85.3 | AA23: 370.797577 | AB23: 2037.021973 | AC23: 2407.81955 | AD23: 299.002762 | AE23: 12076.40996 | AF23: 65.13748046 | AG23: 10 | AH23: 124.3081688 | AI23: 19
B24: Grenzwert des Nettoverschuldungsquotienten bei strukturellem Ungleichgewicht | C24: Grenzwert von I9# | D24: =ROUND((((($D$7/100*(1+$D$5/100)/($D$5/100+$D$6/100))-($D$9/100*(1+$D$5/100)/($D$5/100))))*(1/($D$8/100))),3) -> 0.19 | G24: t+17 | H24: =H23*(1+BerGW!$D$5/100) -> 18817.97703 | I24: 9860.619966 | J24: =+H24*BerGW!$D$7/100 -> 2747.424647 | K24: =+L23*BerGW!$D$6/100 -> 2095.294603 | L24: 24735.97605 | M24: 18046.97605 | N24: 208.7381521 | P24: 95.90284875 | Q24: 145.3 | R24: 183.0207037 | S24: =+BerGW!$D$14*100 -> 277.3 | U24: 12.24378556 | V24: 14.2 | X24: 76.26395159 | Y24: 85.3 | AA24: 376.3595407 | AB24: 2095.294603 | AC24: 2471.654143 | AD24: 275.7705035 | AE24: 12352.18047 | AF24: 65.64032066 | AG24: 10 | AH24: 125.2677875 | AI24: 19
B25: =+B15 -> (= Nettoverbindlichkeiten im Verhältnis zum Steuerertrag) | G25: t+18 | H25: =H24*(1+BerGW!$D$5/100) -> 19100.24669 | I25: 10008.52927 | J25: =+H25*BerGW!$D$7/100 -> 2788.636017 | K25: =+L24*BerGW!$D$6/100 -> 2152.029917 | L25: 25372.58215 | M25: 18683.58215 | N25: 216.5637126 | P25: 97.81853845 | Q25: 145.3 | R25: 186.6766001 | S25: =+BerGW!$D$14*100 -> 277.3 | U25: 12.4008536 | V25: 14.2 | X25: 77.17141655 | Y25: 85.3 | AA25: 382.0049338 | AB25: 2152.029917 | AC25: 2534.03485 | AD25: 254.6011663 | AE25: 12606.78163 | AF25: 66.00323984 | AG25: 10 | AH25: 125.9603814 | AI25: 19
G26: t+19 | H26: =H25*(1+BerGW!$D$5/100) -> 19386.75039 | I26: 10158.6572 | J26: =+H26*BerGW!$D$7/100 -> 2830.465557 | K26: =+L25*BerGW!$D$6/100 -> 2207.414647 | L26: 25995.63306 | M26: 19306.63306 | N26: 224.2029858 | P26: 99.58674184 | Q26: 145.3 | R26: 190.0510341 | S26: =+BerGW!$D$14*100 -> 277.3 | U26: 12.54267778 | V26: 14.2 | X26: 77.98768799 | Y26: 85.3 | AA26: 387.7350078 | AB26: 2207.414647 | AC26: 2595.149655 | AD26: 235.3159018 | AE26: 12842.09753 | AF26: 66.24162006 | AG26: 10 | AH26: 126.4153055 | AI26: 19
G27: t+20 | H27: =H26*(1+BerGW!$D$5/100) -> 19677.55165 | I27: 10311.03706 | J27: =+H27*BerGW!$D$7/100 -> 2872.92254 | K27: =+L26*BerGW!$D$6/100 -> 2261.620076 | L27: 26606.93553 | M27: 19917.93553 | N27: 231.6795967 | P27: 101.2216148 | Q27: 145.3 | R27: 193.1710206 | S27: =+BerGW!$D$14*100 -> 277.3 | U27: 12.67078201 | V27: 14.2 | X27: 78.72193019 | Y27: 85.3 | AA27: 393.5510329 | AB27: 2261.620076 | AC27: 2655.171109 | AD27: 217.7514309 | AE27: 13059.84897 | AF27: 66.36927805 | AG27: 10 | AH27: 126.6589276 | AI27: 19
G28: t+21 | H28: =H27*(1+BerGW!$D$5/100) -> 19972.71492 | I28: 10465.70262 | J28: =+H28*BerGW!$D$7/100 -> 2916.016378 | K28: =+L27*BerGW!$D$6/100 -> 2314.803391 | L28: 27208.14851 | M28: 20519.14851 | N28: 239.0152263 | P28: 102.7359004 | Q28: 145.3 | R28: 196.0608787 | S28: =+BerGW!$D$14*100 -> 277.3 | U28: 12.78653717 | V28: 14.2 | X28: 79.38238646 | Y28: 85.3 | AA28: 399.4542984 | AB28: 2314.803391 | AC28: 2714.257689 | AD28: 201.7586892 | AE28: 13261.60765 | AF28: 66.39862286 | AG28: 10 | AH28: =+AE28/$I28*100 -> 126.7149291 | AI28: 19
G29: t+22 | H29: =H28*(1+BerGW!$D$5/100) -> 20272.30564 | I29: 10622.68816 | J29: =+H29*BerGW!$D$7/100 -> 2959.756624 | K29: =+L28*BerGW!$D$6/100 -> 2367.108921 | L29: 27800.79622 | M29: 21111.79622 | N29: 246.2297822 | P29: 104.141071 | Q29: 145.3 | R29: 198.7425019 | S29: =+BerGW!$D$14*100 -> 277.3 | U29: 12.89117651 | V29: 14.2 | X29: 79.97647176 | Y29: 85.3 | AA29: 405.4461129 | AB29: 2367.108921 | AC29: 2772.555034 | AD29: 187.2015905 | AE29: 13448.80925 | AF29: 66.34079755 | AG29: 10 | AH29: 126.6045755 | AI29: 19
G30: t+23 | H30: =H29*(1+BerGW!$D$5/100) -> 20576.39023 | I30: 10782.02848 | J30: =+H30*BerGW!$D$7/100 -> 3004.152973 | K30: =+L29*BerGW!$D$6/100 -> 2418.669271 | L30: 28386.27992 | M30: 21697.27992 | N30: 253.3415546 | P30: 105.4474554 | Q30: 145.3 | R30: 201.235602 | S30: =+BerGW!$D$14*100 -> 277.3 | U30: 12.98580944 | V30: 14.2 | X30: 80.51085588 | Y30: 85.3 | AA30: 411.5278046 | AB30: 2418.669271 | AC30: 2830.197075 | AD30: 173.9558979 | AE30: 13622.76514 | AF30: 66.20580671 | AG30: 10 | AH30: 126.3469594 | AI30: 19
G31: t+24 | H31: =H30*(1+BerGW!$D$5/100) -> 20885.03608 | I31: 10943.75891 | J31: =+H31*BerGW!$D$7/100 -> 3049.215268 | K31: =+L30*BerGW!$D$6/100 -> 2469.606353 | L31: 28965.88883 | M31: 22276.88883 | N31: 260.367359 | P31: 106.6643541 | Q31: 145.3 | R31: 203.5579276 | S31: =+BerGW!$D$14*100 -> 277.3 | U31: 13.07143402 | V31: 14.2 | X31: 80.99153834 | Y31: 85.3 | AA31: 417.7007216 | AB31: 2469.606353 | AC31: 2887.307075 | AD31: 161.9081934 | AE31: 13784.67334 | AF31: 66.00263118 | AG31: 10 | AH31: 125.9592198 | AI31: 19
G32: t+25 | H32: =H31*(1+BerGW!$D$5/100) -> 21198.31162 | I32: 11107.91529 | J32: =+H32*BerGW!$D$7/100 -> 3094.953497 | K32: =+L31*BerGW!$D$6/100 -> 2520.032329 | L32: 29540.81 | M32: 22851.81 | N32: 267.322666 | P32: 107.8001419 | Q32: 145.3 | R32: 205.7254616 | S32: =+BerGW!$D$14*100 -> 277.3 | U32: 13.14894811 | V32: 14.2 | X32: 81.42391577 | Y32: 85.3 | AA32: 423.9662325 | AB32: 2520.032329 | AC32: 2943.998561 | AD32: 150.9549359 | AE32: 13935.62827 | AF32: 65.73933113 | AG32: 10 | AH32: 125.4567388 | AI32: 19
G33: t+26 | H33: =H32*(1+BerGW!$D$5/100) -> 21516.2863 | I33: 11274.53402 | J33: =+H33*BerGW!$D$7/100 -> 3141.377799 | K33: =+L32*BerGW!$D$6/100 -> 2570.05047 | L33: 30112.13733 | M33: 23423.13733 | N33: 274.22172 | P33: 108.8623613 | Q33: 145.3 | R33: 207.7525979 | S33: =+BerGW!$D$14*100 -> 277.3 | U33: 13.21915944 | V33: 14.2 | X33: 81.81284246 | Y33: 85.3 | AA33: 430.325726 | AB33: 2570.05047 | AC33: 3000.376196 | AD33: 141.0016033 | AE33: 14076.62988 | AF33: 65.42313892 | AG33: 10 | AH33: 124.8533186 | AI33: 19
G34: t+27 | H34: =H33*(1+BerGW!$D$5/100) -> 21839.03059 | I34: 11443.65203 | J34: =+H34*BerGW!$D$7/100 -> 3188.498466 | K34: =+L33*BerGW!$D$6/100 -> 2619.755948 | L34: 30680.87985 | M34: 23991.87985 | N34: 281.077648 | P34: 109.857806 | Q34: 145.3 | R34: 209.6523014 | S34: =+BerGW!$D$14*100 -> 277.3 | U34: 13.28279469 | V34: 14.2 | X34: 82.1626849 | Y34: 85.3 | AA34: 436.7806118 | AB34: 2619.755948 | AC34: 3056.53656 | AD34: 131.9619067 | AE34: 14208.59178 | AF34: 65.06054251 | AG34: 10 | AH34: 124.1613407 | AI34: 19
G35: t+28 | H35: =H34*(1+BerGW!$D$5/100) -> 22166.61605 | I35: 11615.30681 | J35: =+H35*BerGW!$D$7/100 -> 3236.325943 | K35: =+L34*BerGW!$D$6/100 -> 2669.236547 | L35: 31247.96925 | M35: 24558.96925 | N35: 287.9025582 | P35: 110.7925955 | Q35: 145.3 | R35: 211.4362509 | S35: =+BerGW!$D$14*100 -> 277.3 | U35: 13.34050763 | V35: 14.2 | X35: 82.47737075 | Y35: 85.3 | AA35: 443.332321 | AB35: 2669.236547 | AC35: 3112.568868 | AD35: 123.7570754 | AE35: 14332.34886 | AF35: 64.65736053 | AG35: 10 | AH35: 123.3919094 | AI35: 19
G36: t+29 | H36: =H35*(1+BerGW!$D$5/100) -> 22499.11529 | I36: 11789.53641 | J36: =+H36*BerGW!$D$7/100 -> 3284.870833 | K36: =+L35*BerGW!$D$6/100 -> 2718.573325 | L36: 31814.26676 | M36: 25125.26676 | N36: 294.707631 | P36: 111.6722432 | Q36: 145.3 | R36: 213.114968 | S36: =+BerGW!$D$14*100 -> 277.3 | U36: 13.39288642 | V36: 14.2 | X36: 82.760433 | Y36: 85.3 | AA36: 449.9823058 | AB36: =+K36 -> 2718.573325 | AC36: 3168.55563 | AD36: 116.3152023 | AE36: 14448.66406 | AF36: 64.21880982 | AG36: 10 | AH36: 122.5549806 | AI36: 19
G37: t+30 | H37: =H36*(1+BerGW!$D$5/100) -> 22836.60202 | I37: 11966.37946 | J37: =+H37*BerGW!$D$7/100 -> 3334.143895 | K37: =+L36*BerGW!$D$6/100 -> 2767.841208 | L37: 32380.56944 | M37: 25691.56944 | N37: 301.5032011 | P37: 112.5017173 | Q37: 145.3 | R37: 214.6979337 | S37: =+BerGW!$D$14*100 -> 277.3 | U37: 13.44046021 | V37: 14.2 | X37: 83.01504958 | Y37: 85.3 | AA37: 456.7320404 | AB37: 2767.841208 | AC37: 3224.573248 | AD37: 109.570647 | AE37: 14558.23471 | AF37: 63.74956613 | AG37: 10 | AH37: 121.6594773 | AI37: 19
G38: t+31 | H38: =H37*(1+BerGW!$D$5/100) -> 23179.15105 | I38: 12145.87515 | J38: =+H38*BerGW!$D$7/100 -> 3384.156054 | K38: =+L37*BerGW!$D$6/100 -> 2817.109542 | L38: 32947.61595 | M38: 26258.61595 | N38: 308.2988333 | P38: 113.2854948 | Q38: 145.3 | R38: 216.1936923 | S38: =+BerGW!$D$14*100 -> 277.3 | U38: 13.48370511 | V38: 14.2 | X38: 83.24407908 | Y38: 85.3 | AA38: 463.583021 | AB38: 2817.109542 | AC38: 3280.692563 | AD38: 103.463491 | AE38: 14661.6982 | AF38: 63.25381877 | AG38: 10 | AH38: 120.7133946 | AI38: 19
G39: t+32 | H39: =H38*(1+BerGW!$D$5/100) -> 23526.83832 | I39: 12328.06328 | J39: =+H39*BerGW!$D$7/100 -> 3434.918394 | K39: =+L38*BerGW!$D$6/100 -> 2866.442588 | L39: 33516.09176 | M39: 26827.09176 | N39: 315.1033915 | P39: 114.0276114 | Q39: 145.3 | R39: 217.6099453 | S39: =+BerGW!$D$14*100 -> 277.3 | U39: 13.52304945 | V39: 14.2 | X39: 83.45009281 | Y39: 85.3 | AA39: 470.5367663 | AB39: 2866.442588 | AC39: 3336.979354 | AD39: 97.93903993 | AE39: 14759.63724 | AF39: 62.73531972 | AG39: 10 | AH39: 119.7238926 | AI39: 19
G40: t+33 | H40: =H39*(1+BerGW!$D$5/100) -> 23879.74089 | I40: 12512.98423 | J40: =+H40*BerGW!$D$7/100 -> 3486.44217 | K40: =+L39*BerGW!$D$6/100 -> 2915.899983 | L40: 34086.63395 | M40: 27397.63395 | N40: 321.9251011 | P40: 114.7317053 | Q40: 145.3 | R40: 218.9536361 | S40: =+BerGW!$D$14*100 -> 277.3 | U40: 13.55887863 | V40: 14.2 | X40: 83.63540368 | Y40: 85.3 | AA40: 477.5948178 | AB40: 2915.899983 | AC40: 3393.494801 | AD40: 92.9473692 | AE40: 14852.58461 | AF40: 62.19742783 | AG40: 10 | AH40: 118.6973814 | AI40: 19
G41: t+34 | H41: =H40*(1+BerGW!$D$5/100) -> 24237.93701 | I41: 12700.67899 | J41: =+H41*BerGW!$D$7/100 -> 3538.738803 | K41: =+L40*BerGW!$D$6/100 -> 2965.537153 | L41: 34659.8356 | M41: 27970.8356 | N41: 328.7716074 | P41: 115.4010574 | Q41: 145.3 | R41: 220.2310256 | S41: =+BerGW!$D$14*100 -> 277.3 | U41: 13.59153941 | V41: 14.2 | X41: 83.80209218 | Y41: 85.3 | AA41: 484.7587401 | AB41: 2965.537153 | AC41: 3450.295894 | AD41: 88.44290921 | AE41: 14941.02752 | AF41: 61.64314856 | AG41: 10 | AH41: 117.6395965 | AI41: 19
G42: t+35 | H42: =H41*(1+BerGW!$D$5/100) -> 24601.50606 | I42: 12891.18918 | J42: =+H42*BerGW!$D$7/100 -> 3591.819885 | K42: =+L41*BerGW!$D$6/100 -> 3015.405697 | L42: 35236.24979 | M42: 28547.24979 | N42: 335.6500272 | P42: 116.0386267 | Q42: 145.3 | R42: 221.4477609 | S42: =+BerGW!$D$14*100 -> 277.3 | U42: 13.62134381 | V42: 14.2 | X42: 83.95202971 | Y42: 85.3 | AA42: 492.0301212 | AB42: 3015.405697 | AC42: 3507.435818 | AD42: 84.38406666 | AE42: 15025.41158 | AF42: 61.07516973 | AG42: 10 | AH42: 116.5556674 | AI42: 19
G43: t+36 | H43: =H42*(1+BerGW!$D$5/100) -> 24970.52865 | I43: 13084.55701 | J43: =+H43*BerGW!$D$7/100 -> 3645.697183 | K43: =+L42*BerGW!$D$6/100 -> 3065.553731 | L43: 35816.39324 | M43: 29127.39324 | N43: 342.5669974 | P43: 116.6470828 | Q43: 145.3 | R43: 222.6089367 | S43: =+BerGW!$D$14*100 -> 277.3 | U43: 13.64857259 | V43: 14.2 | X43: 84.08689963 | Y43: 85.3 | AA43: 499.410573 | AB43: 3065.553731 | AC43: 3564.964304 | AD43: 80.73287877 | AE43: 15106.14446 | AF43: 60.49589367 | AG43: 10 | AH43: 115.4501788 | AI43: 19
G44: t+37 | H44: =H43*(1+BerGW!$D$5/100) -> 25345.08658 | I44: 13280.82537 | J44: =+H44*BerGW!$D$7/100 -> 3700.382641 | K44: =+L43*BerGW!$D$6/100 -> 3116.026212 | L44: 36400.74967 | M44: 29711.74967 | N44: 349.5287188 | P44: 117.2288348 | Q44: 145.3 | R44: 223.7191503 | S44: =+BerGW!$D$14*100 -> 277.3 | U44: 13.67347837 | V44: 14.2 | X44: 84.20821612 | Y44: 85.3 | AA44: 506.9017316 | AB44: 3116.026212 | AC44: 3622.927943 | AD44: 77.45469762 | AE44: 15183.59916 | AF44: 59.90746613 | AG44: 10 | AH44: 114.3272254 | AI44: 19
G45: t+38 | H45: =H44*(1+BerGW!$D$5/100) -> 25725.26288 | I45: 13480.03775 | J45: =+H45*BerGW!$D$7/100 -> 3755.88838 | K45: =+L44*BerGW!$D$6/100 -> 3166.865221 | L45: 36989.77283 | M45: 30300.77283 | N45: 356.540996 | P45: 117.7860571 | Q45: 145.3 | R45: 224.7825517 | S45: =+BerGW!$D$14*100 -> 277.3 | U45: 13.69628848 | V45: 14.2 | X45: 84.3173412 | Y45: 85.3 | AA45: 514.5052576 | AB45: 3166.865221 | AC45: 3681.370479 | AD45: 74.51790191 | AE45: 15258.11706 | AF45: 59.3118023 | AG45: 10 | AH45: 113.1904624 | AI45: 19
G46: t+39 | H46: =H45*(1+BerGW!$D$5/100) -> 26111.14182 | I46: 13682.23832 | J46: =+H46*BerGW!$D$7/100 -> 3812.226706 | K46: =+L45*BerGW!$D$6/100 -> 3218.110236 | L46: 37583.8893 | M46: 30894.8893 | N46: 363.6092739 | P46: 118.3207135 | Q46: 145.3 | R46: 225.8028883 | S46: =+BerGW!$D$14*100 -> 277.3 | U46: 13.71720752 | V46: 14.2 | X46: 84.41550002 | Y46: 85.3 | AA46: 522.2228365 | AB46: 3218.110236 | AC46: 3740.333072 | AD46: 71.89363388 | AE46: 15330.0107 | AF46: 58.7106102 | AG46: 10 | AH46: 112.0431492 | AI46: 19
G47: t+40 | H47: =H46*(1+BerGW!$D$5/100) -> 26502.80895 | I47: 13887.47189 | J47: =+H47*BerGW!$D$7/100 -> 3869.410107 | K47: =+L46*BerGW!$D$6/100 -> 3269.798369 | L47: 38183.50103 | M47: 31494.50103 | N47: 370.7386716 | P47: 118.8345775 | Q47: 145.3 | R47: 226.7835448 | S47: =+BerGW!$D$14*100 -> 277.3 | U47: 13.73641959 | V47: 14.2 | X47: 84.5037946 | Y47: 85.3 | AA47: 530.056179 | AB47: 3269.798369 | AC47: 3799.854548 | AD47: 69.555559 | AE47: 15399.56625 | AF47: 58.10541171 | AG47: 10 | AH47: 110.8881903 | AI47: 19
G48: t+41 | H48: =H47*(1+BerGW!$D$5/100) -> 26900.35108 | I48: 14095.78397 | J48: =+H48*BerGW!$D$7/100 -> 3927.451258 | K48: =+L47*BerGW!$D$6/100 -> 3321.96459 | L48: 38788.9877 | M48: 32099.9877 | N48: 377.9340124 | P48: 119.3292519 | Q48: 145.3 | R48: 227.7275799 | S48: =+BerGW!$D$14*100 -> 277.3 | U48: 13.75409039 | V48: 14.2 | X48: 84.58321622 | Y48: 85.3 | AA48: 538.0070217 | AB48: 3321.96459 | AC48: 3859.971612 | AD48: 67.47964671 | AE48: 15467.0459 | AF48: 57.49756147 | AG48: 10 | AH48: 109.7281707 | AI48: 19
G49: t+42 | H49: =H48*(1+BerGW!$D$5/100) -> 27303.85635 | I49: 14307.22073 | J49: =+H49*BerGW!$D$7/100 -> 3986.363027 | K49: =+L48*BerGW!$D$6/100 -> 3374.64193 | L49: 39400.7088 | M49: 32711.7088 | N49: 385.1998524 | P49: 119.8061855 | Q49: 145.3 | R49: 228.6377587 | S49: =+BerGW!$D$14*100 -> 277.3 | U49: 13.77036904 | V49: 14.2 | X49: 84.65465656 | Y49: 85.3 | AA49: 546.077127 | AB49: 3374.64193 | AC49: 3920.719057 | AD49: 65.64397011 | AE49: 15532.68987 | AF49: 56.88826396 | AG49: 10 | AH49: 108.5653892 | AI49: 19
G50: t+43 | H50: =H49*(1+BerGW!$D$5/100) -> 27713.4142 | I50: 14521.82904 | J50: =+H50*BerGW!$D$7/100 -> 4046.158473 | K50: =+L49*BerGW!$D$6/100 -> 3427.861666 | L50: 40019.00561 | M50: 33330.00561 | N50: 392.5405056 | P50: 120.2666888 | Q50: 145.3 | R50: 229.5165817 | S50: =+BerGW!$D$14*100 -> 277.3 | U50: 13.78538979 | V50: 14.2 | X50: 84.71891768 | Y50: 85.3 | AA50: 554.2682839 | AB50: 3427.861666 | AC50: 3982.12995 | AD50: 64.02852316 | AE50: 15596.71839 | AF50: 56.27858871 | AG50: 10 | AH50: 107.4018869 | AI50: 19
G51: t+44 | H51: =H50*(1+BerGW!$D$5/100) -> 28129.11541 | I51: 14739.65647 | J51: =+H51*BerGW!$D$7/100 -> 4106.85085 | K51: =+L50*BerGW!$D$6/100 -> 3481.653488 | L51: 40644.20297 | M51: 33955.20297 | N51: 399.9600673 | P51: 120.7119473 | Q51: 145.3 | R51: 230.3663116 | S51: =+BerGW!$D$14*100 -> 277.3 | U51: 13.79927345 | V51: 14.2 | X51: 84.77672102 | Y51: 85.3 | AA51: 562.5823082 | AB51: 3481.653488 | AC51: 4044.235796 | AD51: 62.61505378 | AE51: 15659.33345 | AF51: 55.66948416 | AG51: 10 | AH51: 106.2394736 | AI51: 19
G52: t+45 | H52: =H51*(1+BerGW!$D$5/100) -> 28551.05214 | I52: 14960.75132 | J52: =+H52*BerGW!$D$7/100 -> 4168.453613 | K52: =+L51*BerGW!$D$6/100 -> 3536.045658 | L52: 41276.61092 | M52: 34587.61092 | N52: 407.4624356 | P52: 121.1430344 | Q52: 145.3 | R52: 231.188997 | S52: =+BerGW!$D$14*100 -> 277.3 | U52: 13.81212879 | V52: 14.2 | X52: 84.82871556 | Y52: 85.3 | AA52: 571.0210428 | AB52: 3536.045658 | AC52: 4107.066701 | AD52: 61.38691141 | AE52: 15720.72036 | AF52: 55.06178996 | AG52: 10 | AH52: 105.0797518 | AI52: 19
G53: t+46 | H53: =H52*(1+BerGW!$D$5/100) -> 28979.31792 | I53: 15185.16259 | J53: =+H53*BerGW!$D$7/100 -> 4230.980417 | K53: =+L52*BerGW!$D$6/100 -> 3591.06515 | L53: 41916.52619 | M53: 35227.52619 | N53: 415.0513311 | P53: 121.5609225 | Q53: 145.3 | R53: 231.9864932 | S53: =+BerGW!$D$14*100 -> 277.3 | U53: 13.82405373 | V53: 14.2 | X53: 84.87548503 | Y53: 85.3 | AA53: 579.5863585 | AB53: 3591.06515 | AC53: 4170.651509 | AD53: 60.32890794 | AE53: 15781.04927 | AF53: 54.45624811 | AG53: 10 | AH53: 103.9241376 | AI53: 19
G54: t+47 | H54: =H53*(1+BerGW!$D$5/100) -> 29414.00769 | I54: 15412.94003 | J54: =+H54*BerGW!$D$7/100 -> 4294.445123 | K54: =+L53*BerGW!$D$6/100 -> 3646.737778 | L54: 42564.23353 | M54: 35875.23353 | N54: 422.7303143 | P54: 121.9664927 | Q54: 145.3 | R54: 232.7604822 | S54: =+BerGW!$D$14*100 -> 277.3 | U54: 13.83513643 | V54: 14.2 | X54: 84.91755452 | Y54: 85.3 | AA54: 588.2801538 | AB54: 3646.737778 | AC54: 4235.017932 | AD54: 59.42719064 | AE54: 15840.47646 | AF54: 53.85351301 | AG54: 10 | AH54: 102.7738798 | AI54: 19
G55: t+48 | H55: =H54*(1+BerGW!$D$5/100) -> 29855.21781 | I55: 15644.13413 | J55: =+H55*BerGW!$D$7/100 -> 4358.8618 | K55: =+L54*BerGW!$D$6/100 -> 3703.088317 | L55: 43220.00702 | M55: 36531.00702 | N55: 430.5028024 | P55: 122.3605443 | Q55: 145.3 | R55: 233.5124892 | S55: =+BerGW!$D$14*100 -> 277.3 | U55: 13.84545625 | V55: 14.2 | X55: 84.95539633 | Y55: 85.3 | AA55: 597.1043561 | AB55: 3703.088317 | AC55: 4300.192674 | AD55: 58.66912621 | AE55: 15899.14558 | AF55: 53.25416042 | AG55: 10 | AH55: 101.6300771 | AI55: 19
G56: t+49 | H56: =H55*(1+BerGW!$D$5/100) -> 30303.04607 | I56: 15878.79614 | J56: =+H56*BerGW!$D$7/100 -> 4424.244727 | K56: =+L55*BerGW!$D$6/100 -> 3760.14061 | L56: 43884.11113 | M56: 37195.11113 | N56: 438.3720842 | P56: 122.7438029 | Q56: 145.3 | R56: 234.2438986 | S56: =+BerGW!$D$14*100 -> 277.3 | U56: 13.85508468 | V56: 14.2 | X56: 84.98943532 | Y56: 85.3 | AA56: 606.0609215 | AB56: 3760.14061 | AC56: 4366.201532 | AD56: 58.0431949 | AE56: 15957.18878 | AF56: 52.65869557 | AG56: 10 | AH56: 100.4936938 | AI56: 19
G57: t+50 | H57: =H56*(1+BerGW!$D$5/100) -> 30757.59177 | I57: 16116.97808 | J57: =+H57*BerGW!$D$7/100 -> 4490.608398 | K57: =+L56*BerGW!$D$6/100 -> 3817.917669 | L57: 44556.80186 | M57: 37867.80186 | N57: 446.3413336 | P57: 123.1169272 | Q57: 145.3 | R57: 234.9559679 | S57: =+BerGW!$D$14*100 -> 277.3 | U57: 13.86408609 | V57: 14.2 | X57: 85.02005364 | Y57: 85.3 | AA57: 615.1518353 | AB57: 3817.917669 | AC57: 4433.069504 | AD57: 57.53889385 | AE57: 16014.72767 | AF57: 52.06756041 | AG57: 10 | AH57: 99.3655733 | AI57: 19
G58: t+51 | H58: =H57*(1+BerGW!$D$5/100) -> 31218.95564 | I58: 16358.73276 | J58: =+H58*BerGW!$D$7/100 -> 4557.967524 | K58: =+L57*BerGW!$D$6/100 -> 3876.441762 | L58: =+L57+J58-K58 -> 45238.32762 | M58: =+M57+J58-K58 -> 38549.32762 | N58: 454.4136223 | P58: =+M58/H58*100 -> 123.4805163 | Q58: 145.3 | R58: =+M58/I58*100 -> 235.6498404 | S58: =+BerGW!$D$14*100 -> 277.3 | U58: =+(N58+K58)/H58*100+T58 -> 13.87251846 | V58: 14.2 | X58: =+K58/J58*100+W58 -> 85.04759505 | Y58: 85.3 | AA58: 624.3791128 | AB58: =+K58 -> 3876.441762 | AC58: =+AA58+AB58 -> 4500.820875 | AD58: =+J58-AC58 -> 57.14664885 | AE58: =+AE57+J58-K58-AA58 -> 16071.87432 | AF58: =+AE58/$H58*100 -> 51.4811402 | AG58: 10 | AH58: =+AE58/$I58*100 -> 98.24645076 | AI58: 19
G59: t+52 | H59: =H58*(1+BerGW!$D$5/100) -> 31687.23998 | I59: 16604.11375 | J59: =+H59*BerGW!$D$7/100 -> 4626.337037 | K59: =+L58*BerGW!$D$6/100 -> 3935.734503 | L59: 45928.93016 | M59: 39239.93016 | N59: 462.5919315 | P59: 123.8351153 | Q59: 145.3 | R59: 236.3265559 | S59: =+BerGW!$D$14*100 -> 277.3 | U59: 13.88043401 | V59: 14.2 | X59: 85.07236875 | Y59: 85.3 | AA59: 633.7447995 | AB59: 3935.734503 | AC59: 4569.479303 | AD59: 56.85773375 | AE59: 16128.73206 | AF59: 50.89976933 | AG59: 10 | AH59: 97.13696438 | AI59: 19
G60: t+53 | H60: =H59*(1+BerGW!$D$5/100) -> 32162.54858 | I60: 16853.17545 | J60: =+H60*BerGW!$D$7/100 -> 4695.732092 | K60: =+L59*BerGW!$D$6/100 -> 3995.816924 | L60: 46628.84533 | M60: 39939.84533 | N60: 470.8791619 | P60: 124.1812204 | Q60: 145.3 | R60: 236.9870618 | S60: =+BerGW!$D$14*100 -> 277.3 | U60: 13.8878798 | V60: 14.2 | X60: 85.09465287 | Y60: 85.3 | AA60: 643.2509715 | AB60: 3995.816924 | AC60: 4639.067895 | AD60: 56.66419691 | AE60: 16185.39625 | AF60: 50.32373667 | AG60: 10 | AH60: 96.03766541 | AI60: 19
G61: t+54 | H61: =H60*(1+BerGW!$D$5/100) -> 32644.9868 | I61: 17105.97309 | J61: =+H61*BerGW!$D$7/100 -> 4766.168073 | K61: =+L60*BerGW!$D$6/100 -> 4056.709543 | L61: 47338.30386 | M61: 40649.30386 | N61: 479.2781439 | P61: 124.5192841 | Q61: 145.3 | R61: 237.6322215 | S61: =+BerGW!$D$14*100 -> 277.3 | U61: 13.89489821 | V61: 14.2 | X61: 85.11469761 | Y61: 85.3 | AA61: 652.8997361 | AB61: 4056.709543 | AC61: 4709.609279 | AD61: 56.55879406 | AE61: 16241.95505 | AF61: 49.75329028 | AG61: 10 | AH61: 94.94902725 | AI61: 19
G62: t+55 | H62: =H61*(1+BerGW!$D$5/100) -> 33134.66161 | I62: 17362.56268 | J62: =+H62*BerGW!$D$7/100 -> 4837.660595 | K62: =+L61*BerGW!$D$6/100 -> 4118.432435 | L62: 48057.53201 | M62: 41368.53201 | N62: 487.7916463 | P62: 124.8497193 | Q62: 145.3 | R62: 238.2628231 | S62: =+BerGW!$D$14*100 -> 277.3 | U62: 13.90152746 | V62: 14.2 | X62: 85.132728 | Y62: 85.3 | AA62: 662.6932321 | AB62: 4118.432435 | AC62: 4781.125668 | AD62: 56.534927 | AE62: 16298.48997 | AF62: 49.18864169 | AG62: 10 | AH62: 93.87145361 | AI62: 19
G63: t+56 | H63: =H62*(1+BerGW!$D$5/100) -> 33631.68153 | I63: 17623.00112 | J63: =+H63*BerGW!$D$7/100 -> 4910.225503 | K63: =+L62*BerGW!$D$6/100 -> 4181.005285 | L63: 48786.75223 | M63: 42097.75223 | N63: 496.4223842 | P63: 125.1729034 | Q63: 145.3 | R63: 238.8795866 | S63: =+BerGW!$D$14*100 -> 277.3 | U63: 13.90780198 | V63: 14.2 | X63: 85.14894647 | Y63: 85.3 | AA63: 672.6336306 | AB63: 4181.005285 | AC63: 4853.638916 | AD63: 56.58658759 | AE63: 16355.07656 | AF63: 48.62996977 | AG63: 10 | AH63: 92.80528582 | AI63: 19
G64: t+57 | H64: =H63*(1+BerGW!$D$5/100) -> 34136.15675 | I64: 17887.34614 | J64: =+H64*BerGW!$D$7/100 -> 4983.878886 | K64: =+L63*BerGW!$D$6/100 -> 4244.447444 | L64: 49526.18367 | M64: 42837.18367 | N64: 505.1730268 | P64: 125.4891814 | Q64: 145.3 | R64: 239.4831706 | S64: =+BerGW!$D$14*100 -> 277.3 | U64: 13.91375281 | V64: 14.2 | X64: 85.1635351 | Y64: 85.3 | AA64: 682.7231351 | AB64: 4244.447444 | AC64: 4927.170579 | AD64: 56.7083067 | AE64: 16411.78487 | AF64: 48.07742414 | AG64: 10 | AH64: 91.75080943 | AI64: 19
G65: t+58 | H65: =H64*(1+BerGW!$D$5/100) -> 34648.1991 | I65: 18155.65633 | J65: =+H65*BerGW!$D$7/100 -> 5058.637069 | K65: =+L64*BerGW!$D$6/100 -> 4308.77798 | L65: 50276.04276 | M65: 43587.04276 | N65: 514.0462041 | P65: 125.7988695 | Q65: 145.3 | R65: 240.0741784 | S65: =+BerGW!$D$14*100 -> 277.3 | U65: 13.91940796 | V65: 14.2 | X65: 85.17665768 | Y65: 85.3 | AA65: 692.9639821 | AB65: 4308.77798 | AC65: 5001.741962 | AD65: 56.89510753 | AE65: 16468.67998 | AF65: 47.53112832 | AG65: 10 | AH65: 90.70826014 | AI65: 19
G66: t+59 | H66: =H65*(1+BerGW!$D$5/100) -> 35167.92209 | I66: 18427.99118 | J66: =+H66*BerGW!$D$7/100 -> 5134.516625 | K66: =+L65*BerGW!$D$6/100 -> 4374.01572 | L66: 51036.54367 | M66: 44347.54367 | N66: 523.0445132 | P66: 126.1022575 | Q66: 145.3 | R66: 240.6531631 | S66: =+BerGW!$D$14*100 -> 277.3 | U66: 13.92479266 | V66: 14.2 | X66: 85.18846154 | Y66: 85.3 | AA66: 703.3584418 | AB66: 4374.01572 | AC66: 5077.374162 | AD66: 57.14246304 | AE66: 16525.82244 | AF66: 46.99118246 | AG66: 10 | AH66: 89.67782913 | AI66: 19
G67: t+60 | H67: =H66*(1+BerGW!$D$5/100) -> 35695.44092 | I67: 18704.41104 | J67: =+H67*BerGW!$D$7/100 -> 5211.534375 | K67: =+L66*BerGW!$D$6/100 -> 4440.179299 | L67: 51807.89874 | M67: 45118.89874 | N67: 532.170524 | P67: 126.3996118 | Q67: 145.3 | R67: 241.2206331 | S67: =+BerGW!$D$14*100 -> 277.3 | U67: 13.92992969 | V67: 14.2 | X67: 85.1990792 | Y67: 85.3 | AA67: 713.9088185 | AB67: 4440.179299 | AC67: 5154.088118 | AD67: 57.44625707 | AE67: 16583.2687 | AF67: 46.45766593 | AG67: 10 | AH67: 88.6596678 | AI67: 19
G68: t+61 | H68: =H67*(1+BerGW!$D$5/100) -> 36230.87254 | I68: 18984.97721 | J68: =+H68*BerGW!$D$7/100 -> 5289.70739 | K68: =+L67*BerGW!$D$6/100 -> 4507.287191 | L68: 52590.31894 | M68: 45901.31894 | N68: 541.4267849 | P68: 126.6911772 | Q68: 145.3 | R68: 241.7770558 | S68: =+BerGW!$D$14*100 -> 277.3 | U68: 13.93483961 | V68: 14.2 | X68: 85.20862986 | Y68: 85.3 | AA68: 724.6174507 | AB68: 4507.287191 | AC68: 5231.904642 | AD68: 57.80274884 | AE68: 16641.07144 | AF68: 45.93063948 | AG68: 10 | AH68: 87.65389213 | AI68: 19
G69: t+62 | H69: =H68*(1+BerGW!$D$5/100) -> 36774.33562 | I69: 19269.75187 | J69: =+H69*BerGW!$D$7/100 -> 5369.053001 | K69: =+L68*BerGW!$D$6/100 -> 4575.357748 | L69: 53384.0142 | M69: 46695.0142 | N69: 550.8158273 | P69: 126.9771796 | Q69: 145.3 | R69: 242.3228619 | S69: =+BerGW!$D$14*100 -> 277.3 | U69: 13.93954096 | V69: 14.2 | X69: 85.21722075 | Y69: 85.3 | AA69: 735.4867125 | AB69: 4575.357748 | AC69: 5310.844461 | AD69: 58.20854058 | AE69: 16699.27999 | AF69: 45.41014733 | AG69: 10 | AH69: 86.6605865 | AI69: 19
G70: t+63 | H70: =H69*(1+BerGW!$D$5/100) -> 37325.95066 | I70: 19558.79815 | J70: =+H70*BerGW!$D$7/100 -> 5449.588796 | K70: =+L69*BerGW!$D$6/100 -> 4644.409235 | L70: 54189.19376 | M70: 47500.19376 | N70: 560.3401704 | P70: 127.2578271 | Q70: 145.3 | R70: 242.8584487 | S70: =+BerGW!$D$14*100 -> 277.3 | U70: 13.94405049 | V70: 14.2 | X70: 85.22494832 | Y70: 85.3 | AA70: 746.5190132 | AB70: 4644.409235 | AC70: 5390.928248 | AD70: 58.66054789 | AE70: 16757.94053 | AF70: 44.89621895 | AG70: 10 | AH70: 85.67980716 | AI70: 19
G71: t+64 | H71: =H70*(1+BerGW!$D$5/100) -> 37885.83992 | I71: 19852.18012 | J71: =+H71*BerGW!$D$7/100 -> 5531.332628 | K71: =+L70*BerGW!$D$6/100 -> 4714.459857 | L71: 55006.06653 | M71: 48317.06653 | N71: 570.0023251 | P71: 127.5333123 | Q71: =+$D$12*100 -> 145.3 | R71: 243.3841837 | S71: =+BerGW!$D$14*100 -> 277.3 | U71: 13.94838334 | V71: =+$D$18*100 -> 14.2 | X71: 85.23189932 | Y71: =+$D$16*100 -> 85.3 | AA71: 757.7167984 | AB71: 4714.459857 | AC71: 5472.176655 | AD71: 59.15597282 | AE71: 16817.09651 | AF71: 44.38887073 | AG71: =+$D$22*100 -> 10 | AH71: 84.71158536 | AI71: =+$D$24*100 -> 19
G72: t+65 | H72: =H71*(1+BerGW!$D$5/100) -> 38454.12752 | I72: =+H72*$D$8/100 -> 20149.96282 | J72: =+H72*BerGW!$D$7/100 -> 5614.302618 | K72: =+L71*BerGW!$D$6/100 -> 4785.527788 | L72: 55834.84136 | M72: 49145.84136 | N72: 579.8047984 | P72: 127.8038134 | Q72: 145.3 | R72: 243.9004072 | S72: =+BerGW!$D$14*100 -> 277.3 | U72: 13.95255317 | V72: 14.2 | X72: 85.23815181 | Y72: 85.3 | AA72: =+$D$9*H72/100 -> 769.0825504 | AB72: 4785.527788 | AC72: 5554.610338 | AD72: 59.69227917 | AE72: 16876.78878 | AF72: 43.8881074 | AG72: 10 | AH72: 83.75593015 | AI72: 19
G73: t+66 | H73: =H72*(1+BerGW!$D$5/100) -> 39030.93943 | I73: 20452.21226 | J73: =+H73*BerGW!$D$7/100 -> 5698.517157 | K73: =+L72*BerGW!$D$6/100 -> 4857.631198 | L73: 56675.72732 | M73: 49986.72732 | N73: =+M72*$D$4/100 -> 589.7500963 | P73: 128.0694958 | Q73: 145.3 | R73: 244.4074346 | S73: =+BerGW!$D$14*100 -> 277.3 | U73: 13.95657233 | V73: 14.2 | X73: 85.24377596 | Y73: 85.3 | AA73: 780.6187886 | AB73: 4857.631198 | AC73: 5638.249987 | AD73: 60.26717001 | AE73: 16937.05595 | AF73: 43.39392339 | AG73: 10 | AH73: 82.8128309 | AI73: 19
G74: t+67 | H74: =H73*(1+BerGW!$D$5/100) -> 39616.40352 | I74: 20758.99545 | J74: =+H74*BerGW!$D$7/100 -> 5783.994914 | K74: =+L73*BerGW!$D$6/100 -> 4930.788277 | L74: 57528.93396 | M74: 50839.93396 | N74: 599.8407278 | P74: 128.3305132 | Q74: 145.3 | R74: 244.9055596 | S74: =+BerGW!$D$14*100 -> 277.3 | U74: 13.96045202 | V74: 14.2 | X74: 85.24883493 | Y74: 85.3 | AA74: 792.3280704 | AB74: 4930.788277 | AC74: 5723.116347 | AD74: 60.87856714 | AE74: 16997.93452 | AF74: 42.90630398 | AG74: 10 | AH74: 81.88225951 | AI74: 19
G75: t+68 | H75: =H74*(1+BerGW!$D$5/100) -> 40210.64957 | I75: 21070.38038 | J75: =+H75*BerGW!$D$7/100 -> 5870.754838 | K75: =+L74*BerGW!$D$6/100 -> 5005.017254 | L75: 58394.67154 | M75: 51705.67154 | N75: 610.0792075 | P75: 128.5870089 | Q75: 145.3 | R75: 245.3950551 | S75: =+BerGW!$D$14*100 -> 277.3 | U75: 13.96420232 | V75: 14.2 | X75: 85.25338551 | Y75: 85.3 | AA75: 804.2129915 | AB75: 5005.017254 | AC75: 5809.230246 | AD75: 61.52459232 | AE75: 17059.45911 | AF75: 42.42522639 | AG75: 10 | AH75: 80.9641725 | AI75: 19
G76: t+69 | H76: =H75*(1+BerGW!$D$5/100) -> 40813.80932 | I76: 21386.43608 | J76: =+H76*BerGW!$D$7/100 -> 5958.81616 | K76: =+L75*BerGW!$D$6/100 -> 5080.336424 | L76: 59273.15128 | M76: 52584.15128 | N76: 620.4680585 | P76: 128.8391164 | Q76: 145.3 | R76: 245.8761762 | S76: =+BerGW!$D$14*100 -> 277.3 | U76: 13.9678324 | V76: 14.2 | X76: 85.25747879 | Y76: 85.3 | AA76: 816.2761864 | AB76: 5080.336424 | AC76: 5896.61261 | AD76: 62.20355023 | AE76: 17121.66266 | AF76: 41.9506607 | AG76: 10 | AH76: 80.05851278 | AI76: 19
G77: t+70 | H77: =H76*(1+BerGW!$D$5/100) -> 41426.01646 | I77: 21707.23262 | J77: =+H77*BerGW!$D$7/100 -> 6048.198403 | K77: =+L76*BerGW!$D$6/100 -> 5156.764161 | L77: 60164.58552 | M77: 53475.58552 | N77: 631.0098153 | P77: 129.0869605 | Q77: 145.3 | R77: 246.3491613 | S77: =+BerGW!$D$14*100 -> 277.3 | U77: 13.97135055 | V77: 14.2 | X77: 85.26116072 | Y77: 85.3 | AA77: 828.5203292 | AB77: 5156.764161 | AC77: 5985.28449 | AD77: 62.91391276 | AE77: 17184.57658 | AF77: 41.48257073 | AG77: 10 | AH77: 79.16521131 | AI77: 19
G78: t+71 | H78: =H77*(1+BerGW!$D$5/100) -> 42047.40671 | I78: 22032.84111 | J78: =+H78*BerGW!$D$7/100 -> 6138.921379 | K78: =+L77*BerGW!$D$6/100 -> 5234.31894 | L78: 61069.18796 | M78: 54380.18796 | N78: 641.7070262 | P78: 129.3306585 | Q78: 145.3 | R78: 246.8142337 | S78: =+BerGW!$D$14*100 -> 277.3 | U78: 13.97476426 | V78: 14.2 | X78: 85.26447265 | Y78: 85.3 | AA78: 840.9481341 | AB78: 5234.31894 | AC78: 6075.267074 | AD78: 63.65430482 | AE78: 17248.23088 | AF78: 41.02091481 | AG78: 10 | AH78: 78.28418856 | AI78: 19
G79: t+72 | H79: =H78*(1+BerGW!$D$5/100) -> 42678.11781 | I79: 22363.33373 | J79: =+H79*BerGW!$D$7/100 -> 6231.0052 | K79: =+L78*BerGW!$D$6/100 -> 5313.019352 | L79: 61987.1738 | M79: 55298.1738 | N79: 652.5622555 | P79: 129.57032 | Q79: 145.3 | R79: 247.271603 | S79: =+BerGW!$D$14*100 -> 277.3 | U79: 13.97808037 | V79: 14.2 | X79: 85.26745175 | Y79: 85.3 | AA79: 853.5623561 | AB79: 5313.019352 | AC79: 6166.581708 | AD79: 64.4234913 | AE79: 17312.65437 | AF79: 40.56564643 | AG79: 10 | AH79: 77.41535579 | AI79: 19
G80: t+73 | H80: =H79*(1+BerGW!$D$5/100) -> 43318.28957 | I80: 22698.78374 | J80: =+H80*BerGW!$D$7/100 -> 6324.470278 | K80: =+L79*BerGW!$D$6/100 -> 5392.884121 | L80: 62918.75996 | M80: 56229.75996 | N80: 663.5780856 | P80: 129.8060485 | Q80: 145.3 | R80: 247.7214666 | S80: =+BerGW!$D$14*100 -> 277.3 | U80: 13.98130505 | V80: 14.2 | X80: 85.27013148 | Y80: 85.3 | AA80: 866.3657915 | AB80: 5392.884121 | AC80: 6259.249912 | AD80: 65.22036523 | AE80: 17377.87474 | AF80: 40.11671493 | AG80: 10 | AH80: 76.55861627 | AI80: 19
G81: t+74 | H81: =H80*(1+BerGW!$D$5/100) -> 43968.06392 | I81: 23039.26549 | J81: =+H81*BerGW!$D$7/100 -> 6419.337332 | K81: =+L80*BerGW!$D$6/100 -> 5473.932117 | L81: 63864.16518 | M81: 57175.16518 | N81: 674.7571195 | P81: 130.0379414 | Q81: 145.3 | R81: 248.1640102 | S81: =+BerGW!$D$14*100 -> 277.3 | U81: 13.98444391 | V81: 14.2 | X81: 85.27254191 | Y81: 85.3 | AA81: 879.3612783 | AB81: 5473.932117 | AC81: 6353.293395 | AD81: 66.04393689 | AE81: 17443.91868 | AF81: 39.67406595 | AG81: 10 | AH81: 75.71386632 | AI81: 19
G82: t+75 | H82: =H81*(1+BerGW!$D$5/100) -> 44627.58488 | I82: 23384.85447 | J82: =+H82*BerGW!$D$7/100 -> 6515.627392 | K82: =+L81*BerGW!$D$6/100 -> 5556.18237 | L82: 64823.6102 | M82: 58134.6102 | N82: 686.1019821 | P82: 130.2660907 | Q82: 145.3 | R82: 248.5994098 | S82: =+BerGW!$D$14*100 -> 277.3 | U82: 13.98750206 | V82: 14.2 | X82: 85.27471011 | Y82: 85.3 | AA82: 892.5516975 | AB82: 5556.18237 | AC82: 6448.734068 | AD82: 66.89332397 | AE82: 17510.812 | AF82: 39.23764203 | AG82: 10 | AH82: 74.88099624 | AI82: 19
G83: t+76 | H83: =H82*(1+BerGW!$D$5/100) -> 45296.99865 | I83: 23735.62729 | J83: =+H83*BerGW!$D$7/100 -> 6613.361803 | K83: =+L82*BerGW!$D$6/100 -> 5639.654087 | L83: 65797.31791 | M83: 59108.31791 | N83: 697.6153224 | P83: 130.4905837 | Q83: 145.3 | R83: 249.0278314 | S83: =+BerGW!$D$14*100 -> 277.3 | U83: 13.99048414 | V83: 14.2 | X83: 85.27666043 | Y83: 85.3 | AA83: 905.939973 | AB83: 5639.654087 | AC83: 6545.59406 | AD83: 67.76774251 | AE83: 17578.57974 | AF83: 38.80738298 | AG83: 10 | AH83: 74.05989118 | AI83: 19
G84: t+77 | H84: =H83*(1+BerGW!$D$5/100) -> 45976.45363 | I84: 24091.6617 | J84: =+H84*BerGW!$D$7/100 -> 6712.56223 | K84: =+L83*BerGW!$D$6/100 -> 5724.366658 | L84: 66785.51348 | M84: 60096.51348 | N84: 709.299815 | P84: 130.7115028 | Q84: 145.3 | R84: 249.4494329 | S84: =+BerGW!$D$14*100 -> 277.3 | U84: 13.99339437 | V84: 14.2 | X84: 85.27841475 | Y84: 85.3 | AA84: 919.5290726 | AB84: 5724.366658 | AC84: 6643.895731 | AD84: 68.66649871 | AE84: 17647.24624 | AF84: 38.3832263 | AG84: 10 | AH84: 73.25043187 | AI84: 19
G85: t+78 | H85: =H84*(1+BerGW!$D$5/100) -> 46666.10043 | I85: 24453.03663 | J85: =+H85*BerGW!$D$7/100 -> 6813.250663 | K85: =+L84*BerGW!$D$6/100 -> 5810.339673 | L85: 67788.42447 | M85: 61099.42447 | N85: 721.1581618 | P85: 130.9289268 | Q85: 145.3 | R85: 249.8643641 | S85: =+BerGW!$D$14*100 -> 277.3 | U85: 13.99623661 | V85: 14.2 | X85: 85.27999277 | Y85: 85.3 | AA85: 933.3220086 | AB85: 5810.339673 | AC85: 6743.661682 | AD85: 69.58898137 | AE85: 17716.83522 | AF85: 37.96510756 | AG85: 10 | AH85: 72.45249534 | AI85: 19
G86: t+79 | H86: =H85*(1+BerGW!$D$5/100) -> 47366.09194 | I86: 24819.83218 | J86: =+H86*BerGW!$D$7/100 -> 6915.449423 | K86: =+L85*BerGW!$D$6/100 -> 5897.592929 | L86: 68806.28097 | M86: 62117.28097 | N86: 733.1930937 | P86: 131.1429304 | Q86: 145.3 | R86: 250.2727679 | S86: =+BerGW!$D$14*100 -> 277.3 | U86: 13.99901438 | V86: 14.2 | X86: 85.28141222 | Y86: 85.3 | AA86: 947.3218388 | AB86: 5897.592929 | AC86: 6844.914768 | AD86: 70.53465505 | AE86: 17787.36988 | AF86: 37.55296067 | AG86: 10 | AH86: 71.66595548 | AI86: 19
G87: t+80 | H87: =H86*(1+BerGW!$D$5/100) -> 48076.58332 | I87: 25192.12966 | J87: =+H87*BerGW!$D$7/100 -> 7019.181164 | K87: =+L86*BerGW!$D$6/100 -> 5986.146444 | L87: 69839.31569 | M87: 63150.31569 | N87: 745.4073716 | P87: 131.3535849 | Q87: 145.3 | R87: 250.6747804 | S87: =+BerGW!$D$14*100 -> 277.3 | U87: 14.00173089 | V87: 14.2 | X87: 85.28268902 | Y87: 85.3 | AA87: 961.5316664 | AB87: 5986.146444 | AC87: 6947.678111 | AD87: 71.50305386 | AE87: 17858.87293 | AF87: 37.14671821 | AG87: 10 | AH87: 70.89068361 | AI87: 19
G88: t+81 | H88: =H87*(1+BerGW!$D$5/100) -> 48797.73207 | I88: 25570.0116 | J88: =+H88*BerGW!$D$7/100 -> 7124.468882 | K88: =+L87*BerGW!$D$6/100 -> 6076.020465 | L88: 70887.76411 | M88: 64198.76411 | N88: 757.8037883 | P88: 131.5609586 | Q88: 145.3 | R88: 251.0705318 | S88: =+BerGW!$D$14*100 -> 277.3 | U88: 14.00438906 | V88: 14.2 | X88: 85.28383751 | Y88: 85.3 | AA88: 975.9546414 | AB88: 6076.020465 | AC88: 7051.975106 | AD88: 72.49377567 | AE88: 17931.36671 | AF88: 36.74631166 | AG88: 10 | AH88: 70.12654896 | AI88: 19
G89: t+82 | H89: =H88*(1+BerGW!$D$5/100) -> 49529.69805 | I89: 25953.56178 | J89: =+H89*BerGW!$D$7/100 -> 7231.335915 | K89: =+L88*BerGW!$D$6/100 -> 6167.235477 | L89: 71951.86454 | M89: 65262.86454 | N89: 770.3851693 | P89: 131.7651169 | Q89: 145.3 | R89: 251.4601468 | S89: =+BerGW!$D$14*100 -> 277.3 | U89: 14.0069916 | V89: 14.2 | X89: 85.28487059 | Y89: 85.3 | AA89: 990.593961 | AB89: 6167.235477 | AC89: 7157.829438 | AD89: 73.506477 | AE89: 18004.87318 | AF89: 36.35167161 | AG89: 10 | AH89: 69.3734191 | AI89: 19
G90: t+83 | H90: =H89*(1+BerGW!$D$5/100) -> 50272.64352 | I90: 26342.8652 | J90: =+H90*BerGW!$D$7/100 -> 7339.805954 | K90: =+L89*BerGW!$D$6/100 -> 6259.812215 | L90: 73031.85828 | M90: 66342.85828 | N90: 783.1543745 | P90: 131.9661224 | Q90: 145.3 | R90: 251.843745 | S90: =+BerGW!$D$14*100 -> 277.3 | U90: 14.00954097 | V90: 14.2 | X90: 85.28579985 | Y90: 85.3 | AA90: 1005.45287 | AB90: 6259.812215 | AC90: 7265.265086 | AD90: 74.5408682 | AE90: 18079.41405 | AF90: 35.96272801 | AG90: 10 | AH90: 68.63116032 | AI90: 19
G91: t+84 | H91: =H90*(1+BerGW!$D$5/100) -> 51026.73317 | I91: 26738.00818 | J91: =+H91*BerGW!$D$7/100 -> 7449.903043 | K91: =+L90*BerGW!$D$6/100 -> 6353.771671 | L91: 74127.98965 | M91: 67438.98965 | N91: 796.1142994 | P91: 132.1640353 | Q91: 145.3 | R91: 252.2214415 | S91: =+BerGW!$D$14*100 -> 277.3 | U91: 14.01203943 | V91: 14.2 | X91: 85.28663573 | Y91: 85.3 | AA91: 1020.534663 | AB91: 6353.771671 | AC91: 7374.306334 | AD91: 75.5967092 | AE91: 18155.01076 | AF91: 35.57941031 | AG91: 10 | AH91: 67.89963799 | AI91: 19
G92: t+85 | H92: =H91*(1+BerGW!$D$5/100) -> 51792.13417 | I92: 27139.0783 | J92: =+H92*BerGW!$D$7/100 -> 7561.651589 | K92: =+L91*BerGW!$D$6/100 -> 6449.1351 | L92: 75240.50614 | M92: 68551.50614 | N92: 809.2678759 | P92: 132.3589136 | Q92: 145.3 | R92: 252.5933467 | S92: =+BerGW!$D$14*100 -> 277.3 | U92: 14.01448906 | V92: 14.2 | X92: 85.28738761 | Y92: 85.3 | AA92: 1035.842683 | AB92: 6449.1351 | AC92: 7484.977783 | AD92: 76.67380547 | AE92: 18231.68457 | AF92: 35.20164762 | AG92: 10 | AH92: 67.17871684 | AI92: 19
G93: t+86 | H93: =H92*(1+BerGW!$D$5/100) -> 52569.01618 | I93: 27546.16448 | J93: =+H93*BerGW!$D$7/100 -> 7675.076363 | K93: =+L92*BerGW!$D$6/100 -> 6545.924034 | L93: 76369.65847 | M93: 69680.65847 | N93: 822.6180737 | P93: 132.5508133 | Q93: 145.3 | R93: 252.9595673 | S93: =+BerGW!$D$14*100 -> 277.3 | U93: 14.01689178 | V93: 14.2 | X93: 85.28806393 | Y93: 85.3 | AA93: 1051.380324 | AB93: 6545.924034 | AC93: 7597.304358 | AD93: 77.77200452 | AE93: 18309.45657 | AF93: 34.8293689 | AG93: 10 | AH93: 66.46826125 | AI93: 19
G94: t+87 | H94: =H93*(1+BerGW!$D$5/100) -> 53357.55143 | I94: 27959.35695 | J94: =+H94*BerGW!$D$7/100 -> 7790.202508 | K94: =+L93*BerGW!$D$6/100 -> 6644.160287 | L94: 77515.70069 | M94: 70826.70069 | N94: 836.1679017 | P94: 132.7397881 | Q94: 145.3 | R94: 253.3202063 | S94: =+BerGW!$D$14*100 -> 277.3 | U94: 14.01924936 | V94: 14.2 | X94: 85.28867228 | Y94: 85.3 | AA94: 1067.151029 | AB94: 6644.160287 | AC94: 7711.311316 | AD94: 78.89119256 | AE94: 18388.34776 | AF94: 34.46250301 | AG94: 10 | AH94: 65.76813551 | AI94: 19
G95: t+88 | H95: =H94*(1+BerGW!$D$5/100) -> 54157.9147 | I95: 28378.7473 | J95: =+H95*BerGW!$D$7/100 -> 7907.055546 | K95: =+L94*BerGW!$D$6/100 -> 6743.86596 | L95: 78678.89028 | M95: 71989.89028 | N95: 849.9204083 | P95: 132.9258903 | Q95: 145.3 | R95: 253.6753632 | S95: =+BerGW!$D$14*100 -> 277.3 | U95: 14.02156344 | V95: 14.2 | X95: 85.2892195 | Y95: 85.3 | AA95: 1083.158294 | AB95: 6743.86596 | AC95: 7827.024254 | AD95: 80.03129152 | AE95: 18468.37906 | AF95: 34.10097889 | AG95: 10 | AH95: 65.07820398 | AI95: 19
G96: t+89 | H96: =H95*(1+BerGW!$D$5/100) -> 54970.28342 | I96: 28804.42851 | J96: =+H96*BerGW!$D$7/100 -> 8025.661379 | K96: =+L95*BerGW!$D$6/100 -> 6845.063454 | L96: 79859.4882 | M96: 73170.4882 | N96: 863.8786833 | P96: 133.1091704 | Q96: 145.3 | R96: 254.0251343 | S96: =+BerGW!$D$14*100 -> 277.3 | U96: 14.02383553 | V96: 14.2 | X96: 85.28971173 | Y96: 85.3 | AA96: 1099.405668 | AB96: 6845.063454 | AC96: 7944.469123 | AD96: 81.19225636 | AE96: 18549.57131 | AF96: 33.74472562 | AG96: 10 | AH96: 64.39833134 | AI96: 19
G97: t+90 | H97: =H96*(1+BerGW!$D$5/100) -> 55794.83767 | I97: 29236.49494 | J97: =+H97*BerGW!$D$7/100 -> 8146.0463 | K97: =+L96*BerGW!$D$6/100 -> 6947.775474 | L97: 81057.75903 | M97: 74368.75903 | N97: 878.0458584 | P97: 133.2896772 | Q97: 145.3 | R97: 254.369613 | S97: =+BerGW!$D$14*100 -> 277.3 | U97: 14.02606703 | V97: 14.2 | X97: 85.29015449 | Y97: 85.3 | AA97: 1115.896753 | AB97: 6947.775474 | AC97: 8063.672227 | AD97: 82.37407257 | AE97: 18631.94538 | AF97: 33.39367254 | AG97: 10 | AH97: 63.72838271 | AI97: 19
G98: t+91 | H98: =H97*(1+BerGW!$D$5/100) -> 56631.76023 | I98: 29675.04236 | J98: =+H98*BerGW!$D$7/100 -> 8268.236994 | K98: =+L97*BerGW!$D$6/100 -> 7052.025035 | L98: 82273.97099 | M98: 75584.97099 | N98: 892.4251083 | P98: 133.4674583 | Q98: 145.3 | R98: 254.7088899 | S98: =+BerGW!$D$14*100 -> 277.3 | U98: 14.02825925 | V98: 14.2 | X98: 85.29055276 | Y98: 85.3 | AA98: 1132.635205 | AB98: 7052.025035 | AC98: 8184.66024 | AD98: 83.57675391 | AE98: 18715.52214 | AF98: 33.04774929 | AG98: 10 | AH98: 63.06822383 | AI98: 19
G99: t+92 | H99: =H98*(1+BerGW!$D$5/100) -> 57481.23664 | I99: 30120.168 | J99: =+H99*BerGW!$D$7/100 -> 8392.260549 | K99: =+L98*BerGW!$D$6/100 -> 7157.835476 | L99: 83508.39606 | M99: 76819.39606 | N99: 907.0196518 | P99: 133.6425598 | Q99: 145.3 | R99: 255.0430531 | S99: =+BerGW!$D$14*100 -> 277.3 | U99: 14.0304134 | V99: 14.2 | X99: 85.290911 | Y99: 85.3 | AA99: 1149.624733 | AB99: 7157.835476 | AC99: 8307.460209 | AD99: 84.80034035 | AE99: 18800.32248 | AF99: 32.7068859 | AG99: 10 | AH99: 62.41772118 | AI99: 19
G100: t+93 | H100: =H99*(1+BerGW!$D$5/100) -> 58343.45519 | I100: 30571.97052 | J100: =+H100*BerGW!$D$7/100 -> 8518.144457 | K100: =+L99*BerGW!$D$6/100 -> 7265.230457 | L100: 84761.31006 | M100: 78072.31006 | N100: 921.8327527 | P100: 133.8150266 | Q100: 145.3 | R100: 255.3721881 | S100: =+BerGW!$D$14*100 -> 277.3 | U100: 14.03253061 | V100: 14.2 | X100: 85.29123325 | Y100: 85.3 | AA100: 1166.869104 | AB100: 7265.230457 | AC100: 8432.099561 | AD100: 86.04489624 | AE100: 18886.36737 | AF100: 32.37101285 | AG100: 10 | AH100: 61.77674208 | AI100: 19
G101: t+94 | H101: =H100*(1+BerGW!$D$5/100) -> 59218.60701 | I101: 31030.55008 | J101: =+H101*BerGW!$D$7/100 -> 8645.916624 | K101: =+L100*BerGW!$D$6/100 -> 7374.233975 | L101: 86032.99271 | M101: 79343.99271 | N101: 936.8677207 | P101: 133.9849022 | Q101: 145.3 | R101: 255.6963783 | S101: =+BerGW!$D$14*100 -> 277.3 | U101: 14.03461195 | V101: 14.2 | X101: 85.29152311 | Y101: 85.3 | AA101: 1184.37214 | AB101: 7374.233975 | AC101: 8558.606116 | AD101: 87.31050854 | AE101: 18973.67788 | AF101: 32.04006112 | AG101: 10 | AH101: 61.14515481 | AI101: 19
G102: t+95 | H102: =H101*(1+BerGW!$D$5/100) -> 60106.88612 | I102: 31496.00833 | J102: =+H102*BerGW!$D$7/100 -> 8775.605373 | K102: =+L101*BerGW!$D$6/100 -> 7484.870366 | L102: 87323.72772 | M102: 80634.72772 | N102: 952.1279125 | P102: 134.1522293 | Q102: 145.3 | R102: 256.0157048 | S102: =+BerGW!$D$14*100 -> 277.3 | U102: 14.0366584 | V102: 14.2 | X102: 85.29178384 | Y102: 85.3 | AA102: 1202.137722 | AB102: 7484.870366 | AC102: 8687.008088 | AD102: 88.59728535 | AE102: 19062.27517 | AF102: 31.71396224 | AG102: 10 | AH102: 60.52282871 | AI102: 19
G103: t+96 | H103: =H102*(1+BerGW!$D$5/100) -> 61008.48941 | I103: 31968.44845 | J103: =+H103*BerGW!$D$7/100 -> 8907.239454 | K103: =+L102*BerGW!$D$6/100 -> 7597.164311 | L103: 88633.80286 | M103: 81944.80286 | N103: 967.6167326 | P103: 134.3170494 | Q103: 145.3 | R103: 256.3302469 | S103: =+BerGW!$D$14*100 -> 277.3 | U103: 14.03867089 | V103: 14.2 | X103: 85.29201837 | Y103: 85.3 | AA103: 1220.169788 | AB103: 7597.164311 | AC103: 8817.3341 | AD103: 89.90535444 | AE103: 19152.18052 | AF103: 31.39264831 | AG103: 10 | AH103: 59.90963419 | AI103: 19
G104: t+97 | H104: =H103*(1+BerGW!$D$5/100) -> 61923.61675 | I104: 32447.97518 | J104: =+H104*BerGW!$D$7/100 -> 9040.848046 | K104: =+L103*BerGW!$D$6/100 -> 7711.140849 | L104: 89963.51006 | M104: 83274.51006 | N104: 983.3376343 | P104: 134.4794029 | Q104: 145.3 | R104: 256.6400819 | S104: =+BerGW!$D$14*100 -> 277.3 | U104: 14.0406503 | V104: 14.2 | X104: 85.29222933 | Y104: 85.3 | AA104: 1238.472335 | AB104: 7711.140849 | AC104: 8949.613184 | AD104: 91.23486202 | AE104: 19243.41539 | AF104: 31.07605207 | AG104: 10 | AH104: 59.30544288 | AI104: 19
G105: t+98 | H105: =H104*(1+BerGW!$D$5/100) -> 62852.471 | I105: 32934.69481 | J105: =+H105*BerGW!$D$7/100 -> 9176.460767 | K105: =+L104*BerGW!$D$6/100 -> 7826.825375 | L105: 91313.14545 | M105: 84624.14545 | N105: 999.2941207 | P105: 134.6393294 | Q105: 145.3 | R105: 256.945285 | S105: =+BerGW!$D$14*100 -> 277.3 | U105: 14.04259746 | V105: 14.2 | X105: 85.29241909 | Y105: 85.3 | AA105: 1257.04942 | AB105: 7826.825375 | AC105: 9083.874795 | AD105: 92.58597154 | AE105: 19336.00136 | AF105: 30.76410688 | AG105: 10 | AH105: 58.71012763 | AI105: 19
G106: t+99 | H106: =H105*(1+BerGW!$D$5/100) -> 63795.25807 | I106: 33428.71523 | J106: =+H106*BerGW!$D$7/100 -> 9314.107678 | K106: =+L105*BerGW!$D$6/100 -> 7944.243654 | L106: 92683.00947 | M106: 85994.00947 | N106: 1015.489745 | P106: 134.7968675 | Q106: 145.3 | R106: 257.2459303 | S106: =+BerGW!$D$14*100 -> 277.3 | U106: 14.04451314 | V106: 14.2 | X106: 85.29258979 | Y106: 85.3 | AA106: 1275.905161 | AB106: 7944.243654 | AC106: 9220.148815 | AD106: 93.95886266 | AE106: 19429.96022 | AF106: 30.4567468 | AG106: 10 | AH106: 58.12356259 | AI106: 19
G107: t+100 | H107: =H106*(1+BerGW!$D$5/100) -> 64752.18694 | I107: 33930.14596 | J107: =+H107*BerGW!$D$7/100 -> 9453.819293 | K107: =+L106*BerGW!$D$6/100 -> 8063.421824 | L107: 94073.40694 | M107: 87384.40694 | N107: 1031.928114 | P107: 134.952055 | Q107: 145.3 | R107: 257.5420897 | S107: =+BerGW!$D$14*100 -> 277.3 | U107: 14.04639807 | V107: 14.2 | X107: 85.29274332 | Y107: 85.3 | AA107: 1295.043739 | AB107: 8063.421824 | AC107: 9358.465563 | AD107: 95.35373032 | AE107: 19525.31395 | AF107: 30.15390657 | AG107: 10 | AH107: 57.54562322 | AI107: 19

Sheet SimGW
B1: Simulationen der Grenzwerte
B3: =+BerGW!B14 -> Grenzwert des Nettoverschuldungsquotienten | I3: =+BerGW!B18 -> Grenzwert des Zangeneffekt (des "Kapitaldienstes") | P3: =+BerGW!B16 -> Grenzwert des Selbstfinanzierungsgrads | W3: =+B3 -> Grenzwert des Nettoverschuldungsquotienten
B4: bei strukturellem Gleichgewicht und kF = | F4: 50 | G4: % | I4: bei strukturellem Gleichgewicht und kA = | M4: 10 | N4: % | P4: bei strukturellem Gleichgewicht | W4: bei strukturellem Umgleichgewicht, kF= | AA4: 50 | AB4: % | AC4: et kA= | AD4: 10 | AE4: %
E6: kA | L6: i | R6: kA | Y6: kD (= K1-100%)
B7: r | C7: kI (= K6) | D7: 7.5 | E7: 10 | F7: 12.5 | I7: r | J7: =C7 -> kI (= K6) | K7: 1.5 | L7: 3 | M7: 4.5 | P7: r | Q7: 7.5 | R7: 10 | S7: 12.5 | W7: r | X7: =C7 -> kI (= K6) | Y7: -2 | Z7: -1 | AA7: 0 | AC7: 1 | AD7: 2
B8: 1.5 | C8: 12.5 | D8: =($C8/100)*(1+$B$8/100)/(($B$8/100)+(D$7/100))/(($F$4/100))*100 -> 281.9444444 | E8: =($C8/100)*(1+$B$8/100)/(($B$8/100)+(E$7/100))/(($F$4/100))*100 -> 220.6521739 | F8: =($C8/100)*(1+$B$8/100)/(($B$8/100)+(F$7/100))/(($F$4/100))*100 -> 181.25 | I8: 1.5 | J8: 12.5 | K8: =($J8/100)*((K$7/100)+($M$4/100))/(($I$8/100)+($M$4/100))*100 -> 12.5 | L8: =($J8/100)*((M$7/100)+($M$4/100))/(($I$8/100)+($M$4/100))*100 -> 15.76086957 | M8: =($J8/100)*((M$7/100)+($M$4/100))/(($I$8/100)+($M$4/100))*100 -> 15.76086957 | P8: 1.5 | Q8: =(Q$7/100)/(($P8/100)+(Q$7/100))*100 -> 83.33333333 | R8: =(R$7/100)/(($P8/100)+(R$7/100))*100 -> 86.95652174 | S8: 89.28571429 | W8: 1.5 | X8: 12.5 | Y8: =(($X8/100*((1+$W$8/100)/($W$8/100+$AD$4/100)))-(Y$7/100*(1+($W$8/100))/($W$8/100)))/($AA$4/100)*100 -> 491.3188406 | Z8: =(($X8/100*((1+$W$8/100)/($W$8/100+$AD$4/100)))-(AA$7/100*(1+($W$8/100))/($W$8/100)))/($AA$4/100)*100 -> 220.6521739 | AA8: =(($X8/100*((1+$W$8/100)/($W$8/100+$AD$4/100)))-(AA$7/100*(1+($W$8/100))/($W$8/100)))/($AA$4/100)*100 -> 220.6521739 | AC8: =(($X8/100*((1+$W$8/100)/($W$8/100+$AD$4/100)))-(AC$7/100*(1+($W$8/100))/($W$8/100)))/($AA$4/100)*100 -> 85.31884058 | AD8: =(($X8/100*((1+$W$8/100)/($W$8/100+$AD$4/100)))-(AD$7/100*(1+($W$8/100))/($W$8/100)))/($AA$4/100)*100 -> -50.01449275
D9: =IF(D8<=50,6,IF(D8<=100,6-(D8-50)*(1/50),IF(D8<200,5-(D8-100)*(4/100),1))) -> 1 | E9: =IF(E8<=50,6,IF(E8<=100,6-(E8-50)*(1/50),IF(E8<200,5-(E8-100)*(4/100),1))) -> 1 | F9: =IF(F8<=50,6,IF(F8<=100,6-(F8-50)*(1/50),IF(F8<200,5-(F8-100)*(4/100),1))) -> 1.75 | K9: =IF(K8<=2.5,6,IF(K8<15,6-(K8-2.5)*(1/2.5),1)) -> 2 | L9: =IF(M8<=2.5,6,IF(M8<15,6-(M8-2.5)*(1/2.5),1)) -> 1 | M9: =IF(M8<=2.5,6,IF(M8<15,6-(M8-2.5)*(1/2.5),1)) -> 1 | Q9: =IF(Q8<25,1,IF(Q8<100,6-(100-Q8)*(5/75),6)) -> 4.888888889 | R9: =IF(R8<25,1,IF(R8<100,6-(100-R8)*(5/75),6)) -> 5.130434783 | S9: =IF(S8<25,1,IF(S8<100,6-(100-S8)*(5/75),6)) -> 5.285714286 | Y9: =IF(Y8<=50,6,IF(Y8<=100,6-(Y8-50)*(1/50),IF(Y8<200,5-(Y8-100)*(4/100),1))) -> 1 | Z9: =IF(AA8<=50,6,IF(AA8<=100,6-(AA8-50)*(1/50),IF(AA8<200,5-(AA8-100)*(4/100),1))) -> 1 | AA9: =IF(AA8<=50,6,IF(AA8<=100,6-(AA8-50)*(1/50),IF(AA8<200,5-(AA8-100)*(4/100),1))) -> 1 | AC9: =IF(AC8<=50,6,IF(AC8<=100,6-(AC8-50)*(1/50),IF(AC8<200,5-(AC8-100)*(4/100),1))) -> 5.293623188 | AD9: =IF(AD8<=50,6,IF(AD8<=100,6-(AD8-50)*(1/50),IF(AD8<200,5-(AD8-100)*(4/100),1))) -> 6
C10: =+C8-2.5 -> 10 | D10: =($C10/100)*(1+$B$8/100)/(($B$8/100)+(D$7/100))/(($F$4/100))*100 -> 225.5555556 | E10: =($C10/100)*(1+$B$8/100)/(($B$8/100)+(F$7/100))/(($F$4/100))*100 -> 145 | F10: =($C10/100)*(1+$B$8/100)/(($B$8/100)+(F$7/100))/(($F$4/100))*100 -> 145 | J10: =+J8-2.5 -> 10 | K10: =($J10/100)*((K$7/100)+($M$4/100))/(($I$8/100)+($M$4/100))*100 -> 10 | L10: =($J10/100)*((M$7/100)+($M$4/100))/(($I$8/100)+($M$4/100))*100 -> 12.60869565 | M10: =($J10/100)*((M$7/100)+($M$4/100))/(($I$8/100)+($M$4/100))*100 -> 12.60869565 | P10: 3 | Q10: =(Q$7/100)/(($P10/100)+(Q$7/100))*100 -> 71.42857143 | R10: 76.92307692 | S10: 80.64516129 | X10: =+X8-2.5 -> 10 | Y10: =(($X10/100*((1+$W$8/100)/($W$8/100+$AD$4/100)))-(Y$7/100*(1+($W$8/100))/($W$8/100)))/($AA$4/100)*100 -> 447.1884058 | Z10: =(($X10/100*((1+$W$8/100)/($W$8/100+$AD$4/100)))-(AA$7/100*(1+($W$8/100))/($W$8/100)))/($AA$4/100)*100 -> 176.5217391 | AA10: =(($X10/100*((1+$W$8/100)/($W$8/100+$AD$4/100)))-(AA$7/100*(1+($W$8/100))/($W$8/100)))/($AA$4/100)*100 -> 176.5217391 | AC10: =(($X10/100*((1+$W$8/100)/($W$8/100+$AD$4/100)))-(AC$7/100*(1+($W$8/100))/($W$8/100)))/($AA$4/100)*100 -> 41.1884058 | AD10: =(($X10/100*((1+$W$8/100)/($W$8/100+$AD$4/100)))-(AD$7/100*(1+($W$8/100))/($W$8/100)))/($AA$4/100)*100 -> -94.14492754
D11: =IF(D10<=50,6,IF(D10<=100,6-(D10-50)*(1/50),IF(D10<200,5-(D10-100)*(4/100),1))) -> 1 | E11: =IF(F10<=50,6,IF(F10<=100,6-(F10-50)*(1/50),IF(F10<200,5-(F10-100)*(4/100),1))) -> 3.2 | F11: =IF(F10<=50,6,IF(F10<=100,6-(F10-50)*(1/50),IF(F10<200,5-(F10-100)*(4/100),1))) -> 3.2 | K11: =IF(K10<=2.5,6,IF(K10<15,6-(K10-2.5)*(1/2.5),1)) -> 3 | L11: =IF(M10<=2.5,6,IF(M10<15,6-(M10-2.5)*(1/2.5),1)) -> 1.956521739 | M11: =IF(M10<=2.5,6,IF(M10<15,6-(M10-2.5)*(1/2.5),1)) -> 1.956521739 | Q11: =IF(Q10<25,1,IF(Q10<100,6-(100-Q10)*(5/75),6)) -> 4.095238095 | R11: =IF(R10<25,1,IF(R10<100,6-(100-R10)*(5/75),6)) -> 4.461538462 | S11: =IF(S10<25,1,IF(S10<100,6-(100-S10)*(5/75),6)) -> 4.709677419 | Y11: =IF(Y10<=50,6,IF(Y10<=100,6-(Y10-50)*(1/50),IF(Y10<200,5-(Y10-100)*(4/100),1))) -> 1 | Z11: =IF(AA10<=50,6,IF(AA10<=100,6-(AA10-50)*(1/50),IF(AA10<200,5-(AA10-100)*(4/100),1))) -> 1.939130435 | AA11: =IF(AA10<=50,6,IF(AA10<=100,6-(AA10-50)*(1/50),IF(AA10<200,5-(AA10-100)*(4/100),1))) -> 1.939130435 | AC11: =IF(AC10<=50,6,IF(AC10<=100,6-(AC10-50)*(1/50),IF(AC10<200,5-(AC10-100)*(4/100),1))) -> 6 | AD11: =IF(AD10<=50,6,IF(AD10<=100,6-(AD10-50)*(1/50),IF(AD10<200,5-(AD10-100)*(4/100),1))) -> 6
C12: =+C10-2.5 -> 7.5 | D12: =($C12/100)*(1+$B$8/100)/(($B$8/100)+(D$7/100))/(($F$4/100))*100 -> 169.1666667 | E12: =($C12/100)*(1+$B$8/100)/(($B$8/100)+(F$7/100))/(($F$4/100))*100 -> 108.75 | F12: =($C12/100)*(1+$B$8/100)/(($B$8/100)+(F$7/100))/(($F$4/100))*100 -> 108.75 | J12: =+J10-2.5 -> 7.5 | K12: =($J12/100)*((K$7/100)+($M$4/100))/(($I$8/100)+($M$4/100))*100 -> 7.5 | L12: =($J12/100)*((M$7/100)+($M$4/100))/(($I$8/100)+($M$4/100))*100 -> 9.456521739 | M12: =($J12/100)*((M$7/100)+($M$4/100))/(($I$8/100)+($M$4/100))*100 -> 9.456521739 | P12: 4.5 | Q12: =(Q$7/100)/(($P12/100)+(Q$7/100))*100 -> 62.5 | R12: 68.96551724 | S12: 73.52941176 | X12: =+X10-2.5 -> 7.5 | Y12: =(($X12/100*((1+$W$8/100)/($W$8/100+$AD$4/100)))-(Y$7/100*(1+($W$8/100))/($W$8/100)))/($AA$4/100)*100 -> 403.057971 | Z12: =(($X12/100*((1+$W$8/100)/($W$8/100+$AD$4/100)))-(AA$7/100*(1+($W$8/100))/($W$8/100)))/($AA$4/100)*100 -> 132.3913043 | AA12: =(($X12/100*((1+$W$8/100)/($W$8/100+$AD$4/100)))-(AA$7/100*(1+($W$8/100))/($W$8/100)))/($AA$4/100)*100 -> 132.3913043 | AC12: =(($X12/100*((1+$W$8/100)/($W$8/100+$AD$4/100)))-(AC$7/100*(1+($W$8/100))/($W$8/100)))/($AA$4/100)*100 -> -2.942028986 | AD12: =(($X12/100*((1+$W$8/100)/($W$8/100+$AD$4/100)))-(AD$7/100*(1+($W$8/100))/($W$8/100)))/($AA$4/100)*100 -> -138.2753623
D13: =IF(D12<=50,6,IF(D12<=100,6-(D12-50)*(1/50),IF(D12<200,5-(D12-100)*(4/100),1))) -> 2.233333333 | E13: =IF(F12<=50,6,IF(F12<=100,6-(F12-50)*(1/50),IF(F12<200,5-(F12-100)*(4/100),1))) -> 4.65 | F13: =IF(F12<=50,6,IF(F12<=100,6-(F12-50)*(1/50),IF(F12<200,5-(F12-100)*(4/100),1))) -> 4.65 | K13: =IF(K12<=2.5,6,IF(K12<15,6-(K12-2.5)*(1/2.5),1)) -> 4 | L13: =IF(M12<=2.5,6,IF(M12<15,6-(M12-2.5)*(1/2.5),1)) -> 3.217391304 | M13: =IF(M12<=2.5,6,IF(M12<15,6-(M12-2.5)*(1/2.5),1)) -> 3.217391304 | Q13: =IF(Q12<25,1,IF(Q12<100,6-(100-Q12)*(5/75),6)) -> 3.5 | R13: =IF(R12<25,1,IF(R12<100,6-(100-R12)*(5/75),6)) -> 3.931034483 | S13: =IF(S12<25,1,IF(S12<100,6-(100-S12)*(5/75),6)) -> 4.235294118 | Y13: =IF(Y12<=50,6,IF(Y12<=100,6-(Y12-50)*(1/50),IF(Y12<200,5-(Y12-100)*(4/100),1))) -> 1 | Z13: =IF(AA12<=50,6,IF(AA12<=100,6-(AA12-50)*(1/50),IF(AA12<200,5-(AA12-100)*(4/100),1))) -> 3.704347826 | AA13: =IF(AA12<=50,6,IF(AA12<=100,6-(AA12-50)*(1/50),IF(AA12<200,5-(AA12-100)*(4/100),1))) -> 3.704347826 | AC13: =IF(AC12<=50,6,IF(AC12<=100,6-(AC12-50)*(1/50),IF(AC12<200,5-(AC12-100)*(4/100),1))) -> 6 | AD13: =IF(AD12<=50,6,IF(AD12<=100,6-(AD12-50)*(1/50),IF(AD12<200,5-(AD12-100)*(4/100),1))) -> 6
C14: 5 | D14: =($C14/100)*(1+$B$8/100)/(($B$8/100)+(D$7/100))/(($F$4/100))*100 -> 112.7777778 | E14: =($C14/100)*(1+$B$8/100)/(($B$8/100)+(F$7/100))/(($F$4/100))*100 -> 72.5 | F14: =($C14/100)*(1+$B$8/100)/(($B$8/100)+(F$7/100))/(($F$4/100))*100 -> 72.5 | J14: 5 | K14: =($J14/100)*((K$7/100)+($M$4/100))/(($I$8/100)+($M$4/100))*100 -> 5 | L14: =($J14/100)*((M$7/100)+($M$4/100))/(($I$8/100)+($M$4/100))*100 -> 6.304347826 | M14: =($J14/100)*((M$7/100)+($M$4/100))/(($I$8/100)+($M$4/100))*100 -> 6.304347826 | X14: 5 | Y14: =(($X14/100*((1+$W$8/100)/($W$8/100+$AD$4/100)))-(Y$7/100*(1+($W$8/100))/($W$8/100)))/($AA$4/100)*100 -> 358.9275362 | Z14: =(($X14/100*((1+$W$8/100)/($W$8/100+$AD$4/100)))-(AA$7/100*(1+($W$8/100))/($W$8/100)))/($AA$4/100)*100 -> 88.26086957 | AA14: =(($X14/100*((1+$W$8/100)/($W$8/100+$AD$4/100)))-(AA$7/100*(1+($W$8/100))/($W$8/100)))/($AA$4/100)*100 -> 88.26086957 | AC14: =(($X14/100*((1+$W$8/100)/($W$8/100+$AD$4/100)))-(AC$7/100*(1+($W$8/100))/($W$8/100)))/($AA$4/100)*100 -> -47.07246377 | AD14: =(($X14/100*((1+$W$8/100)/($W$8/100+$AD$4/100)))-(AD$7/100*(1+($W$8/100))/($W$8/100)))/($AA$4/100)*100 -> -182.4057971
D15: =IF(D14<=50,6,IF(D14<=100,6-(D14-50)*(1/50),IF(D14<200,5-(D14-100)*(4/100),1))) -> 4.488888889 | E15: =IF(F14<=50,6,IF(F14<=100,6-(F14-50)*(1/50),IF(F14<200,5-(F14-100)*(4/100),1))) -> 5.55 | F15: =IF(F14<=50,6,IF(F14<=100,6-(F14-50)*(1/50),IF(F14<200,5-(F14-100)*(4/100),1))) -> 5.55 | K15: =IF(K14<=2.5,6,IF(K14<15,6-(K14-2.5)*(1/2.5),1)) -> 5 | L15: =IF(M14<=2.5,6,IF(M14<15,6-(M14-2.5)*(1/2.5),1)) -> 4.47826087 | M15: =IF(M14<=2.5,6,IF(M14<15,6-(M14-2.5)*(1/2.5),1)) -> 4.47826087 | Y15: =IF(Y14<=50,6,IF(Y14<=100,6-(Y14-50)*(1/50),IF(Y14<200,5-(Y14-100)*(4/100),1))) -> 1 | Z15: =IF(AA14<=50,6,IF(AA14<=100,6-(AA14-50)*(1/50),IF(AA14<200,5-(AA14-100)*(4/100),1))) -> 5.234782609 | AA15: =IF(AA14<=50,6,IF(AA14<=100,6-(AA14-50)*(1/50),IF(AA14<200,5-(AA14-100)*(4/100),1))) -> 5.234782609 | AC15: =IF(AC14<=50,6,IF(AC14<=100,6-(AC14-50)*(1/50),IF(AC14<200,5-(AC14-100)*(4/100),1))) -> 6 | AD15: =IF(AD14<=50,6,IF(AD14<=100,6-(AD14-50)*(1/50),IF(AD14<200,5-(AD14-100)*(4/100),1))) -> 6
B16: 3 | C16: =+C8 -> 12.5 | D16: =($C16/100)*(1+$B$16/100)/(($B$16/100)+(D$7/100))/(($F$4/100))*100 -> 245.2380952 | E16: =($C16/100)*(1+$B$16/100)/(($B$16/100)+(F$7/100))/(($F$4/100))*100 -> 166.1290323 | F16: =($C16/100)*(1+$B$16/100)/(($B$16/100)+(F$7/100))/(($F$4/100))*100 -> 166.1290323 | I16: 3 | J16: =+J8 -> 12.5 | K16: =($J16/100)*((K$7/100)+($M$4/100))/(($I$16/100)+($M$4/100))*100 -> 11.05769231 | L16: =($J16/100)*((M$7/100)+($M$4/100))/(($I$16/100)+($M$4/100))*100 -> 13.94230769 | M16: =($J16/100)*((M$7/100)+($M$4/100))/(($I$16/100)+($M$4/100))*100 -> 13.94230769 | W16: 3 | X16: =+X8 -> 12.5 | Y16: =(($X16/100*((1+$W$16/100)/($W$16/100+$AD$4/100)))-(Y$7/100*(1+($W$16/100))/($W$16/100)))/($AA$4/100)*100 -> 335.4102564 | Z16: =(($X16/100*((1+$W$16/100)/($W$16/100+$AD$4/100)))-(AA$7/100*(1+($W$16/100))/($W$16/100)))/($AA$4/100)*100 -> 198.0769231 | AA16: =(($X16/100*((1+$W$16/100)/($W$16/100+$AD$4/100)))-(AA$7/100*(1+($W$16/100))/($W$16/100)))/($AA$4/100)*100 -> 198.0769231 | AC16: =(($X16/100*((1+$W$16/100)/($W$16/100+$AD$4/100)))-(AC$7/100*(1+($W$16/100))/($W$16/100)))/($AA$4/100)*100 -> 129.4102564 | AD16: =(($X16/100*((1+$W$16/100)/($W$16/100+$AD$4/100)))-(AD$7/100*(1+($W$16/100))/($W$16/100)))/($AA$4/100)*100 -> 60.74358974
D17: =IF(D16<=50,6,IF(D16<=100,6-(D16-50)*(1/50),IF(D16<200,5-(D16-100)*(4/100),1))) -> 1 | E17: =IF(F16<=50,6,IF(F16<=100,6-(F16-50)*(1/50),IF(F16<200,5-(F16-100)*(4/100),1))) -> 2.35483871 | F17: =IF(F16<=50,6,IF(F16<=100,6-(F16-50)*(1/50),IF(F16<200,5-(F16-100)*(4/100),1))) -> 2.35483871 | K17: =IF(K16<=2.5,6,IF(K16<15,6-(K16-2.5)*(1/2.5),1)) -> 2.576923077 | L17: =IF(M16<=2.5,6,IF(M16<15,6-(M16-2.5)*(1/2.5),1)) -> 1.423076923 | M17: =IF(M16<=2.5,6,IF(M16<15,6-(M16-2.5)*(1/2.5),1)) -> 1.423076923 | Y17: =IF(Y16<=50,6,IF(Y16<=100,6-(Y16-50)*(1/50),IF(Y16<200,5-(Y16-100)*(4/100),1))) -> 1 | Z17: =IF(AA16<=50,6,IF(AA16<=100,6-(AA16-50)*(1/50),IF(AA16<200,5-(AA16-100)*(4/100),1))) -> 1.076923077 | AA17: =IF(AA16<=50,6,IF(AA16<=100,6-(AA16-50)*(1/50),IF(AA16<200,5-(AA16-100)*(4/100),1))) -> 1.076923077 | AC17: =IF(AC16<=50,6,IF(AC16<=100,6-(AC16-50)*(1/50),IF(AC16<200,5-(AC16-100)*(4/100),1))) -> 3.823589744 | AD17: =IF(AD16<=50,6,IF(AD16<=100,6-(AD16-50)*(1/50),IF(AD16<200,5-(AD16-100)*(4/100),1))) -> 5.785128205
C18: =+C10 -> 10 | D18: =($C18/100)*(1+$B$16/100)/(($B$16/100)+(D$7/100))/(($F$4/100))*100 -> 196.1904762 | E18: =($C18/100)*(1+$B$16/100)/(($B$16/100)+(F$7/100))/(($F$4/100))*100 -> 132.9032258 | F18: =($C18/100)*(1+$B$16/100)/(($B$16/100)+(F$7/100))/(($F$4/100))*100 -> 132.9032258 | J18: =+J10 -> 10 | K18: =($J18/100)*((K$7/100)+($M$4/100))/(($I$16/100)+($M$4/100))*100 -> 8.846153846 | L18: =($J18/100)*((M$7/100)+($M$4/100))/(($I$16/100)+($M$4/100))*100 -> 11.15384615 | M18: =($J18/100)*((M$7/100)+($M$4/100))/(($I$16/100)+($M$4/100))*100 -> 11.15384615 | X18: =+X10 -> 10 | Y18: =(($X18/100*((1+$W$16/100)/($W$16/100+$AD$4/100)))-(Y$7/100*(1+($W$16/100))/($W$16/100)))/($AA$4/100)*100 -> 295.7948718 | Z18: =(($X18/100*((1+$W$16/100)/($W$16/100+$AD$4/100)))-(AA$7/100*(1+($W$16/100))/($W$16/100)))/($AA$4/100)*100 -> 158.4615385 | AA18: =(($X18/100*((1+$W$16/100)/($W$16/100+$AD$4/100)))-(AA$7/100*(1+($W$16/100))/($W$16/100)))/($AA$4/100)*100 -> 158.4615385 | AC18: =(($X18/100*((1+$W$16/100)/($W$16/100+$AD$4/100)))-(AC$7/100*(1+($W$16/100))/($W$16/100)))/($AA$4/100)*100 -> 89.79487179 | AD18: =(($X18/100*((1+$W$16/100)/($W$16/100+$AD$4/100)))-(AD$7/100*(1+($W$16/100))/($W$16/100)))/($AA$4/100)*100 -> 21.12820513
D19: =IF(D18<=50,6,IF(D18<=100,6-(D18-50)*(1/50),IF(D18<200,5-(D18-100)*(4/100),1))) -> 1.152380952 | E19: =IF(F18<=50,6,IF(F18<=100,6-(F18-50)*(1/50),IF(F18<200,5-(F18-100)*(4/100),1))) -> 3.683870968 | F19: =IF(F18<=50,6,IF(F18<=100,6-(F18-50)*(1/50),IF(F18<200,5-(F18-100)*(4/100),1))) -> 3.683870968 | K19: =IF(K18<=2.5,6,IF(K18<15,6-(K18-2.5)*(1/2.5),1)) -> 3.461538462 | L19: =IF(M18<=2.5,6,IF(M18<15,6-(M18-2.5)*(1/2.5),1)) -> 2.538461538 | M19: =IF(M18<=2.5,6,IF(M18<15,6-(M18-2.5)*(1/2.5),1)) -> 2.538461538 | Y19: =IF(Y18<=50,6,IF(Y18<=100,6-(Y18-50)*(1/50),IF(Y18<200,5-(Y18-100)*(4/100),1))) -> 1 | Z19: =IF(AA18<=50,6,IF(AA18<=100,6-(AA18-50)*(1/50),IF(AA18<200,5-(AA18-100)*(4/100),1))) -> 2.661538462 | AA19: =IF(AA18<=50,6,IF(AA18<=100,6-(AA18-50)*(1/50),IF(AA18<200,5-(AA18-100)*(4/100),1))) -> 2.661538462 | AC19: =IF(AC18<=50,6,IF(AC18<=100,6-(AC18-50)*(1/50),IF(AC18<200,5-(AC18-100)*(4/100),1))) -> 5.204102564 | AD19: =IF(AD18<=50,6,IF(AD18<=100,6-(AD18-50)*(1/50),IF(AD18<200,5-(AD18-100)*(4/100),1))) -> 6
C20: =+C12 -> 7.5 | D20: =($C20/100)*(1+$B$16/100)/(($B$16/100)+(D$7/100))/(($F$4/100))*100 -> 147.1428571 | E20: =($C20/100)*(1+$B$16/100)/(($B$16/100)+(F$7/100))/(($F$4/100))*100 -> 99.67741935 | F20: =($C20/100)*(1+$B$16/100)/(($B$16/100)+(F$7/100))/(($F$4/100))*100 -> 99.67741935 | J20: =+J12 -> 7.5 | K20: =($J20/100)*((K$7/100)+($M$4/100))/(($I$16/100)+($M$4/100))*100 -> 6.634615385 | L20: =($J20/100)*((M$7/100)+($M$4/100))/(($I$16/100)+($M$4/100))*100 -> 8.365384615 | M20: =($J20/100)*((M$7/100)+($M$4/100))/(($I$16/100)+($M$4/100))*100 -> 8.365384615 | X20: =+X12 -> 7.5 | Y20: =(($X20/100*((1+$W$16/100)/($W$16/100+$AD$4/100)))-(Y$7/100*(1+($W$16/100))/($W$16/100)))/($AA$4/100)*100 -> 256.1794872 | Z20: =(($X20/100*((1+$W$16/100)/($W$16/100+$AD$4/100)))-(AA$7/100*(1+($W$16/100))/($W$16/100)))/($AA$4/100)*100 -> 118.8461538 | AA20: =(($X20/100*((1+$W$16/100)/($W$16/100+$AD$4/100)))-(AA$7/100*(1+($W$16/100))/($W$16/100)))/($AA$4/100)*100 -> 118.8461538 | AC20: =(($X20/100*((1+$W$16/100)/($W$16/100+$AD$4/100)))-(AC$7/100*(1+($W$16/100))/($W$16/100)))/($AA$4/100)*100 -> 50.17948718 | AD20: =(($X20/100*((1+$W$16/100)/($W$16/100+$AD$4/100)))-(AD$7/100*(1+($W$16/100))/($W$16/100)))/($AA$4/100)*100 -> -18.48717949
D21: =IF(D20<=50,6,IF(D20<=100,6-(D20-50)*(1/50),IF(D20<200,5-(D20-100)*(4/100),1))) -> 3.114285714 | E21: =IF(F20<=50,6,IF(F20<=100,6-(F20-50)*(1/50),IF(F20<200,5-(F20-100)*(4/100),1))) -> 5.006451613 | F21: =IF(F20<=50,6,IF(F20<=100,6-(F20-50)*(1/50),IF(F20<200,5-(F20-100)*(4/100),1))) -> 5.006451613 | K21: =IF(K20<=2.5,6,IF(K20<15,6-(K20-2.5)*(1/2.5),1)) -> 4.346153846 | L21: =IF(M20<=2.5,6,IF(M20<15,6-(M20-2.5)*(1/2.5),1)) -> 3.653846154 | M21: =IF(M20<=2.5,6,IF(M20<15,6-(M20-2.5)*(1/2.5),1)) -> 3.653846154 | Y21: =IF(Y20<=50,6,IF(Y20<=100,6-(Y20-50)*(1/50),IF(Y20<200,5-(Y20-100)*(4/100),1))) -> 1 | Z21: =IF(AA20<=50,6,IF(AA20<=100,6-(AA20-50)*(1/50),IF(AA20<200,5-(AA20-100)*(4/100),1))) -> 4.246153846 | AA21: =IF(AA20<=50,6,IF(AA20<=100,6-(AA20-50)*(1/50),IF(AA20<200,5-(AA20-100)*(4/100),1))) -> 4.246153846 | AC21: =IF(AC20<=50,6,IF(AC20<=100,6-(AC20-50)*(1/50),IF(AC20<200,5-(AC20-100)*(4/100),1))) -> 5.996410256 | AD21: =IF(AD20<=50,6,IF(AD20<=100,6-(AD20-50)*(1/50),IF(AD20<200,5-(AD20-100)*(4/100),1))) -> 6
C22: =+C14 -> 5 | D22: =($C22/100)*(1+$B$16/100)/(($B$16/100)+(D$7/100))/(($F$4/100))*100 -> 98.0952381 | E22: =($C22/100)*(1+$B$16/100)/(($B$16/100)+(F$7/100))/(($F$4/100))*100 -> 66.4516129 | F22: =($C22/100)*(1+$B$16/100)/(($B$16/100)+(F$7/100))/(($F$4/100))*100 -> 66.4516129 | J22: =+J14 -> 5 | K22: =($J22/100)*((K$7/100)+($M$4/100))/(($I$16/100)+($M$4/100))*100 -> 4.423076923 | L22: =($J22/100)*((M$7/100)+($M$4/100))/(($I$16/100)+($M$4/100))*100 -> 5.576923077 | M22: =($J22/100)*((M$7/100)+($M$4/100))/(($I$16/100)+($M$4/100))*100 -> 5.576923077 | X22: =+X14 -> 5 | Y22: =(($X22/100*((1+$W$16/100)/($W$16/100+$AD$4/100)))-(Y$7/100*(1+($W$16/100))/($W$16/100)))/($AA$4/100)*100 -> 216.5641026 | Z22: =(($X22/100*((1+$W$16/100)/($W$16/100+$AD$4/100)))-(AA$7/100*(1+($W$16/100))/($W$16/100)))/($AA$4/100)*100 -> 79.23076923 | AA22: =(($X22/100*((1+$W$16/100)/($W$16/100+$AD$4/100)))-(AA$7/100*(1+($W$16/100))/($W$16/100)))/($AA$4/100)*100 -> 79.23076923 | AC22: =(($X22/100*((1+$W$16/100)/($W$16/100+$AD$4/100)))-(AC$7/100*(1+($W$16/100))/($W$16/100)))/($AA$4/100)*100 -> 10.56410256 | AD22: =(($X22/100*((1+$W$16/100)/($W$16/100+$AD$4/100)))-(AD$7/100*(1+($W$16/100))/($W$16/100)))/($AA$4/100)*100 -> -58.1025641
D23: =IF(D22<=50,6,IF(D22<=100,6-(D22-50)*(1/50),IF(D22<200,5-(D22-100)*(4/100),1))) -> 5.038095238 | E23: =IF(F22<=50,6,IF(F22<=100,6-(F22-50)*(1/50),IF(F22<200,5-(F22-100)*(4/100),1))) -> 5.670967742 | F23: =IF(F22<=50,6,IF(F22<=100,6-(F22-50)*(1/50),IF(F22<200,5-(F22-100)*(4/100),1))) -> 5.670967742 | K23: =IF(K22<=2.5,6,IF(K22<15,6-(K22-2.5)*(1/2.5),1)) -> 5.230769231 | L23: =IF(M22<=2.5,6,IF(M22<15,6-(M22-2.5)*(1/2.5),1)) -> 4.769230769 | M23: =IF(M22<=2.5,6,IF(M22<15,6-(M22-2.5)*(1/2.5),1)) -> 4.769230769 | Y23: =IF(Y22<=50,6,IF(Y22<=100,6-(Y22-50)*(1/50),IF(Y22<200,5-(Y22-100)*(4/100),1))) -> 1 | Z23: =IF(AA22<=50,6,IF(AA22<=100,6-(AA22-50)*(1/50),IF(AA22<200,5-(AA22-100)*(4/100),1))) -> 5.415384615 | AA23: =IF(AA22<=50,6,IF(AA22<=100,6-(AA22-50)*(1/50),IF(AA22<200,5-(AA22-100)*(4/100),1))) -> 5.415384615 | AC23: =IF(AC22<=50,6,IF(AC22<=100,6-(AC22-50)*(1/50),IF(AC22<200,5-(AC22-100)*(4/100),1))) -> 6 | AD23: =IF(AD22<=50,6,IF(AD22<=100,6-(AD22-50)*(1/50),IF(AD22<200,5-(AD22-100)*(4/100),1))) -> 6
B24: 4.5 | C24: =+C16 -> 12.5 | D24: =($C24/100)*(1+$B$24/100)/(($B$24/100)+(D$7/100))/(($F$4/100))*100 -> 217.7083333 | E24: =($C24/100)*(1+$B$24/100)/(($B$24/100)+(F$7/100))/(($F$4/100))*100 -> 153.6764706 | F24: =($C24/100)*(1+$B$24/100)/(($B$24/100)+(F$7/100))/(($F$4/100))*100 -> 153.6764706 | I24: 4.5 | J24: =+J16 -> 12.5 | K24: =($J24/100)*((K$7/100)+($M$4/100))/(($I$24/100)+($M$4/100))*100 -> 9.913793103 | L24: =($J24/100)*((M$7/100)+($M$4/100))/(($I$24/100)+($M$4/100))*100 -> 12.5 | M24: =($J24/100)*((M$7/100)+($M$4/100))/(($I$24/100)+($M$4/100))*100 -> 12.5 | W24: 4.5 | X24: =+X16 -> 12.5 | Y24: =(($X24/100*((1+$W$24/100)/($W$24/100+$AD$4/100)))-(Y$7/100*(1+($W$24/100))/($W$24/100)))/($AA$4/100)*100 -> 273.0613027 | Z24: =(($X24/100*((1+$W$24/100)/($W$24/100+$AD$4/100)))-(AA$7/100*(1+($W$24/100))/($W$24/100)))/($AA$4/100)*100 -> 180.1724138 | AA24: =(($X24/100*((1+$W$24/100)/($W$24/100+$AD$4/100)))-(AA$7/100*(1+($W$24/100))/($W$24/100)))/($AA$4/100)*100 -> 180.1724138 | AC24: =(($X24/100*((1+$W$24/100)/($W$24/100+$AD$4/100)))-(AC$7/100*(1+($W$24/100))/($W$24/100)))/($AA$4/100)*100 -> 133.7279693 | AD24: =(($X24/100*((1+$W$24/100)/($W$24/100+$AD$4/100)))-(AD$7/100*(1+($W$24/100))/($W$24/100)))/($AA$4/100)*100 -> 87.2835249
D25: =IF(D24<=50,6,IF(D24<=100,6-(D24-50)*(1/50),IF(D24<200,5-(D24-100)*(4/100),1))) -> 1 | E25: =IF(F24<=50,6,IF(F24<=100,6-(F24-50)*(1/50),IF(F24<200,5-(F24-100)*(4/100),1))) -> 2.852941176 | F25: =IF(F24<=50,6,IF(F24<=100,6-(F24-50)*(1/50),IF(F24<200,5-(F24-100)*(4/100),1))) -> 2.852941176 | K25: =IF(K24<=2.5,6,IF(K24<15,6-(K24-2.5)*(1/2.5),1)) -> 3.034482759 | L25: =IF(M24<=2.5,6,IF(M24<15,6-(M24-2.5)*(1/2.5),1)) -> 2 | M25: =IF(M24<=2.5,6,IF(M24<15,6-(M24-2.5)*(1/2.5),1)) -> 2 | Y25: =IF(Y24<=50,6,IF(Y24<=100,6-(Y24-50)*(1/50),IF(Y24<200,5-(Y24-100)*(4/100),1))) -> 1 | Z25: =IF(AA24<=50,6,IF(AA24<=100,6-(AA24-50)*(1/50),IF(AA24<200,5-(AA24-100)*(4/100),1))) -> 1.793103448 | AA25: =IF(AA24<=50,6,IF(AA24<=100,6-(AA24-50)*(1/50),IF(AA24<200,5-(AA24-100)*(4/100),1))) -> 1.793103448 | AC25: =IF(AC24<=50,6,IF(AC24<=100,6-(AC24-50)*(1/50),IF(AC24<200,5-(AC24-100)*(4/100),1))) -> 3.650881226 | AD25: =IF(AD24<=50,6,IF(AD24<=100,6-(AD24-50)*(1/50),IF(AD24<200,5-(AD24-100)*(4/100),1))) -> 5.254329502
C26: =+C18 -> 10 | D26: =($C26/100)*(1+$B$24/100)/(($B$24/100)+(D$7/100))/(($F$4/100))*100 -> 174.1666667 | E26: =($C26/100)*(1+$B$24/100)/(($B$24/100)+(F$7/100))/(($F$4/100))*100 -> 122.9411765 | F26: =($C26/100)*(1+$B$24/100)/(($B$24/100)+(F$7/100))/(($F$4/100))*100 -> 122.9411765 | J26: =+J18 -> 10 | K26: =($J26/100)*((K$7/100)+($M$4/100))/(($I$24/100)+($M$4/100))*100 -> 7.931034483 | L26: =($J26/100)*((M$7/100)+($M$4/100))/(($I$24/100)+($M$4/100))*100 -> 10 | M26: =($J26/100)*((M$7/100)+($M$4/100))/(($I$24/100)+($M$4/100))*100 -> 10 | X26: =+X18 -> 10 | Y26: =(($X26/100*((1+$W$24/100)/($W$24/100+$AD$4/100)))-(Y$7/100*(1+($W$24/100))/($W$24/100)))/($AA$4/100)*100 -> 237.0268199 | Z26: =(($X26/100*((1+$W$24/100)/($W$24/100+$AD$4/100)))-(AA$7/100*(1+($W$24/100))/($W$24/100)))/($AA$4/100)*100 -> 144.137931 | AA26: =(($X26/100*((1+$W$24/100)/($W$24/100+$AD$4/100)))-(AA$7/100*(1+($W$24/100))/($W$24/100)))/($AA$4/100)*100 -> 144.137931 | AC26: =(($X26/100*((1+$W$24/100)/($W$24/100+$AD$4/100)))-(AC$7/100*(1+($W$24/100))/($W$24/100)))/($AA$4/100)*100 -> 97.69348659 | AD26: =(($X26/100*((1+$W$24/100)/($W$24/100+$AD$4/100)))-(AD$7/100*(1+($W$24/100))/($W$24/100)))/($AA$4/100)*100 -> 51.24904215
D27: =IF(D26<=50,6,IF(D26<=100,6-(D26-50)*(1/50),IF(D26<200,5-(D26-100)*(4/100),1))) -> 2.033333333 | E27: =IF(F26<=50,6,IF(F26<=100,6-(F26-50)*(1/50),IF(F26<200,5-(F26-100)*(4/100),1))) -> 4.082352941 | F27: =IF(F26<=50,6,IF(F26<=100,6-(F26-50)*(1/50),IF(F26<200,5-(F26-100)*(4/100),1))) -> 4.082352941 | K27: =IF(K26<=2.5,6,IF(K26<15,6-(K26-2.5)*(1/2.5),1)) -> 3.827586207 | L27: =IF(M26<=2.5,6,IF(M26<15,6-(M26-2.5)*(1/2.5),1)) -> 3 | M27: =IF(M26<=2.5,6,IF(M26<15,6-(M26-2.5)*(1/2.5),1)) -> 3 | Y27: =IF(Y26<=50,6,IF(Y26<=100,6-(Y26-50)*(1/50),IF(Y26<200,5-(Y26-100)*(4/100),1))) -> 1 | Z27: =IF(AA26<=50,6,IF(AA26<=100,6-(AA26-50)*(1/50),IF(AA26<200,5-(AA26-100)*(4/100),1))) -> 3.234482759 | AA27: =IF(AA26<=50,6,IF(AA26<=100,6-(AA26-50)*(1/50),IF(AA26<200,5-(AA26-100)*(4/100),1))) -> 3.234482759 | AC27: =IF(AC26<=50,6,IF(AC26<=100,6-(AC26-50)*(1/50),IF(AC26<200,5-(AC26-100)*(4/100),1))) -> 5.046130268 | AD27: =IF(AD26<=50,6,IF(AD26<=100,6-(AD26-50)*(1/50),IF(AD26<200,5-(AD26-100)*(4/100),1))) -> 5.975019157
C28: =+C20 -> 7.5 | D28: =($C28/100)*(1+$B$24/100)/(($B$24/100)+(D$7/100))/(($F$4/100))*100 -> 130.625 | E28: =($C28/100)*(1+$B$24/100)/(($B$24/100)+(F$7/100))/(($F$4/100))*100 -> 92.20588235 | F28: =($C28/100)*(1+$B$24/100)/(($B$24/100)+(F$7/100))/(($F$4/100))*100 -> 92.20588235 | J28: =+J20 -> 7.5 | K28: =($J28/100)*((K$7/100)+($M$4/100))/(($I$24/100)+($M$4/100))*100 -> 5.948275862 | L28: =($J28/100)*((M$7/100)+($M$4/100))/(($I$24/100)+($M$4/100))*100 -> 7.5 | M28: =($J28/100)*((M$7/100)+($M$4/100))/(($I$24/100)+($M$4/100))*100 -> 7.5 | X28: =+X20 -> 7.5 | Y28: =(($X28/100*((1+$W$24/100)/($W$24/100+$AD$4/100)))-(Y$7/100*(1+($W$24/100))/($W$24/100)))/($AA$4/100)*100 -> 200.9923372 | Z28: =(($X28/100*((1+$W$24/100)/($W$24/100+$AD$4/100)))-(AA$7/100*(1+($W$24/100))/($W$24/100)))/($AA$4/100)*100 -> 108.1034483 | AA28: =(($X28/100*((1+$W$24/100)/($W$24/100+$AD$4/100)))-(AA$7/100*(1+($W$24/100))/($W$24/100)))/($AA$4/100)*100 -> 108.1034483 | AC28: =(($X28/100*((1+$W$24/100)/($W$24/100+$AD$4/100)))-(AC$7/100*(1+($W$24/100))/($W$24/100)))/($AA$4/100)*100 -> 61.65900383 | AD28: =(($X28/100*((1+$W$24/100)/($W$24/100+$AD$4/100)))-(AD$7/100*(1+($W$24/100))/($W$24/100)))/($AA$4/100)*100 -> 15.21455939
D29: =IF(D28<=50,6,IF(D28<=100,6-(D28-50)*(1/50),IF(D28<200,5-(D28-100)*(4/100),1))) -> 3.775 | E29: =IF(F28<=50,6,IF(F28<=100,6-(F28-50)*(1/50),IF(F28<200,5-(F28-100)*(4/100),1))) -> 5.155882353 | F29: =IF(F28<=50,6,IF(F28<=100,6-(F28-50)*(1/50),IF(F28<200,5-(F28-100)*(4/100),1))) -> 5.155882353 | K29: =IF(K28<=2.5,6,IF(K28<15,6-(K28-2.5)*(1/2.5),1)) -> 4.620689655 | L29: =IF(M28<=2.5,6,IF(M28<15,6-(M28-2.5)*(1/2.5),1)) -> 4 | M29: =IF(M28<=2.5,6,IF(M28<15,6-(M28-2.5)*(1/2.5),1)) -> 4 | Y29: =IF(Y28<=50,6,IF(Y28<=100,6-(Y28-50)*(1/50),IF(Y28<200,5-(Y28-100)*(4/100),1))) -> 1 | Z29: =IF(AA28<=50,6,IF(AA28<=100,6-(AA28-50)*(1/50),IF(AA28<200,5-(AA28-100)*(4/100),1))) -> 4.675862069 | AA29: =IF(AA28<=50,6,IF(AA28<=100,6-(AA28-50)*(1/50),IF(AA28<200,5-(AA28-100)*(4/100),1))) -> 4.675862069 | AC29: =IF(AC28<=50,6,IF(AC28<=100,6-(AC28-50)*(1/50),IF(AC28<200,5-(AC28-100)*(4/100),1))) -> 5.766819923 | AD29: =IF(AD28<=50,6,IF(AD28<=100,6-(AD28-50)*(1/50),IF(AD28<200,5-(AD28-100)*(4/100),1))) -> 6
C30: =+C22 -> 5 | D30: =($C30/100)*(1+$B$24/100)/(($B$24/100)+(D$7/100))/(($F$4/100))*100 -> 87.08333333 | E30: =($C30/100)*(1+$B$24/100)/(($B$24/100)+(F$7/100))/(($F$4/100))*100 -> 61.47058824 | F30: =($C30/100)*(1+$B$24/100)/(($B$24/100)+(F$7/100))/(($F$4/100))*100 -> 61.47058824 | J30: =+J22 -> 5 | K30: =($J30/100)*((K$7/100)+($M$4/100))/(($I$24/100)+($M$4/100))*100 -> 3.965517241 | L30: =($J30/100)*((M$7/100)+($M$4/100))/(($I$24/100)+($M$4/100))*100 -> 5 | M30: =($J30/100)*((M$7/100)+($M$4/100))/(($I$24/100)+($M$4/100))*100 -> 5 | X30: =+X22 -> 5 | Y30: =(($X30/100*((1+$W$24/100)/($W$24/100+$AD$4/100)))-(Y$7/100*(1+($W$24/100))/($W$24/100)))/($AA$4/100)*100 -> 164.9578544 | Z30: =(($X30/100*((1+$W$24/100)/($W$24/100+$AD$4/100)))-(AA$7/100*(1+($W$24/100))/($W$24/100)))/($AA$4/100)*100 -> 72.06896552 | AA30: =(($X30/100*((1+$W$24/100)/($W$24/100+$AD$4/100)))-(AA$7/100*(1+($W$24/100))/($W$24/100)))/($AA$4/100)*100 -> 72.06896552 | AC30: =(($X30/100*((1+$W$24/100)/($W$24/100+$AD$4/100)))-(AC$7/100*(1+($W$24/100))/($W$24/100)))/($AA$4/100)*100 -> 25.62452107 | AD30: =(($X30/100*((1+$W$24/100)/($W$24/100+$AD$4/100)))-(AD$7/100*(1+($W$24/100))/($W$24/100)))/($AA$4/100)*100 -> -20.81992337
D31: =IF(D30<=50,6,IF(D30<=100,6-(D30-50)*(1/50),IF(D30<200,5-(D30-100)*(4/100),1))) -> 5.258333333 | E31: =IF(F30<=50,6,IF(F30<=100,6-(F30-50)*(1/50),IF(F30<200,5-(F30-100)*(4/100),1))) -> 5.770588235 | F31: =IF(F30<=50,6,IF(F30<=100,6-(F30-50)*(1/50),IF(F30<200,5-(F30-100)*(4/100),1))) -> 5.770588235 | K31: =IF(K30<=2.5,6,IF(K30<15,6-(K30-2.5)*(1/2.5),1)) -> 5.413793103 | L31: =IF(M30<=2.5,6,IF(M30<15,6-(M30-2.5)*(1/2.5),1)) -> 5 | M31: =IF(M30<=2.5,6,IF(M30<15,6-(M30-2.5)*(1/2.5),1)) -> 5 | Y31: =IF(Y30<=50,6,IF(Y30<=100,6-(Y30-50)*(1/50),IF(Y30<200,5-(Y30-100)*(4/100),1))) -> 2.401685824 | Z31: =IF(AA30<=50,6,IF(AA30<=100,6-(AA30-50)*(1/50),IF(AA30<200,5-(AA30-100)*(4/100),1))) -> 5.55862069 | AA31: =IF(AA30<=50,6,IF(AA30<=100,6-(AA30-50)*(1/50),IF(AA30<200,5-(AA30-100)*(4/100),1))) -> 5.55862069 | AC31: =IF(AC30<=50,6,IF(AC30<=100,6-(AC30-50)*(1/50),IF(AC30<200,5-(AC30-100)*(4/100),1))) -> 6 | AD31: =IF(AD30<=50,6,IF(AD30<=100,6-(AD30-50)*(1/50),IF(AD30<200,5-(AD30-100)*(4/100),1))) -> 6
S37: §
